Workbook

Sheet AER CF (hidden)
B1: AER CONDITIONAL FORMATTING
B3: CELLS FLAGED "Y" and greyed out will be greyed out in the worksheets.
B4: CONDITIONAL FORMATTING MAP
F5: =INDEX(dms_CF_3.6.1, MATCH(dms_TradingName,dms_CF_TradingName))="Y" | G5: =INDEX(dms_CF_3.6.5, MATCH(dms_TradingName,dms_CF_TradingName))="Y" | H5: =INDEX(dms_CF_3.6.6.1, MATCH(dms_TradingName,dms_CF_TradingName))="Y" | I5: =INDEX(dms_CF_3.6.6.2, MATCH(dms_TradingName,dms_CF_TradingName))="Y" | J5: =INDEX(dms_CF_3.6.6.3, MATCH(dms_TradingName,dms_CF_TradingName))="Y" | K5: =INDEX(dms_CF_3.6.7.1, MATCH(dms_TradingName,dms_CF_TradingName))="Y" | L5: =INDEX(dms_CF_3.6.7.2, MATCH(dms_TradingName,dms_CF_TradingName))="Y" | M5: =INDEX(dms_CF_3.6.7.3, MATCH(dms_TradingName,dms_CF_TradingName))="Y" | N5: =INDEX(dms_CF_3.6.7.4, MATCH(dms_TradingName,dms_CF_TradingName))="Y" | O5: =INDEX(dms_CF_3.6.8, MATCH(dms_TradingName,dms_CF_TradingName))="Y" | P5: =INDEX(dms_CF_4.1, MATCH(dms_TradingName,dms_CF_TradingName))="Y" | Q5: =INDEX(dms_CF_6.8, MATCH(dms_TradingName,dms_CF_TradingName))="Y" | R5: =INDEX(dms_CF_7.12, MATCH(dms_TradingName,dms_CF_TradingName))="Y" | S5: =INDEX(dms_CF_8.1_A, MATCH(dms_TradingName,dms_CF_TradingName))="Y" | T5: =INDEX(dms_CF_8.1_B, MATCH(dms_TradingName,dms_CF_TradingName))="Y" | U5: =INDEX(dms_CF_8.1_Neg, MATCH(dms_TradingName,dms_CF_TradingName))="Y" -> TRUE | V5: =INDEX(dms_CF_4.4.1_Neg, MATCH(dms_TradingName,dms_CF_TradingName))="Y" | Y5: =INDEX(dms_CF_F10, MATCH(dms_TradingName,dms_CF_TradingName))="Y"
B6: dms_CF_TradingName | C6: JurisdictionList | D6: Sector | E6: Segment | F6: dms_CF_3.6.1 | G6: dms_CF_3.6.5 | H6: dms_CF_3.6.6.1 | I6: dms_CF_3.6.6.2 | J6: dms_CF_3.6.6.3 | K6: dms_CF_3.6.7.1 | L6: dms_CF_3.6.7.2 | M6: dms_CF_3.6.7.3 | N6: dms_CF_3.6.7.4 | O6: dms_CF_3.6.8 | P6: dms_CF_4.1 | Q6: dms_CF_6.8 (set from dms_MAIFI_flag) | R6: dms_CF_7.12 | S6: dms_CF_8.1_A (and 8.4) | T6: dms_CF_8.1_B (and 8.4) | U6: dms_CF_8.1_Neg (and 8.4) | V6: dms_CF_4.4.1 | W6: dms_CF_MAIFI_flag (set from dms_MAIFI_flag) | X6: 9.5 TUOS (set from Jurisdiction) | Y6: dms_CF_F10
B7: Amadeus | C7: NT | D7: Gas | E7: Transmission | F7: - | G7: - | H7: - | I7: - | J7: - | K7: - | L7: - | M7: - | N7: - | O7: - | P7: - | Q7: - | R7: - | S7: - | T7: - | U7: - | V7: - | W7: - | X7: - | Y7: -
B8: APA GasNet | C8: Vic | D8: Gas | E8: Transmission | F8: - | G8: - | H8: - | I8: - | J8: - | K8: - | L8: - | M8: - | N8: - | O8: - | P8: - | Q8: - | R8: - | S8: - | T8: - | U8: - | V8: - | W8: - | X8: - | Y8: -
B9: Ausgrid | C9: NSW | D9: Electricity | E9: Distribution | G9: Y | H9: N | I9: N | J9: N | K9: N | L9: N | M9: N | N9: Y | O9: N | P9: N | Q9: =IFERROR(IF(dms_MAIFI_flag="Yes","N","Y"),"Y") -> Y | R9: Y | S9: N | T9: Y | U9: Y | V9: N | W9: =IFERROR(LEFT(dms_MAIFI_flag),"N") -> N | X9: =IF('AER CF'!$C7="Vic","Y","N") -> N
B10: Ausgrid (Tx Assets) | C10: NSW | D10: Electricity | E10: Distribution | G10: Y | H10: N | I10: N | J10: N | K10: N | L10: N | M10: N | N10: Y | O10: N | P10: N | Q10: =IFERROR(IF(dms_MAIFI_flag="Yes","N","Y"),"Y") -> Y | R10: Y | S10: N | T10: Y | U10: Y | V10: N | W10: =IFERROR(LEFT(dms_MAIFI_flag),"N") -> N | X10: =IF('AER CF'!$C8="Vic","Y","N") -> Y
B11: AusNet (D) | C11: Vic | D11: Electricity | E11: Distribution | G11: N | H11: N | K11: N | L11: N | M11: N | N11: N | O11: N | P11: N | Q11: =IFERROR(IF(dms_MAIFI_flag="Yes","N","Y"),"Y") -> Y | R11: N | S11: N | T11: N | U11: Y | V11: N | W11: =IFERROR(LEFT(dms_MAIFI_flag),"N") -> N | X11: =IF('AER CF'!$C9="Vic","Y","N") -> N
B12: AusNet (T) | C12: Vic | D12: Electricity | E12: Transmission | G12: N | K12: N | L12: N | M12: N | N12: N | O12: N | P12: Y | Q12: =IFERROR(IF(dms_MAIFI_flag="Yes","N","Y"),"Y") -> Y | R12: N | S12: N | T12: N | U12: Y | V12: N | W12: =IFERROR(LEFT(dms_MAIFI_flag),"N") -> N | X12: =IF('AER CF'!$C10="Vic","Y","N") -> N
B13: Australian Distribution Co. | C13: NSW | D13: Electricity | E13: Distribution | F13: N | G13: N | H13: N | I13: N | K13: N | L13: N | M13: N | N13: N | O13: N | P13: N | Q13: =IFERROR(IF(dms_MAIFI_flag="Yes","N","Y"),"Y") -> Y | R13: N | S13: N | T13: N | U13: N | V13: N | W13: =IFERROR(LEFT(dms_MAIFI_flag),"N") -> N | X13: =IF('AER CF'!$C13="Vic","Y","N") -> N
B14: Australian Distribution Co. (Vic) | C14: Vic | D14: Electricity | E14: Distribution | F14: N | G14: N | H14: N | I14: N | K14: N | L14: N | M14: N | N14: N | O14: N | P14: N | Q14: =IFERROR(IF(dms_MAIFI_flag="Yes","N","Y"),"Y") -> Y | R14: N | S14: N | T14: N | U14: N | V14: N | W14: =IFERROR(LEFT(dms_MAIFI_flag),"N") -> N | X14: =IF('AER CF'!$C14="Vic","Y","N") -> Y
B15: CitiPower | C15: Vic | D15: Electricity | E15: Distribution | G15: N | H15: N | K15: N | L15: N | M15: N | N15: N | O15: N | P15: N | Q15: =IFERROR(IF(dms_MAIFI_flag="Yes","N","Y"),"Y") -> Y | R15: N | S15: N | T15: N | U15: Y | V15: N | W15: =IFERROR(LEFT(dms_MAIFI_flag),"N") -> N | X15: =IF('AER CF'!$C15="Vic","Y","N") -> Y
B16: Directlink | C16: Qld | D16: Electricity | E16: Transmission | G16: N | K16: N | L16: N | M16: N | N16: N | O16: N | P16: - | Q16: =IFERROR(IF(dms_MAIFI_flag="Yes","N","Y"),"Y") -> Y | R16: N | S16: N | T16: Y | U16: Y | V16: N | W16: =IFERROR(LEFT(dms_MAIFI_flag),"N") -> N | X16: =IF('AER CF'!$C16="Vic","Y","N") -> N
B17: ElectraNet | C17: SA | D17: Electricity | E17: Transmission | G17: N | K17: N | L17: N | M17: N | N17: N | O17: N | P17: - | Q17: =IFERROR(IF(dms_MAIFI_flag="Yes","N","Y"),"Y") -> Y | R17: N | S17: N | T17: Y | U17: Y | V17: N | W17: =IFERROR(LEFT(dms_MAIFI_flag),"N") -> N | X17: =IF('AER CF'!$C17="Vic","Y","N") -> N
B18: Endeavour Energy | C18: NSW | D18: Electricity | E18: Distribution | G18: Y | H18: N | I18: Y | J18: Y | K18: N | L18: N | M18: N | N18: Y | O18: N | P18: N | Q18: =IFERROR(IF(dms_MAIFI_flag="Yes","N","Y"),"Y") -> Y | R18: Y | S18: N | T18: Y | U18: Y | V18: Y | W18: =IFERROR(LEFT(dms_MAIFI_flag),"N") -> N | X18: =IF('AER CF'!$C18="Vic","Y","N") -> N
B19: Energex | C19: Qld | D19: Electricity | E19: Distribution | G19: Y | H19: N | K19: N | L19: N | M19: N | N19: N | O19: N | P19: N | Q19: =IFERROR(IF(dms_MAIFI_flag="Yes","N","Y"),"Y") -> Y | R19: Y | S19: N | T19: Y | U19: Y | V19: Y | W19: =IFERROR(LEFT(dms_MAIFI_flag),"N") -> N | X19: =IF('AER CF'!$C19="Vic","Y","N") -> N
B20: Ergon Energy | C20: Qld | D20: Electricity | E20: Distribution | G20: Y | H20: N | I20: Y | J20: Y | K20: N | L20: N | M20: N | N20: N | O20: N | P20: N | Q20: =IFERROR(IF(dms_MAIFI_flag="Yes","N","Y"),"Y") -> Y | R20: Y | S20: N | T20: Y | U20: Y | V20: N | W20: =IFERROR(LEFT(dms_MAIFI_flag),"N") -> N | X20: =IF('AER CF'!$C20="Vic","Y","N") -> N
B21: Essential Energy | C21: NSW | D21: Electricity | E21: Distribution | G21: Y | H21: N | I21: Y | J21: Y | K21: N | L21: N | M21: N | N21: Y | O21: N | P21: N | Q21: =IFERROR(IF(dms_MAIFI_flag="Yes","N","Y"),"Y") -> Y | R21: Y | S21: N | T21: Y | U21: Y | V21: N | W21: =IFERROR(LEFT(dms_MAIFI_flag),"N") -> N | X21: =IF('AER CF'!$C21="Vic","Y","N") -> N
B22: Evoenergy Distribution | C22: ACT | D22: Electricity | E22: Distribution | G22: Y | H22: N | I22: Y | J22: Y | K22: Y | L22: Y | M22: N | N22: Y | O22: N | P22: Y | Q22: =IFERROR(IF(dms_MAIFI_flag="Yes","N","Y"),"Y") -> Y | R22: Y | S22: N | T22: Y | U22: Y | V22: N | W22: =IFERROR(LEFT(dms_MAIFI_flag),"N") -> N | X22: =IF('AER CF'!$C22="Vic","Y","N") -> N
B23: Evoenergy Distribution (Tx Assets) | C23: ACT | D23: Electricity | E23: Distribution | G23: Y | H23: N | I23: Y | J23: Y | K23: Y | L23: Y | M23: N | N23: Y | O23: N | P23: Y | Q23: =IFERROR(IF(dms_MAIFI_flag="Yes","N","Y"),"Y") -> Y | R23: Y | S23: N | T23: Y | U23: Y | V23: N | W23: =IFERROR(LEFT(dms_MAIFI_flag),"N") -> N | X23: =IF('AER CF'!$C23="Vic","Y","N") -> N
B24: Jemena Electricity | C24: Vic | D24: Electricity | E24: Distribution | G24: N | H24: N | K24: N | L24: N | M24: N | N24: N | O24: N | P24: N | Q24: =IFERROR(IF(dms_MAIFI_flag="Yes","N","Y"),"Y") -> Y | R24: N | S24: N | T24: N | U24: Y | V24: N | W24: =IFERROR(LEFT(dms_MAIFI_flag),"N") -> N | X24: =IF('AER CF'!$C25="Vic","Y","N") -> Y
B25: JGN | C25: Vic | D25: Gas | E25: Distribution | F25: - | G25: - | H25: - | I25: - | J25: - | K25: - | L25: - | M25: - | N25: - | O25: - | P25: - | Q25: - | R25: - | S25: - | T25: - | U25: - | V25: - | W25: - | X25: - | Y25: -
B26: Murraylink | C26: SA | D26: Electricity | E26: Transmission | G26: N | K26: N | L26: N | M26: N | N26: N | O26: N | P26: - | Q26: =IFERROR(IF(dms_MAIFI_flag="Yes","N","Y"),"Y") -> Y | R26: N | S26: N | T26: Y | U26: Y | V26: N | W26: =IFERROR(LEFT(dms_MAIFI_flag),"N") -> N | X26: =IF('AER CF'!$C26="Vic","Y","N") -> N
B27: Power and Water | C27: NT | D27: Electricity | E27: Distribution | G27: N | H27: N | K27: N | L27: Y | M27: N | N27: N | O27: N | P27: Y | Q27: =IFERROR(IF(dms_MAIFI_flag="Yes","N","Y"),"Y") -> Y | R27: Y | S27: Y | T27: Y | U27: Y | V27: N | W27: =IFERROR(LEFT(dms_MAIFI_flag),"N") -> N | X27: =IF('AER CF'!$C27="Vic","Y","N") -> N
B28: Powercor Australia | C28: Vic | D28: Electricity | E28: Distribution | G28: N | H28: N | K28: N | L28: N | M28: N | N28: N | O28: N | P28: N | Q28: =IFERROR(IF(dms_MAIFI_flag="Yes","N","Y"),"Y") -> Y | R28: N | S28: N | T28: N | U28: Y | V28: N | W28: =IFERROR(LEFT(dms_MAIFI_flag),"N") -> N | X28: =IF('AER CF'!$C28="Vic","Y","N") -> Y
B29: Powerlink | C29: Qld | D29: Electricity | E29: Transmission | G29: N | K29: N | L29: N | M29: N | N29: N | O29: N | P29: - | Q29: =IFERROR(IF(dms_MAIFI_flag="Yes","N","Y"),"Y") -> Y | R29: N | S29: N | T29: Y | U29: Y | V29: N | W29: =IFERROR(LEFT(dms_MAIFI_flag),"N") -> N | X29: =IF('AER CF'!$C29="Vic","Y","N") -> N
B30: Roma to Brisbane Pipeline | C30: Qld | D30: Gas | E30: Transmission | F30: - | G30: - | H30: - | I30: - | J30: - | K30: - | L30: - | M30: - | N30: - | O30: - | P30: - | Q30: - | R30: - | S30: - | T30: - | U30: - | V30: - | W30: - | X30: - | Y30: -
B31: SA Power Networks | C31: SA | D31: Electricity | E31: Distribution | G31: Y | H31: N | K31: N | L31: N | M31: N | N31: N | O31: N | P31: N | Q31: =IFERROR(IF(dms_MAIFI_flag="Yes","N","Y"),"Y") -> Y | R31: Y | S31: N | T31: Y | U31: N | V31: N | W31: =IFERROR(LEFT(dms_MAIFI_flag),"N") -> N | X31: =IF('AER CF'!$C31="Vic","Y","N") -> N
B32: TasNetworks (D) | C32: Tas | D32: Electricity | E32: Distribution | G32: Y | H32: N | K32: N | L32: N | M32: N | N32: N | O32: N | P32: N | Q32: =IFERROR(IF(dms_MAIFI_flag="Yes","N","Y"),"Y") -> Y | R32: Y | S32: N | T32: Y | U32: Y | V32: N | W32: =IFERROR(LEFT(dms_MAIFI_flag),"N") -> N | X32: =IF('AER CF'!$C32="Vic","Y","N") -> N
B33: TasNetworks (T) | C33: Tas | D33: Electricity | E33: Transmission | G33: N | K33: N | L33: N | M33: N | N33: N | O33: N | P33: - | Q33: =IFERROR(IF(dms_MAIFI_flag="Yes","N","Y"),"Y") -> Y | R33: N | S33: N | T33: Y | U33: Y | V33: N | W33: =IFERROR(LEFT(dms_MAIFI_flag),"N") -> N | X33: =IF('AER CF'!$C33="Vic","Y","N") -> N
B34: TransGrid | C34: NSW | D34: Electricity | E34: Transmission | G34: N | K34: N | L34: N | M34: N | N34: N | O34: N | P34: - | Q34: =IFERROR(IF(dms_MAIFI_flag="Yes","N","Y"),"Y") -> Y | R34: N | S34: N | T34: Y | U34: Y | V34: N | W34: =IFERROR(LEFT(dms_MAIFI_flag),"N") -> N | X34: =IF('AER CF'!$C34="Vic","Y","N") -> N
B35: United Energy | C35: Vic | D35: Electricity | E35: Distribution | G35: N | H35: N | K35: N | L35: N | M35: N | N35: N | O35: N | P35: N | Q35: =IFERROR(IF(dms_MAIFI_flag="Yes","N","Y"),"Y") -> Y | R35: N | S35: N | T35: N | U35: Y | V35: N | W35: =IFERROR(LEFT(dms_MAIFI_flag),"N") -> N | X35: =IF('AER CF'!$C35="Vic","Y","N") -> Y
B38: Confidential
B39: Amended
B41: Worksheet 6.2 STPIS reliability
B42: Formula | F42: Applied to:
B44: =INDEX(dms_CBD_flag,MATCH(dms_TradingName,dms_TradingName_List))="NO" | F44: $D$11,$D$17,$D$23,$D$33,$D$39,$D$45,$D$55,$D$61,$D$67,$D$77,$D$83,$D$89
B45: =INDEX(dms_Urban_flag,MATCH(dms_TradingName,dms_TradingName_List))="NO" | F45: $D$12,$D$18,$D$24,$D$56,$D$62,$D$78,$D$68,$D$84
B46: =INDEX(dms_ShortRural_flag,MATCH(dms_TradingName,dms_TradingName_List))="NO" | F46: $D$13,$D$19,$D$25,$D$57,$D$63,$D$69,$D$79,$D$85
B47: =INDEX(dms_LongRural_flag,MATCH(dms_TradingName,dms_TradingName_List))="NO" | F47: $D$14,$D$20,$D$26,$D$58,$D$64,$D$65,$D$70,$D$71,$D$80,$D$86
B48: =INDEX(dms_FeederType_5_flag,MATCH(dms_TradingName,dms_TradingName_List))="NO" | F48: $D$87,$D$81,$D$71,$D$65,$D$59,$D$49,$D$43,$D$37,$D$21,$D$15
B49: =dms_MAIFI_Flag="No" | F49: $D$55:$D$72
B52: Business & other details
B53: =(INDEX(dms_Model_Span,MATCH(dms_Model,dms_Model_List))>1)
B54: =(INDEX(dms_Model_Span,MATCH(dms_Model,dms_Model_List))=1)
B57: STYLES IN USE
B58: HEADING ONE | C58: dms_1
B59: HEADING TWO | C59: dms_2
B60: HEADING THREE | C60: dms_3
B61: HEADING FOUR | C61: dms_4
B62: HEADING FIVE | C62: dms_5
B63: 5.111 | C63: dms_NUM
B64: 0.0545 | C64: dms_NUM%
B65: 5.5555 | C65: dms_NUM3d
B66: Text description | C66: dms_Row_Locked
B67: Text description | C67: dms_Row1
B68: Text description | C68: dms_Row2
B69: Total | C69: dms_T1
B70: Total | C70: dms_T2
B71: EXPENSES | C71: dms_BH
B72: 2019 | C72: dms_BY1
B73: 2019 | C73: dms_BY2
B74: VOLUMES | C74: dms_GH
B75: 2019 | C75: dms_GY1
B76: 2019 | C76: dms_GY2

Sheet AER NRs (hidden)
B1: AER NAMED RANGES
B3: DROP DOWN SELECTORS USED IN WORKBOOKS
B5: COVER SHEET | C5: dms_DataQuality_List | D5: dms_Confid_status_List
C6: -- select -- | D6: -- select --
C7: Actual | D7: Public
C8: Estimate | D8: Confidential
C9: Consolidated
C12: For all files either AER or business needs to be able to specify the type of submission | D12: For PTRM & RFM templates we must provide a choice in case they change their form of control - otherwise it is drawn from the business specific lookup table above.
C13: dms_SourceList | D13: dms_FormControl_Choices
C14: -- select -- | D14: Revenue cap
C15: After appeal | D15: Revenue yield
C16: Draft decision | D16: Tariff cap
C17: Final decision | D17: Weighted average price cap
C18: PTRM update 1
C19: PTRM update 2
C20: PTRM update 3
C21: PTRM update 4
C22: PTRM update 5
C23: PTRM update 6
C24: PTRM update 7
C25: Reallocated
C26: Recast
C27: Regulatory proposal
C28: Reporting
C29: Revised regulatory proposal
K32: This is used to create an image to insert on 6.3 STPIS sheet - not for dropdown lists. | N32: GAS
B33: CA & RESET RINS DNSP | C33: dms_DNSP_020301_SubstationType | D33: dms_DNSP_020301_ProjectType | E33: dms_DNSP_020301_ProjectTrigger | F33: dms_DNSP_020302_ProjectType | G33: dms_DNSP_020302_ProjectTrigger | H33: dms_STPIS_Exclusion_List | I33: dms_Reason_Interruption | J33: dms_Reason_Interruption_Detailed | K33: Reason for interruption | N33: dms_N0205_AssetType
C34: Subtransmission substation | D34: New substation establishment | E34: Demand growth | F34: New line on new route - single circuit | G34: Demand growth | H34: Weather | I34: Animal | J34: Animal impact | K34: Animal | L34: Animal impact | N34: Cast Iron
C35: Zone substation | D35: Substation upgrade - capacity | E35: Voltage issues | F35: New line on new route - dual circuit | G35: Voltage issues | H35: Equipment failure | I35: Asset failure | J35: Animal nesting/burrowing, etc and other | L35: Animal nesting/burrowing, etc and other | N35: PVC
C36: Switching station | D36: Substation upgrade - voltage | E36: Reactive power issue | F36: New line on new route - other | G36: Reactive power issue | H36: Operational error | I36: Other | J36: Other | L36: Other | N36: Polyamide
C37: Other | D37: Other | E37: Fault level issues | F37: Line rebuild over existing route - single circuit | G37: Fault level issues | H37: Vegetation | I37: Overloads | J37: LV | K37: Asset failure | L37: LV | N37: High density polyethylene (80)
E38: Safety | F38: Line rebuild over existing route - dual circuit | G38: Net market benefit | H38: Animals | I38: Planned | J38: Distribution substation | L38: Distribution substation | N38: High density polyethylene (100)
E39: Environment | F39: Reconductor - Single circuit | G39: Safety | H39: Third party impacts | I39: Network business | J39: HV | L39: HV | N39: High density polyethylene (250)
E40: Other | F40: Reconductor - Dual circuit | G40: Environment | H40: Transmission failure | I40: Third party | J40: Zone substation | L40: Zone substation | N40: High density polyethylene (575)
F41: Reconductor - Other | G41: Other | H41: Load shedding | I41: Unknown | J41: Subtransmission | L41: Subtransmission | N41: Medium density polyethylene
F42: Line upgrade - raising/retensoring | H42: Inter-distributor connection failure | I42: Vegetation | J42: insert description of 'other' | K42: Other | L42: insert description of 'other' | N42: Unprotected steel
F43: Line upgrade - voltage upgrade | H43: Other | I43: Weather | J43: Network error | K43: Overloads | N43: Protected steel
F44: Line upgrade - capacity | I44: 2 - STPIS Exclusion (3.3)(a) | J44: Switching and protection error | K44: Planned | N44: Other
F45: String spare circuit | I45: 3 - STPIS Exclusion (3.3)(a) | J45: Fire | K45: Network business | L45: Network error
F46: Other | I46: 4 - STPIS Exclusion (3.3)(a) | J46: Other | L46: Switching and protection error
I47: 5 - STPIS Exclusion (3.3)(a) | J47: Dig-in | K47: Third party | L47: Fire
I48: 6 - STPIS Exclusion (3.3)(a) | J48: Unauthorised access | L48: Other
I49: 7 - STPIS Exclusion (3.3)(a) | J49: Vehicle impact | L49: Dig-in
J50: Unknown | L50: Unauthorised access
J51: Blow-in/Fall-in - NSP responsibility | L51: Vehicle impact
J52: Grow-in - NSP responsibility | K52: Unknown | L52: Unknown
J53: Blow-in/Fall-in - Other responsible party | K53: Vegetation | L53: Blow-in/Fall-in - NSP responsibility
J54: Grow-in - Other responsible party | L54: Grow-in - NSP responsibility
L55: Blow-in/Fall-in - Other responsible party
L56: Grow-in - Other responsible party
K57: Weather
K58: 2 - STPIS Exclusion (3.3)(a)
K59: 3 - STPIS Exclusion (3.3)(a)
K60: 4 - STPIS Exclusion (3.3)(a)
K61: 5 - STPIS Exclusion (3.3)(a)
K62: 6 - STPIS Exclusion (3.3)(a)
K63: 7 - STPIS Exclusion (3.3)(a)
B66: CA & RESET RINS TNSP | C66: dms_TNSP_0203_SubstationType | D66: dms_TNSP_020301_ProjectType | E66: dms_TNSP_020301_ProjectTrigger | F66: dms_TNSP_020302_ProjectType | G66: dms_TNSP_0203_ProjectTrigger
C67: Terminal station | D67: New substation establishment | E67: Demand growth | F67: New line on new route - single circuit | G67: Demand growth
C68: Switching station | D68: Capacity upgrade | E68: Voltage issues | F68: New line on new route - dual circuit | G68: Voltage issues
C69: Transmission substation | D69: Voltage upgrade | E69: Reactive power issue | F69: New line on new route - other | G69: Reactive power issue
C70: Other | D70: Other | E70: Fault level issues | F70: Line rebuild over existing route - single circuit | G70: Fault level issues
E71: Net market benefit | F71: Line rebuild over existing route - dual circuit | G71: Net market benefit
E72: Safety | F72: Reconductor - Single circuit | G72: Safety
E73: Environment | F73: Reconductor - Dual circuit | G73: Environment
E74: Other | F74: Reconductor - Other | G74: Other
F75: Line upgrade - raising/retensoring
F76: Line upgrade - voltage upgrade
F77: Line upgrade - capacity
F78: String spare circuit
F79: Other
B83: NAMED RANGES USED IN ETL PROCESS
M84: GAS ARR & RESET
B85: CA & RESET RINS DNSP ONLY | C85: dms_020303_01_UOM | D85: dms_020501_01_UOM | E85: dms_020501_02_UOM | F85: dms_020501_03_UOM | G85: dms_020501_04_UOM | H85: dms_020701_01_UOM | I85: dms_020701_02_UOM | J85: dms_020701_01_Rows | K85: dms_040102_01_UOM | L85: dms_040102_04_UOM | M85: dms_S140101_UOM | N85: dms_S140201_UOM | O85: dms_E050201_UOM | P85: dms_E050202_UOM
C86: Circuit line length in km | D86: 0's | E86: 0's | F86: 0's | G86: 0's | H86: km | I86: km | J86: Route line length within zone | K86: 0's | L86: days | M86: number | N86: number per km | O86: per metre per connection | P86: metres per connection
C87: Circuit line length in km | D87: 0's | E87: 0's | F87: 0's | G87: 0's | H87: 0's | I87: 0's | J87: Number of maintenance spans | K87: 0's | L87: 0's | M87: number | N87: number | O87: per service per connection | P87: number per connection
C88: Circuit line length in km | D88: MVA added | E88: MVA added | F88: MVA added | G88: MVA added | H88: km | I88: km | J88: Total length of maintenance spans | K88: 0's | L88: $0s | M88: number | N88: number | O88: number per connection | P88: number per connection
C89: Circuit line length in km | D89: 0's | E89: 0's | F89: 0's | G89: 0's | H89: km | I89: km | J89: Length of vegetation corridors | K89: $0s | L89: 0's | M89: km
C90: Number | D90: total spend $0s | E90: total spend $0s | F90: total spend $0s | G90: total spend $0s | H90: 0's | I90: 0's | J90: Average number of trees per maintenance span
C91: Number | D91: net circuit km added | E91: net circuit km added | F91: net circuit km added | G91: net circuit km added | H91: years | I91: years | J91: Average frequency of cutting cycle
C92: Number | D92: total spend $0s | E92: total spend $0s | F92: total spend $0s | G92: total spend $0s
D93: net circuit km added | E93: net circuit km added | F93: net circuit km added | G93: net circuit km added
D94: total spend $0s | E94: total spend $0s | F94: total spend $0s | G94: total spend $0s
D95: 0's | F95: $0s
D96: 0's
D97: 0's
D98: $0s
B101: CA & RESET RINS TNSP ONLY | C101: dms_020701_01_UOM
C102: km
C103: 0's
C104: km
C105: 0's
C106: km
C107: metres
C108: years
B111: CA & RESET RINS DNSP & TNSP | C111: dms_020603_01_UOM
C112: 0's
C113: 0's
C114: 0's
C115: 0's
C116: (per cent)
B119: EB & RESET RINS DNSP ONLY | C119: dms_030601_01_UOM | D119: dms_030601_02_UOM | E119: dms_030701_01_UOM | F119: dms_030702_01_UOM | G119: dms_030703_01_UOM
C120: minutes/customer | D120: minutes/customer | E120: Customer / km | F120: % | G120: km
C121: minutes/customer | D121: minutes/customer | E121: MWh/customer | F121: Number of spans
C122: interruptions/customer | D122: interruptions/customer | E122: kVA / customer | F122: Number of spans
C123: interruptions/customer | D123: interruptions/customer | F123: Number of spans
F124: Number of spans
F125: Years
F126: Years
F127: Trees
F128: Trees
F129: Defects
F130: Defects
F131: Spans
F132: km
F133: Spans
C135: WHEN INSERTING COVER SHEET INTO A TNSP FILE - APPLY THESE NAMED RANGES
B136: EB & RESET RINS TNSP ONLY | C136: dms_030601_01_UOM | E136: dms_030701_01_UOM | F136: dms_030702_01_UOM
C137: % | E137: Number of spans | F137: km
C138: number | E138: Years | F138: %
C139: number | E139: Trees | F139: km
C140: % | E140: Defects | F140: number
C141: number | E141: Number of spans
C142: number | E142: km
C143: % | E143: km
C144: number | E144: Number of spans
C145: number
C146: %
C147: number
C148: %
C149: number
C150: %
C151: number
B153: EB & RESET RINS DNSP & TNSP | C153: dms_EB_RAB_PIT
C154: Beginning of year
C155: End of year
C156: End of year
C157: End of year
C158: End of year
C159: End of year
B161: ARR DNSP ONLY | C161: dms_030605_UOM | D161: dms_03060703_UOM | E161: dms_E020202_UOM | F161: Spare
C162: number | D162: number | E162: Length of mains replaced
C163: number | D163: number | E163: Number of services replaced
C164: number | D164: number
C165: number | D165: number
C166: number | D166: (per cent)
C167: number
C168: number
C169: number
C170: number
C171: number
C172: number
C173: number
C174: (per cent)
C175: (per cent)
B177: RFM | C177: dms_Beg | D177: dms_Mid | E177: dms_End
C178: Beginning of year | D178: Mid year | E178: End of Year
B180: PTRM | C180: dms_PTRM_RAB_PIT | D180: dms_PTRM_TAB_PIT | E180: DMS_Xfactor
C181: Beginning of year | D181: Beginning of year | E181: x factors
C182: End of year | D182: End of year
C183: End of year | D183: End of year
C184: End of year | D184: End of year
C185: End of year
B188: STPIS & MIC NAMED RANGES
B190: These "row descriptions" are the column headings in the various templates but become row descriptions in the ETL process
B192: Table 6.3 sustained interruptions - row descriptions | C192: dms_060301_CustNo_Affected_Row | D192: dms_060301_Avg_Duration_Sustained_Int_Row | E192: dms_060301_Effect_unplanned_SAIDI_Row | F192: dms_060301_Effect_unplanned_SAIFI_Row
C193: Number of customers affected by the interruption | D193: Average duration of sustained customer interruption | E193: Effect on unplanned SAIDI | F193: Effect on unplanned SAIFI
B196: Table 6.1 telephone answering - row descriptions and start date | C196: dms_060101_Rows | D196: dms_060102_Rows | E196: dms_060101_StartDateTxt
C197: Total number of calls (after removing excluded events) | D197: Number of calls answered within 30 seconds (after excluding excluded events) | E197: =dms_060701_StartDateTxt -> 1-Jul-2016
B200: Table 6.8.1 - row descriptions | C200: dms_060801_01_Rows | D200: dms_060801_02_Rows | E200: dms_060801_03_Rows | F200: dms_060801_04_Rows
C201: Number of interruptions | D201: Duration of interruptions | E201: Total unplanned minutes off supply | F201: Effect on unplanned MAIFI
B204: Table 7.9.4 - market impact component - row descriptions | C204: dms_070904_01_Rows | D204: without exclusions | E204: with exclusions
B207: These headings (Lists) are determined from the INDEX/MATCH function on the NSP selected on the Business & other details sheet
B209: Table 6.7.1 - daily performance data - unplanned - MAIFI -- row descriptions and header named range values | C209: dms_060701_Feeder_Header_Lvl4 | D209: =INDEX(dms_FeederName_1,MATCH(dms_TradingName,dms_TradingName_List)) -> CBD | E209: =INDEX(dms_FeederName_1,MATCH(dms_TradingName,dms_TradingName_List)) -> CBD | F209: =INDEX(dms_FeederName_2,MATCH(dms_TradingName,dms_TradingName_List)) -> Urban | G209: =INDEX(dms_FeederName_2,MATCH(dms_TradingName,dms_TradingName_List)) -> Urban | H209: =INDEX(dms_FeederName_3,MATCH(dms_TradingName,dms_TradingName_List)) -> Short rural | I209: =INDEX(dms_FeederName_3,MATCH(dms_TradingName,dms_TradingName_List)) -> Short rural | J209: =INDEX(dms_FeederName_4,MATCH(dms_TradingName,dms_TradingName_List)) -> Long rural | K209: =INDEX(dms_FeederName_4,MATCH(dms_TradingName,dms_TradingName_List)) -> Long rural | L209: =IF((INDEX(dms_FeederName_5,MATCH(dms_TradingName,dms_TradingName_List))=0),"Network",(INDEX(dms_FeederName_5,MATCH(dms_TradingName,dms_TradingName_List)))) -> Network | M209: =IF((INDEX(dms_FeederName_5,MATCH(dms_TradingName,dms_TradingName_List))=0),"Network",(INDEX(dms_FeederName_5,MATCH(dms_TradingName,dms_TradingName_List)))) -> Network | N209: Network | O209: Network
C211: dms_060701_Rows | D211: All events | E211: After removing excluded events | F211: All events | G211: After removing excluded events | H211: All events | I211: After removing excluded events | J211: All events | K211: After removing excluded events | L211: All events | M211: After removing excluded events | N211: All events | O211: After removing excluded events
D212: the number of column headings changes from 10 to 12 depending on the number of feeder categories for the NSP
C214: dms_0603_FeederList | D214: =INDEX(dms_FeederName_1,MATCH(dms_TradingName,dms_TradingName_List)) -> CBD | E214: =INDEX(dms_FeederName_2,MATCH(dms_TradingName,dms_TradingName_List)) -> Urban | F214: =INDEX(dms_FeederName_3,MATCH(dms_TradingName,dms_TradingName_List)) -> Short rural | G214: =INDEX(dms_FeederName_4,MATCH(dms_TradingName,dms_TradingName_List)) -> Long rural
B217: Use these to add to specific worksheets in existing files | C217: Use these to add to specific worksheets in existing files
B220: ARRs 6.7 STPIS daily performance | C220: dms_060101_Values | D220: dms_060102_Values | E220: dms_060701_Values
C221: dms_LeapYear
B224: ARR's 6.8 STPIS exclusions | C224: dms_060801_Event_Date | D224: dms_060801_OutageID | E224: dms_060801_FeederID | F224: dms_060801_FeederClass | G224: dms_060801_CauseID | H224: dms_060801_01_Values | I224: dms_060801_02_Values | J224: dms_060801_03_Values | K224: dms_060801_Excl_Cat | L224: dms_060801_04_Values
C225: dms_060801_StartCell
B228: CA 6.3 sustained interruptions | C228: dms_060301_Event_Date | D228: dms_060301_Event_Time | E228: dms_060301_AssetID | F228: dms_060301_FeederClass | G228: dms_060301_Reason | H228: dms_060301_DetailedReason | I228: dms_060301_CustNo_Affected_Values | J228: dms_060301_Avg_Duration_Sustained_Int_Values | K228: dms_060301_Effect_unplanned_SAIDI_Values | L228: dms_060301_Effect_unplanned_SAIFI_Values | M228: dms_060301_MED
B232: PTRM input sheet | C232: DMS_50_01_01a | D232: DMS_50_01_01aa | E232: DMS_50_01_01b | F232: DMS_50_01_01bb | G232: DMS_50_01_01c | H232: DMS_50_01_01d | I232: DMS_50_01_01dd

Sheet AER lookups (hidden)
B1: AER LOOKUP TABLES
B3: Data in these columns used for data validation and database purposes.
B4: Date last modified: | C4: 2017-01-16 | D4: added (Albury and Victora) for AGN
C5: 2016-10-17 | D5: updated TransGrid's correct legal name, corrected TasNetworks (T) to June financial year
C6: 2017-02-01 | D6: inserted Power and Water, added NRs (dms_FeederCat_1 and dms_FeederCat_2)
C7: 2017-03-03 | D7: inserted AEMO as a business
C8: 2018-03-28 | D8: major changes to accommodate STPIS
C9: Template Version | D9: 5
Z11: FOR ELECTRICITY BUSINESSES ONLY
Z12: Feeder Types | AD12: TasNetworks (D) | AE12: Feeder Names
Z14: CBD | AA14: Urban | AB14: Short rural | AC14: long rural | AD14: EXTRA
B15: dms_TradingName_List | C15: dms_TradingNameFull_List | D15: dms_ABN_List | E15: dms_JurisdictionList | F15: dms_Sector_List | G15: dms_Segment_List | H15: dms_FormControl_List | I15: dms_RPT_List | J15: dms_RPTMonth_List | K15: dms_CRCPlength_List | L15: dms_FRCPlength_List | M15: dms_PRCPlength_List | N15: dms_663_List | O15: dms_DeterminationRef_List | P15: dms_Addr1_List | Q15: dms_Addr2_List | R15: dms_Suburb_List | S15: dms_State_List | T15: dms_PostCode_List | U15: dms_PAddr1_List | V15: dms_PAddr2_List | W15: dms_PSuburb_List | X15: dms_PState_List | Y15: dms_PPostCode_List | Z15: dms_CBD_flag | AA15: dms_Urban_flag | AB15: dms_ShortRural_flag | AC15: dms_LongRural_flag | AD15: dms_FeederType_5_flag | AE15: dms_FeederName_1 | AF15: dms_FeederName_2 | AG15: dms_FeederName_3 | AH15: dms_FeederName_4 | AI15: dms_FeederName_5 | AJ15: dms_Public_Lighting_List | AK15: Name
B16: AGN (Albury and Victoria) | C16: Australian Gas Networks Limited (reporting data for Albury and Victoria) | D16: 19078551685 | E16: Vic | F16: Gas | G16: Distribution | H16: Tariff cap | I16: Financial | J16: June | K16: 5 | L16: 5 | M16: 5 | N16: x | P16: Level 6 | Q16: 400 King William Street | R16: ADELAIDE | S16: SA | T16: 5000 | U16: PO Box 6468 | V16: Halifax Street | W16: ADELAIDE | X16: SA | Y16: 5000 | Z16: NO | AA16: NO | AB16: NO | AC16: NO | AD16: NO | AE16: CBD | AF16: Urban | AG16: Short rural | AH16: Long rural | AJ16: NO | AK16: =B16 -> AGN (Albury and Victoria)
B17: AGN (Albury) | C17: Australian Gas Networks Limited (reporting data for Albury) | D17: 19078551685 | E17: Vic | F17: Gas | G17: Distribution | H17: Tariff cap | I17: Financial | J17: June | K17: 5 | L17: 5 | M17: 5 | N17: x | P17: Level 6 | Q17: 400 King William Street | R17: ADELAIDE | S17: SA | T17: 5000 | U17: PO Box 6468 | V17: Halifax Street | W17: ADELAIDE | X17: SA | Y17: 5000 | Z17: NO | AA17: NO | AB17: NO | AC17: NO | AD17: NO | AE17: CBD | AF17: Urban | AG17: Short rural | AH17: Long rural | AJ17: NO | AK17: AGN (Albury)
B18: AGN (SA) | C18: Australian Gas Networks Limited (reporting data for SA) | D18: 19078551685 | E18: SA | F18: Gas | G18: Distribution | H18: Tariff cap | I18: Financial | J18: June | K18: 5 | L18: 5 | M18: 5 | N18: 5 | O18: distribution determination | P18: Level 6 | Q18: 400 King William Street | R18: ADELAIDE | S18: SA | T18: 5000 | U18: PO Box 6468 | V18: Halifax Street | W18: ADELAIDE | X18: SA | Y18: 5000 | Z18: NO | AA18: NO | AB18: NO | AC18: NO | AD18: NO | AE18: CBD | AF18: Urban | AG18: Short rural | AH18: Long rural | AJ18: NO | AK18: AGN (SA)
B19: AGN (Victoria) | C19: Australian Gas Networks Limited (reporting data for Victoria) | D19: 19078551685 | E19: Vic | F19: Gas | G19: Distribution | H19: Tariff cap | I19: Financial | J19: June | K19: 5 | L19: 5 | M19: 5 | N19: x | P19: Level 6 | Q19: 400 King William Street | R19: ADELAIDE | S19: SA | T19: 5000 | U19: PO Box 6468 | V19: Halifax Street | W19: ADELAIDE | X19: SA | Y19: 5000 | Z19: NO | AA19: NO | AB19: NO | AC19: NO | AD19: NO | AE19: CBD | AF19: Urban | AG19: Short rural | AH19: Long rural | AJ19: NO | AK19: AGN (Victoria)
B20: Amadeus | C20: APT Pipelines (NT) Pty Ltd | D20: 39009737393 | E20: NT | F20: Gas | G20: Transmission | H20: Tariff cap | I20: Financial | J20: June | K20: 5 | L20: 5 | M20: 5 | N20: x | O20: n/a | P20: Level 19, HSBC Building | Q20: 580 George Street | R20: SYDNEY | S20: NSW | T20: 2000 | U20: Level 19, HSBC Building | V20: 580 George Street | W20: SYDNEY | X20: NSW | Y20: 2000 | Z20: NO | AA20: NO | AB20: NO | AC20: NO | AD20: NO | AE20: CBD | AF20: Urban | AG20: Short rural | AH20: Long rural | AJ20: NO | AK20: Amadeus
B21: APA GasNet | C21: APA GasNet Australia (Operations) Pty Ltd | D21: 065083009 | E21: Vic | F21: Gas | G21: Transmission | H21: Weighted average price cap | I21: Financial | J21: June | K21: 5 | L21: 5 | M21: 5 | N21: x | P21: Level 19, HSBC Building | Q21: 580 George Street | R21: SYDNEY | S21: NSW | T21: 2000 | U21: PO Box R41 | W21: ROYAL EXCHANGE | X21: NSW | Y21: 1225 | Z21: Alexandra Curran | AA21: 02 9275 0020 | AB21: alexandra.curran@apa.com.au | AC21: NO | AD21: NO | AE21: NO | AF21: NO | AG21: NO | AH21: - | AI21: CBD | AJ21: Urban | AK21: APA GasNet
B22: APA VTS | C22: APA VTS Australia (Operations) Pty Ltd | D22: 65083009 | E22: Vic | F22: Gas | G22: Transmission | H22: Tariff cap | I22: Financial | J22: June | K22: 5 | L22: 5 | M22: 5 | N22: x | P22: Level 19, HSBC Building | Q22: 580 George Street | R22: SYDNEY | S22: NSW | T22: 2000 | U22: PO Box R41 | W22: ROYAL EXCHANGE | X22: NSW | Y22: 1225 | Z22: NO | AA22: NO | AB22: NO | AC22: NO | AD22: NO | AE22: CBD | AF22: Urban | AG22: Short rural | AH22: Long rural | AJ22: NO | AK22: APA VTS
B23: AusNet (Gas) | C23: AusNet Gas Services | D23: 086015036 | E23: Vic | F23: Gas | G23: Distribution | H23: Tariff cap | I23: Financial | J23: June | K23: 5 | L23: 5 | M23: 5 | N23: - | O23: - | P23: Level 31 | Q23: 2 Southbank Boulevard | R23: SOUTHBANK | S23: Vic | T23: 3008 | X23: Vic | Z23: NO | AA23: NO | AB23: NO | AC23: NO | AD23: NO | AE23: CBD | AF23: Urban | AG23: Short rural | AH23: Long rural | AJ23: NO | AK23: AusNet (Gas)
B24: Australian Distribution Co. (Gas) | C24: Australian Gas Distribution Co. | D24: 11222333444 | E24: Vic | F24: Gas | G24: Distribution | H24: Tariff cap | I24: Financial | J24: June | K24: 5 | L24: 5 | M24: 5 | N24: - | O24: - | P24: 123 Straight Street | R24: MELBOURNE | S24: Vic | T24: 3000 | U24: PO Box 123 | W24: MELBOURNE | X24: Vic | Y24: 3000 | Z24: NO | AA24: NO | AB24: NO | AC24: NO | AD24: NO | AE24: CBD | AF24: Urban | AG24: Short rural | AH24: Long rural | AJ24: NO | AK24: Australian Distribution Co. (Gas)
B25: Australian Transmission Co. (Gas) | C25: Australian Transmission Co. (Gas) | D25: 11222333444 | E25: NSW | F25: Gas | G25: Transmission | H25: Tariff cap | I25: Financial | J25: June | K25: 5 | L25: 5 | M25: 5 | N25: 5 | O25: transmission determination | P25: 123 Straight Street | R25: SYDNEY | S25: NSW | T25: 2000 | U25: PO Box 123 | W25: SYDNEY | X25: NSW | Y25: 2000 | Z25: NO | AA25: NO | AB25: NO | AC25: NO | AD25: NO | AE25: CBD | AF25: Urban | AG25: Short rural | AH25: Long rural | AJ25: NO | AK25: Australian Transmission Co. (Gas)
B26: Evoenergy Gas | C26: Icon Distribution Investments Limited (ABN 83 073 025 224) and Jemena Networks (ACT) Pty Ltd (ABN 24 008 552 663) | D26: 76670568688 | E26: ACT | F26: Gas | G26: Distribution | H26: Tariff cap | I26: Financial | J26: June | K26: 5 | L26: 5 | M26: 5 | N26: x | P26: 40 Bunda Street | R26: CANBERRA | S26: ACT | T26: 2600 | U26: GPO BOX 366 | W26: CANBERRA | X26: ACT | Y26: 2601 | Z26: NO | AA26: NO | AB26: NO | AC26: NO | AD26: NO | AE26: CBD | AF26: Urban | AG26: Short rural | AH26: Long rural | AJ26: NO | AK26: Evoenergy Gas
B27: JGN | C27: Jemena Gas Networks (NSW) Ltd | D27: 003 004 322 | E27: NSW | F27: Gas | G27: Distribution | H27: Tariff cap | I27: Financial | J27: June | K27: 5 | L27: 5 | M27: 5 | Z27: NO | AA27: NO | AB27: NO | AC27: NO | AD27: NO | AE27: CBD | AF27: Urban | AG27: Short rural | AH27: Long rural | AJ27: NO | AK27: JGN
B28: Multinet Gas | C28: Multinet Gas (DB No.1) Pty Ltd (ACN 086 026 986), Multinet Gas (DB No.2) Pty Ltd (ACN 086 230 122) | D28: 086026986 | E28: Vic | F28: Gas | G28: Distribution | H28: Tariff cap | I28: Financial | J28: June | K28: 5 | L28: 5 | M28: 5 | N28: x | P28: 43-45 Centreway | R28: MT WAVERLEY | S28: Vic | T28: 3149 | X28: Vic | Z28: NO | AA28: NO | AB28: NO | AC28: NO | AD28: NO | AE28: CBD | AF28: Urban | AG28: Short rural | AH28: Long rural | AJ28: NO | AK28: Multinet Gas
B29: Roma to Brisbane Pipeline | C29: APT Petroleum Pipelines Limited t/a Roma to Brisbane Pipeline | D29: 009 737 393 | E29: Qld | F29: Gas | G29: Transmission | H29: Tariff cap | I29: Financial | J29: June | K29: 5 | L29: 5 | M29: 5 | N29: x | O29: n/a | P29: 580 George Street | R29: SYDNEY | S29: NSW | T29: 2000 | U29: PO Box R41 | W29: ROYAL EXCHANGE | X29: NSW | Y29: 1225 | Z29: NO | AA29: NO | AB29: NO | AC29: NO | AD29: NO | AE29: CBD | AF29: Urban | AG29: Short rural | AH29: Long rural | AJ29: NO | AK29: Roma to Brisbane Pipeline
B34: The Reg Year Ending (dms_RYE) must be set to the last year of the regulatory period. For forecast data is is usually (FRCP_y5) for actual it is a single year (CRY). For historical actual data the RYE will need to be set manually in the business details sheet by setting the dms_Multiyear_flag to 1 and putting the correct value in 'dms_Specified_FinalYear. See cells C67:C68
B35: dms_Model_List | C35: dms_Model_Name_Format1 | D35: dms_Worksheet_List | E35: dms_Model_Span_List
B36: ARR | C36: Annual Reporting | D36: =IF(dms_MultiYear_ResponseFlag="yes","NEW HISTORICAL ANNUAL REPORTING","ANNUAL REPORTING") -> ANNUAL REPORTING | E36: 1
B37: CA | C37: Category Analysis | D37: =IF(dms_MultiYear_ResponseFlag="yes","NEW HISTORICAL CATEGORY ANALYSIS","CATEGORY ANALYSIS") -> CATEGORY ANALYSIS | E37: 1
B38: CESS | C38: Capitlal Expenditure | D38: CAPITLAL EXPENDITURE SHARING SCHEMING | E38: 5
B39: CPI | C39: CPI | D39: CPI | E39: 5
B40: EB | C40: Economic Benchmarking | D40: =IF(dms_MultiYear_ResponseFlag="yes","NEW HISTORICAL ECONOMIC BENCHMARKING","ECONOMIC BENCHMARKING") -> ECONOMIC BENCHMARKING | E40: 1
B41: EBSS | C41: Efficiency Benefit Sharing Scheme | D41: EFFICIENCY BENEFIT SHARING SCHEME | E41: 5
B42: Pricing | C42: Pricing Proposal | D42: PRICING PROPOSAL | E42: 5
B43: Profitability | C43: Profitability | D43: PROFITABILITY | E43: 5
B44: PTRM | C44: Post Tax Revenue Model | D44: POST TAX REVENUE MODEL | E44: 5
B45: Reset | C45: Regulatory Reporting (Reset) | D45: REGULATORY REPORTING STATEMENT | E45: 5
B46: RFM | C46: Roll Forward Model | D46: ROLL FORWARD MODEL | E46: 5
B47: WACC | C47: Weighted Average Cost of Capital | D47: WEIGHTED AVERAGE COST OF CAPITAL | E47: 1
B51: Financial | C51: Calendar | E51: PREVIOUS | G51: CURRENT | I51: FORTHCOMING
B52: 1987-88 | C52: 1988 | D52: PRCP_y1 | E52: =INDEX(INDIRECT(dms_RPT),dms_PRCP_start_row) -> 2013-14 | F52: CRCP_y1 | G52: =INDEX(INDIRECT(dms_RPT),dms_CRCP_start_row) -> 2018-19 | H52: =FRCP_y1 -> 2023-24 | I52: =INDEX(INDIRECT(dms_RPT),dms_FRCP_start_row) -> 2023-24
B53: 1988-89 | C53: 1989 | D53: PRCP_y2 | E53: =INDEX(INDIRECT(dms_RPT),dms_PRCP_start_row+1) -> 2014-15 | F53: CRCP_y2 | G53: =INDEX(INDIRECT(dms_RPT),dms_CRCP_start_row+1) -> 2019-20 | H53: FRCP_y2 | I53: =INDEX(INDIRECT(dms_RPT),dms_FRCP_start_row+1) -> 2024-25
B54: 1989-90 | C54: 1990 | D54: PRCP_y3 | E54: =INDEX(INDIRECT(dms_RPT),dms_PRCP_start_row+2) -> 2015-16 | F54: CRCP_y3 | G54: =INDEX(INDIRECT(dms_RPT),dms_CRCP_start_row+2) -> 2020-21 | H54: FRCP_y3 | I54: =INDEX(INDIRECT(dms_RPT),dms_FRCP_start_row+2) -> 2025-26
B55: 1990-91 | C55: 1991 | D55: PRCP_y4 | E55: =INDEX(INDIRECT(dms_RPT),dms_PRCP_start_row+3) -> 2016-17 | F55: CRCP_y4 | G55: =INDEX(INDIRECT(dms_RPT),dms_CRCP_start_row+3) -> 2021-22 | H55: FRCP_y4 | I55: =INDEX(INDIRECT(dms_RPT),dms_FRCP_start_row+3) -> 2026-27
B56: 1991-92 | C56: 1992 | D56: PRCP_y5 | E56: =INDEX(INDIRECT(dms_RPT),dms_PRCP_start_row+4) -> 2017-18 | F56: CRCP_y5 | G56: =INDEX(INDIRECT(dms_RPT),dms_CRCP_start_row+4) -> 2022-23 | H56: FRCP_y5 | I56: =INDEX(INDIRECT(dms_RPT),dms_FRCP_start_row+4) -> 2027-28
B57: 1992-93 | C57: 1993 | D57: PRCP_y6 | E57: =INDEX(INDIRECT(dms_RPT),dms_PRCP_start_row+5) -> 2018-19 | F57: CRCP_y6 | G57: =INDEX(INDIRECT(dms_RPT),dms_CRCP_start_row+5) -> 2023-24 | H57: FRCP_y6 | I57: =INDEX(INDIRECT(dms_RPT),dms_FRCP_start_row+5) -> 2028-29
B58: 1993-94 | C58: 1994 | D58: PRCP_y7 | E58: =INDEX(INDIRECT(dms_RPT),dms_PRCP_start_row+6) -> 2019-20 | F58: CRCP_y7 | G58: =INDEX(INDIRECT(dms_RPT),dms_CRCP_start_row+6) -> 2024-25 | H58: FRCP_y7 | I58: =INDEX(INDIRECT(dms_RPT),dms_FRCP_start_row+6) -> 2029-30
B59: 1994-95 | C59: 1995 | D59: PRCP_y8 | E59: =INDEX(INDIRECT(dms_RPT),dms_PRCP_start_row+7) -> 2020-21 | F59: CRCP_y8 | G59: =INDEX(INDIRECT(dms_RPT),dms_CRCP_start_row+7) -> 2025-26 | H59: FRCP_y8 | I59: =INDEX(INDIRECT(dms_RPT),dms_FRCP_start_row+7) -> 2030-31
B60: 1995-96 | C60: 1996 | D60: PRCP_y9 | E60: =INDEX(INDIRECT(dms_RPT),dms_PRCP_start_row+8) -> 2021-22 | F60: CRCP_y9 | G60: =INDEX(INDIRECT(dms_RPT),dms_CRCP_start_row+8) -> 2026-27 | H60: FRCP_y9 | I60: =INDEX(INDIRECT(dms_RPT),dms_FRCP_start_row+8) -> 2031-32
B61: 1996-97 | C61: 1997 | D61: PRCP_y10 | E61: =INDEX(INDIRECT(dms_RPT),dms_PRCP_start_row+9) -> 2022-23 | F61: CRCP_y10 | G61: =INDEX(INDIRECT(dms_RPT),dms_CRCP_start_row+9) -> 2027-28 | H61: FRCP_y10 | I61: =INDEX(INDIRECT(dms_RPT),dms_FRCP_start_row+9) -> 2032-33
B62: 1997-98 | C62: 1998 | D62: PRCP_y11 | E62: =INDEX(INDIRECT(dms_RPT),dms_PRCP_start_row+10) -> 2023-24 | F62: CRCP_y11 | G62: =INDEX(INDIRECT(dms_RPT),dms_CRCP_start_row+10) -> 2028-29 | H62: FRCP_y11 | I62: =INDEX(INDIRECT(dms_RPT),dms_FRCP_start_row+10) -> 2033-34
B63: 1998-99 | C63: 1999 | D63: PRCP_y12 | E63: =INDEX(INDIRECT(dms_RPT),dms_PRCP_start_row+11) -> 2024-25 | F63: CRCP_y12 | G63: =INDEX(INDIRECT(dms_RPT),dms_CRCP_start_row+11) -> 2029-30 | H63: FRCP_y12 | I63: =INDEX(INDIRECT(dms_RPT),dms_FRCP_start_row+11) -> 2034-35
B64: 1999-00 | C64: 2000 | D64: PRCP_y13 | E64: =INDEX(INDIRECT(dms_RPT),dms_PRCP_start_row+12) -> 2025-26 | F64: CRCP_y13 | G64: =INDEX(INDIRECT(dms_RPT),dms_CRCP_start_row+12) -> 2030-31 | H64: FRCP_y13 | I64: =INDEX(INDIRECT(dms_RPT),dms_FRCP_start_row+12) -> 2035-36
B65: 2000-01 | C65: 2001 | D65: PRCP_y14 | E65: =INDEX(INDIRECT(dms_RPT),dms_PRCP_start_row+13) -> 2026-27 | F65: CRCP_y14 | G65: =INDEX(INDIRECT(dms_RPT),dms_CRCP_start_row+13) -> 2031-32 | H65: FRCP_y14 | I65: =INDEX(INDIRECT(dms_RPT),dms_FRCP_start_row+13) -> 2036-37
B66: 2001-02 | C66: 2002 | D66: PRCP_y15 | E66: =INDEX(INDIRECT(dms_RPT),dms_PRCP_start_row+14) -> 2027-28 | F66: CRCP_y15 | G66: =INDEX(INDIRECT(dms_RPT),dms_CRCP_start_row+14) -> 2032-33 | H66: FRCP_y15 | I66: =INDEX(INDIRECT(dms_RPT),dms_FRCP_start_row+14) -> 
B67: 2002-03 | C67: 2003 | D67: PRCP_y16 | E67: =INDEX(INDIRECT(dms_RPT),dms_PRCP_start_row+15) -> 2028-29 | F67: CRCP_y16 | G67: =INDEX(INDIRECT(dms_RPT),dms_CRCP_start_row+15) -> 2033-34 | H67: FRCP_y16 | I67: =INDEX(INDIRECT(dms_RPT),dms_FRCP_start_row+15) -> 
B68: 2003-04 | C68: 2004
B69: 2004-05 | C69: 2005
B70: 2005-06 | C70: 2006 | E70: CRY - FRY
B71: 2006-07 | C71: 2007 | D71: dms_y1 | E71: =IFERROR(INDEX(INDIRECT(dms_RPT),dms_CRY_start_row),0) -> 2021-22
B72: 2007-08 | C72: 2008 | D72: dms_y2 | E72: =IFERROR(INDEX(INDIRECT(dms_RPT),dms_CRY_start_row+1),0) -> 2022-23
B73: 2008-09 | C73: 2009 | D73: dms_y3 | E73: =IFERROR(INDEX(INDIRECT(dms_RPT),dms_CRY_start_row+2),0) -> 2023-24
B74: 2009-10 | C74: 2010 | D74: dms_y4 | E74: =IFERROR(INDEX(INDIRECT(dms_RPT),dms_CRY_start_row+3),0) -> 2024-25
B75: 2010-11 | C75: 2011 | D75: dms_y5 | E75: =IFERROR(INDEX(INDIRECT(dms_RPT),dms_CRY_start_row+4),0) -> 2025-26
B76: 2011-12 | C76: 2012 | D76: dms_y6 | E76: =IFERROR(INDEX(INDIRECT(dms_RPT),dms_CRY_start_row+5),0) -> 2026-27
B77: 2012-13 | C77: 2013 | D77: dms_y7 | E77: =IFERROR(INDEX(INDIRECT(dms_RPT),dms_CRY_start_row+6),0) -> 2027-28
B78: 2013-14 | C78: 2014 | D78: dms_y8 | E78: =IFERROR(INDEX(INDIRECT(dms_RPT),dms_CRY_start_row+7),0) -> 2028-29
B79: 2014-15 | C79: 2015 | D79: dms_y9 | E79: =IFERROR(INDEX(INDIRECT(dms_RPT),dms_CRY_start_row+8),0) -> 2029-30
B80: 2015-16 | C80: 2016 | D80: dms_y10 | E80: =IFERROR(INDEX(INDIRECT(dms_RPT),dms_CRY_start_row+9),0) -> 2030-31
B81: 2016-17 | C81: 2017 | D81: dms_y11 | E81: =IFERROR(INDEX(INDIRECT(dms_RPT),dms_CRY_start_row+10),0) -> 2031-32
B82: 2017-18 | C82: 2018 | D82: dms_y12 | E82: =IFERROR(INDEX(INDIRECT(dms_RPT),dms_CRY_start_row+11),0) -> 2032-33
B83: 2018-19 | C83: 2019 | D83: dms_y13 | E83: =IFERROR(INDEX(INDIRECT(dms_RPT),dms_CRY_start_row+12),0) -> 2033-34
B84: 2019-20 | C84: 2020 | D84: dms_y14 | E84: =IFERROR(INDEX(INDIRECT(dms_RPT),dms_CRY_start_row+13),0) -> 2034-35
B85: 2020-21 | C85: 2021 | D85: dms_y15 | E85: =IFERROR(INDEX(INDIRECT(dms_RPT),dms_CRY_start_row+14),0) -> 2035-36
B86: 2021-22 | C86: 2022 | D86: dms_y16 | E86: =IFERROR(INDEX(INDIRECT(dms_RPT),dms_CRY_start_row+15),0) -> 2036-37
B87: 2022-23 | C87: 2023
B88: 2023-24 | C88: 2024
B89: 2024-25 | C89: 2025
B90: 2025-26 | C90: 2026
B91: 2026-27 | C91: 2027
B92: 2027-28 | C92: 2028
B93: 2028-29 | C93: 2029
B94: 2029-30 | C94: 2030
B95: 2030-31 | C95: 2031
B96: 2031-32 | C96: 2032
B97: 2032-33 | C97: 2033
B98: 2033-34 | C98: 2034
B99: 2034-35 | C99: 2035
B100: 2035-36 | C100: 2036
B101: 2036-37 | C101: 2037

Sheet AER ETL (hidden)
B1: AER ETL INFORMATION
B3: USES NAMED RANGES FLAG | C3: yes | D3: dms_Defined_Names_Used
B5: IF THIS IS AN ABC RIN - make sure the the named range CRY is applied and the named range dms_dollar_nom_UOM is applied
B6: IF THIS IS A RESET RIN - make sure the named ranges CRY and dms_dollar_nom_UOM are NOT present in the workbook
B7: FOR ABC RINS THAT SPAN MULTIPLE YEARS - make sure MultiYear Flag is set and final year entered as required
B9: Full trading name | C9: =INDEX(dms_TradingNameFull_List,MATCH(dms_TradingName,dms_TradingName_List)) -> AusNet Gas Services | E9: dms_TradingNameFull
B10: Trading name | C10: =dms_TradingName -> AusNet (Gas)
A11: Selected here | B11: Model / RIN | C11: Reset | D11: dms_Model
A12: Read from Business & other details | B12: Source | C12: Regulatory proposal | D12: dms_Source
B13: Data quality | C13: Consolidated | D13: For DB purposes this is always Consoldiated
B14: Data status | C14: Public | D14: For DB purposes this is always Public
B15: Amendment reason | C15: =dms_Amendment_Text -> . | F15: dms_AmendmentReason
B16: Submission date | C16: =dms_Typed_Submission_Date -> 2022-07-01 | D16: dms_SubmissionDate
A18: Redundant | B18: EBSS - First application of scheme in forthcoming period? | C18: No
A19: Pre-populated from lookup table | B19: Data ingestion data quality | C19: Consolidated | D19: dms_DataQuality | E19: Always Consolidated
B20: Sector | C20: =INDEX(dms_Sector_List,MATCH(dms_TradingName,dms_TradingName_List)) -> Gas | D20: dms_Sector | E20: =INDEX(dms_Sector_List,MATCH(dms_TradingName,dms_TradingName_List))
B21: Segment | C21: =INDEX(dms_Segment_List,MATCH(dms_TradingName,dms_TradingName_List)) -> Distribution | D21: dms_Segment | E21: =INDEX(dms_Segment_List,MATCH(dms_TradingName,dms_TradingName_List))
B22: Regulatory Year Ending | C22: =IF(dms_MultiYear_Flag=1,LEFT(dms_Specified_FinalYear,2)&RIGHT(dms_Specified_FinalYear,2),dms_RYE_result) -> 2028 | D22: dms_RYE | E22: =IF(dms_MultiYear_Flag=1,LEFT(dms_Specified_FinalYear,2)&RIGHT(dms_Specified_FinalYear,2),dms_RYE_result)
B23: Reporting Period Type | C23: =INDEX(dms_RPT_List,MATCH(dms_TradingName,dms_TradingName_List)) -> Financial | D23: dms_RPT | E23: =INDEX(dms_RPT_List,MATCH(dms_TradingName,dms_TradingName_List))
B24: EB/CA Unit of Measure for Monetary Values | C24: $0s | D24: dms_dollar_nom_UOM | E24: If the cover sheet is attached to an ABC RIN apply the NAMED RANGE to the cell
B25: Security Classification | C25: Public | D25: dms_Classification | E25: Always Public
B26: Jurisdiction | C26: =INDEX(dms_JurisdictionList,MATCH(dms_TradingName,dms_TradingName_List)) -> Vic | D26: dms_Jurisdiction | E26: =INDEX(dms_JurisdictionList,MATCH(dms_TradingName,dms_TradingName_List))
A27: Relevant for PTRM, RFMs and Reset RINS | B27: $ REAL REFERENCES
B28: Does the named range CRY exist in this file? | C28: =IFERROR(CRY,"NO") -> NO
B29: CRY-1 (last full calendar year before CRY) | C29: =IFERROR(IF(dms_RPT="calendar",CRY-1,LEFT(CRY,4)),"CRY not present") -> CRY not present | D29: dms_Cal_Year_B4_CRY | E29: '=IF(dms_RPT="financial",VALUE(LEFT(dms_SingleYear_FinalYear_Result,4)),VALUE(LEFT(dms_SingleYear_FinalYear_Result,4)-1))
B30: Dollar $ real month | C30: =INDEX(dms_RPTMonth_List,MATCH(dms_TradingName,dms_TradingName_List)) -> June | D30: dms_RPTMonth | E30: =INDEX(dms_RPTMonth_List,MATCH(dms_TradingName,dms_TradingName_List))
B31: Dollar $ real (the last month before the FRCP_y1) | C31: =IF(dms_Model="RFM",dms_DollarReal_Prev, IF(dms_SingleYearModel="yes",CONCATENATE(dms_RPTMonth)&" "&VALUE((LEFT(dms_CRY_start_year,2)&RIGHT(dms_CRY_start_year,2))),CONCATENATE(dms_RPTMonth)&" "&dms_DollarReal_year)) -> June 2023 | D31: dms_DollarReal | E31: =IF(dms_Model="RFM",dms_DollarReal_Prev, IF(dms_SingleYearModel="yes",CONCATENATE(dms_RPTMonth)&" "&VALUE((LEFT(dms_CRY_start_year,2)&RIGHT(dms_CRY_start_year,2))),CONCATENATE(dms_RPTMonth)&" "&dms_DollarReal_year))
B32: Dollar $ real previous year (PRCP_y5) | C32: December 2017 | D32: dms_DollarReal_Prev | E32: =IF(SUM(dms_SingleYear_Model)>0,CONCATENATE(dms_RPTMonth)&" "&VALUE(((LEFT(CRY,2))&RIGHT(CRY,2))-1),CONCATENATE(dms_RPTMonth)&" "&VALUE(((LEFT(dms_CRCP_FirstYear_Result,2)&RIGHT(dms_CRCP_FirstYear_Result,2))))-1)
B33: PTRM/ RFMs
B34: Form of control | C34: =INDEX(dms_FormControl_List,MATCH(dms_TradingName,dms_TradingName_List)) -> Tariff cap | D34: dms_FormControl | E34: =INDEX(dms_FormControl_List,MATCH(dms_TradingName,dms_TradingName_List))
A35: All potential values for Regulatory Years or RYEs as calculated | B35: This block works out the various RYE's for ALL RIN types and MODELS
B36: dms_start_year | C36: =FRCP_y1 -> 2023-24 | D36: =FRCP_y1 | E36: FRCP_y1 from cover sheet
B37: dms_CRY_start_year | C37: =IFERROR(CRY,CRCP_y4) -> 2021-22 | D37: =IFERROR(CRY,CRCP_y4)
B38: dms_CRY_start_row | C38: =IFERROR(MATCH(dms_CRY_start_year,INDIRECT(dms_RPT),0),0) -> 35 | D38: =IFERROR(MATCH(dms_CRY_start_year,INDIRECT(dms_RPT),0),0)
B39: dms_FRCP_start_row | C39: =MATCH(dms_start_year,INDIRECT(dms_RPT),0) -> 37 | D39: =MATCH(dms_start_year,INDIRECT(dms_RPT),0) | E39: Uses FRCP_y1 as a start reference
B40: dms_CRCP_start_row | C40: =dms_FRCP_start_row-dms_CRCPlength_Num -> 32 | D40: =dms_FRCP_start_row-dms_CRCPlength_Num | E40: Uses the value in dms_CRCPlength_Num
B41: dms_PRCP_start_row | C41: =dms_FRCP_start_row-dms_CRCPlength_Num-dms_PRCPlength_Num -> 27 | D41: =dms_FRCP_start_row-dms_CRCPlength_Num-dms_PRCPlength_Num | E41: Uses the value in dms_CRCPlength_Num and dms_PRCPlength_Num
B42: dms_RYE_start_row | C42: =dms_FRCP_start_row+(dms_FRCPlength_Num-1) -> 41 | D42: =dms_FRCP_start_row+(dms_FRCPlength_Num-1) | E42: Uses the value in dms_FRCPlength_Num-1
B43: FRCP_start_year | C43: =INDEX(INDIRECT(dms_RPT),dms_FRCP_start_row) -> 2023-24 | D43: =INDEX(INDIRECT(dms_RPT),dms_FRCP_start_row) | E43: Converts the FRCP start row to display the year
B44: CRCP_start_year | C44: =INDEX(INDIRECT(dms_RPT),dms_CRCP_start_row) -> 2018-19 | D44: =INDEX(INDIRECT(dms_RPT),dms_CRCP_start_row) | E44: Converts the CRCP start row to display the year
B45: PRCP_start_year | C45: =INDEX(INDIRECT(dms_RPT),dms_PRCP_start_row) -> 2013-14 | D45: =INDEX(INDIRECT(dms_RPT),dms_PRCP_start_row) | E45: Converts the PRCP start row to display the year
B46: FRCP_final_year | C46: =INDEX(INDIRECT(dms_RPT),dms_FRCP_start_row+dms_FRCPlength_Num-1) -> 2027-28 | D46: =INDEX(INDIRECT(dms_RPT),dms_FRCP_start_row+dms_FRCPlength_Num-1) | E46: Finds the FRCP final year
B47: CRCP_final_year | C47: =INDEX(INDIRECT(dms_RPT),dms_CRCP_start_row+dms_CRCPlength_Num-1) -> 2022-23 | D47: =INDEX(INDIRECT(dms_RPT),dms_CRCP_start_row+dms_CRCPlength_Num-1) | E47: Finds the CRCP final year
B48: PRCP_final_year | C48: =INDEX(INDIRECT(dms_RPT),dms_PRCP_start_row+dms_FRCPlength_Num-1) -> 2017-18 | D48: =INDEX(INDIRECT(dms_RPT),dms_PRCP_start_row+dms_FRCPlength_Num-1) | E48: Finds the PRCP final year
B49: dms_Reset_final_year | C49: =INDEX(INDIRECT(dms_RPT),dms_RYE_start_row) -> 2027-28 | D49: =INDEX(INDIRECT(dms_RPT),dms_RYE_start_row) | E49: For Resets and PTRM/RFMs (same as FRCP_final_year)
B50: dms_SpecifiedYear_final_year | C50: =FRY -> 2027-28 | D50: =FRY | E50: FRY from cover sheet
B51: dms_DollarReal_year | C51: =LEFT(CRCP_final_year,2)&RIGHT(CRCP_final_year,2) -> 2023 | D51: =LEFT(CRCP_final_year,2)&RIGHT(CRCP_final_year,2) | E51: Uses the value in CRCP_final_year
B52: dms_Previous_DollarReal_year | C52: =LEFT(PRCP_final_year,2)&RIGHT(PRCP_final_year,2) -> 2018 | D52: =LEFT(PRCP_final_year,2)&RIGHT(PRCP_final_year,2) | E52: Uses the value in PRCP_final_year
B53: dms_CRY_RYE | C53: =IFERROR(LEFT(CRY,2)&RIGHT(CRY,2),0) -> 0 | D53: =IFERROR(LEFT(CRY,2)&RIGHT(CRY,2),0) | E53: For ABC single year RINS
B54: dms_Reset_RYE | C54: =IF(dms_Model_Span>1,IF(dms_Model="RFM",(LEFT(dms_DollarReal_year,2)&RIGHT(dms_DollarReal_year,2)),(LEFT(dms_Reset_final_year,2)&RIGHT(dms_Reset_final_year,2))),0) -> 2028 | D54: =IF(dms_Model_Span>1,IF(dms_Model="RFM",(LEFT(dms_DollarReal_year,2)&RIGHT(dms_DollarReal_year,2)),(LEFT(dms_Reset_final_year,2)&RIGHT(dms_Reset_final_year,2))),0) | E54: If model span > 1 then uses dms_Reset_RYE otherwise it's a multi year ABC and uses dms_Specified_RYE
B55: dms_Specified_RYE | C55: =IF(dms_MultiYear_ResponseFlag="Yes",(LEFT(dms_Specified_FinalYear,2)&RIGHT(dms_Specified_FinalYear,2)),0) -> 0 | D55: =IF(dms_MultiYear_ResponseFlag="Yes",(LEFT(dms_Specified_FinalYear,2)&RIGHT(dms_Specified_FinalYear,2)),0) | E55: If multi year ABC - uses dms_Specified_FinalYear
B56: dms_Model_Span | C56: =INDEX(dms_Model_Span_List,MATCH(dms_Model,dms_Model_List)) -> 5 | D56: =INDEX(dms_Model_Span_List,MATCH(dms_Model,dms_Model_List)) | E56: A result of 5 is used to signify that it is more than 1 year span
B57: dms_RYE_result | C57: =IF(dms_MultiYear_ResponseFlag="yes",dms_Specified_RYE,(IF(dms_Model_Span>1,dms_Reset_RYE,dms_CRY_RYE))) -> 2028 | D57: =IF(dms_MultiYear_ResponseFlag="yes",dms_Specified_RYE,(IF(dms_Model_Span>1,dms_Reset_RYE,dms_CRY_RYE))) | E57: Nested IF - feeds into dms_RYE
B58: dms_Reset_Span | C58: =IF(dms_Reset_RYE>0,CONCATENATE(FRCP_y1," to ",FRCP_final_year),0) -> 2023-24 to 2027-28 | D58: =IF(dms_Reset_RYE>0,CONCATENATE(FRCP_y1," to ",FRCP_final_year),0) | E58: Reset span of years as text
B59: dms_SpecifiedYear_Span | C59: =IF(dms_Specified_RYE>0,CONCATENATE(CRY," to ",dms_Specified_FinalYear),0) -> 0 | D59: =IF(dms_Specified_RYE>0,CONCATENATE(CRY," to ",dms_Specified_FinalYear),0) | E59: Multi year ABC span of years as text
B60: dms_Header_Span | C60: =IF(dms_MultiYear_Flag=1,dms_SpecifiedYear_Span,IF(dms_Model_Span>1,dms_y1&" to "&FRCP_final_year,CRY)) -> 2021-22 to 2027-28 | D60: =IF(dms_MultiYear_Flag=1,dms_SpecifiedYear_Span,IF(dms_Model_Span>1,dms_Reset_Span,CRY)) | E60: NESTED IF - for Sheet Headers
B61: ABC RINS THAT SPAN MULTIPLE YEARS
B62: This is a multi year ABC RIN? | C62: No
C63: =IF(dms_MultiYear_ResponseFlag="No",0,1) -> 0 | D63: dms_MultiYear_Flag | E63: This is set from the answer provided above
C64: =IF(dms_MultiYear_Flag=1,FRY,"not a Multiple year submission") -> not a Multiple year submission | D64: dms_Specified_FinalYear | E64: The result here is returned to dms_CRCP_FinalYear_Result if response to Q in C73 is "yes" and dms_MultiYear_Flag is set to 1
B65: Start year for 5.2 in Multi year ABC RINS | C65: =IFERROR(IF(dms_MultiYear_Flag=1,FRY,CRY),"not an ABC") -> not an ABC | D65: dms_0502_Inst_Year | E65: =IF(dms_MultiYear_Flag=1,FRY,CRY) | G65: For single year RINS this is CRY - multi year RINS need to start a the end of the span of years (ie. FRY)
B66: WHAT IS THE RYE?
B67: Reg Period Lengths
B68: PRCP length in years | C68: =INDEX(dms_PRCPlength_List,MATCH(dms_TradingName,dms_TradingName_List)) -> 5 | D68: dms_PRCPlength_Num | E68: =INDEX(dms_PRCPlength_List,MATCH(dms_TradingName,dms_TradingName_List))
B69: CRCP length in years | C69: =INDEX(dms_CRCPlength_List,MATCH(dms_TradingName,dms_TradingName_List)) -> 5 | D69: dms_CRCPlength_Num | E69: =INDEX(dms_CRCPlength_List,MATCH(dms_TradingName,dms_TradingName_List))
B70: FRCP length in years | C70: =INDEX(dms_FRCPlength_List,MATCH(dms_TradingName,dms_TradingName_List)) -> 5 | D70: dms_FRCPlength_Num | E70: =INDEX(dms_FRCPlength_List,MATCH(dms_TradingName,dms_TradingName_List))
B71: Single year RIN?
B72: Single Year ABC RIN ? | C72: =IF(dms_Model="EB",1,0) -> 0 | D72: dms_EB
C73: =IF(dms_Model="CA",1,0) -> 0 | D73: dms_CA | E73: =dms_SingleYear_Model
C74: =IF(dms_Model="ARR",1,0) -> 0 | D74: dms_ARR
B75: Is this a single Year ABC RIN? | C75: =IF(SUM(dms_SingleYear_Model)=1,"yes","no") -> no | D75: dms_SingleYearModel | E75: =IF(SUM(dms_SingleYear_Model)=1,"yes","no")
B76: Single Year Final Year Result | C76: =IF(AND(dms_SingleYearModel="yes",dms_MultiYear_Flag=0),CRY,0) -> 0 | D76: dms_SingleYear_FinalYear_Result | E76: =IFERROR(IF(SUM(dms_SingleYear_Model)<>0,(INDIRECT(dms_SingleYear_FinalYear_Ref)),"not a single year RIN"),"CRY not present")
B77: Multi year RIN?
B79: Multi Year Reset/Model? | C79: =IF(dms_Model_Span>1,"yes","no") -> yes
B80: Final year result for Reset/Model | C80: =IF(dms_Model_Span>1,dms_Reset_final_year,0) -> 2027-28 | D80: dms_MultiYear_FinalYear_Result | E80: dms_CRCP_FinalYear_Result
B82: Multi Year ABC RIN? | C82: =IF(dms_MultiYear_Flag=1,"yes","no") -> no | D82: dms_MultiYear_ABC_RIN
B83: Final year result for ABC multi year | C83: =IF(dms_MultiYear_Flag=1,C50,0) -> 0
B85: EB RINS
B86: Calendar Year for table 3.6 data | C86: =IFERROR(IF(dms_Segment="Transmission",dms_Cal_Year_B4_CRY,CRY),"CRY not present") -> CRY not present | D86: dms_0306_Year | E86: =IF(dms_Segment="Transmission",dms_Cal_Year_B4_CRY,CRY)
B87: CA RINS
B88: Find how many rows in tables 6.3 sustained interruptions? | E88: dms_060301_MaxRows only returns a valid value when cover sheet is attached to a CA file
C89: =IF(dms_Model<>"CA","not a CA","Is a CA") -> not a CA | E89: =IF(dms_Model<>"CA","not a CA","Is a CA")
B90: dms_060301_Avg_Duration_Sustained_Int_Values present? | C90: =IFERROR(IF(INDEX(dms_060301_Avg_Duration_Sustained_Int_Values,1,1)<>"","yes","no"),"no") -> no | D90: dms_060301_checkvalue | E90: =IFERROR(IF(INDEX(dms_060301_Avg_Duration_Sustained_Int_Values,1,1)<>"","yes","no"),"no")
C91: =IF(AND(dms_Model="CA",(dms_060301_checkvalue="no")),"error - NR not present","no errors") -> no errors | E91: =IF(AND(dms_Model="CA",(dms_060301_checkvalue="no")),"error - NR not present","no errors")
B92: Table 6.3.1 - last row reference | C92: =IFERROR(IF(dms_Model="CA",LOOKUP(2,1/(dms_060301_Avg_Duration_Sustained_Int_Values<>""),(ROW(dms_060301_Avg_Duration_Sustained_Int_Values))),"not a CA"),"6.3 not present") -> not a CA | D92: dms_060301_LastRow | E92: =IFERROR(IF(dms_Model="CA",LOOKUP(2,1/(dms_060301_Avg_Duration_Sustained_Int_Values<>""),(ROW(dms_060301_Avg_Duration_Sustained_Int_Values))),"not a CA"),"6.3 not present")
B93: Table 6.3.1 - max number rows | C93: =IFERROR(IF(dms_Model="CA",(dms_060301_LastRow-15),"not a CA"),"error") -> not a CA | D93: dms_060301_MaxRows | E93: =IFERROR(IF(dms_Model="CA",(dms_060301_LastRow-15),"not a CA"),"error")
B94: Table 6.6.3 - Public lighting repair - no. business days | C94: =INDEX(dms_663_List,MATCH(dms_TradingName,dms_TradingName_List)) -> - | D94: dms_663 | E94: =INDEX(dms_663_List,MATCH(dms_TradingName,dms_TradingName_List))
B95: ARR or RESET RINS
B96: How many rows in tables 6.1 or 6.7? (leap year?) | C96: insert dms_LeapYear NR if required | E96: 'dms_LeapYear is used to determine dms_060701_Max_Rows BUT it is only found on worksheet 6.1 or 6.7 and the date value in the cell is used to determine whether it is a leap year
B97: Is dms_LeapYear named range present? | C97: =IFERROR(IF(dms_LeapYear,"yes"),"no") -> no
B98: Table 6.7.1 - includes a leap year? | C98: =IFERROR(IF(MONTH(DATE(YEAR(dms_LeapYear),2,29))=2,"is a leap year","not a leap year"), "dms_LeapYear not present") -> dms_LeapYear not present | D98: dms_LeapYear_Result | E98: =IFERROR(IF(MONTH(DATE(YEAR(dms_LeapYear),2,29))=2,"is a leap year","not a leap year"),"dms_LeapYear not present")
B99: MaxRows if Reset and leap year | C99: =IF(dms_LeapYear_Result="is a leap year",1827,1826) -> 1826 | D99: dms_060701_Reset_MaxRows | E99: =IF(dms_LeapYear_Result="is a leap year",1827,1826) | H99: number of days present in Reset RIN table
B100: MaxRows if ARR and leap year | C100: =IF(dms_LeapYear_Result="is a leap year",366,365) -> 365 | D100: dms_060701_ARR_MaxRows | E100: =IF(dms_LeapYear_Result="is a leap year",366,365) | H100: number of days present in ARR RIN table
B101: Table 6.7.1 - Max Rows (leap year/ non leap year) | C101: =IF(dms_Model="ARR",dms_060701_ARR_MaxRows,IF(dms_Model="Reset",dms_060701_Reset_MaxRows,"not a relevant RIN type")) -> 1826 | D101: dms_060701_MaxRows | E101: =IF(dms_Model="ARR",dms_060701_ARR_MaxRows,IF(dms_Model="Reset",dms_060701_Reset_MaxRows,"not a relevant RIN type"))
B102: How many columns in 6.7? (4 or 5 feeder categories) | C102: =IF(dms_FifthFeeder_flag_NSP="NO","This NSP has only 4 feeder categories","This NSP has 5 feeder categories") -> This NSP has only 4 feeder categories
B103: Table 6.7.1 - Last column (# of feeder categories > 4) | C103: =IF(dms_FifthFeeder_flag_NSP="NO",10,12) -> 10 | D103: dms_060701_MaxCols | E103: =IF(dms_FifthFeeder_flag_NSP="NO",8,10)
B104: Table 6.7.1 - Number of offset rows | C104: =IF(dms_Model="ARR",15,9) -> 9 | D104: dms_060701_OffsetRows | E104: =IF(dms_Model="ARR",15,9)
B105: Start date for telephone answering in 6.1 or 6.7? | E105: Using 060101 as naming standard not 060701 for start dates
B106: Table 6.1.1 and 6.7.1 - Start Date as Text | C106: =IF(dms_SingleYearModel="yes",(CONCATENATE(IF(LEN(CRY)=4,"1-Jan-","1-Jul-"),LEFT(CRY,4))),(CONCATENATE(IF(LEN(PRCP_y4)=4,"1-Jan-","1-Jul-"),LEFT(PRCP_y4,4)))) -> 1-Jul-2016 | D106: dms_060101_StartDateTxt | E106: =IF(SUM(dms_SingleYear_Model)>1,(CONCATENATE(IF(LEN(CRY)=4,"1-Jan-","1-Jul-"),LEFT(CRY,4))),(CONCATENATE(IF(LEN(CRCP_y4)=4,"1-Jan-","1-Jul-"),LEFT(CRCP_y4,4))))
B107: Table 6.1.1 and 6.7.1 - Start Date as Date Value | C107: =DATEVALUE(dms_060701_StartDateTxt) -> 42552 | D107: dms_060101_StartDateVal | E107: =DATEVALUE(dms_060701_StartDateTxt)
B108: ARRs
B109: How many rows in table 6.8? | C109: insert dms_060801_StartCell NR if required | E109: dms_060801_StartCell is only found on worksheet 6.8 and is used to determine the starting date for the date range
B110: Is dms_060801_StartCell named range present? | C110: =IFERROR(IF((ROW(dms_060801_StartCell)-1)=1,"yes","yes"),"no") -> no | D110: Must be present for ARRs | E110: =IFERROR(IF((ROW(dms_060801_StartCell)-1)=1,"yes","yes"),"no")
B111: Table 6.8 - Number of offset rows | C111: 12 | D111: dms_0608_OffsetRows | E111: =IFERROR(IF(dms_Model="ARR",(ROW(dms_060801_StartCell)-1),"not an ARR"),"6.8 error")
B112: Table 6.8 - Last row | C112: =IFERROR(IF(dms_060801_StartCell<>"",IF(dms_Model="ARR",(LOOKUP(2,1/(dms_060801_01_Values<>""),(ROW(dms_060801_01_Values)))),"not an ARR"),0),"0") -> 0 | D112: dms_0608_LastRow | E112: =IFERROR(IF(dms_060801_StartCell<>"",IF(dms_Model="ARR",(LOOKUP(2,1/(dms_060801_01_Values<>""),(ROW(dms_060801_01_Values)))),"not an ARR"),0),"0")
B113: Table 6.8 - MaxRows | C113: =IFERROR(IF(dms_Model="ARR",(MAX(0,dms_0608_LastRow-dms_0608_OffsetRows)),"not an ARR"),"0") -> not an ARR | D113: dms_060801_MaxRows | E113: =IFERROR(IF(dms_Model="ARR",(MAX(0,dms_0608_LastRow-dms_0608_OffsetRows)),"not an ARR"),"0")
B114: TNSP RESET RINS
B115: Table 7.9.4 only appears in TNSPs Reset RIN
B116: Table 7.9.4 - first year | C116: =LEFT(PRCP_y3,4) -> 2015 | D116: dms_070904_Start_Year | E116: =LEFT(PRCP_y3,4)
B118: MISC
B119: Distribution Determination Reference | C119: =INDEX(dms_DeterminationRef_List,MATCH(dms_TradingName,dms_TradingName_List)) -> - | D119: dms_DeterminationRef
B120: Public lighting NSP? | C120: =INDEX(dms_Public_Lighting_List,MATCH(dms_TradingName,dms_TradingName_List)) -> NO | D120: dms_Public_Lighting | E120: =INDEX(dms_Public_Lighting_List,MATCH(dms_TradingName,dms_TradingName_List))
B121: CBD Feeder for this business | C121: =INDEX(dms_CBD_flag,MATCH(dms_TradingName,dms_TradingName_List)) -> NO | D121: dms_CBD_flag_NSP
B122: Urban Feeder for this business | C122: =INDEX(dms_Urban_flag,MATCH(dms_TradingName,dms_TradingName_List)) -> NO | D122: dms_Urban_flag_NSP
B123: Short rural Feeder for this business | C123: =INDEX(dms_ShortRural_flag,MATCH(dms_TradingName,dms_TradingName_List)) -> NO | D123: dms_ShortRural_flag_NSP
B124: Long rural Feeder for this business | C124: =INDEX(dms_LongRural_flag,MATCH(dms_TradingName,dms_TradingName_List)) -> NO | D124: dms_LongRural_flag_NSP
B125: Fifth Feeder Category (eg. TasNetworks (D)) | C125: =INDEX(dms_FeederType_5_flag,MATCH(dms_TradingName,dms_TradingName_List)) -> NO | D125: dms_FifthFeeder_flag_NSP | E125: =INDEX(dms_FeederType_5_flag,MATCH(dms_TradingName,dms_TradingName_List))
B127: DISCARD FILES
B128: discard this record? | C128: NO | D128: dms_DISCARD | E128: If record is to be discarded from DB set this flag to YES
B130: SUBSET FILES
B131: Is this Submission File a Subset File | C131: NO | D131: dms_Partial
B134: REGULATORY YEARS FOR MULTI RYE SUBMISSIONS
B135: Multiple RYE flag | C135: NO | D135: dms_Multi_RYE_flag
C136: Manually specify RYE | D136: Named ranges to apply
C137: 2013 | D137: dms_RYE_01
C138: 2014 | D138: dms_RYE_02
C139: 2015 | D139: dms_RYE_03
C140: 2016 | D140: dms_RYE_04
C141: 2017 | D141: dms_RYE_05
C142: 2018 | D142: dms_RYE_06
C143: 2019 | D143: dms_RYE_07
C144: 2020 | D144: dms_RYE_08
C145: 2021 | D145: dms_RYE_09

Sheet Instructions
B2: =CONCATENATE(dms_Sector," ",dms_Segment," ", "Pipeline Service Provider") -> Gas Distribution Pipeline Service Provider
B3: =IF(dms_Model="Reset","Regulatory Proposal RIN Template","Annual Reporting RIN") -> Regulatory Proposal RIN Template
B5: INSTRUCTIONS
B6: GENERAL | C6: Complete the Business & other details worksheet before entering data or values in any other worksheets. The Business & other details worksheet is linked to other worksheets within the workbook and automatically generates certain column headings and conditional formatting.
B8: CONFIDENTIAL INFORMATION | C8: Please use the macro at the top of each worksheet to identify confidential information in the confidential workbook.
C9: -Do this by selecting the cell or cells that contain confidential information and then run the Mark selection as CONFIDENTIAL macro. This will format the cells a specific colour that is identified by the AER's database which in turn marks that information as confidential. -To reverse this, select the cell or cells and run the Return selection to NON-CONFIDENTIAL macro.
B11: RESPONSES | C11: Please return two (2) files to the AER: 1. A confidential version which must contain a complete set of all responses with confidential information marked using the Mark selection CONFIDENTIAL macro and which has been completed using the locked template file provided by the AER. 2. A public version with confidential information either removed completely or aggregated in some form together with writtten consent to disclose the public version of the response. Use the drop down box on the Business and other details worksheet to identify the file as either confidential ('consolidated') or public.
B13: AMENDMENTS | C13: If an NSP wishes to correct data previously submitted to the AER it should resubmit that data using the original completed submission as the starting point. Please make any necessary changes to the data. Data that is not being amended should be left unchanged. NSPs must identify the reason for the amendments in the Amendment Reason box on the Business and other details worksheet. NSPs may provide further details regarding any amendments in the Amendments worksheet. .
C14: NSP may use Amended Data macro to highlight cells that contain amended data. NB: if data is also CONFIDENTIAL, re-apply the Confidentiality macro after applying the Amended macro
C15: Please resubmit two (2) files - a confidential version and a public version of the amended submission to the AER
B17: UNITS OF MEASURE | C17: All amounts are to be unrounded and reported on a one for one basis: that is 1000 is to be entered as '1000'. Applicable units of measure may be identified in the table column headings or row descriptors.
B19: INPUT / NON-INPUT CELLS
D20: Yellow = Input cell (mandatory)
D21: Darker yellow = input cell (mandatory)
D22: Orange = input cell (if data available)
D23: Grey = Not applicable/No inputs required
D24: PLEASE DO NOT ENTER TEXT into cells that are to contain numeric data.
B27: NAVIGATION | C27: Many tables in the worksheets have been "grouped" to allow for easy navigation. To ungroup or group data use the outline symbols in the left margin (for Row groupings) or above the columns (for column groupings).

Sheet CONTENTS
B1: =INDEX(dms_Worksheet_List,MATCH(dms_Model,dms_Model_List)) -> REGULATORY REPORTING STATEMENT
B2: =dms_TradingName -> AusNet (Gas)
B3: =dms_Header_Span -> 2021-22 to 2027-28
C7: CONTENTS
C9: TEMPLATE DATE | D9: FINAL RIN MARCH 2022
C11: SUBMISSION | D11: Business & other details
C13: EXPENDITURE | D13: E1. Expenditure Summary
D14: E2. Mains Repex
D15: E3. Mains Augex
D16: E4. Meter replacement
D17: E5. New Connections
D18: E6. Non-network
D19: E10. Overheads
D20: E12. ICT
D21: E13. Other capex
D22: E17. Step changes
D23: E20. Opex
D24: E21. ARS
D25: E25. Escalators
C27: NETWORK | D27: N1. Demand
D28: N2. Network characteristcs
C30: SERVICE | D30: S1.1. Customer numbers - by customer type
D31: S1.2. Customer numbers - by tariff
D32: S10. Supply Quality
D33: S11. Network reliability
C35: FINANCIAL | D35: F3. Revenue
C37: ADMIN | D37: Additional disclosures

Sheet Business & other details
V1: =INDEX(dms_Worksheet_List,MATCH(dms_Model,dms_Model_List)) -> REGULATORY REPORTING STATEMENT
V2: =dms_TradingName -> AusNet (Gas)
V3: =dms_Header_Span -> 2021-22 to 2027-28
V4: BUSINESS & OTHER DETAILS
V6: INSTRUCTIONS
V7: Complete the following business details regulatory template before entering data or values in any other regulatory template. This regulatory template is linked to other cells within the spreadsheet and automatically generates column headings and conditional formatting to distinguish business specific input and non-input cells.
Q9: SUBMISSION PARTICULARS INPUT SHEET
V12: ENTITY DETAILS
V14: Business Name
V16: Short name | AL16: AusNet (Gas)
V17: ACN/ABN | AL17: =INDEX(dms_ABN_List,MATCH(dms_TradingName,dms_TradingName_List)) -> 086015036
V21: Business Address | BQ21: Postal Address
V23: Address 1 | AL23: =INDEX(dms_Addr1_List,MATCH(dms_TradingName,dms_TradingName_List)) -> Level 31 | BI23: Address 1
V24: Address 2 | AL24: =IF(ISBLANK(INDEX(dms_Addr2_List,MATCH(dms_TradingName,dms_TradingName_List))),"",(INDEX(dms_Addr2_List,MATCH(dms_TradingName,dms_TradingName_List)))) -> 2 Southbank Boulevard | BI24: Address 2
V25: Suburb | AL25: =INDEX(dms_Suburb_List,MATCH(dms_TradingName,dms_TradingName_List)) -> SOUTHBANK | BI25: Suburb
V26: State | AL26: =INDEX(dms_State_List,MATCH(dms_TradingName,dms_TradingName_List)) -> Vic | AV26: Post code | AX26: =INDEX(dms_PostCode_List,MATCH(dms_TradingName,dms_TradingName_List)) -> 3008 | BI26: State | BQ26: =INDEX(dms_PState_List,MATCH(dms_TradingName,dms_TradingName_List)) -> Vic | CA26: Post code
BA28: `
V30: Contact Names
V32: Name | BI32: Name
V33: Phone | BI33: Phone
V34: Email | BI34: Email
Q39: REGULATORY CONTROL PERIODS
Z42: Forthcoming period | AL42: 2023-24 | AU42: =FRCP_y2 -> 2024-25 | BD42: =FRCP_y3 -> 2025-26 | BM42: =FRCP_y4 -> 2026-27 | BV42: =FRCP_y5 -> 2027-28
AL43: =FRCP_y6 -> 2028-29 | AU43: =FRCP_y7 -> 2029-30 | BD43: =FRCP_y8 -> 2030-31 | BM43: =FRCP_y9 -> 2031-32 | BV43: =FRCP_y10 -> 2032-33
AL44: =FRCP_y11 -> 2033-34 | AU44: =FRCP_y12 -> 2034-35 | BD44: =FRCP_y13 -> 2035-36 | BM44: =FRCP_y14 -> 2036-37 | BV44: =FRCP_y15 -> 
Z46: Transitional period | AL46: 1 January 2023 to 30 June 2023
X48: RESETS | Z48: Current period | AL48: 2018 | AU48: 2019 | BD48: 2020 | BM48: 2021 | BV48: 2022
AL49: =CRCP_y6 -> 2023-24 | AU49: =CRCP_y7 -> 2024-25 | BD49: =CRCP_y8 -> 2025-26 | BM49: =CRCP_y9 -> 2026-27 | BV49: =CRCP_y10 -> 2027-28
AL50: =CRCP_y11 -> 2028-29 | AU50: =CRCP_y12 -> 2029-30 | BD50: =CRCP_y13 -> 2030-31 | BM50: =CRCP_y14 -> 2031-32 | BV50: =CRCP_y15 -> 2032-33
Z52: Previous period | AL52: 2013 | AU52: 2014 | BD52: 2015 | BM52: 2016 | BV52: 2017
AL53: =PRCP_y6 -> 2018-19 | AU53: =PRCP_y7 -> 2019-20 | BD53: =PRCP_y8 -> 2020-21 | BM53: =PRCP_y9 -> 2021-22 | BV53: =PRCP_y10 -> 2022-23
AL54: =PRCP_y11 -> 2023-24 | AU54: =PRCP_y12 -> 2024-25 | BD54: =PRCP_y13 -> 2025-26 | BM54: =PRCP_y14 -> 2026-27 | BV54: =PRCP_y15 -> 2027-28
Z56: Commencing year | AL56: 2023-24
X57: ANNUAL RINS
Z58: Final year | AL58: 2027-28
Q62: SUBMISSION DETAILS
Z64: RIN type | AL64: =INDIRECT(dms_Model) -> Regulatory Reporting (Reset)
Z66: Source | AL66: Regulatory proposal
X68: THIS FILE | Z68: Data Quality | AL68: Consolidated
Z70: Confidentiality Status | AL70: Public
Z72: Amended RIN Amendment Reason | AL72: .
Z76: Submission Date | AL76: 2022-07-01 | BD76: Please enter date this file submitted to AER

Sheet E1. Expenditure Summary
B1: =INDEX(dms_Worksheet_List,MATCH(dms_Model,dms_Model_List)) -> REGULATORY REPORTING STATEMENT
B2: =dms_TradingName -> AusNet (Gas)
B3: =dms_Header_Span -> 2021-22 to 2027-28
B4: E1. EXPENDITURE SUMMARY
B7: E1.1 - CAPEX
B8: E1.1.1 - REFERENCE SERVICES
C9: EXPENDITURE
C10: =CONCATENATE("$0's, real ",dms_DollarReal) -> $0's, real June 2023
C11: =VLOOKUP(CRCP_y4,'AER lookups'!$B$52:$C$101,2,0) -> 2022 | D11: =CONCATENATE("1 Jan-30 Jun "&(C11+1)) -> 1 Jan-30 Jun 2023 | E11: =FRCP_y1 -> 2023-24 | F11: =FRCP_y2 -> 2024-25 | G11: =FRCP_y3 -> 2025-26 | H11: =FRCP_y4 -> 2026-27 | I11: =FRCP_y5 -> 2027-28
B12: Connections | C12: 54015830.25 | D12: 25516504.51 | E12: 45108118.58 | F12: 46439231.23 | G12: 47746135.55 | H12: 46677491.84 | I12: 45566769.68
B13: Mains replacement | C13: 21865280.05 | D13: 21851083.39 | E13: 30246928.98 | F13: 27568524.13 | G13: 24909276.68 | H13: 28217547.9 | I13: 19610811.16
B14: Mains augmentation | C14: 3787318.862 | D14: 2635396.555 | E14: 4883348.707 | F14: 6444869.768 | G14: 3576418.807 | H14: 2092296.236 | I14: 5691374.266
B15: Telemetry | C15: 1331131.391 | D15: 147723.0231 | E15: 1218898.972 | F15: 1166408.271 | G15: 269261.5946 | H15: 245586.6004 | I15: 269445.5033
B16: Meter replacement | C16: 5078069.921 | D16: 3044950.49 | E16: 6222824.846 | F16: 7301706.722 | G16: 7857250.041 | H16: 6352186.787 | I16: 5564315.507
B17: ICT | C17: 6852633.386 | D17: 3426284.774 | E17: 15911940.86 | F17: 18321777.08 | G17: 19894792.54 | H17: 9779819.159 | I17: 7165074.366
B18: Capitalised network overheads | C18: 4152837.802 | D18: 2172011.929 | E18: 3005299.733 | F18: 2988093.995 | G18: 2967752.245 | H18: 3039681.919 | I18: 2945211.954
B19: Capitalised corporate overheads | C19: 0 | D19: 0 | E19: 0 | F19: 0 | G19: 0 | H19: 0 | I19: 0
B20: Other capex | C20: 10916667.95 | D20: 4703785.763 | E20: 11215406.29 | F20: 11919560.28 | G20: 12319109.68 | H20: 10390337.17 | I20: 9855683.093
B21: Capital contributions included in the above | C21: 21315279.42 | D21: 5328950.241 | E21: 8075961.002 | F21: 8225991.624 | G21: 8372526.345 | H21: 8251065.112 | I21: 8124900.522
B22: Total (less capital contributions) | C22: =SUM(C12:C20)-C21 -> 86684490.19 | D22: 58168790.2 | E22: 109736806 | F22: 113924179.8 | G22: 111167470.8 | H22: 98543882.5 | I22: 88543785
B24: E1.1.2 - NON-REFERENCE SERVICES
B50: Capital contributions included in the above
B51: Total | C51: =SUM(C25:C49)-C50 -> 0 | D51: 0 | E51: 0 | F51: 0 | G51: 0 | H51: 0 | I51: 0
B54: E1.2 - OPEX
B55: E1.2.1 - REFERENCE SERVICES
C56: EXPENDITURE
C57: =CONCATENATE("$0's, real ",dms_DollarReal) -> $0's, real June 2023
C58: =VLOOKUP(CRCP_y4,'AER lookups'!$B$52:$C$101,2,0) -> 2022 | D58: =CONCATENATE("1 Jan-30 Jun "&(C58+1)) -> 1 Jan-30 Jun 2023 | E58: =FRCP_y1 -> 2023-24 | F58: =FRCP_y2 -> 2024-25 | G58: =FRCP_y3 -> 2025-26 | H58: =FRCP_y4 -> 2026-27 | I58: =FRCP_y5 -> 2027-28
B59: ='E20. Opex'!B44 -> repairs and maintenance | C59: ='E20. Opex'!F44 -> 0 | D59: ='E20. Opex'!G44 -> 0 | E59: ='E20. Opex'!H44 -> 0 | F59: ='E20. Opex'!I44 -> 0 | G59: ='E20. Opex'!J44 -> 0 | H59: ='E20. Opex'!K44 -> 0 | I59: ='E20. Opex'!L44 -> 0
B60: ='E20. Opex'!B45 -> marketing and retail incentives | C60: ='E20. Opex'!F45 -> 0 | D60: ='E20. Opex'!G45 -> 0 | E60: ='E20. Opex'!H45 -> 0 | F60: ='E20. Opex'!I45 -> 0 | G60: ='E20. Opex'!J45 -> 0 | H60: ='E20. Opex'!K45 -> 0 | I60: ='E20. Opex'!L45 -> 0
B61: ='E20. Opex'!B46 -> debt raising | C61: ='E20. Opex'!F46 -> 0 | D61: ='E20. Opex'!G46 -> 0 | E61: ='E20. Opex'!H46 -> 0 | F61: ='E20. Opex'!I46 -> 0 | G61: ='E20. Opex'!J46 -> 0 | H61: ='E20. Opex'!K46 -> 0 | I61: ='E20. Opex'!L46 -> 0
B62: ='E20. Opex'!B47 -> equity raising | C62: ='E20. Opex'!F47 -> 0 | D62: ='E20. Opex'!G47 -> 0 | E62: ='E20. Opex'!H47 -> 0 | F62: ='E20. Opex'!I47 -> 0 | G62: ='E20. Opex'!J47 -> 0 | H62: ='E20. Opex'!K47 -> 0 | I62: ='E20. Opex'!L47 -> 0
B63: ='E20. Opex'!B48 -> unaccounted for gas | C63: ='E20. Opex'!F48 -> 0 | D63: ='E20. Opex'!G48 -> 0 | E63: ='E20. Opex'!H48 -> 0 | F63: ='E20. Opex'!I48 -> 0 | G63: ='E20. Opex'!J48 -> 0 | H63: ='E20. Opex'!K48 -> 0 | I63: ='E20. Opex'!L48 -> 0
B64: ='E20. Opex'!B49 -> jurisdictional charges | C64: ='E20. Opex'!F49 -> 0 | D64: ='E20. Opex'!G49 -> 0 | E64: ='E20. Opex'!H49 -> 0 | F64: ='E20. Opex'!I49 -> 0 | G64: ='E20. Opex'!J49 -> 0 | H64: ='E20. Opex'!K49 -> 0 | I64: ='E20. Opex'!L49 -> 0
B65: ='E20. Opex'!B50 -> GSL payments | C65: ='E20. Opex'!F50 -> 0 | D65: ='E20. Opex'!G50 -> 0 | E65: ='E20. Opex'!H50 -> 0 | F65: ='E20. Opex'!I50 -> 0 | G65: ='E20. Opex'!J50 -> 0 | H65: ='E20. Opex'!K50 -> 0 | I65: ='E20. Opex'!L50 -> 0
B66: ='E20. Opex'!B51 -> other opex | C66: ='E20. Opex'!F51 -> 0 | D66: ='E20. Opex'!G51 -> 0 | E66: ='E20. Opex'!H51 -> 0 | F66: ='E20. Opex'!I51 -> 0 | G66: ='E20. Opex'!J51 -> 0 | H66: ='E20. Opex'!K51 -> 0 | I66: ='E20. Opex'!L51 -> 0
B67: Total | C67: =SUM(C59:C66) -> 0 | D67: 0 | E67: 0 | F67: 0 | G67: 0 | H67: 0 | I67: 0
B69: E1.2.2 - NON-REFERENCE SERVICES
B70: =IF(ISBLANK('E20. Opex'!B58),"",'E20. Opex'!B58) -> 
B71: =IF(ISBLANK('E20. Opex'!B59),"",'E20. Opex'!B59) -> 
B72: =IF(ISBLANK('E20. Opex'!B60),"",'E20. Opex'!B60) -> 
B73: =IF(ISBLANK('E20. Opex'!B61),"",'E20. Opex'!B61) -> 
B74: =IF(ISBLANK('E20. Opex'!B62),"",'E20. Opex'!B62) -> 
B75: =IF(ISBLANK('E20. Opex'!B63),"",'E20. Opex'!B63) -> 
B76: =IF(ISBLANK('E20. Opex'!B64),"",'E20. Opex'!B64) -> 
B77: =IF(ISBLANK('E20. Opex'!B65),"",'E20. Opex'!B65) -> 
B78: =IF(ISBLANK('E20. Opex'!B66),"",'E20. Opex'!B66) -> 
B79: =IF(ISBLANK('E20. Opex'!B67),"",'E20. Opex'!B67) -> 
B80: =IF(ISBLANK('E20. Opex'!B68),"",'E20. Opex'!B68) -> 
B81: =IF(ISBLANK('E20. Opex'!B69),"",'E20. Opex'!B69) -> 
B82: =IF(ISBLANK('E20. Opex'!B70),"",'E20. Opex'!B70) -> 
B83: =IF(ISBLANK('E20. Opex'!B71),"",'E20. Opex'!B71) -> 
B84: =IF(ISBLANK('E20. Opex'!B72),"",'E20. Opex'!B72) -> 
B85: =IF(ISBLANK('E20. Opex'!B73),"",'E20. Opex'!B73) -> 
B86: =IF(ISBLANK('E20. Opex'!B74),"",'E20. Opex'!B74) -> 
B87: =IF(ISBLANK('E20. Opex'!B75),"",'E20. Opex'!B75) -> 
B88: =IF(ISBLANK('E20. Opex'!B76),"",'E20. Opex'!B76) -> 
B89: =IF(ISBLANK('E20. Opex'!B77),"",'E20. Opex'!B77) -> 
B90: =IF(ISBLANK('E20. Opex'!B78),"",'E20. Opex'!B78) -> 
B91: =IF(ISBLANK('E20. Opex'!B79),"",'E20. Opex'!B79) -> 
B92: =IF(ISBLANK('E20. Opex'!B80),"",'E20. Opex'!B80) -> 
B93: =IF(ISBLANK('E20. Opex'!B81),"",'E20. Opex'!B81) -> 
B94: =IF(ISBLANK('E20. Opex'!B82),"",'E20. Opex'!B82) -> 
B95: Total | C95: =SUM(C70:C94) -> 0 | D95: =SUM(D70:D94) -> 0 | E95: 0 | F95: 0 | G95: 0 | H95: 0 | I95: 0
B98: E1.3 - CAPCONS
B99: E1.3.1 - REFERENCE SERVICES
C100: EXPENDITURE
C101: =CONCATENATE("$0's, real ",dms_DollarReal) -> $0's, real June 2023
C102: =VLOOKUP(CRCP_y4,'AER lookups'!$B$52:$C$101,2,0) -> 2022 | D102: =CONCATENATE("1 Jan-30 Jun "&(C102+1)) -> 1 Jan-30 Jun 2023 | E102: =FRCP_y1 -> 2023-24 | F102: =FRCP_y2 -> 2024-25 | G102: =FRCP_y3 -> 2025-26 | H102: =FRCP_y4 -> 2026-27 | I102: =FRCP_y5 -> 2027-28
B103: Connections | C103: ='E5. New Connections'!D192 -> 5595418.42 | D103: ='E5. New Connections'!E192 -> 3290026.731 | E103: ='E5. New Connections'!F192 -> 6580053.463 | F103: ='E5. New Connections'!G192 -> 6730084.084 | G103: ='E5. New Connections'!H192 -> 6876618.805 | H103: ='E5. New Connections'!I192 -> 6755157.573 | I103: ='E5. New Connections'!J192 -> 6628992.982
B104: Mains replacement
B105: Mains augmentation
B106: Telemetry
B107: Meter replacement
B108: ICT
B109: Capitalised network overheads
B110: Capitalised corporate overheads
B111: Other capex | C111: ='E13. Other capex'!C139 -> 15719861 | D111: ='E13. Other capex'!D139 -> 2038923.51 | E111: ='E13. Other capex'!E139 -> 1495907.54 | F111: ='E13. Other capex'!F139 -> 1495907.54 | G111: ='E13. Other capex'!G139 -> 1495907.54 | H111: ='E13. Other capex'!H139 -> 1495907.54 | I111: ='E13. Other capex'!I139 -> 1495907.54
B112: Total | C112: =SUM(C103:C111) -> 21315279.42 | D112: 5328950.241 | E112: 8075961.002 | F112: 8225991.624 | G112: 8372526.345 | H112: 8251065.112 | I112: 8124900.522
B114: E1.3.2 - NON-REFERENCE SERVICES
C115: EXPENDITURE
C116: =CONCATENATE("$0's, real ",dms_DollarReal) -> $0's, real June 2023
C117: =VLOOKUP(CRCP_y4,'AER lookups'!$B$52:$C$101,2,0) -> 2022 | D117: =CONCATENATE("1 Jan-30 Jun "&(C117+1)) -> 1 Jan-30 Jun 2023 | E117: =FRCP_y1 -> 2023-24 | F117: =FRCP_y2 -> 2024-25 | G117: =FRCP_y3 -> 2025-26 | H117: =FRCP_y4 -> 2026-27 | I117: =FRCP_y5 -> 2027-28
B142: Total | C142: =SUM(C118:C141) -> 0 | D142: 0 | E142: 0 | F142: 0 | G142: 0 | H142: 0 | I142: 0
B145: E1.4 - CAPITALISED OVERHEADS
B146: E1.4.1 - REFERENCE SERVICES
C147: EXPENDITURE
C148: =CONCATENATE("$0's, real ",dms_DollarReal) -> $0's, real June 2023
C149: =VLOOKUP(CRCP_y4,'AER lookups'!$B$52:$C$101,2,0) -> 2022 | D149: =CONCATENATE("1 Jan-30 Jun "&(C149+1)) -> 1 Jan-30 Jun 2023 | E149: =FRCP_y1 -> 2023-24 | F149: =FRCP_y2 -> 2024-25 | G149: =FRCP_y3 -> 2025-26 | H149: =FRCP_y4 -> 2026-27 | I149: =FRCP_y5 -> 2027-28
B150: Connections | C150: 2036991.373 | D150: 849290.5465 | E150: 1206762.183 | F150: 1210233.642 | G150: 1283082.187 | H150: 1332464.034 | I150: 1363374.982
B151: Mains replacement | C151: 824561.7375 | D151: 727290.7835 | E151: 809185.8225 | F151: 718451.9311 | G151: 669387.1413 | H151: 805503.1714 | I151: 586762.8867
B152: Mains augmentation | C152: 142823.6096 | D152: 87716.45737 | E152: 130642.5701 | F152: 167957.0916 | G152: 96109.12401 | H152: 59727.06274 | I152: 170288.0705
B153: Telemetry | C153: 50198.3057 | D153: 4916.808531 | E153: 32608.79039 | F153: 30397.28462 | G153: 7235.868444 | H153: 7010.559036 | I153: 8061.911363
B154: Meter replacement | C154: 191499.1323 | D154: 101348.0379 | E154: 166477.1205 | F154: 190286.7658 | G154: 211147.9274 | H154: 181330.6606 | I154: 166486.4244
B155: ICT | C155: 509451.2042 | D155: 253747.506 | E155: 388069.0056 | F155: 387896.0362 | G155: 398376.1922 | H155: 387476.5291 | I155: 387266.1318
B156: Other capex | C156: 397312.4396 | D156: 147701.7894 | E156: 271554.2409 | F156: 282871.2434 | G156: 302413.8052 | H156: 266169.9021 | I156: 262971.5468
B157: Capital contributions included in the above | C157: 774609.3604 | D157: 171655.247 | E157: 210424.0401 | F157: 208929.3516 | G157: 219106.8898 | H157: 228999.3253 | I157: 236037.7575
B158: Total (less capital contributions) | C158: =SUM(C150:C156)-C157 -> 3378228.442 | D158: 2000356.682 | E158: 2794875.693 | F158: 2779164.643 | G158: 2748645.355 | H158: 2810682.594 | I158: 2709174.196
B162: E1.4.2 - NON-REFERENCE SERVICES
C163: EXPENDITURE
C164: =CONCATENATE("$0's, real ",dms_DollarReal) -> $0's, real June 2023
C165: =VLOOKUP(CRCP_y4,'AER lookups'!$B$52:$C$101,2,0) -> 2022 | D165: =CONCATENATE("1 Jan-30 Jun "&(C165+1)) -> 1 Jan-30 Jun 2023 | E165: =FRCP_y1 -> 2023-24 | F165: =FRCP_y2 -> 2024-25 | G165: =FRCP_y3 -> 2025-26 | H165: =FRCP_y4 -> 2026-27 | I165: =FRCP_y5 -> 2027-28
B188: Capital contributions included in the above
B189: Total (less capital contributions) | C189: =SUM(C166:C187)-C188 -> 0 | D189: 0 | E189: 0 | F189: 0 | G189: 0 | H189: 0 | I189: 0

Sheet E2. Mains Repex
B1: =INDEX(dms_Worksheet_List,MATCH(dms_Model,dms_Model_List)) -> REGULATORY REPORTING STATEMENT
B2: =dms_TradingName -> AusNet (Gas)
B3: =dms_Header_Span -> 2021-22 to 2027-28
B4: E2. MAINS REPLACEMENT
B8: Please list all projects here:
B9: LP - Ascot Vale
B10: LP - Geelong West
B11: LP - Geelong
B12: LP - Colac
B13: LP - Warrnambool
B14: LP - Hamilton
B15: LP - Portland
B16: LP - Ballarat
B17: LP - Ararat
B18: LP - Stawell
B19: LP - Horsham
B20: LP - Bendigo
B21: MP - Altona North
B22: MP - Braybrook
B23: MP - Sunshine
B24: MP - Footscray
B25: MP - St Albans
B26: MP - Maidstone
B27: HP - Melton
B28: Exposed Pipework
B29: LP Mains CY22
B30: MP Mains CY22
B31: HP Mains CY22
B61: E2.1 - CAPEX
B62: E2.1.1 - PROACTIVE - BY PROJECT
D63: EXPENDITURE
D64: =CONCATENATE("$0's, real ",dms_DollarReal) -> $0's, real June 2023
D65: =VLOOKUP(CRCP_y4,'AER lookups'!$B$52:$C$101,2,0) -> 2022 | E65: =CONCATENATE("1 Jan-30 Jun "&(D65+1)) -> 1 Jan-30 Jun 2023 | F65: =FRCP_y1 -> 2023-24 | G65: =FRCP_y2 -> 2024-25 | H65: =FRCP_y3 -> 2025-26 | I65: =FRCP_y4 -> 2026-27 | J65: =FRCP_y5 -> 2027-28
B66: A. DIRECT INTERNAL LABOUR EXPENDITURE
B67: =IF(ISBLANK(dms_E2_Projects_01),"",dms_E2_Projects_01) -> LP - Ascot Vale | E67: 282157.9045 | F67: 115438.6934 | G67: 0 | H67: 0 | I67: 0 | J67: 0
B68: =IF(ISBLANK(dms_E2_Projects_02),"",dms_E2_Projects_02) -> LP - Geelong West | E68: 0 | F68: 0 | G68: 237849.41 | H68: 0 | I68: 0 | J68: 0
B69: =IF(ISBLANK(dms_E2_Projects_03),"",dms_E2_Projects_03) -> LP - Geelong | E69: 0 | F69: 259141.1328 | G69: 0 | H69: 0 | I69: 0 | J69: 0
B70: =IF(ISBLANK(dms_E2_Projects_04),"",dms_E2_Projects_04) -> LP - Colac | E70: 86098.61006 | F70: 0 | G70: 0 | H70: 0 | I70: 0 | J70: 0
B71: =IF(ISBLANK(dms_E2_Projects_05),"",dms_E2_Projects_05) -> LP - Warrnambool | E71: 0 | F71: 143161.9829 | G71: 157442.0453 | H71: 185693.585 | I71: 268157.1839 | J71: 128198.1669
B72: =IF(ISBLANK(dms_E2_Projects_06),"",dms_E2_Projects_06) -> LP - Hamilton | E72: 0 | F72: 0 | G72: 100837.6666 | H72: 140852.6021 | I72: 0 | J72: 0
B73: =IF(ISBLANK(dms_E2_Projects_07),"",dms_E2_Projects_07) -> LP - Portland | E73: 117207.025 | F73: 107483.0757 | G73: 0 | H73: 0 | I73: 0 | J73: 0
B74: =IF(ISBLANK(dms_E2_Projects_08),"",dms_E2_Projects_08) -> LP - Ballarat | E74: 138217.1306 | F74: 0 | G74: 0 | H74: 0 | I74: 0 | J74: 0
B75: =IF(ISBLANK(dms_E2_Projects_09),"",dms_E2_Projects_09) -> LP - Ararat | E75: 0 | F75: 45781.34433 | G75: 85208.60592 | H75: 115564.3936 | I75: 92592.27466 | J75: 84197.26947
B76: =IF(ISBLANK(dms_E2_Projects_10),"",dms_E2_Projects_10) -> LP - Stawell | E76: 47764.71082 | F76: 58060.98304 | G76: 88754.65018 | H76: 123535.1007 | I76: 95968.04153 | J76: 0
B77: =IF(ISBLANK(dms_E2_Projects_11),"",dms_E2_Projects_11) -> LP - Horsham | E77: 62347.30092 | F77: 202452.0383 | G77: 117893.5659 | H77: 0 | I77: 0 | J77: 0
B78: =IF(ISBLANK(dms_E2_Projects_12),"",dms_E2_Projects_12) -> LP - Bendigo | E78: 0 | F78: 0 | G78: 0 | H78: 0 | I78: 146100.8365 | J78: 147709.18
B79: =IF(ISBLANK(dms_E2_Projects_13),"",dms_E2_Projects_13) -> MP - Altona North | E79: 84838.53595 | F79: 71621.27843 | G79: 0 | H79: 0 | I79: 81155.42065 | J79: 0
B80: =IF(ISBLANK(dms_E2_Projects_14),"",dms_E2_Projects_14) -> MP - Braybrook | E80: 0 | F80: 0 | G80: 0 | H80: 0 | I80: 81682.4039 | J80: 85334.32043
B81: =IF(ISBLANK(dms_E2_Projects_15),"",dms_E2_Projects_15) -> MP - Sunshine | E81: 0 | F81: 0 | G81: 85928.25505 | H81: 86874.19179 | I81: 0 | J81: 88797.4198
B82: =IF(ISBLANK(dms_E2_Projects_16),"",dms_E2_Projects_16) -> MP - Footscray | E82: 0 | F82: 0 | G82: 0 | H82: 0 | I82: 109788.1773 | J82: 0
B83: =IF(ISBLANK(dms_E2_Projects_17),"",dms_E2_Projects_17) -> MP - St Albans | E83: 0 | F83: 0 | G83: 0 | H83: 118583.2718 | I83: 118571.2315 | J83: 119876.5167
B84: =IF(ISBLANK(dms_E2_Projects_18),"",dms_E2_Projects_18) -> MP - Maidstone | E84: 0 | F84: 0 | G84: 49408.74665 | H84: 64938.45837 | I84: 0 | J84: 0
B85: =IF(ISBLANK(dms_E2_Projects_19),"",dms_E2_Projects_19) -> HP - Melton | E85: 0 | F85: 86542.3781 | G85: 87217.17888 | H85: 88177.30467 | I85: 89147.99996 | J85: 90129.3811
B86: =IF(ISBLANK(dms_E2_Projects_20),"",dms_E2_Projects_20) -> Exposed Pipework | E86: 0 | F86: 8526.34267 | G86: 0 | H86: 0 | I86: 0 | J86: 0
B87: =IF(ISBLANK(dms_E2_Projects_21),"",dms_E2_Projects_21) -> LP Mains CY22 | D87: 731783.1554
B88: =IF(ISBLANK(dms_E2_Projects_22),"",dms_E2_Projects_22) -> MP Mains CY22 | D88: 16749.45166
B89: =IF(ISBLANK(dms_E2_Projects_23),"",dms_E2_Projects_23) -> HP Mains CY22 | D89: 0
B90: =IF(ISBLANK(dms_E2_Projects_24),"",dms_E2_Projects_24) -> 
B91: =IF(ISBLANK(dms_E2_Projects_25),"",dms_E2_Projects_25) -> 
B92: =IF(ISBLANK(dms_E2_Projects_26),"",dms_E2_Projects_26) -> 
B93: =IF(ISBLANK(dms_E2_Projects_27),"",dms_E2_Projects_27) -> 
B94: =IF(ISBLANK(dms_E2_Projects_28),"",dms_E2_Projects_28) -> 
B95: =IF(ISBLANK(dms_E2_Projects_29),"",dms_E2_Projects_29) -> 
B96: =IF(ISBLANK(dms_E2_Projects_30),"",dms_E2_Projects_30) -> 
B97: =IF(ISBLANK(dms_E2_Projects_31),"",dms_E2_Projects_31) -> 
B98: =IF(ISBLANK(dms_E2_Projects_32),"",dms_E2_Projects_32) -> 
B99: =IF(ISBLANK(dms_E2_Projects_33),"",dms_E2_Projects_33) -> 
B100: =IF(ISBLANK(dms_E2_Projects_34),"",dms_E2_Projects_34) -> 
B101: =IF(ISBLANK(dms_E2_Projects_35),"",dms_E2_Projects_35) -> 
B102: =IF(ISBLANK(dms_E2_Projects_36),"",dms_E2_Projects_36) -> 
B103: =IF(ISBLANK(dms_E2_Projects_37),"",dms_E2_Projects_37) -> 
B104: =IF(ISBLANK(dms_E2_Projects_38),"",dms_E2_Projects_38) -> 
B105: =IF(ISBLANK(dms_E2_Projects_39),"",dms_E2_Projects_39) -> 
B106: =IF(ISBLANK(dms_E2_Projects_40),"",dms_E2_Projects_40) -> 
B107: =IF(ISBLANK(dms_E2_Projects_41),"",dms_E2_Projects_41) -> 
B108: =IF(ISBLANK(dms_E2_Projects_42),"",dms_E2_Projects_42) -> 
B109: =IF(ISBLANK(dms_E2_Projects_43),"",dms_E2_Projects_43) -> 
B110: =IF(ISBLANK(dms_E2_Projects_44),"",dms_E2_Projects_44) -> 
B111: =IF(ISBLANK(dms_E2_Projects_45),"",dms_E2_Projects_45) -> 
B112: =IF(ISBLANK(dms_E2_Projects_46),"",dms_E2_Projects_46) -> 
B113: =IF(ISBLANK(dms_E2_Projects_47),"",dms_E2_Projects_47) -> 
B114: =IF(ISBLANK(dms_E2_Projects_48),"",dms_E2_Projects_48) -> 
B115: =IF(ISBLANK(dms_E2_Projects_49),"",dms_E2_Projects_49) -> 
B116: =IF(ISBLANK(dms_E2_Projects_50),"",dms_E2_Projects_50) -> 
B117: Other projects with expenditure of less than $500,000
C118: Total | D118: =SUM(D67:D117) -> 748532.6071 | E118: =SUM(E67:E117) -> 818631.2179 | F118: =SUM(F67:F117) -> 1098209.25 | G118: =SUM(G67:G117) -> 1010540.125 | H118: =SUM(H67:H117) -> 924218.9081 | I118: =SUM(I67:I117) -> 1083163.57 | J118: =SUM(J67:J117) -> 744242.2544
B120: B. DIRECT CONTRACTOR EXPENDITURE
D121: EXPENDITURE
D122: =CONCATENATE("$0's, real ",dms_DollarReal) -> $0's, real June 2023
D123: =VLOOKUP(CRCP_y4,'AER lookups'!$B$52:$C$101,2,0) -> 2022 | E123: =CONCATENATE("1 Jan-30 Jun "&(D123+1)) -> 1 Jan-30 Jun 2023 | F123: =FRCP_y1 -> 2023-24 | G123: =FRCP_y2 -> 2024-25 | H123: =FRCP_y3 -> 2025-26 | I123: =FRCP_y4 -> 2026-27 | J123: =FRCP_y5 -> 2027-28
B124: =IF(ISBLANK(dms_E2_Projects_01),"",dms_E2_Projects_01) -> LP - Ascot Vale | E124: 5333288.825 | F124: 2171124.196 | G124: 0 | H124: 0 | I124: 0 | J124: 0
B125: =IF(ISBLANK(dms_E2_Projects_02),"",dms_E2_Projects_02) -> LP - Geelong West | E125: 0 | F125: 0 | G125: 4438764.8 | H125: 0 | I125: 0 | J125: 0
B126: =IF(ISBLANK(dms_E2_Projects_03),"",dms_E2_Projects_03) -> LP - Geelong | E126: 0 | F126: 4873821.48 | G126: 0 | H126: 0 | I126: 0 | J126: 0
B127: =IF(ISBLANK(dms_E2_Projects_04),"",dms_E2_Projects_04) -> LP - Colac | E127: 1627417.653 | F127: 0 | G127: 0 | H127: 0 | I127: 0 | J127: 0
B128: =IF(ISBLANK(dms_E2_Projects_05),"",dms_E2_Projects_05) -> LP - Warrnambool | E128: 0 | F128: 2692532.598 | G128: 2938196.1 | H128: 3427695 | I128: 4895983.232 | J128: 2315141.374
B129: =IF(ISBLANK(dms_E2_Projects_06),"",dms_E2_Projects_06) -> LP - Hamilton | E129: 0 | F129: 0 | G129: 1881840.636 | H129: 2599980.824 | I129: 0 | J129: 0
B130: =IF(ISBLANK(dms_E2_Projects_07),"",dms_E2_Projects_07) -> LP - Portland | E130: 2215422.31 | F130: 2021498.16 | G130: 0 | H130: 0 | I130: 0 | J130: 0
B131: =IF(ISBLANK(dms_E2_Projects_08),"",dms_E2_Projects_08) -> LP - Ballarat | E131: 2612550.867 | F131: 0 | G131: 0 | H131: 0 | I131: 0 | J131: 0
B132: =IF(ISBLANK(dms_E2_Projects_09),"",dms_E2_Projects_09) -> LP - Ararat | E132: 0 | F132: 861036.984 | G132: 1590169.85 | H132: 2133188.9 | I132: 1690539.174 | J132: 1520525.502
B133: =IF(ISBLANK(dms_E2_Projects_10),"",dms_E2_Projects_10) -> LP - Stawell | E133: 902838.4261 | F133: 1091987.456 | G133: 1656346.413 | H133: 2280319.2 | I133: 1752173.54 | J133: 0
B134: =IF(ISBLANK(dms_E2_Projects_11),"",dms_E2_Projects_11) -> LP - Horsham | E134: 1178475.449 | F134: 3807635.948 | G134: 2200139.2 | H134: 0 | I134: 0 | J134: 0
B135: =IF(ISBLANK(dms_E2_Projects_12),"",dms_E2_Projects_12) -> LP - Bendigo | E135: 0 | F135: 0 | G135: 0 | H135: 0 | I135: 2667492.384 | J135: 2667492.384
B136: =IF(ISBLANK(dms_E2_Projects_13),"",dms_E2_Projects_13) -> MP - Altona North | E136: 1603600 | F136: 1347024 | G136: 0 | H136: 0 | I136: 1481726.4 | J136: 0
B137: =IF(ISBLANK(dms_E2_Projects_14),"",dms_E2_Projects_14) -> MP - Braybrook | E137: 0 | F137: 0 | G137: 0 | H137: 0 | I137: 1491348 | J137: 1541059.6
B138: =IF(ISBLANK(dms_E2_Projects_15),"",dms_E2_Projects_15) -> MP - Sunshine | E138: 0 | F138: 0 | G138: 1603600 | H138: 1603600 | I138: 0 | J138: 1603600
B139: =IF(ISBLANK(dms_E2_Projects_16),"",dms_E2_Projects_16) -> MP - Footscray | E139: 0 | F139: 0 | G139: 0 | H139: 0 | I139: 2004500 | J139: 0
B140: =IF(ISBLANK(dms_E2_Projects_17),"",dms_E2_Projects_17) -> MP - St Albans | E140: 0 | F140: 0 | G140: 0 | H140: 2188914 | I140: 2164860 | J140: 2164860
B141: =IF(ISBLANK(dms_E2_Projects_18),"",dms_E2_Projects_18) -> MP - Maidstone | E141: 0 | F141: 0 | G141: 922070 | H141: 1198691 | I141: 0 | J141: 0
B142: =IF(ISBLANK(dms_E2_Projects_19),"",dms_E2_Projects_19) -> HP - Melton | E142: 0 | F142: 1627654 | G142: 1627654 | H142: 1627654 | I142: 1627654 | J142: 1627654
B143: =IF(ISBLANK(dms_E2_Projects_20),"",dms_E2_Projects_20) -> Exposed Pipework | E143: 0 | F143: 160360 | G143: 0 | H143: 0 | I143: 0 | J143: 0
B144: =IF(ISBLANK(dms_E2_Projects_21),"",dms_E2_Projects_21) -> LP Mains CY22 | D144: 13903879.95
B145: =IF(ISBLANK(dms_E2_Projects_22),"",dms_E2_Projects_22) -> MP Mains CY22 | D145: 318239.5815
B146: =IF(ISBLANK(dms_E2_Projects_23),"",dms_E2_Projects_23) -> HP Mains CY22 | D146: 0
B147: =IF(ISBLANK(dms_E2_Projects_24),"",dms_E2_Projects_24) -> 
B148: =IF(ISBLANK(dms_E2_Projects_25),"",dms_E2_Projects_25) -> 
B149: =IF(ISBLANK(dms_E2_Projects_26),"",dms_E2_Projects_26) -> 
B150: =IF(ISBLANK(dms_E2_Projects_27),"",dms_E2_Projects_27) -> 
B151: =IF(ISBLANK(dms_E2_Projects_28),"",dms_E2_Projects_28) -> 
B152: =IF(ISBLANK(dms_E2_Projects_29),"",dms_E2_Projects_29) -> 
B153: =IF(ISBLANK(dms_E2_Projects_30),"",dms_E2_Projects_30) -> 
B154: =IF(ISBLANK(dms_E2_Projects_31),"",dms_E2_Projects_31) -> 
B155: =IF(ISBLANK(dms_E2_Projects_32),"",dms_E2_Projects_32) -> 
B156: =IF(ISBLANK(dms_E2_Projects_33),"",dms_E2_Projects_33) -> 
B157: =IF(ISBLANK(dms_E2_Projects_34),"",dms_E2_Projects_34) -> 
B158: =IF(ISBLANK(dms_E2_Projects_35),"",dms_E2_Projects_35) -> 
B159: =IF(ISBLANK(dms_E2_Projects_36),"",dms_E2_Projects_36) -> 
B160: =IF(ISBLANK(dms_E2_Projects_37),"",dms_E2_Projects_37) -> 
B161: =IF(ISBLANK(dms_E2_Projects_38),"",dms_E2_Projects_38) -> 
B162: =IF(ISBLANK(dms_E2_Projects_39),"",dms_E2_Projects_39) -> 
B163: =IF(ISBLANK(dms_E2_Projects_40),"",dms_E2_Projects_40) -> 
B164: =IF(ISBLANK(dms_E2_Projects_41),"",dms_E2_Projects_41) -> 
B165: =IF(ISBLANK(dms_E2_Projects_42),"",dms_E2_Projects_42) -> 
B166: =IF(ISBLANK(dms_E2_Projects_43),"",dms_E2_Projects_43) -> 
B167: =IF(ISBLANK(dms_E2_Projects_44),"",dms_E2_Projects_44) -> 
B168: =IF(ISBLANK(dms_E2_Projects_45),"",dms_E2_Projects_45) -> 
B169: =IF(ISBLANK(dms_E2_Projects_46),"",dms_E2_Projects_46) -> 
B170: =IF(ISBLANK(dms_E2_Projects_47),"",dms_E2_Projects_47) -> 
B171: =IF(ISBLANK(dms_E2_Projects_48),"",dms_E2_Projects_48) -> 
B172: =IF(ISBLANK(dms_E2_Projects_49),"",dms_E2_Projects_49) -> 
B173: =IF(ISBLANK(dms_E2_Projects_50),"",dms_E2_Projects_50) -> 
B174: Other projects with expenditure of less than $500,000
C175: Total | D175: =SUM(D124:D174) -> 14222119.53 | E175: =SUM(E124:E174) -> 15473593.53 | F175: 20654674.82 | G175: 18858781 | H175: 17060042.92 | I175: 19776276.73 | J175: 13440332.86
B177: C. DIRECT MATERIAL EXPENDITURE
D178: EXPENDITURE
D179: =CONCATENATE("$0's, real ",dms_DollarReal) -> $0's, real June 2023
D180: =VLOOKUP(CRCP_y4,'AER lookups'!$B$52:$C$101,2,0) -> 2022 | E180: =CONCATENATE("1 Jan-30 Jun "&(D180+1)) -> 1 Jan-30 Jun 2023 | F180: =FRCP_y1 -> 2023-24 | G180: =FRCP_y2 -> 2024-25 | H180: =FRCP_y3 -> 2025-26 | I180: =FRCP_y4 -> 2026-27 | J180: =FRCP_y5 -> 2027-28
B181: =IF(ISBLANK(dms_E2_Projects_01),"",dms_E2_Projects_01) -> LP - Ascot Vale | E181: 1403497.059 | F181: 571348.4725 | G181: 0 | H181: 0 | I181: 0 | J181: 0
B182: =IF(ISBLANK(dms_E2_Projects_02),"",dms_E2_Projects_02) -> LP - Geelong West | E182: 0 | F182: 0 | G182: 1168096 | H182: 0 | I182: 0 | J182: 0
B183: =IF(ISBLANK(dms_E2_Projects_03),"",dms_E2_Projects_03) -> LP - Geelong | E183: 0 | F183: 1282584.6 | G183: 0 | H183: 0 | I183: 0 | J183: 0
B184: =IF(ISBLANK(dms_E2_Projects_04),"",dms_E2_Projects_04) -> LP - Colac | E184: 428267.8035 | F184: 0 | G184: 0 | H184: 0 | I184: 0 | J184: 0
B185: =IF(ISBLANK(dms_E2_Projects_05),"",dms_E2_Projects_05) -> LP - Warrnambool | E185: 0 | F185: 708561.21 | G185: 773209.5 | H185: 902025 | I185: 1288416.64 | J185: 609247.73
B186: =IF(ISBLANK(dms_E2_Projects_06),"",dms_E2_Projects_06) -> LP - Hamilton | E186: 0 | F186: 0 | G186: 495221.22 | H186: 684205.48 | I186: 0 | J186: 0
B187: =IF(ISBLANK(dms_E2_Projects_07),"",dms_E2_Projects_07) -> LP - Portland | E187: 583005.871 | F187: 531973.2 | G187: 0 | H187: 0 | I187: 0 | J187: 0
B188: =IF(ISBLANK(dms_E2_Projects_08),"",dms_E2_Projects_08) -> LP - Ballarat | E188: 687513.3861 | F188: 0 | G188: 0 | H188: 0 | I188: 0 | J188: 0
B189: =IF(ISBLANK(dms_E2_Projects_09),"",dms_E2_Projects_09) -> LP - Ararat | E189: 0 | F189: 226588.68 | G189: 418465.75 | H189: 561365.5 | I189: 444878.73 | J189: 400138.29
B190: =IF(ISBLANK(dms_E2_Projects_10),"",dms_E2_Projects_10) -> LP - Stawell | E190: 237589.0595 | F190: 287365.12 | G190: 435880.635 | H190: 600084 | I190: 461098.3 | J190: 0
B191: =IF(ISBLANK(dms_E2_Projects_11),"",dms_E2_Projects_11) -> LP - Horsham | E191: 310125.1182 | F191: 1002009.46 | G191: 578984 | H191: 0 | I191: 0 | J191: 0
B192: =IF(ISBLANK(dms_E2_Projects_12),"",dms_E2_Projects_12) -> LP - Bendigo | E192: 0 | F192: 0 | G192: 0 | H192: 0 | I192: 701971.68 | J192: 701971.68
B193: =IF(ISBLANK(dms_E2_Projects_13),"",dms_E2_Projects_13) -> MP - Altona North | E193: 422000 | F193: 354480 | G193: 0 | H193: 0 | I193: 389928 | J193: 0
B194: =IF(ISBLANK(dms_E2_Projects_14),"",dms_E2_Projects_14) -> MP - Braybrook | E194: 0 | F194: 0 | G194: 0 | H194: 0 | I194: 392460 | J194: 405542
B195: =IF(ISBLANK(dms_E2_Projects_15),"",dms_E2_Projects_15) -> MP - Sunshine | E195: 0 | F195: 0 | G195: 422000 | H195: 422000 | I195: 0 | J195: 422000
B196: =IF(ISBLANK(dms_E2_Projects_16),"",dms_E2_Projects_16) -> MP - Footscray | E196: 0 | F196: 0 | G196: 0 | H196: 0 | I196: 527500 | J196: 0
B197: =IF(ISBLANK(dms_E2_Projects_17),"",dms_E2_Projects_17) -> MP - St Albans | E197: 0 | F197: 0 | G197: 0 | H197: 576030 | I197: 569700 | J197: 569700
B198: =IF(ISBLANK(dms_E2_Projects_18),"",dms_E2_Projects_18) -> MP - Maidstone | E198: 0 | F198: 0 | G198: 242650 | H198: 315445 | I198: 0 | J198: 0
B199: =IF(ISBLANK(dms_E2_Projects_19),"",dms_E2_Projects_19) -> HP - Melton | E199: 0 | F199: 428330 | G199: 428330 | H199: 428330 | I199: 428330 | J199: 428330
B200: =IF(ISBLANK(dms_E2_Projects_20),"",dms_E2_Projects_20) -> Exposed Pipework | E200: 0 | F200: 42200 | G200: 0 | H200: 0 | I200: 0 | J200: 0
B201: =IF(ISBLANK(dms_E2_Projects_21),"",dms_E2_Projects_21) -> LP Mains CY22 | D201: 3658915.777
B202: =IF(ISBLANK(dms_E2_Projects_22),"",dms_E2_Projects_22) -> MP Mains CY22 | D202: 83747.2583
B203: =IF(ISBLANK(dms_E2_Projects_23),"",dms_E2_Projects_23) -> HP Mains CY22 | D203: 0
B204: =IF(ISBLANK(dms_E2_Projects_24),"",dms_E2_Projects_24) -> 
B205: =IF(ISBLANK(dms_E2_Projects_25),"",dms_E2_Projects_25) -> 
B206: =IF(ISBLANK(dms_E2_Projects_26),"",dms_E2_Projects_26) -> 
B207: =IF(ISBLANK(dms_E2_Projects_27),"",dms_E2_Projects_27) -> 
B208: =IF(ISBLANK(dms_E2_Projects_28),"",dms_E2_Projects_28) -> 
B209: =IF(ISBLANK(dms_E2_Projects_29),"",dms_E2_Projects_29) -> 
B210: =IF(ISBLANK(dms_E2_Projects_30),"",dms_E2_Projects_30) -> 
B211: =IF(ISBLANK(dms_E2_Projects_31),"",dms_E2_Projects_31) -> 
B212: =IF(ISBLANK(dms_E2_Projects_32),"",dms_E2_Projects_32) -> 
B213: =IF(ISBLANK(dms_E2_Projects_33),"",dms_E2_Projects_33) -> 
B214: =IF(ISBLANK(dms_E2_Projects_34),"",dms_E2_Projects_34) -> 
B215: =IF(ISBLANK(dms_E2_Projects_35),"",dms_E2_Projects_35) -> 
B216: =IF(ISBLANK(dms_E2_Projects_36),"",dms_E2_Projects_36) -> 
B217: =IF(ISBLANK(dms_E2_Projects_37),"",dms_E2_Projects_37) -> 
B218: =IF(ISBLANK(dms_E2_Projects_38),"",dms_E2_Projects_38) -> 
B219: =IF(ISBLANK(dms_E2_Projects_39),"",dms_E2_Projects_39) -> 
B220: =IF(ISBLANK(dms_E2_Projects_40),"",dms_E2_Projects_40) -> 
B221: =IF(ISBLANK(dms_E2_Projects_41),"",dms_E2_Projects_41) -> 
B222: =IF(ISBLANK(dms_E2_Projects_42),"",dms_E2_Projects_42) -> 
B223: =IF(ISBLANK(dms_E2_Projects_43),"",dms_E2_Projects_43) -> 
B224: =IF(ISBLANK(dms_E2_Projects_44),"",dms_E2_Projects_44) -> 
B225: =IF(ISBLANK(dms_E2_Projects_45),"",dms_E2_Projects_45) -> 
B226: =IF(ISBLANK(dms_E2_Projects_46),"",dms_E2_Projects_46) -> 
B227: =IF(ISBLANK(dms_E2_Projects_47),"",dms_E2_Projects_47) -> 
B228: =IF(ISBLANK(dms_E2_Projects_48),"",dms_E2_Projects_48) -> 
B229: =IF(ISBLANK(dms_E2_Projects_49),"",dms_E2_Projects_49) -> 
B230: =IF(ISBLANK(dms_E2_Projects_50),"",dms_E2_Projects_50) -> 
B231: Other projects with expenditure of less than $500,000
C232: Total | D232: =SUM(D181:D231) -> 3742663.035 | E232: =SUM(E181:E231) -> 4071998.297 | F232: 5435440.743 | G232: 4962837.105 | H232: 4489484.98 | I232: 5204283.35 | J232: 3536929.7
B234: D. OTHER DIRECT EXPENDITURE
D235: EXPENDITURE
... 546 more rows

Sheet E3. Mains Augex
B1: =INDEX(dms_Worksheet_List,MATCH(dms_Model,dms_Model_List)) -> REGULATORY REPORTING STATEMENT
B2: =dms_TradingName -> AusNet (Gas)
B3: =dms_Header_Span -> 2021-22 to 2027-28
B4: E3. MAINS AUGMENTATION
B7: Please list all projects here:
B8: Macedon
B9: Cragieburn
B10: Ballarat
B11: Bendigo
B12: Point Cook
B13: Tarneit
B14: Geelong Bellerine
B15: Ballan
B16: Bacchus Marsh
B17: Sunbury
B18: Werribee
B19: Werribee 2
B20: Leopold
B21: City Gate - New
B22: City Gate - Capacity Upgrade
B23: Field Regulator - New
B24: Field Regulator - Capacity Upgrade
B25: Network Reinforcement - Distribution
B26: Network Reinforcement - Transmission
B60: E3.1 - CAPEX BY PROJECT
B61: A. DIRECT INTERNAL LABOUR EXPENDITURE
C62: EXPENDITURE
C63: =CONCATENATE("$0's, real ",dms_DollarReal) -> $0's, real June 2023
C64: =VLOOKUP(CRCP_y4,'AER lookups'!$B$52:$C$101,2,0) -> 2022 | D64: =CONCATENATE("1 Jan-30 Jun "&(C64+1)) -> 1 Jan-30 Jun 2023 | E64: =FRCP_y1 -> 2023-24 | F64: =FRCP_y2 -> 2024-25 | G64: =FRCP_y3 -> 2025-26 | H64: =FRCP_y4 -> 2026-27 | I64: =FRCP_y5 -> 2027-28
B65: =IF(ISBLANK(dms_E3_Projects_01),"",dms_E3_Projects_01) -> Macedon | D65: 53024.08497 | E65: 7993.446253 | F65: 0 | G65: 0 | H65: 0 | I65: 0
B66: =IF(ISBLANK(dms_E3_Projects_02),"",dms_E3_Projects_02) -> Cragieburn | D66: 0 | E66: 0 | F66: 147742.8935 | G66: 0 | H66: 0 | I66: 0
B67: =IF(ISBLANK(dms_E3_Projects_03),"",dms_E3_Projects_03) -> Ballarat | D67: 0 | E67: 0 | F67: 0 | G67: 133351.8844 | H67: 0 | I67: 0
B68: =IF(ISBLANK(dms_E3_Projects_04),"",dms_E3_Projects_04) -> Bendigo | D68: 0 | E68: 0 | F68: 0 | G68: 13726.1223 | H68: 0 | I68: 0
B69: =IF(ISBLANK(dms_E3_Projects_05),"",dms_E3_Projects_05) -> Point Cook | D69: 0 | E69: 51158.05602 | F69: 0 | G69: 0 | H69: 0 | I69: 0
B70: =IF(ISBLANK(dms_E3_Projects_06),"",dms_E3_Projects_06) -> Tarneit | D70: 0 | E70: 0 | F70: 82491.12485 | G70: 0 | H70: 0 | I70: 0
B71: =IF(ISBLANK(dms_E3_Projects_07),"",dms_E3_Projects_07) -> Geelong Bellerine | D71: 0 | E71: 0 | F71: 0 | G71: 0 | H71: 86952.23641 | I71: 0
B72: =IF(ISBLANK(dms_E3_Projects_08),"",dms_E3_Projects_08) -> Ballan | D72: 0 | E72: 9890.557497 | F72: 0 | G72: 0 | H72: 0 | I72: 0
B73: =IF(ISBLANK(dms_E3_Projects_09),"",dms_E3_Projects_09) -> Bacchus Marsh | D73: 0 | E73: 19397.42957 | F73: 0 | G73: 0 | H73: 0 | I73: 0
B74: =IF(ISBLANK(dms_E3_Projects_10),"",dms_E3_Projects_10) -> Sunbury | D74: 31814.45098 | E74: 63947.57002 | F74: 0 | G74: 0 | H74: 0 | I74: 0
B75: =IF(ISBLANK(dms_E3_Projects_11),"",dms_E3_Projects_11) -> Werribee | D75: 0 | E75: 0 | F75: 0 | G75: 0 | H75: 0 | I75: 205954.5156
B76: =IF(ISBLANK(dms_E3_Projects_12),"",dms_E3_Projects_12) -> Werribee 2 | D76: 0 | E76: 31654.04716 | F76: 0 | G76: 0 | H76: 0 | I76: 0
B77: =IF(ISBLANK(dms_E3_Projects_13),"",dms_E3_Projects_13) -> Leopold | D77: 18478.89361 | E77: 0 | F77: 0 | G77: 0 | H77: 0 | I77: 0
B78: =IF(ISBLANK(dms_E3_Projects_14),"",dms_E3_Projects_14) -> City Gate - New | C78: 6389.42941
B79: =IF(ISBLANK(dms_E3_Projects_15),"",dms_E3_Projects_15) -> City Gate - Capacity Upgrade | C79: 0
B80: =IF(ISBLANK(dms_E3_Projects_16),"",dms_E3_Projects_16) -> Field Regulator - New | C80: 6389.42941
B81: =IF(ISBLANK(dms_E3_Projects_17),"",dms_E3_Projects_17) -> Field Regulator - Capacity Upgrade | C81: 7906.915336
B82: =IF(ISBLANK(dms_E3_Projects_18),"",dms_E3_Projects_18) -> Network Reinforcement - Distribution | C82: 96138.40522
B83: =IF(ISBLANK(dms_E3_Projects_18),"",dms_E3_Projects_18) -> Network Reinforcement - Distribution
B84: =IF(ISBLANK(dms_E3_Projects_19),"",dms_E3_Projects_19) -> Network Reinforcement - Transmission | C84: 27773.31706
B85: =IF(ISBLANK(dms_E3_Projects_20),"",dms_E3_Projects_20) -> 
B86: =IF(ISBLANK(dms_E3_Projects_21),"",dms_E3_Projects_21) -> 
B87: =IF(ISBLANK(dms_E3_Projects_22),"",dms_E3_Projects_22) -> 
B88: =IF(ISBLANK(dms_E3_Projects_23),"",dms_E3_Projects_23) -> 
B89: =IF(ISBLANK(dms_E3_Projects_24),"",dms_E3_Projects_24) -> 
B90: =IF(ISBLANK(dms_E3_Projects_25),"",dms_E3_Projects_26) -> 
B91: =IF(ISBLANK(dms_E3_Projects_27),"",dms_E3_Projects_27) -> 
B92: =IF(ISBLANK(dms_E3_Projects_28),"",dms_E3_Projects_28) -> 
B93: =IF(ISBLANK(dms_E3_Projects_29),"",dms_E3_Projects_29) -> 
B94: =IF(ISBLANK(dms_E3_Projects_30),"",dms_E3_Projects_30) -> 
B95: =IF(ISBLANK(dms_E3_Projects_31),"",dms_E3_Projects_31) -> 
B96: =IF(ISBLANK(dms_E3_Projects_32),"",dms_E3_Projects_32) -> 
B97: =IF(ISBLANK(dms_E3_Projects_33),"",dms_E3_Projects_33) -> 
B98: =IF(ISBLANK(dms_E3_Projects_34),"",dms_E3_Projects_34) -> 
B99: =IF(ISBLANK(dms_E3_Projects_35),"",dms_E3_Projects_35) -> 
B100: =IF(ISBLANK(dms_E3_Projects_36),"",dms_E3_Projects_36) -> 
B101: =IF(ISBLANK(dms_E3_Projects_37),"",dms_E3_Projects_37) -> 
B102: =IF(ISBLANK(dms_E3_Projects_38),"",dms_E3_Projects_38) -> 
B103: =IF(ISBLANK(dms_E3_Projects_39),"",dms_E3_Projects_39) -> 
B104: =IF(ISBLANK(dms_E3_Projects_40),"",dms_E3_Projects_40) -> 
B105: =IF(ISBLANK(dms_E3_Projects_41),"",dms_E3_Projects_41) -> 
B106: =IF(ISBLANK(dms_E3_Projects_42),"",dms_E3_Projects_42) -> 
B107: =IF(ISBLANK(dms_E3_Projects_43),"",dms_E3_Projects_43) -> 
B108: =IF(ISBLANK(dms_E3_Projects_44),"",dms_E3_Projects_44) -> 
B109: =IF(ISBLANK(dms_E3_Projects_45),"",dms_E3_Projects_45) -> 
B110: =IF(ISBLANK(dms_E3_Projects_46),"",dms_E3_Projects_46) -> 
B111: =IF(ISBLANK(dms_E3_Projects_47),"",dms_E3_Projects_47) -> 
B112: =IF(ISBLANK(dms_E3_Projects_48),"",dms_E3_Projects_48) -> 
B113: =IF(ISBLANK(dms_E3_Projects_49),"",dms_E3_Projects_49) -> 
B114: =IF(ISBLANK(dms_E3_Projects_50),"",dms_E3_Projects_50) -> 
B115: Aggregate of other projects with total expenditure of less than $500,000
B116: Total | C116: =SUM(C65:C115) -> 144597.4964 | D116: =SUM(D65:D115) -> 103317.4296 | E116: 184041.1065 | F116: 230234.0184 | G116: 147078.0067 | H116: 86952.23641 | I116: 205954.5156
B118: B. DIRECT CONTRACTOR EXPENDITURE
C119: EXPENDITURE
C120: =CONCATENATE("$0's, real ",dms_DollarReal) -> $0's, real June 2023
C121: =VLOOKUP(CRCP_y4,'AER lookups'!$B$52:$C$101,2,0) -> 2022 | D121: =CONCATENATE("1 Jan-30 Jun "&(C121+1)) -> 1 Jan-30 Jun 2023 | E121: =FRCP_y1 -> 2023-24 | F121: =FRCP_y2 -> 2024-25 | G121: =FRCP_y3 -> 2025-26 | H121: =FRCP_y4 -> 2026-27 | I121: =FRCP_y5 -> 2027-28
B122: =IF(ISBLANK(dms_E3_Projects_01),"",dms_E3_Projects_01) -> Macedon | D122: 1002250 | E122: 150337.5 | F122: 0 | G122: 0 | H122: 0 | I122: 0
B123: =IF(ISBLANK(dms_E3_Projects_02),"",dms_E3_Projects_02) -> Cragieburn | D123: 0 | E123: 0 | F123: 2757189.75 | G123: 0 | H123: 0 | I123: 0
B124: =IF(ISBLANK(dms_E3_Projects_03),"",dms_E3_Projects_03) -> Ballarat | D124: 0 | E124: 0 | F124: 0 | G124: 2461526 | H124: 0 | I124: 0
B125: =IF(ISBLANK(dms_E3_Projects_04),"",dms_E3_Projects_04) -> Bendigo | D125: 0 | E125: 0 | F125: 0 | G125: 253368.8 | H125: 0 | I125: 0
B126: =IF(ISBLANK(dms_E3_Projects_05),"",dms_E3_Projects_05) -> Point Cook | D126: 0 | E126: 962160 | F126: 0 | G126: 0 | H126: 0 | I126: 0
B127: =IF(ISBLANK(dms_E3_Projects_06),"",dms_E3_Projects_06) -> Tarneit | D127: 0 | E127: 0 | F127: 1539456 | G127: 0 | H127: 0 | I127: 0
B128: =IF(ISBLANK(dms_E3_Projects_07),"",dms_E3_Projects_07) -> Geelong Bellerine | D128: 0 | E128: 0 | F128: 0 | G128: 0 | H128: 1587564 | I128: 0
B129: =IF(ISBLANK(dms_E3_Projects_08),"",dms_E3_Projects_08) -> Ballan | D129: 0 | E129: 186017.6 | F129: 0 | G129: 0 | H129: 0 | I129: 0
B130: =IF(ISBLANK(dms_E3_Projects_09),"",dms_E3_Projects_09) -> Bacchus Marsh | D130: 0 | E130: 364819 | F130: 0 | G130: 0 | H130: 0 | I130: 0
B131: =IF(ISBLANK(dms_E3_Projects_10),"",dms_E3_Projects_10) -> Sunbury | D131: 601350 | E131: 1202700 | F131: 0 | G131: 0 | H131: 0 | I131: 0
B132: =IF(ISBLANK(dms_E3_Projects_11),"",dms_E3_Projects_11) -> Werribee | D132: 0 | E132: 0 | F132: 0 | G132: 0 | H132: 0 | I132: 3719349.75
B133: =IF(ISBLANK(dms_E3_Projects_12),"",dms_E3_Projects_12) -> Werribee 2 | D133: 0 | E133: 595336.5 | F133: 0 | G133: 0 | H133: 0 | I133: 0
B134: =IF(ISBLANK(dms_E3_Projects_13),"",dms_E3_Projects_13) -> Leopold | D134: 349284.125 | E134: 0 | F134: 0 | G134: 0 | H134: 0 | I134: 0
B135: =IF(ISBLANK(dms_E3_Projects_14),"",dms_E3_Projects_14) -> City Gate - New | C135: 121399.1588
B136: =IF(ISBLANK(dms_E3_Projects_15),"",dms_E3_Projects_15) -> City Gate - Capacity Upgrade | C136: 0
B137: =IF(ISBLANK(dms_E3_Projects_16),"",dms_E3_Projects_16) -> Field Regulator - New | C137: 121399.1588
B138: =IF(ISBLANK(dms_E3_Projects_17),"",dms_E3_Projects_17) -> Field Regulator - Capacity Upgrade | C138: 150231.3914
B139: =IF(ISBLANK(dms_E3_Projects_18),"",dms_E3_Projects_18) -> Network Reinforcement - Distribution | C139: 1826629.699
B140: =IF(ISBLANK(dms_E3_Projects_18),"",dms_E3_Projects_18) -> Network Reinforcement - Distribution
B141: =IF(ISBLANK(dms_E3_Projects_19),"",dms_E3_Projects_19) -> Network Reinforcement - Transmission | C141: 527693.0242
B142: =IF(ISBLANK(dms_E3_Projects_20),"",dms_E3_Projects_20) -> 
B143: =IF(ISBLANK(dms_E3_Projects_21),"",dms_E3_Projects_21) -> 
B144: =IF(ISBLANK(dms_E3_Projects_22),"",dms_E3_Projects_22) -> 
B145: =IF(ISBLANK(dms_E3_Projects_23),"",dms_E3_Projects_23) -> 
B146: =IF(ISBLANK(dms_E3_Projects_24),"",dms_E3_Projects_24) -> 
B147: =IF(ISBLANK(dms_E3_Projects_25),"",dms_E3_Projects_26) -> 
B148: =IF(ISBLANK(dms_E3_Projects_27),"",dms_E3_Projects_27) -> 
B149: =IF(ISBLANK(dms_E3_Projects_28),"",dms_E3_Projects_28) -> 
B150: =IF(ISBLANK(dms_E3_Projects_29),"",dms_E3_Projects_29) -> 
B151: =IF(ISBLANK(dms_E3_Projects_30),"",dms_E3_Projects_30) -> 
B152: =IF(ISBLANK(dms_E3_Projects_31),"",dms_E3_Projects_31) -> 
B153: =IF(ISBLANK(dms_E3_Projects_32),"",dms_E3_Projects_32) -> 
B154: =IF(ISBLANK(dms_E3_Projects_33),"",dms_E3_Projects_33) -> 
B155: =IF(ISBLANK(dms_E3_Projects_34),"",dms_E3_Projects_34) -> 
B156: =IF(ISBLANK(dms_E3_Projects_35),"",dms_E3_Projects_35) -> 
B157: =IF(ISBLANK(dms_E3_Projects_36),"",dms_E3_Projects_36) -> 
B158: =IF(ISBLANK(dms_E3_Projects_37),"",dms_E3_Projects_37) -> 
B159: =IF(ISBLANK(dms_E3_Projects_38),"",dms_E3_Projects_38) -> 
B160: =IF(ISBLANK(dms_E3_Projects_39),"",dms_E3_Projects_39) -> 
B161: =IF(ISBLANK(dms_E3_Projects_40),"",dms_E3_Projects_40) -> 
B162: =IF(ISBLANK(dms_E3_Projects_41),"",dms_E3_Projects_41) -> 
B163: =IF(ISBLANK(dms_E3_Projects_42),"",dms_E3_Projects_42) -> 
B164: =IF(ISBLANK(dms_E3_Projects_43),"",dms_E3_Projects_43) -> 
B165: =IF(ISBLANK(dms_E3_Projects_44),"",dms_E3_Projects_44) -> 
B166: =IF(ISBLANK(dms_E3_Projects_45),"",dms_E3_Projects_45) -> 
B167: =IF(ISBLANK(dms_E3_Projects_46),"",dms_E3_Projects_46) -> 
B168: =IF(ISBLANK(dms_E3_Projects_47),"",dms_E3_Projects_47) -> 
B169: =IF(ISBLANK(dms_E3_Projects_48),"",dms_E3_Projects_48) -> 
B170: =IF(ISBLANK(dms_E3_Projects_49),"",dms_E3_Projects_49) -> 
B171: =IF(ISBLANK(dms_E3_Projects_50),"",dms_E3_Projects_50) -> 
B172: Aggregate of other projects with total expenditure of less than $500,000
B173: Total | C173: =SUM(C122:C172) -> 2747352.432 | D173: =SUM(D122:D172) -> 1952884.125 | E173: 3461370.6 | F173: 4296645.75 | G173: 2714894.8 | H173: 1587564 | I173: 3719349.75
B175: C. DIRECT MATERIAL EXPENDITURE
C176: EXPENDITURE
C177: =CONCATENATE("$0's, real ",dms_DollarReal) -> $0's, real June 2023
C178: =VLOOKUP(CRCP_y4,'AER lookups'!$B$52:$C$101,2,0) -> 2022 | D178: =CONCATENATE("1 Jan-30 Jun "&(C178+1)) -> 1 Jan-30 Jun 2023 | E178: =FRCP_y1 -> 2023-24 | F178: =FRCP_y2 -> 2024-25 | G178: =FRCP_y3 -> 2025-26 | H178: =FRCP_y4 -> 2026-27 | I178: =FRCP_y5 -> 2027-28
B179: =IF(ISBLANK(dms_E3_Projects_01),"",dms_E3_Projects_01) -> Macedon | D179: 263750 | E179: 105500 | F179: 0 | G179: 0 | H179: 0 | I179: 0
B180: =IF(ISBLANK(dms_E3_Projects_02),"",dms_E3_Projects_02) -> Cragieburn | D180: 0 | E180: 0 | F180: 1512870 | G180: 0 | H180: 0 | I180: 0
B181: =IF(ISBLANK(dms_E3_Projects_03),"",dms_E3_Projects_03) -> Ballarat | D181: 0 | E181: 0 | F181: 0 | G181: 647770 | H181: 0 | I181: 0
B182: =IF(ISBLANK(dms_E3_Projects_04),"",dms_E3_Projects_04) -> Bendigo | D182: 0 | E182: 0 | F182: 0 | G182: 66676 | H182: 0 | I182: 0
B183: =IF(ISBLANK(dms_E3_Projects_05),"",dms_E3_Projects_05) -> Point Cook | D183: 0 | E183: 253200 | F183: 0 | G183: 0 | H183: 0 | I183: 0
B184: =IF(ISBLANK(dms_E3_Projects_06),"",dms_E3_Projects_06) -> Tarneit | D184: 0 | E184: 0 | F184: 405120 | G184: 0 | H184: 0 | I184: 0
B185: =IF(ISBLANK(dms_E3_Projects_07),"",dms_E3_Projects_07) -> Geelong Bellerine | D185: 0 | E185: 0 | F185: 0 | G185: 0 | H185: 417780 | I185: 0
B186: =IF(ISBLANK(dms_E3_Projects_08),"",dms_E3_Projects_08) -> Ballan | D186: 0 | E186: 48952 | F186: 0 | G186: 0 | H186: 0 | I186: 0
B187: =IF(ISBLANK(dms_E3_Projects_09),"",dms_E3_Projects_09) -> Bacchus Marsh | D187: 0 | E187: 96005 | F187: 0 | G187: 0 | H187: 0 | I187: 0
B188: =IF(ISBLANK(dms_E3_Projects_10),"",dms_E3_Projects_10) -> Sunbury | D188: 158250 | E188: 316500 | F188: 0 | G188: 0 | H188: 0 | I188: 0
B189: =IF(ISBLANK(dms_E3_Projects_11),"",dms_E3_Projects_11) -> Werribee | D189: 0 | E189: 0 | F189: 0 | G189: 0 | H189: 0 | I189: 1766070
B190: =IF(ISBLANK(dms_E3_Projects_12),"",dms_E3_Projects_12) -> Werribee 2 | D190: 0 | E190: 417780 | F190: 0 | G190: 0 | H190: 0 | I190: 0
B191: =IF(ISBLANK(dms_E3_Projects_13),"",dms_E3_Projects_13) -> Leopold | D191: 157195 | E191: 0 | F191: 0 | G191: 0 | H191: 0 | I191: 0
B192: =IF(ISBLANK(dms_E3_Projects_14),"",dms_E3_Projects_14) -> City Gate - New | C192: 85192.39213
B193: =IF(ISBLANK(dms_E3_Projects_15),"",dms_E3_Projects_15) -> City Gate - Capacity Upgrade | C193: 0
B194: =IF(ISBLANK(dms_E3_Projects_16),"",dms_E3_Projects_16) -> Field Regulator - New | C194: 85192.39213
B195: =IF(ISBLANK(dms_E3_Projects_17),"",dms_E3_Projects_17) -> Field Regulator - Capacity Upgrade | C195: 105425.5378
B196: =IF(ISBLANK(dms_E3_Projects_18),"",dms_E3_Projects_18) -> Network Reinforcement - Distribution | C196: 480692.0261
B197: =IF(ISBLANK(dms_E3_Projects_18),"",dms_E3_Projects_18) -> Network Reinforcement - Distribution
B198: =IF(ISBLANK(dms_E3_Projects_19),"",dms_E3_Projects_19) -> Network Reinforcement - Transmission | C198: 138866.5853
B199: =IF(ISBLANK(dms_E3_Projects_20),"",dms_E3_Projects_20) -> 
B200: =IF(ISBLANK(dms_E3_Projects_21),"",dms_E3_Projects_21) -> 
B201: =IF(ISBLANK(dms_E3_Projects_22),"",dms_E3_Projects_22) -> 
B202: =IF(ISBLANK(dms_E3_Projects_23),"",dms_E3_Projects_23) -> 
B203: =IF(ISBLANK(dms_E3_Projects_24),"",dms_E3_Projects_24) -> 
B204: =IF(ISBLANK(dms_E3_Projects_25),"",dms_E3_Projects_26) -> 
B205: =IF(ISBLANK(dms_E3_Projects_27),"",dms_E3_Projects_27) -> 
B206: =IF(ISBLANK(dms_E3_Projects_28),"",dms_E3_Projects_28) -> 
B207: =IF(ISBLANK(dms_E3_Projects_29),"",dms_E3_Projects_29) -> 
B208: =IF(ISBLANK(dms_E3_Projects_30),"",dms_E3_Projects_30) -> 
B209: =IF(ISBLANK(dms_E3_Projects_31),"",dms_E3_Projects_31) -> 
B210: =IF(ISBLANK(dms_E3_Projects_32),"",dms_E3_Projects_32) -> 
B211: =IF(ISBLANK(dms_E3_Projects_33),"",dms_E3_Projects_33) -> 
B212: =IF(ISBLANK(dms_E3_Projects_34),"",dms_E3_Projects_34) -> 
B213: =IF(ISBLANK(dms_E3_Projects_35),"",dms_E3_Projects_35) -> 
B214: =IF(ISBLANK(dms_E3_Projects_36),"",dms_E3_Projects_36) -> 
B215: =IF(ISBLANK(dms_E3_Projects_37),"",dms_E3_Projects_37) -> 
B216: =IF(ISBLANK(dms_E3_Projects_38),"",dms_E3_Projects_38) -> 
B217: =IF(ISBLANK(dms_E3_Projects_39),"",dms_E3_Projects_39) -> 
B218: =IF(ISBLANK(dms_E3_Projects_40),"",dms_E3_Projects_40) -> 
B219: =IF(ISBLANK(dms_E3_Projects_41),"",dms_E3_Projects_41) -> 
B220: =IF(ISBLANK(dms_E3_Projects_42),"",dms_E3_Projects_42) -> 
B221: =IF(ISBLANK(dms_E3_Projects_43),"",dms_E3_Projects_43) -> 
B222: =IF(ISBLANK(dms_E3_Projects_44),"",dms_E3_Projects_44) -> 
B223: =IF(ISBLANK(dms_E3_Projects_45),"",dms_E3_Projects_45) -> 
B224: =IF(ISBLANK(dms_E3_Projects_46),"",dms_E3_Projects_46) -> 
B225: =IF(ISBLANK(dms_E3_Projects_47),"",dms_E3_Projects_47) -> 
B226: =IF(ISBLANK(dms_E3_Projects_48),"",dms_E3_Projects_48) -> 
B227: =IF(ISBLANK(dms_E3_Projects_49),"",dms_E3_Projects_49) -> 
B228: =IF(ISBLANK(dms_E3_Projects_50),"",dms_E3_Projects_50) -> 
B229: Aggregate of other projects with total expenditure of less than $500,000
B230: Total | C230: =SUM(C179:C229) -> 895368.9335 | D230: =SUM(D179:D229) -> 579195 | E230: 1237937 | F230: 1917990 | G230: 714446 | H230: 417780 | I230: 1766070
B232: D. OTHER DIRECT EXPENDITURE
C233: EXPENDITURE
C234: =CONCATENATE("$0's, real ",dms_DollarReal) -> $0's, real June 2023
C235: =VLOOKUP(CRCP_y4,'AER lookups'!$B$52:$C$101,2,0) -> 2022 | D235: =CONCATENATE("1 Jan-30 Jun "&(C235+1)) -> 1 Jan-30 Jun 2023 | E235: =FRCP_y1 -> 2023-24 | F235: =FRCP_y2 -> 2024-25 | G235: =FRCP_y3 -> 2025-26 | H235: =FRCP_y4 -> 2026-27 | I235: =FRCP_y5 -> 2027-28
B236: =IF(ISBLANK(dms_E3_Projects_01),"",dms_E3_Projects_01) -> Macedon | D236: 0 | E236: 0 | F236: 0 | G236: 0 | H236: 0 | I236: 0
B237: =IF(ISBLANK(dms_E3_Projects_02),"",dms_E3_Projects_02) -> Cragieburn | D237: 0 | E237: 0 | F237: 0 | G237: 0 | H237: 0 | I237: 0
B238: =IF(ISBLANK(dms_E3_Projects_03),"",dms_E3_Projects_03) -> Ballarat | D238: 0 | E238: 0 | F238: 0 | G238: 0 | H238: 0 | I238: 0
... 498 more rows

Sheet E4. Meter replacement
B1: =INDEX(dms_Worksheet_List,MATCH(dms_Model,dms_Model_List)) -> REGULATORY REPORTING STATEMENT
B2: =dms_TradingName -> AusNet (Gas)
B3: =dms_Header_Span -> 2021-22 to 2027-28
B4: E4. METER REPLACEMENT
B6: E4.1 - CAPEX
B7: E4.1.1 - NEW METERS ACQUIRED
C8: EXPENDITURE
C9: =CONCATENATE("$0's, real ",dms_DollarReal) -> $0's, real June 2023
C10: =VLOOKUP(CRCP_y4,'AER lookups'!$B$52:$C$101,2,0) -> 2022 | D10: =CONCATENATE("1 Jan-30 Jun "&(C10+1)) -> 1 Jan-30 Jun 2023 | E10: =FRCP_y1 -> 2023-24 | F10: =FRCP_y2 -> 2024-25 | G10: =FRCP_y3 -> 2025-26 | H10: =FRCP_y4 -> 2026-27 | I10: =FRCP_y5 -> 2027-28
B11: A. DIRECT INTERNAL LABOUR EXPENDITURE
B12: Residential | C12: 0 | D12: 0 | E12: 0 | F12: 0 | G12: 0 | H12: 0 | I12: 0
B13: Industrial and Commercial | C13: 0 | D13: 0 | E13: 0 | F13: 0 | G13: 0 | H13: 0 | I13: 0
B14: Other | C14: 0 | D14: 0 | E14: 0 | F14: 0 | G14: 0 | H14: 0 | I14: 0
B15: Total | C15: =SUM(C12:C14) -> 0 | D15: =SUM(D12:D14) -> 0 | E15: 0 | F15: 0 | G15: 0 | H15: 0 | I15: 0
B16: B. DIRECT CONTRACTOR EXPENDITURE
B17: Residential | C17: 0 | D17: 0 | E17: 0 | F17: 0 | G17: 0 | H17: 0 | I17: 0
B18: Industrial and Commercial | C18: 0 | D18: 0 | E18: 0 | F18: 0 | G18: 0 | H18: 0 | I18: 0
B19: Other | C19: 0 | D19: 0 | E19: 0 | F19: 0 | G19: 0 | H19: 0 | I19: 0
B20: Total | C20: =SUM(C17:C19) -> 0 | D20: =SUM(D17:D19) -> 0 | E20: 0 | F20: 0 | G20: 0 | H20: 0 | I20: 0
B21: C. DIRECT MATERIAL EXPENDITURE
B22: Residential | C22: 0 | D22: 0 | E22: 0 | F22: 0 | G22: 0 | H22: 0 | I22: 0
B23: Industrial and Commercial | C23: 0 | D23: 0 | E23: 0 | F23: 0 | G23: 0 | H23: 0 | I23: 0
B24: Other | C24: 0 | D24: 0 | E24: 0 | F24: 0 | G24: 0 | H24: 0 | I24: 0
B25: Total | C25: =SUM(C22:C24) -> 0 | D25: =SUM(D22:D24) -> 0 | E25: 0 | F25: 0 | G25: 0 | H25: 0 | I25: 0
B26: D. OTHER DIRECT EXPENDITURE
B27: Residential | C27: 0 | D27: 0 | E27: 0 | F27: 0 | G27: 0 | H27: 0 | I27: 0
B28: Industrial and Commercial | C28: 0 | D28: 0 | E28: 0 | F28: 0 | G28: 0 | H28: 0 | I28: 0
B29: Other | C29: 0 | D29: 0 | E29: 0 | F29: 0 | G29: 0 | H29: 0 | I29: 0
B30: Total | C30: =SUM(C27:C29) -> 0 | D30: =SUM(D27:D29) -> 0 | E30: 0 | F30: 0 | G30: 0 | H30: 0 | I30: 0
B31: E. RELATED PARTY MARGIN EXPENDITURE
B32: Residential | C32: 0 | D32: 0 | E32: 0 | F32: 0 | G32: 0 | H32: 0 | I32: 0
B33: Industrial and Commercial | C33: 0 | D33: 0 | E33: 0 | F33: 0 | G33: 0 | H33: 0 | I33: 0
B34: Other | C34: 0 | D34: 0 | E34: 0 | F34: 0 | G34: 0 | H34: 0 | I34: 0
B35: Total | C35: =SUM(C32:C34) -> 0 | D35: =SUM(D32:D34) -> 0 | E35: 0 | F35: 0 | G35: 0 | H35: 0 | I35: 0
B36: F. CAPITAL CONTRIBUTIONS included in the above
B37: Residential | C37: 0 | D37: 0 | E37: 0 | F37: 0 | G37: 0 | H37: 0 | I37: 0
B38: Industrial and Commercial | C38: 0 | D38: 0 | E38: 0 | F38: 0 | G38: 0 | H38: 0 | I38: 0
B39: Other | C39: 0 | D39: 0 | E39: 0 | F39: 0 | G39: 0 | H39: 0 | I39: 0
B40: Total | C40: =SUM(C37:C39) -> 0 | D40: =SUM(D37:D39) -> 0 | E40: 0 | F40: 0 | G40: 0 | H40: 0 | I40: 0
B41: TOTAL | C41: =SUM(C15,C20,C25,C30,C35,C40) -> 0 | D41: =SUM(D15,D20,D25,D30,D35,D40) -> 0 | E41: 0 | F41: 0 | G41: 0 | H41: 0 | I41: 0
B43: E4.1.2 - METER REFURBISHMENT
C44: EXPENDITURE
C45: =CONCATENATE("$0's, real ",dms_DollarReal) -> $0's, real June 2023
C46: =VLOOKUP(CRCP_y4,'AER lookups'!$B$52:$C$101,2,0) -> 2022 | D46: =CONCATENATE("1 Jan-30 Jun "&(C46+1)) -> 1 Jan-30 Jun 2023 | E46: =FRCP_y1 -> 2023-24 | F46: =FRCP_y2 -> 2024-25 | G46: =FRCP_y3 -> 2025-26 | H46: =FRCP_y4 -> 2026-27 | I46: =FRCP_y5 -> 2027-28
B47: A. DIRECT INTERNAL LABOUR EXPENDITURE
B48: Residential | C48: 0 | D48: 0 | E48: 0 | F48: 0 | G48: 0 | H48: 0 | I48: 0
B49: Industrial and Commercial | C49: 0 | D49: 0 | E49: 0 | F49: 0 | G49: 0 | H49: 0 | I49: 0
B50: Other | C50: 0 | D50: 0 | E50: 0 | F50: 0 | G50: 0 | H50: 0 | I50: 0
B51: Total | C51: =SUM(C48:C50) -> 0 | D51: =SUM(D48:D50) -> 0 | E51: 0 | F51: 0 | G51: 0 | H51: 0 | I51: 0
B52: B. DIRECT CONTRACTOR EXPENDITURE
B53: Residential | C53: 0 | D53: 0 | E53: 0 | F53: 0 | G53: 0 | H53: 0 | I53: 0
B54: Industrial and Commercial | C54: 0 | D54: 0 | E54: 0 | F54: 0 | G54: 0 | H54: 0 | I54: 0
B55: Other | C55: 0 | D55: 0 | E55: 0 | F55: 0 | G55: 0 | H55: 0 | I55: 0
B56: Total | C56: =SUM(C53:C55) -> 0 | D56: =SUM(D53:D55) -> 0 | E56: 0 | F56: 0 | G56: 0 | H56: 0 | I56: 0
B57: C. DIRECT MATERIAL EXPENDITURE
B58: Residential | C58: 0 | D58: 0 | E58: 0 | F58: 0 | G58: 0 | H58: 0 | I58: 0
B59: Industrial and Commercial | C59: 0 | D59: 0 | E59: 0 | F59: 0 | G59: 0 | H59: 0 | I59: 0
B60: Other | C60: 0 | D60: 0 | E60: 0 | F60: 0 | G60: 0 | H60: 0 | I60: 0
B61: Total | C61: =SUM(C58:C60) -> 0 | D61: =SUM(D58:D60) -> 0 | E61: 0 | F61: 0 | G61: 0 | H61: 0 | I61: 0
B62: D. OTHER DIRECT EXPENDITURE
B63: Residential | C63: 0 | D63: 0 | E63: 0 | F63: 0 | G63: 0 | H63: 0 | I63: 0
B64: Industrial and Commercial | C64: 0 | D64: 0 | E64: 0 | F64: 0 | G64: 0 | H64: 0 | I64: 0
B65: Other | C65: 0 | D65: 0 | E65: 0 | F65: 0 | G65: 0 | H65: 0 | I65: 0
B66: Total | C66: =SUM(C63:C65) -> 0 | D66: =SUM(D63:D65) -> 0 | E66: 0 | F66: 0 | G66: 0 | H66: 0 | I66: 0
B67: E. RELATED PARTY MARGIN EXPENDITURE
B68: Residential | C68: 0 | D68: 0 | E68: 0 | F68: 0 | G68: 0 | H68: 0 | I68: 0
B69: Industrial and Commercial | C69: 0 | D69: 0 | E69: 0 | F69: 0 | G69: 0 | H69: 0 | I69: 0
B70: Other | C70: 0 | D70: 0 | E70: 0 | F70: 0 | G70: 0 | H70: 0 | I70: 0
B71: Total | C71: =SUM(C68:C70) -> 0 | D71: =SUM(D68:D70) -> 0 | E71: 0 | F71: 0 | G71: 0 | H71: 0 | I71: 0
B72: F. CAPITAL CONTRIBUTIONS included in the above
B73: Residential | C73: 0 | D73: 0 | E73: 0 | F73: 0 | G73: 0 | H73: 0 | I73: 0
B74: Industrial and Commercial | C74: 0 | D74: 0 | E74: 0 | F74: 0 | G74: 0 | H74: 0 | I74: 0
B75: Other | C75: 0 | D75: 0 | E75: 0 | F75: 0 | G75: 0 | H75: 0 | I75: 0
B76: Total | C76: =SUM(C73:C75) -> 0 | D76: =SUM(D73:D75) -> 0 | E76: 0 | F76: 0 | G76: 0 | H76: 0 | I76: 0
B77: TOTAL | C77: =SUM(C51,C56,C61,C66,C71,C76) -> 0 | D77: =SUM(D51,D56,D61,D66,D71,D76) -> 0 | E77: 0 | F77: 0 | G77: 0 | H77: 0 | I77: 0
B79: E4.1.3 - METER INSTALLATION
C80: EXPENDITURE
C81: =CONCATENATE("$0's, real ",dms_DollarReal) -> $0's, real June 2023
C82: =VLOOKUP(CRCP_y4,'AER lookups'!$B$52:$C$101,2,0) -> 2022 | D82: =CONCATENATE("1 Jan-30 Jun "&(C82+1)) -> 1 Jan-30 Jun 2023 | E82: =FRCP_y1 -> 2023-24 | F82: =FRCP_y2 -> 2024-25 | G82: =FRCP_y3 -> 2025-26 | H82: =FRCP_y4 -> 2026-27 | I82: =FRCP_y5 -> 2027-28
B83: A. DIRECT INTERNAL LABOUR EXPENDITURE
B84: Residential | C84: 64380.25605 | D84: 47758.9014 | E84: 95996.17775 | F84: 175727.4047 | G84: 187538.0021 | H84: 97020.14711 | I84: 86953.16236
B85: Industrial and Commercial | C85: 8895.750622 | D85: 5009.694338 | E85: 11181.05143 | F85: 13174.23006 | G85: 13147.9094 | H85: 15369.40064 | I85: 11119.84559
B86: Other | C86: 8079.053229 | D86: 5568.748476 | E86: 11417.09257 | F86: 11356.97635 | G86: 14371.81473 | H86: 11303.51626 | I86: 11312.84678
B87: Total | C87: =SUM(C84:C86) -> 81355.0599 | D87: =SUM(D84:D86) -> 58337.34421 | E87: 118594.3218 | F87: 200258.6111 | G87: 215057.7263 | H87: 123693.064 | I87: 109385.8547
B88: B. DIRECT CONTRACTOR EXPENDITURE
B89: Residential | C89: 1448555.761 | D89: 847687.7859 | E89: 1695375.572 | F89: 2034934.736 | G89: 2206121.415 | H89: 1663378.676 | I89: 1474550.998
B90: Industrial and Commercial | C90: 142332.01 | D90: 79740.7824 | E90: 177085.2104 | F90: 207038.7704 | G90: 204375.2752 | H90: 236305.4832 | I90: 169106.7096
B91: Other | C91: 508980.3534 | D91: 290424.1453 | E91: 586387.0405 | F91: 582724.8717 | G91: 652912.703 | H91: 575400.5342 | I91: 572665.4468
B92: Total | C92: =SUM(C89:C91) -> 2099868.124 | D92: =SUM(D89:D91) -> 1217852.714 | E92: 2458847.823 | F92: 2824698.378 | G92: 3063409.393 | H92: 2475084.693 | I92: 2216323.155
B93: C. DIRECT MATERIAL EXPENDITURE
B94: Residential | C94: 1706076.785 | D94: 983752.2707 | E94: 1967504.541 | F94: 2274462.11 | G94: 2473126.39 | H94: 1930371.744 | I94: 1711234.864
B95: Industrial and Commercial | C95: 738347.3016 | D95: 413655.3087 | E95: 918629.529 | F95: 1074013.621 | G95: 1060196.74 | H95: 1225834.694 | I95: 877241.056
B96: Other | C96: 290845.9162 | D96: 258032.2165 | E96: 532459.133 | F96: 521619.1135 | G96: 729375.094 | H96: 499939.0745 | I96: 491843.2155
B97: Total | C97: =SUM(C94:C96) -> 2735270.003 | D97: =SUM(D94:D96) -> 1655439.796 | E97: 3418593.203 | F97: 3870094.845 | G97: 4262698.224 | H97: 3656145.512 | I97: 3080319.135
B98: D. OTHER DIRECT EXPENDITURE
B99: Residential | C99: 0 | D99: 0 | E99: 0 | F99: 0 | G99: 0 | H99: 0 | I99: 0
B100: Industrial and Commercial | C100: 0 | D100: 0 | E100: 0 | F100: 0 | G100: 0 | H100: 0 | I100: 0
B101: Other | C101: 0 | D101: 0 | E101: 0 | F101: 0 | G101: 0 | H101: 0 | I101: 0
B102: Total | C102: =SUM(C99:C101) -> 0 | D102: =SUM(D99:D101) -> 0 | E102: 0 | F102: 0 | G102: 0 | H102: 0 | I102: 0
B103: E. RELATED PARTY MARGIN EXPENDITURE
B104: Residential | C104: 0 | D104: 0 | E104: 0 | F104: 0 | G104: 0 | H104: 0 | I104: 0
B105: Industrial and Commercial | C105: 0 | D105: 0 | E105: 0 | F105: 0 | G105: 0 | H105: 0 | I105: 0
B106: Other | C106: 0 | D106: 0 | E106: 0 | F106: 0 | G106: 0 | H106: 0 | I106: 0
B107: Total | C107: =SUM(C104:C106) -> 0 | D107: =SUM(D104:D106) -> 0 | E107: 0 | F107: 0 | G107: 0 | H107: 0 | I107: 0
B108: F. CAPITAL CONTRIBUTIONS included in the above
B109: Residential | C109: 0 | D109: 0 | E109: 0 | F109: 0 | G109: 0 | H109: 0 | I109: 0
B110: Industrial and Commercial | C110: 0 | D110: 0 | E110: 0 | F110: 0 | G110: 0 | H110: 0 | I110: 0
B111: Other | C111: 0 | D111: 0 | E111: 0 | F111: 0 | G111: 0 | H111: 0 | I111: 0
B112: Total | C112: =SUM(C109:C111) -> 0 | D112: =SUM(D109:D111) -> 0 | E112: 0 | F112: 0 | G112: 0 | H112: 0 | I112: 0
B113: TOTAL | C113: =SUM(C87,C92,C97,C102,C107,C112) -> 4916493.188 | D113: =SUM(D87,D92,D97,D102,D107,D112) -> 2931629.854 | E113: 5996035.348 | F113: 6895051.835 | G113: 7541165.344 | H113: 6254923.269 | I113: 5406028.144
B115: E4.1.4 - OTHER METER REPLACEMENT CAPEX
C116: EXPENDITURE
C117: =CONCATENATE("$0's, real ",dms_DollarReal) -> $0's, real June 2023
C118: =VLOOKUP(CRCP_y4,'AER lookups'!$B$52:$C$101,2,0) -> 2022 | D118: =CONCATENATE("1 Jan-30 Jun "&(C118+1)) -> 1 Jan-30 Jun 2023 | E118: =FRCP_y1 -> 2023-24 | F118: =FRCP_y2 -> 2024-25 | G118: =FRCP_y3 -> 2025-26 | H118: =FRCP_y4 -> 2026-27 | I118: =FRCP_y5 -> 2027-28
B119: A. DIRECT INTERNAL LABOUR EXPENDITURE
B120: Residential | C120: 21004.97531 | D120: 14798.23163 | E120: 29744.68911 | F120: 53695.98205 | G120: 42135.02169 | H120: 13089.03608 | I120: 21503.82985
B121: Industrial and Commercial | C121: 0 | D121: 0 | E121: 0 | F121: 0 | G121: 0 | H121: 0 | I121: 0
B122: Other | C122: 0 | D122: 0 | E122: 0 | F122: 0 | G122: 0 | H122: 0 | I122: 0
B123: Total | C123: =SUM(C120:C122) -> 21004.97531 | D123: =SUM(D120:D122) -> 14798.23163 | E123: 29744.68911 | F123: 53695.98205 | G123: 42135.02169 | H123: 13089.03608 | I123: 21503.82985
B124: B. DIRECT CONTRACTOR EXPENDITURE
B125: Residential | C125: 64630.69325 | D125: 45297.65724 | E125: 90595.31448 | F125: 162279.9565 | G125: 125953.8741 | H125: 38700.91104 | I125: 62888.98044
B126: Industrial and Commercial | C126: 0 | D126: 0 | E126: 0 | F126: 0 | G126: 0 | H126: 0 | I126: 0
B127: Other | C127: 0 | D127: 0 | E127: 0 | F127: 0 | G127: 0 | H127: 0 | I127: 0
B128: Total | C128: =SUM(C125:C127) -> 64630.69325 | D128: =SUM(D125:D127) -> 45297.65724 | E128: 90595.31448 | F128: 162279.9565 | G128: 125953.8741 | H128: 38700.91104 | I128: 62888.98044
B129: C. DIRECT MATERIAL EXPENDITURE
B130: Residential | C130: 75941.06457 | D130: 53224.74726 | E130: 106449.4945 | F130: 190678.9489 | G130: 147995.8021 | H130: 45473.57047 | I130: 73894.55202
B131: Industrial and Commercial | C131: 0 | D131: 0 | E131: 0 | F131: 0 | G131: 0 | H131: 0 | I131: 0
B132: Other | C132: 0 | D132: 0 | E132: 0 | F132: 0 | G132: 0 | H132: 0 | I132: 0
B133: Total | C133: =SUM(C130:C132) -> 75941.06457 | D133: =SUM(D130:D132) -> 53224.74726 | E133: 106449.4945 | F133: 190678.9489 | G133: 147995.8021 | H133: 45473.57047 | I133: 73894.55202
B134: D. OTHER DIRECT EXPENDITURE
B135: Residential | C135: 0 | D135: 0 | E135: 0 | F135: 0 | G135: 0 | H135: 0 | I135: 0
B136: Industrial and Commercial | C136: 0 | D136: 0 | E136: 0 | F136: 0 | G136: 0 | H136: 0 | I136: 0
B137: Other | C137: 0 | D137: 0 | E137: 0 | F137: 0 | G137: 0 | H137: 0 | I137: 0
B138: Total | C138: =SUM(C135:C137) -> 0 | D138: =SUM(D135:D137) -> 0 | E138: 0 | F138: 0 | G138: 0 | H138: 0 | I138: 0
B139: E. RELATED PARTY MARGIN EXPENDITURE
B140: Residential | C140: 0 | D140: 0 | E140: 0 | F140: 0 | G140: 0 | H140: 0 | I140: 0
B141: Industrial and Commercial | C141: 0 | D141: 0 | E141: 0 | F141: 0 | G141: 0 | H141: 0 | I141: 0
B142: Other | C142: 0 | D142: 0 | E142: 0 | F142: 0 | G142: 0 | H142: 0 | I142: 0
B143: Total | C143: =SUM(C140:C142) -> 0 | D143: =SUM(D140:D142) -> 0 | E143: 0 | F143: 0 | G143: 0 | H143: 0 | I143: 0
B144: F. CAPITAL CONTRIBUTIONS included in the above
B145: Residential | C145: 0 | D145: 0 | E145: 0 | F145: 0 | G145: 0 | H145: 0 | I145: 0
B146: Industrial and Commercial | C146: 0 | D146: 0 | E146: 0 | F146: 0 | G146: 0 | H146: 0 | I146: 0
B147: Other | C147: 0 | D147: 0 | E147: 0 | F147: 0 | G147: 0 | H147: 0 | I147: 0
B148: Total | C148: =SUM(C145:C147) -> 0 | D148: =SUM(D145:D147) -> 0 | E148: 0 | F148: 0 | G148: 0 | H148: 0 | I148: 0
B149: TOTAL | C149: =SUM(C123,C128,C133,C138,C143,C148) -> 161576.7331 | D149: =SUM(D123,D128,D133,D138,D143,D148) -> 113320.6361 | E149: 226789.4981 | F149: 406654.8875 | G149: 316084.6979 | H149: 97263.5176 | I149: 158287.3623
B152: E4.2 - VOLUMES
B153: E4.2.1 - NUMBER OF NEW METERS ACQUIRED
C154: VOLUMES
C155: 0s
C156: =VLOOKUP(CRCP_y4,'AER lookups'!$B$52:$C$101,2,0) -> 2022 | D156: =CONCATENATE("1 Jan-30 Jun "&(C156+1)) -> 1 Jan-30 Jun 2023 | E156: =FRCP_y1 -> 2023-24 | F156: =FRCP_y2 -> 2024-25 | G156: =FRCP_y3 -> 2025-26 | H156: =FRCP_y4 -> 2026-27 | I156: =FRCP_y5 -> 2027-28
B157: Residential
B158: Industrial and commercial
B159: Other meters
B160: Total | C160: =SUM(C157:C159) -> 0 | D160: =SUM(D157:D159) -> 0 | E160: 0 | F160: 0 | G160: 0 | H160: 0 | I160: 0
B163: E4.2.2 - NUMBER OF METERS REFURBISHED
C164: VOLUMES
C165: 0s
C166: =VLOOKUP(CRCP_y4,'AER lookups'!$B$52:$C$101,2,0) -> 2022 | D166: =CONCATENATE("1 Jan-30 Jun "&(C166+1)) -> 1 Jan-30 Jun 2023 | E166: =FRCP_y1 -> 2023-24 | F166: =FRCP_y2 -> 2024-25 | G166: =FRCP_y3 -> 2025-26 | H166: =FRCP_y4 -> 2026-27 | I166: =FRCP_y5 -> 2027-28
B167: A. REFURBISHABLE METERS REMOVED
B168: Residential
B169: Industrial and commercial
B170: Other meters
B171: Total | C171: =SUM(C168:C170) -> 0 | D171: 0 | E171: 0 | F171: 0 | G171: 0 | H171: 0 | I171: 0
B172: B. METERS DECOMMISSIONED
B173: Residential
B174: Industrial and commercial
B175: Other meters
B176: Total | C176: =SUM(C173:C175) -> 0 | D176: 0 | E176: 0 | F176: 0 | G176: 0 | H176: 0 | I176: 0
B177: TOTAL | C177: =SUM(C171,C176) -> 0 | D177: =SUM(D171,D176) -> 0 | E177: 0 | F177: 0 | G177: 0 | H177: 0 | I177: 0
B180: E4.2.3 - NUMBER OF METERS INSTALLED
C181: VOLUMES
C182: 0s
C183: =VLOOKUP(CRCP_y4,'AER lookups'!$B$52:$C$101,2,0) -> 2022 | D183: =CONCATENATE("1 Jan-30 Jun "&(C183+1)) -> 1 Jan-30 Jun 2023 | E183: =FRCP_y1 -> 2023-24 | F183: =FRCP_y2 -> 2024-25 | G183: =FRCP_y3 -> 2025-26 | H183: =FRCP_y4 -> 2026-27 | I183: =FRCP_y5 -> 2027-28
B184: Residential
B185: Industrial and commercial
B186: Other meters
B187: Total | C187: =SUM(C184:C186) -> 0 | D187: =SUM(D184:D186) -> 0 | E187: 0 | F187: 0 | G187: 0 | H187: 0 | I187: 0
B190: E4.2.4 - NUMBER OF METERS REMOVED / DECOMMISSIONED
C191: VOLUMES
C192: 0s
C193: =VLOOKUP(CRCP_y4,'AER lookups'!$B$52:$C$101,2,0) -> 2022 | D193: =CONCATENATE("1 Jan-30 Jun "&(C193+1)) -> 1 Jan-30 Jun 2023 | E193: =FRCP_y1 -> 2023-24 | F193: =FRCP_y2 -> 2024-25 | G193: =FRCP_y3 -> 2025-26 | H193: =FRCP_y4 -> 2026-27 | I193: =FRCP_y5 -> 2027-28
B194: Residential
B195: Industrial and commercial
B196: Other meters
B197: Total | C197: =SUM(C194:C196) -> 0 | D197: =SUM(D194:D196) -> 0 | E197: 0 | F197: 0 | G197: 0 | H197: 0 | I197: 0
B200: E4.2.5 - OTHER METER REPLACEMENT VOLUMES
C201: VOLUMES
C202: 0s
C203: =VLOOKUP(CRCP_y4,'AER lookups'!$B$52:$C$101,2,0) -> 2022 | D203: =CONCATENATE("1 Jan-30 Jun "&(C203+1)) -> 1 Jan-30 Jun 2023 | E203: =FRCP_y1 -> 2023-24 | F203: =FRCP_y2 -> 2024-25 | G203: =FRCP_y3 -> 2025-26 | H203: =FRCP_y4 -> 2026-27 | I203: =FRCP_y5 -> 2027-28
B204: Residential
B205: Industrial and commercial
B206: Other meters
B207: Total | C207: =SUM(C204:C206) -> 0 | D207: =SUM(D204:D206) -> 0 | E207: 0 | F207: 0 | G207: 0 | H207: 0 | I207: 0
B210: E4.2.2 - NUMBER OF METERS Refurbished - replaced 6 May 2022
C211: VOLUMES
C212: 0s
C213: =VLOOKUP(CRCP_y4,'AER lookups'!$B$52:$C$101,2,0) -> 2022 | D213: =CONCATENATE("1 Jan-30 Jun "&(C213+1)) -> 1 Jan-30 Jun 2023 | E213: =FRCP_y1 -> 2023-24 | F213: =FRCP_y2 -> 2024-25 | G213: =FRCP_y3 -> 2025-26 | H213: =FRCP_y4 -> 2026-27 | I213: =FRCP_y5 -> 2027-28
B214: Residential
B215: Industrial and commercial
B216: Other meters
... 1 more rows

Sheet E5. New Connections
B1: =INDEX(dms_Worksheet_List,MATCH(dms_Model,dms_Model_List)) -> REGULATORY REPORTING STATEMENT
B2: =dms_TradingName -> AusNet (Gas)
B3: =dms_Header_Span -> 2021-22 to 2027-28
B4: E5. NEW CONNECTIONS
B6: E5.1 - EXPENDITURE
B7: E5.1.1 - CAPEX - BY CONNECTION TYPE
B8: A. DIRECT INTERNAL LABOUR EXPENDITURE
D9: EXPENDITURE
D10: =CONCATENATE("$0's, real ",dms_DollarReal) -> $0's, real June 2023
D11: =VLOOKUP(CRCP_y4,'AER lookups'!$B$52:$C$101,2,0) -> 2022 | E11: =CONCATENATE("1 Jan-30 Jun "&(D11+1)) -> 1 Jan-30 Jun 2023 | F11: =FRCP_y1 -> 2023-24 | G11: =FRCP_y2 -> 2024-25 | H11: =FRCP_y3 -> 2025-26 | I11: =FRCP_y4 -> 2026-27 | J11: =FRCP_y5 -> 2027-28
B12: (i) ELECTRICITY TO GAS
B13: Distribution Mains | D13: 0 | E13: 0 | F13: 0 | G13: 0 | H13: 0 | I13: 0 | J13: 0
B14: Inlet service pipes | D14: 0 | E14: 0 | F14: 0 | G14: 0 | H14: 0 | I14: 0 | J14: 0
B15: Meters | D15: 0 | E15: 0 | F15: 0 | G15: 0 | H15: 0 | I15: 0 | J15: 0
C16: Total | D16: =SUM(D13:D15) -> 0 | E16: =SUM(E13:E15) -> 0 | F16: 0 | G16: 0 | H16: 0 | I16: 0 | J16: 0
B17: (ii) NEW HOMES
B18: Distribution Mains | D18: 301927.4217 | E18: 125782.9655 | F18: 232328.24 | G18: 241448.3637 | H18: 251317.9592 | I18: 247860.5807 | J18: 244060.0205
B19: Inlet service pipes | D19: 905782.265 | E19: 377348.8964 | F19: 696984.7199 | G19: 724345.091 | H19: 753953.8777 | I19: 743581.7422 | J19: 732180.0615
B20: Meters | D20: 301927.4217 | E20: 125782.9655 | F20: 232328.24 | G20: 241448.3637 | H20: 251317.9592 | I20: 247860.5807 | J20: 244060.0205
C21: Total | D21: =SUM(D18:D20) -> 1509637.108 | E21: =SUM(E18:E20) -> 628914.8274 | F21: =SUM(F18:F20) -> 1161641.2 | G21: =SUM(G18:G20) -> 1207241.818 | H21: =SUM(H18:H20) -> 1256589.796 | I21: =SUM(I18:I20) -> 1239302.904 | J21: =SUM(J18:J20) -> 1220300.103
B22: (iii) NEW MEDIUM DENSITY / HIGH RISE
B23: Distribution Mains | D23: 100642.4739 | E23: 41927.65516 | F23: 77442.74666 | G23: 80482.78789 | H23: 83772.65308 | I23: 82620.19357 | J23: 81353.34017
B24: Inlet service pipes | D24: 301927.4217 | E24: 125782.9655 | F24: 232328.24 | G24: 241448.3637 | H24: 251317.9592 | I24: 247860.5807 | J24: 244060.0205
B25: Meters | D25: 100642.4739 | E25: 41927.65516 | F25: 77442.74666 | G25: 80482.78789 | H25: 83772.65308 | I25: 82620.19357 | J25: 81353.34017
C26: Total | D26: =SUM(D23:D25) -> 503212.3694 | E26: =SUM(E23:E25) -> 209638.2758 | F26: =SUM(F23:F25) -> 387213.7333 | G26: =SUM(G23:G25) -> 402413.9395 | H26: =SUM(H23:H25) -> 418863.2654 | I26: =SUM(I23:I25) -> 413100.9679 | J26: =SUM(J23:J25) -> 406766.7008
B27: (iv) INDUSTRIAL & COMMERCIAL TARIFF
B28: Distribution Mains | D28: 34179.27137 | E28: 45527.58153 | F28: 61496.21283 | G28: 63111.10311 | H28: 64929.11592 | I28: 64775.71644 | J28: 64574.22199
B29: Inlet service pipes | D29: 51268.90706 | E29: 68291.3723 | F29: 92244.31924 | G29: 94666.65466 | H29: 97393.67387 | I29: 97163.57466 | J29: 96861.33298
B30: Meters | D30: 28482.72615 | E30: 37939.65128 | F30: 51246.84402 | G30: 52592.58592 | H30: 54107.5966 | I30: 53979.7637 | J30: 53811.85165
C31: Total | D31: =SUM(D28:D30) -> 113930.9046 | E31: =SUM(E28:E30) -> 151758.6051 | F31: =SUM(F28:F30) -> 204987.3761 | G31: =SUM(G28:G30) -> 210370.3437 | H31: =SUM(H28:H30) -> 216430.3864 | I31: =SUM(I28:I30) -> 215919.0548 | J31: =SUM(J28:J30) -> 215247.4066
B32: (v) INDUSTRIAL & COMMERCIAL CONTRACT
B33: Distribution Mains | D33: 25389.62073 | E33: 26578.91667 | F33: 51146.54993 | G33: 52357.42177 | H33: 53735.08701 | I33: 53635.07175 | J33: 53500.05261
B34: Inlet service pipes | D34: 1692.641382 | E34: 1771.927778 | F34: 3409.769995 | G34: 3490.494785 | H34: 3582.339134 | I34: 3575.67145 | J34: 3566.670174
B35: Meters | D35: 6770.565528 | E35: 7087.711113 | F35: 13639.07998 | G35: 13961.97914 | H35: 14329.35654 | I35: 14302.6858 | J35: 14266.6807
C36: Total | D36: =SUM(D33:D35) -> 33852.82764 | E36: =SUM(E33:E35) -> 35438.55556 | F36: =SUM(F33:F35) -> 68195.39991 | G36: =SUM(G33:G35) -> 69809.8957 | H36: =SUM(H33:H35) -> 71646.78268 | I36: =SUM(I33:I35) -> 71513.429 | J36: =SUM(J33:J35) -> 71333.40348
C37: TOTAL | D37: =SUM(D36,D31,D26,D21,D16) -> 2160633.21 | E37: =SUM(E36,E31,E26,E21,E16) -> 1025750.264 | F37: 1822037.709 | G37: 1889835.997 | H37: 1963530.231 | I37: 1939836.355 | J37: 1913647.613
B39: B. DIRECT CONTRACTOR EXPENDITURE
D40: EXPENDITURE
D41: =CONCATENATE("$0's, real ",dms_DollarReal) -> $0's, real June 2023
D42: =VLOOKUP(CRCP_y4,'AER lookups'!$B$52:$C$101,2,0) -> 2022 | E42: =CONCATENATE("1 Jan-30 Jun "&(D42+1)) -> 1 Jan-30 Jun 2023 | F42: =FRCP_y1 -> 2023-24 | G42: =FRCP_y2 -> 2024-25 | H42: =FRCP_y3 -> 2025-26 | I42: =FRCP_y4 -> 2026-27 | J42: =FRCP_y5 -> 2027-28
B43: (i) ELECTRICITY TO GAS
B44: Distribution Mains | D44: 0 | E44: 0 | F44: 0 | G44: 0 | H44: 0 | I44: 0 | J44: 0
B45: Inlet service pipes | D45: 0 | E45: 0 | F45: 0 | G45: 0 | H45: 0 | I45: 0 | J45: 0
B46: Meters | D46: 0 | E46: 0 | F46: 0 | G46: 0 | H46: 0 | I46: 0 | J46: 0
C47: Total | D47: =SUM(D44:D46) -> 0 | E47: =SUM(E44:E46) -> 0 | F47: =SUM(F44:F46) -> 0 | G47: =SUM(G44:G46) -> 0 | H47: =SUM(H44:H46) -> 0 | I47: =SUM(I44:I46) -> 0 | J47: =SUM(J44:J46) -> 0
B48: (ii) NEW HOMES
B49: Distribution Mains | D49: 5736621.012 | E49: 2377522.917 | F49: 4369535.451 | G49: 4505928.763 | H49: 4639047.237 | I49: 4525410.17 | J49: 4407500.238
B50: Inlet service pipes | D50: 17209863.04 | E50: 7132568.75 | F50: 13108606.35 | G50: 13517786.29 | H50: 13917141.71 | I50: 13576230.51 | J50: 13222500.71
B51: Meters | D51: 5736621.012 | E51: 2377522.917 | F51: 4369535.451 | G51: 4505928.763 | H51: 4639047.237 | I51: 4525410.17 | J51: 4407500.238
C52: Total | D52: =SUM(D49:D51) -> 28683105.06 | E52: =SUM(E49:E51) -> 11887614.58 | F52: =SUM(F49:F51) -> 21847677.25 | G52: =SUM(G49:G51) -> 22529643.81 | H52: =SUM(H49:H51) -> 23195236.19 | I52: =SUM(I49:I51) -> 22627050.85 | J52: =SUM(J49:J51) -> 22037501.19
B53: (iii) NEW MEDIUM DENSITY / HIGH RISE
B54: Distribution Mains | D54: 1912207.004 | E54: 792507.6389 | F54: 1456511.817 | G54: 1501976.254 | H54: 1546349.079 | I54: 1508470.057 | J54: 1469166.746
B55: Inlet service pipes | D55: 5736621.012 | E55: 2377522.917 | F55: 4369535.451 | G55: 4505928.763 | H55: 4639047.237 | I55: 4525410.17 | J55: 4407500.238
B56: Meters | D56: 1912207.004 | E56: 792507.6389 | F56: 1456511.817 | G56: 1501976.254 | H56: 1546349.079 | I56: 1508470.057 | J56: 1469166.746
C57: Total | D57: =SUM(D54:D56) -> 9561035.02 | E57: =SUM(E54:E56) -> 3962538.194 | F57: =SUM(F54:F56) -> 7282559.085 | G57: =SUM(G54:G56) -> 7509881.272 | H57: =SUM(H54:H56) -> 7731745.396 | I57: =SUM(I54:I56) -> 7542350.283 | J57: =SUM(J54:J56) -> 7345833.729
B58: (iv) INDUSTRIAL & COMMERCIAL TARIFF
B59: Distribution Mains | D59: 649406.1561 | E59: 860552.6832 | F59: 1156595.867 | G59: 1177784.477 | H59: 1198518.549 | I59: 1182667.632 | J59: 1166151.253
B60: Inlet service pipes | D60: 974109.2342 | E60: 1290829.025 | F60: 1734893.8 | G60: 1766676.716 | H60: 1797777.823 | I60: 1774001.447 | J60: 1749226.88
B61: Meters | D61: 541171.7968 | E61: 717127.236 | F61: 963829.8888 | G61: 981487.0643 | H61: 998765.4574 | I61: 985556.3596 | J61: 971792.7109
C62: Total | D62: =SUM(D59:D61) -> 2164687.187 | E62: =SUM(E59:E61) -> 2868508.944 | F62: =SUM(F59:F61) -> 3855319.555 | G62: =SUM(G59:G61) -> 3925948.257 | H62: =SUM(H59:H61) -> 3995061.83 | I62: =SUM(I59:I61) -> 3942225.439 | J62: =SUM(J59:J61) -> 3887170.844
B63: (v) INDUSTRIAL & COMMERCIAL CONTRACT
B64: Distribution Mains | D64: 482402.7939 | E64: 502389.0417 | F64: 961943.5982 | G64: 977098.412 | H64: 991889.3489 | I64: 979263.0134 | J64: 966161.9061
B65: Inlet service pipes | D65: 32160.18626 | E65: 33492.60278 | F65: 64129.57321 | G65: 65139.89413 | H65: 66125.95659 | I65: 65284.20089 | J65: 64410.79374
B66: Meters | D66: 128640.745 | E66: 133970.4111 | F66: 256518.2929 | G66: 260559.5765 | H66: 264503.8264 | I66: 261136.8036 | J66: 257643.175
C67: Total | D67: =SUM(D64:D66) -> 643203.7252 | E67: =SUM(E64:E66) -> 669852.0556 | F67: =SUM(F64:F66) -> 1282591.464 | G67: =SUM(G64:G66) -> 1302797.883 | H67: =SUM(H64:H66) -> 1322519.132 | I67: =SUM(I64:I66) -> 1305684.018 | J67: =SUM(J64:J66) -> 1288215.875
C68: TOTAL | D68: =SUM(D67,D62,D57,D52,D47) -> 41052030.99 | E68: =SUM(E67,E62,E57,E52,E47) -> 19388513.78 | F68: =SUM(F67,F62,F57,F52,F47) -> 34268147.36 | G68: =SUM(G67,G62,G57,G52,G47) -> 35268271.23 | H68: =SUM(H67,H62,H57,H52,H47) -> 36244562.54 | I68: =SUM(I67,I62,I57,I52,I47) -> 35417310.59 | J68: =SUM(J67,J62,J57,J52,J47) -> 34558721.64
B70: C. DIRECT MATERIAL EXPENDITURE
D71: EXPENDITURE
D72: =CONCATENATE("$0's, real ",dms_DollarReal) -> $0's, real June 2023
D73: =VLOOKUP(CRCP_y4,'AER lookups'!$B$52:$C$101,2,0) -> 2022 | E73: =CONCATENATE("1 Jan-30 Jun "&(D73+1)) -> 1 Jan-30 Jun 2023 | F73: =FRCP_y1 -> 2023-24 | G73: =FRCP_y2 -> 2024-25 | H73: =FRCP_y3 -> 2025-26 | I73: =FRCP_y4 -> 2026-27 | J73: =FRCP_y5 -> 2027-28
B74: (i) ELECTRICITY TO GAS
B75: Distribution Mains | D75: 0 | E75: 0 | F75: 0 | G75: 0 | H75: 0 | I75: 0 | J75: 0
B76: Inlet service pipes | D76: 0 | E76: 0 | F76: 0 | G76: 0 | H76: 0 | I76: 0 | J76: 0
B77: Meters | D77: 0 | E77: 0 | F77: 0 | G77: 0 | H77: 0 | I77: 0 | J77: 0
C78: Total | D78: =SUM(D75:D77) -> 0 | E78: =SUM(E75:E77) -> 0 | F78: =SUM(F75:F77) -> 0 | G78: =SUM(G75:G77) -> 0 | H78: =SUM(H75:H77) -> 0 | I78: =SUM(I75:I77) -> 0 | J78: =SUM(J75:J77) -> 0
B79: (ii) NEW HOMES
B80: Distribution Mains | D80: 1509637.108 | E80: 625663.9254 | F80: 1149877.75 | G80: 1185770.727 | H80: 1220801.905 | I80: 1190897.413 | J80: 1159868.484
B81: Inlet service pipes | D81: 4528911.325 | E81: 1876991.776 | F81: 3449633.251 | G81: 3557312.181 | H81: 3662405.714 | I81: 3572692.239 | J81: 3479605.451
B82: Meters | D82: 1509637.108 | E82: 625663.9254 | F82: 1149877.75 | G82: 1185770.727 | H82: 1220801.905 | I82: 1190897.413 | J82: 1159868.484
C83: Total | D83: =SUM(D80:D82) -> 7548185.542 | E83: =SUM(E80:E82) -> 3128319.627 | F83: =SUM(F80:F82) -> 5749388.751 | G83: =SUM(G80:G82) -> 5928853.635 | H83: =SUM(H80:H82) -> 6104009.523 | I83: =SUM(I80:I82) -> 5954487.066 | J83: =SUM(J80:J82) -> 5799342.418
B84: (iii) NEW MEDIUM DENSITY / HIGH RISE
B85: Distribution Mains | D85: 503212.3694 | E85: 208554.6418 | F85: 383292.5834 | G85: 395256.909 | H85: 406933.9682 | I85: 396965.8044 | J85: 386622.8279
B86: Inlet service pipes | D86: 1509637.108 | E86: 625663.9254 | F86: 1149877.75 | G86: 1185770.727 | H86: 1220801.905 | I86: 1190897.413 | J86: 1159868.484
B87: Meters | D87: 503212.3694 | E87: 208554.6418 | F87: 383292.5834 | G87: 395256.909 | H87: 406933.9682 | I87: 396965.8044 | J87: 386622.8279
C88: Total | D88: =SUM(D85:D87) -> 2516061.847 | E88: =SUM(E85:E87) -> 1042773.209 | F88: =SUM(F85:F87) -> 1916462.917 | G88: =SUM(G85:G87) -> 1976284.545 | H88: =SUM(H85:H87) -> 2034669.841 | I88: =SUM(I85:I87) -> 1984829.022 | J88: =SUM(J85:J87) -> 1933114.139
B89: (iv) INDUSTRIAL & COMMERCIAL TARIFF
B90: Distribution Mains | D90: 170896.3569 | E90: 226461.2324 | F90: 304367.3333 | G90: 309943.2835 | H90: 315399.6181 | I90: 311228.3241 | J90: 306881.9087
B91: Inlet service pipes | D91: 256344.5353 | E91: 339691.8486 | F91: 456551 | G91: 464914.9252 | H91: 473099.4272 | I91: 466842.4861 | J91: 460322.8631
B92: Meters | D92: 142413.6307 | E92: 188717.6937 | F92: 253639.4444 | G92: 258286.0695 | H92: 262833.0151 | I92: 259356.9367 | J92: 255734.9239
C93: Total | D93: =SUM(D90:D92) -> 569654.5229 | E93: =SUM(E90:E92) -> 754870.7747 | F93: =SUM(F90:F92) -> 1014557.778 | G93: =SUM(G90:G92) -> 1033144.278 | H93: =SUM(H90:H92) -> 1051332.06 | I93: =SUM(I90:I92) -> 1037427.747 | J93: =SUM(J90:J92) -> 1022939.696
B94: (v) INDUSTRIAL & COMMERCIAL CONTRACT
B95: Distribution Mains | D95: 126948.1037 | E95: 132207.6426 | F95: 253143.0522 | G95: 257131.161 | H95: 261023.5129 | I95: 257700.793 | J95: 254253.1332
B96: Inlet service pipes | D96: 8463.20691 | E96: 8813.842837 | F96: 16876.20348 | G96: 17142.0774 | H96: 17401.56752 | I96: 17180.05287 | J96: 16950.20888
B97: Meters | D97: 33852.82764 | E97: 35255.37135 | F97: 67504.81391 | G97: 68568.30961 | H97: 69606.2701 | I97: 68720.21147 | J97: 67800.83551
C98: Total | D98: =SUM(D95:D97) -> 169264.1382 | E98: =SUM(E95:E97) -> 176276.8567 | F98: =SUM(F95:F97) -> 337524.0695 | G98: =SUM(G95:G97) -> 342841.5481 | H98: =SUM(H95:H97) -> 348031.3505 | I98: =SUM(I95:I97) -> 343601.0573 | J98: =SUM(J95:J97) -> 339004.1776
C99: TOTAL | D99: =SUM(D98,D93,D88,D83,D78) -> 10803166.05 | E99: =SUM(E98,E93,E88,E83,E78) -> 5102240.468 | F99: =SUM(F98,F93,F88,F83,F78) -> 9017933.516 | G99: =SUM(G98,G93,G88,G83,G78) -> 9281124.007 | H99: =SUM(H98,H93,H88,H83,H78) -> 9538042.775 | I99: =SUM(I98,I93,I88,I83,I78) -> 9320344.892 | J99: =SUM(J98,J93,J88,J83,J78) -> 9094400.431
B101: D. OTHER DIRECT EXPENDITURE
D102: EXPENDITURE
D103: =CONCATENATE("$0's, real ",dms_DollarReal) -> $0's, real June 2023
D104: =VLOOKUP(CRCP_y4,'AER lookups'!$B$52:$C$101,2,0) -> 2022 | E104: =CONCATENATE("1 Jan-30 Jun "&(D104+1)) -> 1 Jan-30 Jun 2023 | F104: =FRCP_y1 -> 2023-24 | G104: =FRCP_y2 -> 2024-25 | H104: =FRCP_y3 -> 2025-26 | I104: =FRCP_y4 -> 2026-27 | J104: =FRCP_y5 -> 2027-28
B105: (i) ELECTRICITY TO GAS
B106: Distribution Mains | D106: 0 | E106: 0 | F106: 0 | G106: 0 | H106: 0 | I106: 0 | J106: 0
B107: Inlet service pipes | D107: 0 | E107: 0 | F107: 0 | G107: 0 | H107: 0 | I107: 0 | J107: 0
B108: Meters | D108: 0 | E108: 0 | F108: 0 | G108: 0 | H108: 0 | I108: 0 | J108: 0
C109: Total | D109: =SUM(D106:D108) -> 0 | E109: =SUM(E106:E108) -> 0 | F109: =SUM(F106:F108) -> 0 | G109: =SUM(G106:G108) -> 0 | H109: =SUM(H106:H108) -> 0 | I109: =SUM(I106:I108) -> 0 | J109: =SUM(J106:J108) -> 0
B110: (ii) NEW HOMES
B111: Distribution Mains | D111: 0 | E111: 0 | F111: 0 | G111: 0 | H111: 0 | I111: 0 | J111: 0
B112: Inlet service pipes | D112: 0 | E112: 0 | F112: 0 | G112: 0 | H112: 0 | I112: 0 | J112: 0
B113: Meters | D113: 0 | E113: 0 | F113: 0 | G113: 0 | H113: 0 | I113: 0 | J113: 0
C114: Total | D114: =SUM(D111:D113) -> 0 | E114: =SUM(E111:E113) -> 0 | F114: =SUM(F111:F113) -> 0 | G114: =SUM(G111:G113) -> 0 | H114: =SUM(H111:H113) -> 0 | I114: =SUM(I111:I113) -> 0 | J114: =SUM(J111:J113) -> 0
B115: (iii) NEW MEDIUM DENSITY / HIGH RISE
B116: Distribution Mains | D116: 0 | E116: 0 | F116: 0 | G116: 0 | H116: 0 | I116: 0 | J116: 0
B117: Inlet service pipes | D117: 0 | E117: 0 | F117: 0 | G117: 0 | H117: 0 | I117: 0 | J117: 0
B118: Meters | D118: 0 | E118: 0 | F118: 0 | G118: 0 | H118: 0 | I118: 0 | J118: 0
C119: Total | D119: =SUM(D116:D118) -> 0 | E119: =SUM(E116:E118) -> 0 | F119: =SUM(F116:F118) -> 0 | G119: =SUM(G116:G118) -> 0 | H119: =SUM(H116:H118) -> 0 | I119: =SUM(I116:I118) -> 0 | J119: =SUM(J116:J118) -> 0
B120: (iv) INDUSTRIAL & COMMERCIAL TARIFF
B121: Distribution Mains | D121: 0 | E121: 0 | F121: 0 | G121: 0 | H121: 0 | I121: 0 | J121: 0
B122: Inlet service pipes | D122: 0 | E122: 0 | F122: 0 | G122: 0 | H122: 0 | I122: 0 | J122: 0
B123: Meters | D123: 0 | E123: 0 | F123: 0 | G123: 0 | H123: 0 | I123: 0 | J123: 0
C124: Total | D124: =SUM(D121:D123) -> 0 | E124: =SUM(E121:E123) -> 0 | F124: =SUM(F121:F123) -> 0 | G124: =SUM(G121:G123) -> 0 | H124: =SUM(H121:H123) -> 0 | I124: =SUM(I121:I123) -> 0 | J124: =SUM(J121:J123) -> 0
B125: (v) INDUSTRIAL & COMMERCIAL CONTRACT
B126: Distribution Mains | D126: 0 | E126: 0 | F126: 0 | G126: 0 | H126: 0 | I126: 0 | J126: 0
B127: Inlet service pipes | D127: 0 | E127: 0 | F127: 0 | G127: 0 | H127: 0 | I127: 0 | J127: 0
B128: Meters | D128: 0 | E128: 0 | F128: 0 | G128: 0 | H128: 0 | I128: 0 | J128: 0
C129: Total | D129: =SUM(D126:D128) -> 0 | E129: =SUM(E126:E128) -> 0 | F129: =SUM(F126:F128) -> 0 | G129: =SUM(G126:G128) -> 0 | H129: =SUM(H126:H128) -> 0 | I129: =SUM(I126:I128) -> 0 | J129: =SUM(J126:J128) -> 0
C130: TOTAL | D130: =SUM(D129,D124,D119,D114,D109) -> 0 | E130: =SUM(E129,E124,E119,E114,E109) -> 0 | F130: =SUM(F129,F124,F119,F114,F109) -> 0 | G130: =SUM(G129,G124,G119,G114,G109) -> 0 | H130: =SUM(H129,H124,H119,H114,H109) -> 0 | I130: =SUM(I129,I124,I119,I114,I109) -> 0 | J130: =SUM(J129,J124,J119,J114,J109) -> 0
B132: E. RELATED PARTY MARGIN EXPENDITURE
D133: EXPENDITURE
D134: =CONCATENATE("$0's, real ",dms_DollarReal) -> $0's, real June 2023
D135: =VLOOKUP(CRCP_y4,'AER lookups'!$B$52:$C$101,2,0) -> 2022 | E135: =CONCATENATE("1 Jan-30 Jun "&(D135+1)) -> 1 Jan-30 Jun 2023 | F135: =FRCP_y1 -> 2023-24 | G135: =FRCP_y2 -> 2024-25 | H135: =FRCP_y3 -> 2025-26 | I135: =FRCP_y4 -> 2026-27 | J135: =FRCP_y5 -> 2027-28
B136: (i) ELECTRICITY TO GAS
B137: Distribution Mains | D137: 0 | E137: 0 | F137: 0 | G137: 0 | H137: 0 | I137: 0 | J137: 0
B138: Inlet service pipes | D138: 0 | E138: 0 | F138: 0 | G138: 0 | H138: 0 | I138: 0 | J138: 0
B139: Meters | D139: 0 | E139: 0 | F139: 0 | G139: 0 | H139: 0 | I139: 0 | J139: 0
C140: Total | D140: =SUM(D137:D139) -> 0 | E140: =SUM(E137:E139) -> 0 | F140: =SUM(F137:F139) -> 0 | G140: =SUM(G137:G139) -> 0 | H140: =SUM(H137:H139) -> 0 | I140: =SUM(I137:I139) -> 0 | J140: =SUM(J137:J139) -> 0
B141: (ii) NEW HOMES
B142: Distribution Mains | D142: 0 | E142: 0 | F142: 0 | G142: 0 | H142: 0 | I142: 0 | J142: 0
B143: Inlet service pipes | D143: 0 | E143: 0 | F143: 0 | G143: 0 | H143: 0 | I143: 0 | J143: 0
B144: Meters | D144: 0 | E144: 0 | F144: 0 | G144: 0 | H144: 0 | I144: 0 | J144: 0
C145: Total | D145: =SUM(D142:D144) -> 0 | E145: =SUM(E142:E144) -> 0 | F145: =SUM(F142:F144) -> 0 | G145: =SUM(G142:G144) -> 0 | H145: =SUM(H142:H144) -> 0 | I145: =SUM(I142:I144) -> 0 | J145: =SUM(J142:J144) -> 0
B146: (iii) NEW MEDIUM DENSITY / HIGH RISE
B147: Distribution Mains | D147: 0 | E147: 0 | F147: 0 | G147: 0 | H147: 0 | I147: 0 | J147: 0
B148: Inlet service pipes | D148: 0 | E148: 0 | F148: 0 | G148: 0 | H148: 0 | I148: 0 | J148: 0
B149: Meters | D149: 0 | E149: 0 | F149: 0 | G149: 0 | H149: 0 | I149: 0 | J149: 0
C150: Total | D150: =SUM(D147:D149) -> 0 | E150: =SUM(E147:E149) -> 0 | F150: =SUM(F147:F149) -> 0 | G150: =SUM(G147:G149) -> 0 | H150: =SUM(H147:H149) -> 0 | I150: =SUM(I147:I149) -> 0 | J150: =SUM(J147:J149) -> 0
B151: (iv) INDUSTRIAL & COMMERCIAL TARIFF
B152: Distribution Mains | D152: 0 | E152: 0 | F152: 0 | G152: 0 | H152: 0 | I152: 0 | J152: 0
B153: Inlet service pipes | D153: 0 | E153: 0 | F153: 0 | G153: 0 | H153: 0 | I153: 0 | J153: 0
B154: Meters | D154: 0 | E154: 0 | F154: 0 | G154: 0 | H154: 0 | I154: 0 | J154: 0
C155: Total | D155: =SUM(D152:D154) -> 0 | E155: =SUM(E152:E154) -> 0 | F155: =SUM(F152:F154) -> 0 | G155: =SUM(G152:G154) -> 0 | H155: =SUM(H152:H154) -> 0 | I155: =SUM(I152:I154) -> 0 | J155: =SUM(J152:J154) -> 0
B156: (v) INDUSTRIAL & COMMERCIAL CONTRACT
B157: Distribution Mains | D157: 0 | E157: 0 | F157: 0 | G157: 0 | H157: 0 | I157: 0 | J157: 0
B158: Inlet service pipes | D158: 0 | E158: 0 | F158: 0 | G158: 0 | H158: 0 | I158: 0 | J158: 0
B159: Meters | D159: 0 | E159: 0 | F159: 0 | G159: 0 | H159: 0 | I159: 0 | J159: 0
C160: Total | D160: =SUM(D157:D159) -> 0 | E160: =SUM(E157:E159) -> 0 | F160: =SUM(F157:F159) -> 0 | G160: =SUM(G157:G159) -> 0 | H160: =SUM(H157:H159) -> 0 | I160: =SUM(I157:I159) -> 0 | J160: =SUM(J157:J159) -> 0
C161: TOTAL | D161: =SUM(D160,D155,D150,D145,D140) -> 0 | E161: =SUM(E160,E155,E150,E145,E140) -> 0 | F161: =SUM(F160,F155,F150,F145,F140) -> 0 | G161: =SUM(G160,G155,G150,G145,G140) -> 0 | H161: =SUM(H160,H155,H150,H145,H140) -> 0 | I161: =SUM(I160,I155,I150,I145,I140) -> 0 | J161: =SUM(J160,J155,J150,J145,J140) -> 0
B163: F. CAPITAL CONTRIBUTIONS included in the above
D164: EXPENDITURE
D165: =CONCATENATE("$0's, real ",dms_DollarReal) -> $0's, real June 2023
D166: =VLOOKUP(CRCP_y4,'AER lookups'!$B$52:$C$101,2,0) -> 2022 | E166: =CONCATENATE("1 Jan-30 Jun "&(D166+1)) -> 1 Jan-30 Jun 2023 | F166: =FRCP_y1 -> 2023-24 | G166: =FRCP_y2 -> 2024-25 | H166: =FRCP_y3 -> 2025-26 | I166: =FRCP_y4 -> 2026-27 | J166: =FRCP_y5 -> 2027-28
B167: (i) ELECTRICITY TO GAS
B168: Distribution Mains | D168: 0 | E168: $- | F168: $- | G168: $- | H168: $- | I168: $- | J168: $-
B169: Inlet service pipes | D169: 0 | E169: $- | F169: $- | G169: $- | H169: $- | I169: $- | J169: $-
B170: Meters | D170: 0 | E170: $- | F170: $- | G170: $- | H170: $- | I170: $- | J170: $-
C171: Total | D171: =SUM(D168:D170) -> 0 | E171: =SUM(E168:E170) -> 0 | F171: =SUM(F168:F170) -> 0 | G171: =SUM(G168:G170) -> 0 | H171: =SUM(H168:H170) -> 0 | I171: =SUM(I168:I170) -> 0 | J171: =SUM(J168:J170) -> 0
B172: (ii) NEW HOMES
B173: Distribution Mains | D173: 460749.3612 | E173: 303439.9622 | F173: 606879.9244 | G173: 625823.44 | H173: 644312.1167 | I173: 628529.1906 | J173: 612152.8112
B174: Inlet service pipes | D174: 1382248.084 | E174: 910319.8866 | F174: 1820639.773 | G174: 1877470.32 | H174: 1932936.35 | I174: 1885587.572 | J174: 1836458.434
B175: Meters | D175: 460749.3612 | E175: 303439.9622 | F175: 606879.9244 | G175: 625823.44 | H175: 644312.1167 | I175: 628529.1906 | J175: 612152.8112
C176: Total | D176: =SUM(D173:D175) -> 2303746.806 | E176: =SUM(E173:E175) -> 1517199.811 | F176: =SUM(F173:F175) -> 3034399.622 | G176: =SUM(G173:G175) -> 3129117.2 | H176: =SUM(H173:H175) -> 3221560.584 | I176: =SUM(I173:I175) -> 3142645.953 | J176: =SUM(J173:J175) -> 3060764.056
B177: (iii) NEW MEDIUM DENSITY / HIGH RISE
B178: Distribution Mains | D178: 153583.1204 | E178: 101146.6541 | F178: 202293.3081 | G178: 208607.8133 | H178: 214770.7056 | I178: 209509.7302 | J178: 204050.9371
B179: Inlet service pipes | D179: 460749.3612 | E179: 303439.9622 | F179: 606879.9244 | G179: 625823.44 | H179: 644312.1167 | I179: 628529.1906 | J179: 612152.8112
B180: Meters | D180: 153583.1204 | E180: 101146.6541 | F180: 202293.3081 | G180: 208607.8133 | H180: 214770.7056 | I180: 209509.7302 | J180: 204050.9371
C181: Total | D181: =SUM(D178:D180) -> 767915.6021 | E181: =SUM(E178:E180) -> 505733.2703 | F181: =SUM(F178:F180) -> 1011466.541 | G181: =SUM(G178:G180) -> 1043039.067 | H181: =SUM(H178:H180) -> 1073853.528 | I181: =SUM(I178:I180) -> 1047548.651 | J181: =SUM(J178:J180) -> 1020254.685
B182: (iv) INDUSTRIAL & COMMERCIAL TARIFF
B183: Distribution Mains | D183: 615013.6069 | E183: 254749.2374 | F183: 509498.4749 | G183: 516620.6301 | H183: 523603.693 | I183: 518731.1755 | J183: 513634.557
B184: Inlet service pipes | D184: 922520.4104 | E184: 382123.8561 | F184: 764247.7123 | G184: 774930.9451 | H184: 785405.5395 | I184: 778096.7632 | J184: 770451.8355
B185: Meters | D185: 512511.3391 | E185: 212291.0312 | F185: 424582.0624 | G185: 430517.1917 | H185: 436336.4108 | I185: 432275.9796 | J185: 428028.7975
C186: Total | D186: =SUM(D183:D185) -> 2050045.356 | E186: =SUM(E183:E185) -> 849164.1248 | F186: =SUM(F183:F185) -> 1698328.25 | G186: =SUM(G183:G185) -> 1722068.767 | H186: =SUM(H183:H185) -> 1745345.643 | I186: =SUM(I183:I185) -> 1729103.918 | J186: =SUM(J183:J185) -> 1712115.19
B187: (v) INDUSTRIAL & COMMERCIAL CONTRACT
B188: Distribution Mains | D188: 355282.9916 | E188: 313447.1439 | F188: 626894.2877 | G188: 626894.2877 | H188: 626894.2877 | I188: 626894.2877 | J188: 626894.2877
B189: Inlet service pipes | D189: 23685.53277 | E189: 20896.47626 | F189: 41792.95251 | G189: 41792.95251 | H189: 41792.95251 | I189: 41792.95251 | J189: 41792.95251
B190: Meters | D190: 94742.13108 | E190: 83585.90503 | F190: 167171.8101 | G190: 167171.8101 | H190: 167171.8101 | I190: 167171.8101 | J190: 167171.8101
C191: Total | D191: =SUM(D188:D190) -> 473710.6554 | E191: =SUM(E188:E190) -> 417929.5252 | F191: =SUM(F188:F190) -> 835859.0503 | G191: =SUM(G188:G190) -> 835859.0503 | H191: =SUM(H188:H190) -> 835859.0503 | I191: =SUM(I188:I190) -> 835859.0503 | J191: =SUM(J188:J190) -> 835859.0503
C192: TOTAL | D192: =SUM(D191,D186,D181,D176,D171) -> 5595418.42 | E192: =SUM(E191,E186,E181,E176,E171) -> 3290026.731 | F192: =SUM(F191,F186,F181,F176,F171) -> 6580053.463 | G192: =SUM(G191,G186,G181,G176,G171) -> 6730084.084 | H192: =SUM(H191,H186,H181,H176,H171) -> 6876618.805 | I192: =SUM(I191,I186,I181,I176,I171) -> 6755157.573 | J192: =SUM(J191,J186,J181,J176,J171) -> 6628992.982
B195: E5.2 - UNIT RATES
B196: E5.2.1 - UNIT RATES - PER CONNECTION - BY CONNECTION TYPE
D197: RATES PER CONNECTION
D198: =CONCATENATE("$0's, real ",dms_DollarReal) -> $0's, real June 2023
C199: Units | D199: =VLOOKUP(CRCP_y4,'AER lookups'!$B$52:$C$101,2,0) -> 2022 | E199: =CONCATENATE("1 Jan-30 Jun "&(D199+1)) -> 1 Jan-30 Jun 2023 | F199: =FRCP_y1 -> 2023-24 | G199: =FRCP_y2 -> 2024-25 | H199: =FRCP_y3 -> 2025-26 | I199: =FRCP_y4 -> 2026-27 | J199: =FRCP_y5 -> 2027-28
B200: A. ELECTRICITY TO GAS
B201: Distribution mains | C201: per metre per connection | D201: 0 | E201: $- | F201: $- | G201: $- | H201: $- | I201: $- | J201: $-
B202: Inlet service pipes | C202: per service per connection | D202: 0 | E202: $- | F202: $- | G202: $- | H202: $- | I202: $- | J202: $-
B203: Meters | C203: number per connection | D203: 0 | E203: $- | F203: $- | G203: $- | H203: $- | I203: $- | J203: $-
B204: B. NEW HOMES
B205: Distribution mains | C205: per metre per connection | D205: =(D18+D49+D80)/D245 -> 754818.5542 | E205: =(E18+E49+E80)/E245 -> 312896.9808 | F205: 575174.1441 | G205: 593314.7854 | H205: 611116.7101 | I205: 596416.8164 | J205: 581142.8742
B206: Inlet service pipes | C206: per service per connection | D206: =(D19+D50+D81)/D246 -> 22644556.63 | E206: 9386909.423 | F206: 17255224.32 | G206: 17799443.56 | H206: 18333501.3 | I206: 17892504.49 | J206: 17434286.23
B207: Meters | C207: number per connection | D207: =(D20+D51+D82)/D247 -> 7548185.542 | E207: 3128969.808 | F207: 5751741.441 | G207: 5933147.854 | H207: 6111167.101 | I207: 5964168.164 | J207: 5811428.742
B208: C. NEW MEDIUM DENSITY / HIGH RISE
... 67 more rows

Sheet E6. Non-network
B1: =INDEX(dms_Worksheet_List,MATCH(dms_Model,dms_Model_List)) -> REGULATORY REPORTING STATEMENT
B2: =dms_TradingName -> AusNet (Gas)
B3: =dms_Header_Span -> 2021-22 to 2027-28
B4: E6. NON-NETWORK EXPENDITURE
B6: E6.5 - TELEMETRY
B8: Please list all projects here:
B9: Fringe RTU Installation
B10: Fringe RTU Relocation
B11: Kingfisher PC-1 Replacement
B12: Moore Temperature Transmitter Replacement
B13: Dossier Replacement
B14: Slamshut Switch Replacement
B15: Cabinet Replacement
B16: Remote Pressure Monitoring Unit
B17: 6 month extension program
B18: Communications Assets
B19: SCADA Category 2
B26: E6.5.1 - CAPEX - BY PROJECT
B27: A. DIRECT INTERNAL LABOUR EXPENDITURE
C28: EXPENDITURE
C29: =CONCATENATE("$0's, real ",dms_DollarReal) -> $0's, real June 2023
C30: =VLOOKUP(CRCP_y4,'AER lookups'!$B$52:$C$101,2,0) -> 2022 | D30: =CONCATENATE("1 Jan-30 Jun "&(C30+1)) -> 1 Jan-30 Jun 2023 | E30: =FRCP_y1 -> 2023-24 | F30: =FRCP_y2 -> 2024-25 | G30: =FRCP_y3 -> 2025-26 | H30: =FRCP_y4 -> 2026-27 | I30: =FRCP_y5 -> 2027-28
B31: =IF(ISBLANK(dms_E65_Projects_01),"",dms_E65_Projects_01) -> Fringe RTU Installation | D31: 0 | E31: 1278.9514 | F31: 1288.923826 | G31: 1303.112877 | H31: 1317.458127 | I31: 1331.961297
B32: =IF(ISBLANK(dms_E65_Projects_02),"",dms_E65_Projects_02) -> Fringe RTU Relocation | D32: 0 | E32: 799.3446253 | F32: 0 | G32: 814.4455481 | H32: 0 | I32: 832.4758106
B33: =IF(ISBLANK(dms_E65_Projects_03),"",dms_E65_Projects_03) -> Kingfisher PC-1 Replacement | D33: 0 | E33: 1918.427101 | F33: 1933.385739 | G33: 1954.669315 | H33: 1976.187191 | I33: 1997.941946
B34: =IF(ISBLANK(dms_E65_Projects_04),"",dms_E65_Projects_04) -> Moore Temperature Transmitter Replacement | D34: 0 | E34: 239.8033876 | F34: 241.6732173 | G34: 244.3336644 | H34: 329.3645319 | I34: 249.7427432
B35: =IF(ISBLANK(dms_E65_Projects_05),"",dms_E65_Projects_05) -> Dossier Replacement | D35: 0 | E35: 1278.9514 | F35: 1288.923826 | G35: 1303.112877 | H35: 1317.458127 | I35: 1331.961297
B36: =IF(ISBLANK(dms_E65_Projects_06),"",dms_E65_Projects_06) -> Slamshut Switch Replacement | D36: 0 | E36: 783.3577328 | F36: 789.4658433 | G36: 798.1566371 | H36: 806.9431031 | I36: 815.8262944
B37: =IF(ISBLANK(dms_E65_Projects_07),"",dms_E65_Projects_07) -> Cabinet Replacement | D37: 0 | E37: 895.2659803 | F37: 902.246678 | G37: 912.1790138 | H37: 922.2206892 | I37: 932.3729079
B38: =IF(ISBLANK(dms_E65_Projects_08),"",dms_E65_Projects_08) -> Remote Pressure Monitoring Unit | D38: 0 | E38: 959.2135503 | F38: 966.6928693 | G38: 977.3346577 | H38: 988.0935956 | I38: 998.9709728
B39: =IF(ISBLANK(dms_E65_Projects_09),"",dms_E65_Projects_09) -> 6 month extension program | D39: 4454.023137 | E39: 0 | F39: 0 | G39: 0 | H39: 0 | I39: 0
B40: =IF(ISBLANK(dms_E65_Projects_10),"",dms_E65_Projects_10) -> Communications Assets | D40: 0 | E40: 28776.40651 | F40: 28195.20869 | G40: 0 | H40: 0 | I40: 0
B41: =IF(ISBLANK(dms_E65_Projects_11),"",dms_E65_Projects_11) -> SCADA Category 2 | C41: 39933.94172
B42: =IF(ISBLANK(dms_E65_Projects_12),"",dms_E65_Projects_12) -> 
B43: =IF(ISBLANK(dms_E65_Projects_13),"",dms_E65_Projects_13) -> 
B44: =IF(ISBLANK(dms_E65_Projects_14),"",dms_E65_Projects_14) -> 
B45: =IF(ISBLANK(dms_E65_Projects_15),"",dms_E65_Projects_15) -> 
B46: Aggregate of other projects with total expenditure of less than $500,000
B47: Total | C47: =SUM(C31:C46) -> 39933.94172 | D47: =SUM(D31:D46) -> 4454.023137 | E47: 36929.72169 | F47: 35606.52069 | G47: 8307.34459 | H47: 7657.725366 | I47: 8491.253268
B49: B. DIRECT CONTRACTOR EXPENDITURE
B50: =IF(ISBLANK(dms_E65_Projects_01),"",dms_E65_Projects_01) -> Fringe RTU Installation | D50: 0 | E50: 24054 | F50: 24054 | G50: 24054 | H50: 24054 | I50: 24054
B51: =IF(ISBLANK(dms_E65_Projects_02),"",dms_E65_Projects_02) -> Fringe RTU Relocation | D51: 0 | E51: 15033.75 | F51: 0 | G51: 15033.75 | H51: 0 | I51: 15033.75
B52: =IF(ISBLANK(dms_E65_Projects_03),"",dms_E65_Projects_03) -> Kingfisher PC-1 Replacement | D52: 0 | E52: 36081 | F52: 36081 | G52: 36081 | H52: 36081 | I52: 36081
B53: =IF(ISBLANK(dms_E65_Projects_04),"",dms_E65_Projects_04) -> Moore Temperature Transmitter Replacement | D53: 0 | E53: 4510.125 | F53: 4510.125 | G53: 4510.125 | H53: 6013.5 | I53: 4510.125
B54: =IF(ISBLANK(dms_E65_Projects_05),"",dms_E65_Projects_05) -> Dossier Replacement | D54: 0 | E54: 24054 | F54: 24054 | G54: 24054 | H54: 24054 | I54: 24054
B55: =IF(ISBLANK(dms_E65_Projects_06),"",dms_E65_Projects_06) -> Slamshut Switch Replacement | D55: 0 | E55: 14733.075 | F55: 14733.075 | G55: 14733.075 | H55: 14733.075 | I55: 14733.075
B56: =IF(ISBLANK(dms_E65_Projects_07),"",dms_E65_Projects_07) -> Cabinet Replacement | D56: 0 | E56: 16837.8 | F56: 16837.8 | G56: 16837.8 | H56: 16837.8 | I56: 16837.8
B57: =IF(ISBLANK(dms_E65_Projects_08),"",dms_E65_Projects_08) -> Remote Pressure Monitoring Unit | D57: 0 | E57: 18040.5 | F57: 18040.5 | G57: 18040.5 | H57: 18040.5 | I57: 18040.5
B58: =IF(ISBLANK(dms_E65_Projects_09),"",dms_E65_Projects_09) -> 6 month extension program | D58: 84189 | E58: 0 | F58: 0 | G58: 0 | H58: 0 | I58: 0
B59: =IF(ISBLANK(dms_E65_Projects_10),"",dms_E65_Projects_10) -> Communications Assets | D59: 0 | E59: 541215 | F59: 526181.25 | G59: 0 | H59: 0 | I59: 0
B60: =IF(ISBLANK(dms_E65_Projects_11),"",dms_E65_Projects_11) -> SCADA Category 2 | C60: 758744.8927
B61: =IF(ISBLANK(dms_E65_Projects_12),"",dms_E65_Projects_12) -> 
B62: =IF(ISBLANK(dms_E65_Projects_13),"",dms_E65_Projects_13) -> 
B63: =IF(ISBLANK(dms_E65_Projects_14),"",dms_E65_Projects_14) -> 
B64: =IF(ISBLANK(dms_E65_Projects_15),"",dms_E65_Projects_15) -> 
B65: Aggregate of other projects with total expenditure of less than $500,000
B66: Total | C66: =SUM(C50:C65) -> 758744.8927 | D66: =SUM(D50:D65) -> 84189 | E66: =SUM(E50:E65) -> 694559.25 | F66: =SUM(F50:F65) -> 664491.75 | G66: =SUM(G50:G65) -> 153344.25 | H66: =SUM(H50:H65) -> 139813.875 | I66: =SUM(I50:I65) -> 153344.25
B68: C. DIRECT MATERIAL EXPENDITURE
B69: =IF(ISBLANK(dms_E65_Projects_01),"",dms_E65_Projects_01) -> Fringe RTU Installation | D69: 0 | E69: 16880 | F69: 16880 | G69: 16880 | H69: 16880 | I69: 16880
B70: =IF(ISBLANK(dms_E65_Projects_02),"",dms_E65_Projects_02) -> Fringe RTU Relocation | D70: 0 | E70: 10550 | F70: 0 | G70: 10550 | H70: 0 | I70: 10550
B71: =IF(ISBLANK(dms_E65_Projects_03),"",dms_E65_Projects_03) -> Kingfisher PC-1 Replacement | D71: 0 | E71: 25320 | F71: 25320 | G71: 25320 | H71: 25320 | I71: 25320
B72: =IF(ISBLANK(dms_E65_Projects_04),"",dms_E65_Projects_04) -> Moore Temperature Transmitter Replacement | D72: 0 | E72: 3165 | F72: 3165 | G72: 3165 | H72: 4220 | I72: 3165
B73: =IF(ISBLANK(dms_E65_Projects_05),"",dms_E65_Projects_05) -> Dossier Replacement | D73: 0 | E73: 16880 | F73: 16880 | G73: 16880 | H73: 16880 | I73: 16880
B74: =IF(ISBLANK(dms_E65_Projects_06),"",dms_E65_Projects_06) -> Slamshut Switch Replacement | D74: 0 | E74: 10339 | F74: 10339 | G74: 10339 | H74: 10339 | I74: 10339
B75: =IF(ISBLANK(dms_E65_Projects_07),"",dms_E65_Projects_07) -> Cabinet Replacement | D75: 0 | E75: 11816 | F75: 11816 | G75: 11816 | H75: 11816 | I75: 11816
B76: =IF(ISBLANK(dms_E65_Projects_08),"",dms_E65_Projects_08) -> Remote Pressure Monitoring Unit | D76: 0 | E76: 12660 | F76: 12660 | G76: 12660 | H76: 12660 | I76: 12660
B77: =IF(ISBLANK(dms_E65_Projects_09),"",dms_E65_Projects_09) -> 6 month extension program | D77: 59080 | E77: 0 | F77: 0 | G77: 0 | H77: 0 | I77: 0
B78: =IF(ISBLANK(dms_E65_Projects_10),"",dms_E65_Projects_10) -> Communications Assets | D78: 0 | E78: 379800 | F78: 369250 | G78: 0 | H78: 0 | I78: 0
B79: =IF(ISBLANK(dms_E65_Projects_11),"",dms_E65_Projects_11) -> SCADA Category 2 | C79: 532452.5563
B80: =IF(ISBLANK(dms_E65_Projects_12),"",dms_E65_Projects_12) -> 
B81: =IF(ISBLANK(dms_E65_Projects_13),"",dms_E65_Projects_13) -> 
B82: =IF(ISBLANK(dms_E65_Projects_14),"",dms_E65_Projects_14) -> 
B83: =IF(ISBLANK(dms_E65_Projects_15),"",dms_E65_Projects_15) -> 
B84: Aggregate of other projects with total expenditure of less than $500,000
B85: Total | C85: =SUM(C69:C84) -> 532452.5563 | D85: =SUM(D69:D84) -> 59080 | E85: 487410 | F85: 466310 | G85: 107610 | H85: 98115 | I85: 107610
B87: D. OTHER DIRECT EXPENDITURE
B88: =IF(ISBLANK(dms_E65_Projects_01),"",dms_E65_Projects_01) -> Fringe RTU Installation | D88: 0 | E88: 0 | F88: 0 | G88: 0 | H88: 0 | I88: 0
B89: =IF(ISBLANK(dms_E65_Projects_02),"",dms_E65_Projects_02) -> Fringe RTU Relocation | D89: 0 | E89: 0 | F89: 0 | G89: 0 | H89: 0 | I89: 0
B90: =IF(ISBLANK(dms_E65_Projects_03),"",dms_E65_Projects_03) -> Kingfisher PC-1 Replacement | D90: 0 | E90: 0 | F90: 0 | G90: 0 | H90: 0 | I90: 0
B91: =IF(ISBLANK(dms_E65_Projects_04),"",dms_E65_Projects_04) -> Moore Temperature Transmitter Replacement | D91: 0 | E91: 0 | F91: 0 | G91: 0 | H91: 0 | I91: 0
B92: =IF(ISBLANK(dms_E65_Projects_05),"",dms_E65_Projects_05) -> Dossier Replacement | D92: 0 | E92: 0 | F92: 0 | G92: 0 | H92: 0 | I92: 0
B93: =IF(ISBLANK(dms_E65_Projects_06),"",dms_E65_Projects_06) -> Slamshut Switch Replacement | D93: 0 | E93: 0 | F93: 0 | G93: 0 | H93: 0 | I93: 0
B94: =IF(ISBLANK(dms_E65_Projects_07),"",dms_E65_Projects_07) -> Cabinet Replacement | D94: 0 | E94: 0 | F94: 0 | G94: 0 | H94: 0 | I94: 0
B95: =IF(ISBLANK(dms_E65_Projects_08),"",dms_E65_Projects_08) -> Remote Pressure Monitoring Unit | D95: 0 | E95: 0 | F95: 0 | G95: 0 | H95: 0 | I95: 0
B96: =IF(ISBLANK(dms_E65_Projects_09),"",dms_E65_Projects_09) -> 6 month extension program | D96: 0 | E96: 0 | F96: 0 | G96: 0 | H96: 0 | I96: 0
B97: =IF(ISBLANK(dms_E65_Projects_10),"",dms_E65_Projects_10) -> Communications Assets | D97: 0 | E97: 0 | F97: 0 | G97: 0 | H97: 0 | I97: 0
B98: =IF(ISBLANK(dms_E65_Projects_11),"",dms_E65_Projects_11) -> SCADA Category 2 | C98: 0
B99: =IF(ISBLANK(dms_E65_Projects_12),"",dms_E65_Projects_12) -> 
B100: =IF(ISBLANK(dms_E65_Projects_13),"",dms_E65_Projects_13) -> 
B101: =IF(ISBLANK(dms_E65_Projects_14),"",dms_E65_Projects_14) -> 
B102: =IF(ISBLANK(dms_E65_Projects_15),"",dms_E65_Projects_15) -> 
B103: Aggregate of other projects with total expenditure of less than $500,000
B104: Total | C104: =SUM(C88:C103) -> 0 | D104: =SUM(D88:D103) -> 0 | E104: =SUM(E88:E103) -> 0 | F104: =SUM(F88:F103) -> 0 | G104: =SUM(G88:G103) -> 0 | H104: =SUM(H88:H103) -> 0 | I104: =SUM(I88:I103) -> 0
B106: E. RELATED PARTY MARGIN EXPENDITURE
B107: =IF(ISBLANK(dms_E65_Projects_01),"",dms_E65_Projects_01) -> Fringe RTU Installation | D107: 0 | E107: 0 | F107: 0 | G107: 0 | H107: 0 | I107: 0
B108: =IF(ISBLANK(dms_E65_Projects_02),"",dms_E65_Projects_02) -> Fringe RTU Relocation | D108: 0 | E108: 0 | F108: 0 | G108: 0 | H108: 0 | I108: 0
B109: =IF(ISBLANK(dms_E65_Projects_03),"",dms_E65_Projects_03) -> Kingfisher PC-1 Replacement | D109: 0 | E109: 0 | F109: 0 | G109: 0 | H109: 0 | I109: 0
B110: =IF(ISBLANK(dms_E65_Projects_04),"",dms_E65_Projects_04) -> Moore Temperature Transmitter Replacement | D110: 0 | E110: 0 | F110: 0 | G110: 0 | H110: 0 | I110: 0
B111: =IF(ISBLANK(dms_E65_Projects_05),"",dms_E65_Projects_05) -> Dossier Replacement | D111: 0 | E111: 0 | F111: 0 | G111: 0 | H111: 0 | I111: 0
B112: =IF(ISBLANK(dms_E65_Projects_06),"",dms_E65_Projects_06) -> Slamshut Switch Replacement | D112: 0 | E112: 0 | F112: 0 | G112: 0 | H112: 0 | I112: 0
B113: =IF(ISBLANK(dms_E65_Projects_07),"",dms_E65_Projects_07) -> Cabinet Replacement | D113: 0 | E113: 0 | F113: 0 | G113: 0 | H113: 0 | I113: 0
B114: =IF(ISBLANK(dms_E65_Projects_08),"",dms_E65_Projects_08) -> Remote Pressure Monitoring Unit | D114: 0 | E114: 0 | F114: 0 | G114: 0 | H114: 0 | I114: 0
B115: =IF(ISBLANK(dms_E65_Projects_09),"",dms_E65_Projects_09) -> 6 month extension program | D115: 0 | E115: 0 | F115: 0 | G115: 0 | H115: 0 | I115: 0
B116: =IF(ISBLANK(dms_E65_Projects_10),"",dms_E65_Projects_10) -> Communications Assets | D116: 0 | E116: 0 | F116: 0 | G116: 0 | H116: 0 | I116: 0
B117: =IF(ISBLANK(dms_E65_Projects_11),"",dms_E65_Projects_11) -> SCADA Category 2 | C117: 0
B118: =IF(ISBLANK(dms_E65_Projects_12),"",dms_E65_Projects_12) -> 
B119: =IF(ISBLANK(dms_E65_Projects_13),"",dms_E65_Projects_13) -> 
B120: =IF(ISBLANK(dms_E65_Projects_14),"",dms_E65_Projects_14) -> 
B121: =IF(ISBLANK(dms_E65_Projects_15),"",dms_E65_Projects_15) -> 
B122: Aggregate of other projects with total expenditure of less than $500,000
B123: Total | C123: =SUM(C107:C122) -> 0 | D123: =SUM(D107:D122) -> 0 | E123: =SUM(E107:E122) -> 0 | F123: =SUM(F107:F122) -> 0 | G123: =SUM(G107:G122) -> 0 | H123: =SUM(H107:H122) -> 0 | I123: =SUM(I107:I122) -> 0
B125: F. CAPITAL CONTRIBUTIONS included in the above
B126: =IF(ISBLANK(dms_E65_Projects_01),"",dms_E65_Projects_01) -> Fringe RTU Installation | D126: 0 | E126: 0 | F126: 0 | G126: 0 | H126: 0 | I126: 0
B127: =IF(ISBLANK(dms_E65_Projects_02),"",dms_E65_Projects_02) -> Fringe RTU Relocation | D127: 0 | E127: 0 | F127: 0 | G127: 0 | H127: 0 | I127: 0
B128: =IF(ISBLANK(dms_E65_Projects_03),"",dms_E65_Projects_03) -> Kingfisher PC-1 Replacement | D128: 0 | E128: 0 | F128: 0 | G128: 0 | H128: 0 | I128: 0
B129: =IF(ISBLANK(dms_E65_Projects_04),"",dms_E65_Projects_04) -> Moore Temperature Transmitter Replacement | D129: 0 | E129: 0 | F129: 0 | G129: 0 | H129: 0 | I129: 0
B130: =IF(ISBLANK(dms_E65_Projects_05),"",dms_E65_Projects_05) -> Dossier Replacement | D130: 0 | E130: 0 | F130: 0 | G130: 0 | H130: 0 | I130: 0
B131: =IF(ISBLANK(dms_E65_Projects_06),"",dms_E65_Projects_06) -> Slamshut Switch Replacement | D131: 0 | E131: 0 | F131: 0 | G131: 0 | H131: 0 | I131: 0
B132: =IF(ISBLANK(dms_E65_Projects_07),"",dms_E65_Projects_07) -> Cabinet Replacement | D132: 0 | E132: 0 | F132: 0 | G132: 0 | H132: 0 | I132: 0
B133: =IF(ISBLANK(dms_E65_Projects_08),"",dms_E65_Projects_08) -> Remote Pressure Monitoring Unit | D133: 0 | E133: 0 | F133: 0 | G133: 0 | H133: 0 | I133: 0
B134: =IF(ISBLANK(dms_E65_Projects_09),"",dms_E65_Projects_09) -> 6 month extension program | D134: 0 | E134: 0 | F134: 0 | G134: 0 | H134: 0 | I134: 0
B135: =IF(ISBLANK(dms_E65_Projects_10),"",dms_E65_Projects_10) -> Communications Assets | D135: 0 | E135: 0 | F135: 0 | G135: 0 | H135: 0 | I135: 0
B136: =IF(ISBLANK(dms_E65_Projects_11),"",dms_E65_Projects_11) -> SCADA Category 2 | C136: 0
B137: =IF(ISBLANK(dms_E65_Projects_12),"",dms_E65_Projects_12) -> 
B138: =IF(ISBLANK(dms_E65_Projects_13),"",dms_E65_Projects_13) -> 
B139: =IF(ISBLANK(dms_E65_Projects_14),"",dms_E65_Projects_14) -> 
B140: =IF(ISBLANK(dms_E65_Projects_15),"",dms_E65_Projects_15) -> 
B141: Aggregate of other projects with total expenditure of less than $500,000
B142: Total | C142: =SUM(C126:C141) -> 0 | D142: =SUM(D126:D141) -> 0 | E142: =SUM(E126:E141) -> 0 | F142: =SUM(F126:F141) -> 0 | G142: =SUM(G126:G141) -> 0 | H142: =SUM(H126:H141) -> 0 | I142: =SUM(I126:I141) -> 0

Sheet E10. Overheads
B1: =INDEX(dms_Worksheet_List,MATCH(dms_Model,dms_Model_List)) -> REGULATORY REPORTING STATEMENT
B2: =dms_TradingName -> AusNet (Gas)
B3: =dms_Header_Span -> 2021-22 to 2027-28
B4: E10. OVERHEADS EXPENDITURE
B6: E10.1 - NETWORK
C7: EXPENDITURE
C8: =CONCATENATE("$0's, real ",dms_DollarReal) -> $0's, real June 2023
C9: =VLOOKUP(CRCP_y4,'AER lookups'!$B$52:$C$101,2,0) -> 2022 | D9: =CONCATENATE("1 Jan-30 Jun "&(C9+1)) -> 1 Jan-30 Jun 2023 | E9: =FRCP_y1 -> 2023-24 | F9: =FRCP_y2 -> 2024-25 | G9: =FRCP_y3 -> 2025-26 | H9: =FRCP_y4 -> 2026-27 | I9: =FRCP_y5 -> 2027-28
B10: E10.1.1 - OPEX
B11: Reference services | C11: 5221253.07 | D11: 2793211.167 | E11: 5552639.271 | F11: 5708785.583 | G11: 5508947.03 | H11: 5491294.409 | I11: 5549986.485
B12: Non-reference services | C12: 0 | D12: 0 | E12: 0 | F12: 0 | G12: 0 | H12: 0 | I12: 0
B13: Total | C13: =SUM(C11:C12) -> 5221253.07 | D13: =SUM(D11:D12) -> 2793211.167 | E13: 5552639.271 | F13: 5708785.583 | G13: 5508947.03 | H13: 5491294.409 | I13: 5549986.485
B14: E10.1.2 - CAPEX
B15: Reference services | C15: 4152837.802 | D15: 2172011.929 | E15: 3005299.733 | F15: 2988093.995 | G15: 2967752.245 | H15: 3039681.919 | I15: 2945211.954
B16: Non-reference services
B17: Total | C17: =SUM(C15:C16) -> 4152837.802 | D17: =SUM(D15:D16) -> 2172011.929 | E17: 3005299.733 | F17: 2988093.995 | G17: 2967752.245 | H17: 3039681.919 | I17: 2945211.954
B21: E10.2 - CORPORATE
C22: EXPENDITURE
C23: =CONCATENATE("$0's, real ",dms_DollarReal) -> $0's, real June 2023
C24: =VLOOKUP(CRCP_y4,'AER lookups'!$B$52:$C$101,2,0) -> 2022 | D24: =CONCATENATE("1 Jan-30 Jun "&(C24+1)) -> 1 Jan-30 Jun 2023 | E24: =FRCP_y1 -> 2023-24 | F24: =FRCP_y2 -> 2024-25 | G24: =FRCP_y3 -> 2025-26 | H24: =FRCP_y4 -> 2026-27 | I24: =FRCP_y5 -> 2027-28
B25: E10.2.1 - OPEX
B26: Reference services | C26: 11267247.92 | D26: 6027634.034 | E26: 12888208.1 | F26: 13223774.73 | G26: 12801206.69 | H26: 12772324.55 | I26: 12897359.23
B27: Non-reference services | C27: 0 | D27: 0 | E27: 0 | F27: 0 | G27: 0 | H27: 0 | I27: 0
B28: Total | C28: =SUM(C26:C27) -> 11267247.92 | D28: 6027634.034 | E28: 12888208.1 | F28: 13223774.73 | G28: 12801206.69 | H28: 12772324.55 | I28: 12897359.23
B29: E10.2.2 - CAPEX
B30: Reference services
B31: Non-reference services
B32: Total | C32: =SUM(C30:C31) -> 0 | D32: 0 | E32: 0 | F32: 0 | G32: 0 | H32: 0 | I32: 0

Sheet E12. ICT
B1: =INDEX(dms_Worksheet_List,MATCH(dms_Model,dms_Model_List)) -> REGULATORY REPORTING STATEMENT
B2: =dms_TradingName -> AusNet (Gas)
B3: =dms_Header_Span -> 2021-22 to 2027-28
B4: E12. INFORMATION AND COMMUNICATION TECHNOLOGY
B6: Please list all projects here:
B7: Corporate Enablement
B8: Workforce Collab
B9: Information Management
B10: CIS
B11: Intelligent Networks
B12: TAM Apps
B13: TAM Infra
B14: Cyber Sec
B15: Corporate Comms
B16: Digital Metering
B17: Corporate
B18: Network Management
B19: Works & Asset Management
B20: Metering & Customer Services
B21: Information Technology
B23: E12.1 - CAPEX - BY PROJECT
B24: A. DIRECT INTERNAL LABOUR EXPENDITURE
C25: EXPENDITURE
C26: =CONCATENATE("$0's, real ",dms_DollarReal) -> $0's, real June 2023
C27: =VLOOKUP(CRCP_y4,'AER lookups'!$B$52:$C$101,2,0) -> 2022 | D27: =CONCATENATE("1 Jan-30 Jun "&(C27+1)) -> 1 Jan-30 Jun 2023 | E27: =FRCP_y1 -> 2023-24 | F27: =FRCP_y2 -> 2024-25 | G27: =FRCP_y3 -> 2025-26 | H27: =FRCP_y4 -> 2026-27 | I27: =FRCP_y5 -> 2027-28
B28: =IF(ISBLANK(dms_E12_Projects_01),"",dms_E12_Projects_01) -> Corporate Enablement | D28: 428292.8124 | E28: 376235.5282 | F28: 631948.6107 | G28: 511124.3074 | H28: 645938.7411 | I28: 391829.7145
B29: =IF(ISBLANK(dms_E12_Projects_02),"",dms_E12_Projects_02) -> Workforce Collab | D29: 138215.9465 | E29: 570414.6346 | F29: 1173782.292 | G29: 581190.6967 | H29: 281499.2661 | I29: 284598.1362
B30: =IF(ISBLANK(dms_E12_Projects_03),"",dms_E12_Projects_03) -> Information Management | C30: 398278.9368 | D30: 98138.69804 | E30: 983826.8397 | F30: 1718001.307 | G30: 1781436.858 | H30: 1013317.541 | I30: 341710.5934
B31: =IF(ISBLANK(dms_E12_Projects_04),"",dms_E12_Projects_04) -> CIS | D31: 678810.5446 | E31: 355042.2377 | F31: 357810.6246 | G31: 270477.3665 | H31: 212687.1465 | I31: 87035.346
B32: =IF(ISBLANK(dms_E12_Projects_05),"",dms_E12_Projects_05) -> Intelligent Networks | D32: 220610.8119 | E32: 1467362.258 | F32: 1774564.545 | G32: 2392132.996 | H32: 302308.3335 | I32: 0
B33: =IF(ISBLANK(dms_E12_Projects_06),"",dms_E12_Projects_06) -> TAM Apps | D33: 0 | E33: 189637.3886 | F33: 191116.0567 | G33: 241524.9349 | H33: 293020.4996 | I33: 296246.2006
B34: =IF(ISBLANK(dms_E12_Projects_07),"",dms_E12_Projects_07) -> TAM Infra | D34: 0 | E34: 938031.6292 | F34: 211437.5379 | G34: 1278013.933 | H34: 304072.5536 | I34: 356848.8708
B35: =IF(ISBLANK(dms_E12_Projects_08),"",dms_E12_Projects_08) -> Cyber Sec | C35: 71497.1964 | D35: 0 | E35: 692262.9807 | F35: 697660.794 | G35: 705340.9567 | H35: 713105.666 | I35: 720955.8528
B36: =IF(ISBLANK(dms_E12_Projects_09),"",dms_E12_Projects_09) -> Corporate Comms | D36: 0 | E36: 773992.0783 | F36: 309010.7601 | G36: 312412.4891 | H36: 315851.6658 | I36: 319328.7025
B37: =IF(ISBLANK(dms_E12_Projects_10),"",dms_E12_Projects_10) -> Digital Metering | D37: 0 | E37: 216302.6556 | F37: 526256.857 | G37: 222615.1165 | H37: 22506.57634 | I37: 227543.3882
B38: =IF(ISBLANK(dms_E12_Projects_11),"",dms_E12_Projects_11) -> Corporate | C38: 419097.84
B39: =IF(ISBLANK(dms_E12_Projects_12),"",dms_E12_Projects_12) -> Network Management | C39: 3431.428896
B40: =IF(ISBLANK(dms_E12_Projects_13),"",dms_E12_Projects_13) -> Works & Asset Management | C40: 23976.15233
B41: =IF(ISBLANK(dms_E12_Projects_14),"",dms_E12_Projects_14) -> Metering & Customer Services | C41: 296629.2437
B42: =IF(ISBLANK(dms_E12_Projects_15),"",dms_E12_Projects_15) -> Information Technology | C42: 809172.7229
B43: Aggregate of other projects with total expenditure of less than $500,000
B44: Total | C44: =SUM(C28:C43) -> 2022083.521 | D44: =SUM(D28:D43) -> 1564068.813 | E44: 6563108.23 | F44: 7591589.385 | G44: 8296269.654 | H44: 4104307.99 | I44: 3026096.805
B46: B. DIRECT CONTRACTOR EXPENDITURE
B47: =IF(ISBLANK(dms_E12_Projects_01),"",dms_E12_Projects_01) -> Corporate Enablement | D47: 0 | E47: 36334.2 | F47: 60557 | G47: 48445.6 | H47: 60557 | I47: 36334.2
B48: =IF(ISBLANK(dms_E12_Projects_02),"",dms_E12_Projects_02) -> Workforce Collab | D48: 0 | E48: 55086.66211 | F48: 112478.6621 | G48: 55086.66211 | H48: 26390.66211 | I48: 26390.66211
B49: =IF(ISBLANK(dms_E12_Projects_03),"",dms_E12_Projects_03) -> Information Management | C49: 0 | D49: 70085.74695 | E49: 95011.12595 | F49: 164628.9008 | G49: 168848.9008 | H49: 94998.90076 | I49: 31686.67557
B50: =IF(ISBLANK(dms_E12_Projects_04),"",dms_E12_Projects_04) -> CIS | D50: 14425.56541 | E50: 34287.5 | F50: 34287.5 | G50: 25636.5 | H50: 19939.5 | I50: 8070.75
B51: =IF(ISBLANK(dms_E12_Projects_05),"",dms_E12_Projects_05) -> Intelligent Networks | D51: 146954.3198 | E51: 141707.6 | F51: 170049.12 | G51: 226732.16 | H51: 28341.52 | I51: 0
B52: =IF(ISBLANK(dms_E12_Projects_06),"",dms_E12_Projects_06) -> TAM Apps | D52: 0 | E52: 18313.85472 | F52: 18313.85472 | G52: 22892.3184 | H52: 27470.78208 | I52: 27470.78208
B53: =IF(ISBLANK(dms_E12_Projects_07),"",dms_E12_Projects_07) -> TAM Infra | D53: 0 | E53: 90588.54431 | F53: 20261.17751 | G53: 121133.2564 | H53: 28506.9163 | I53: 33090.44149
B54: =IF(ISBLANK(dms_E12_Projects_08),"",dms_E12_Projects_08) -> Cyber Sec | C54: 51325.02211 | D54: 0 | E54: 66853.92448 | F54: 66853.92448 | G54: 66853.92448 | H54: 66853.92448 | I54: 66853.92448
B55: =IF(ISBLANK(dms_E12_Projects_09),"",dms_E12_Projects_09) -> Corporate Comms | D55: 0 | E55: 74746.75 | F55: 29611.2125 | G55: 29611.2125 | H55: 29611.2125 | I55: 29611.2125
B56: =IF(ISBLANK(dms_E12_Projects_10),"",dms_E12_Projects_10) -> Digital Metering | D56: 0 | E56: 20889 | F56: 50429 | G56: 21100 | H56: 2110 | I56: 21100
B57: =IF(ISBLANK(dms_E12_Projects_11),"",dms_E12_Projects_11) -> Corporate | C57: 0
B58: =IF(ISBLANK(dms_E12_Projects_12),"",dms_E12_Projects_12) -> Network Management | C58: 255.2379771
B59: =IF(ISBLANK(dms_E12_Projects_13),"",dms_E12_Projects_13) -> Works & Asset Management | C59: 512.1703962
B60: =IF(ISBLANK(dms_E12_Projects_14),"",dms_E12_Projects_14) -> Metering & Customer Services | C60: 1901.81013
B61: =IF(ISBLANK(dms_E12_Projects_15),"",dms_E12_Projects_15) -> Information Technology | C61: 541810.6244
B62: Aggregate of other projects with total expenditure of less than $500,000
B63: Total | C63: =SUM(C47:C62) -> 595804.865 | D63: =SUM(D47:D62) -> 231465.6321 | E63: =SUM(E47:E62) -> 633819.1616 | F63: =SUM(F47:F62) -> 727470.3521 | G63: =SUM(G47:G62) -> 786340.5346 | H63: =SUM(H47:H62) -> 384780.4182 | I63: =SUM(I47:I62) -> 280608.6482
B65: C. DIRECT MATERIAL EXPENDITURE
B66: =IF(ISBLANK(dms_E12_Projects_01),"",dms_E12_Projects_01) -> Corporate Enablement | D66: 27571.06124 | E66: 499595.25 | F66: 832658.75 | G66: 666127 | H66: 832658.75 | I66: 499595.25
B67: =IF(ISBLANK(dms_E12_Projects_02),"",dms_E12_Projects_02) -> Workforce Collab | D67: 89323.50075 | E67: 757441.604 | F67: 1546581.604 | G67: 757441.604 | H67: 362871.604 | I67: 362871.604
B68: =IF(ISBLANK(dms_E12_Projects_03),"",dms_E12_Projects_03) -> Information Management | C68: 258729.3164 | D68: 496932.8404 | E68: 1306402.982 | F68: 2263647.385 | G68: 2321672.385 | H68: 1306234.885 | I68: 435691.7891
B69: =IF(ISBLANK(dms_E12_Projects_04),"",dms_E12_Projects_04) -> CIS | D69: 138447.7061 | E69: 471453.125 | F69: 471453.125 | G69: 352501.875 | H69: 274168.125 | I69: 110972.8125
B70: =IF(ISBLANK(dms_E12_Projects_05),"",dms_E12_Projects_05) -> Intelligent Networks | D70: 878475.2201 | E70: 1948479.5 | F70: 2338175.4 | G70: 3117567.2 | H70: 389695.9 | I70: 0
B71: =IF(ISBLANK(dms_E12_Projects_06),"",dms_E12_Projects_06) -> TAM Apps | D71: 0 | E71: 251815.5024 | F71: 251815.5024 | G71: 314769.378 | H71: 377723.2536 | I71: 377723.2536
B72: =IF(ISBLANK(dms_E12_Projects_07),"",dms_E12_Projects_07) -> TAM Infra | D72: 0 | E72: 1245592.484 | F72: 278591.1908 | G72: 1665582.275 | H72: 391970.0991 | I72: 454993.5705
B73: =IF(ISBLANK(dms_E12_Projects_08),"",dms_E12_Projects_08) -> Cyber Sec | C73: 363912.6375 | D73: 0 | E73: 919241.4617 | F73: 919241.4617 | G73: 919241.4617 | H73: 919241.4617 | I73: 919241.4617
B74: =IF(ISBLANK(dms_E12_Projects_09),"",dms_E12_Projects_09) -> Corporate Comms | D74: 0 | E74: 1027767.813 | F74: 407154.1719 | G74: 407154.1719 | H74: 407154.1719 | I74: 407154.1719
B75: =IF(ISBLANK(dms_E12_Projects_10),"",dms_E12_Projects_10) -> Digital Metering | D75: 0 | E75: 287223.75 | F75: 693398.75 | G75: 290125 | H75: 29012.5 | I75: 290125
B76: =IF(ISBLANK(dms_E12_Projects_11),"",dms_E12_Projects_11) -> Corporate | C76: 27119.32265
B77: =IF(ISBLANK(dms_E12_Projects_12),"",dms_E12_Projects_12) -> Network Management | C77: 5892.624379
B78: =IF(ISBLANK(dms_E12_Projects_13),"",dms_E12_Projects_13) -> Works & Asset Management | C78: 4915.496514
B79: =IF(ISBLANK(dms_E12_Projects_14),"",dms_E12_Projects_14) -> Metering & Customer Services | C79: 335296.9614
B80: =IF(ISBLANK(dms_E12_Projects_15),"",dms_E12_Projects_15) -> Information Technology | C80: 3238878.641
B81: Aggregate of other projects with total expenditure of less than $500,000
B82: Total | C82: =SUM(C66:C81) -> 4234745 | D82: =SUM(D66:D81) -> 1630750.329 | E82: =SUM(E66:E81) -> 8715013.472 | F82: =SUM(F66:F81) -> 10002717.34 | G82: =SUM(G66:G81) -> 10812182.35 | H82: =SUM(H66:H81) -> 5290730.751 | I82: =SUM(I66:I81) -> 3858368.913
B84: D. OTHER DIRECT EXPENDITURE
B85: =IF(ISBLANK(dms_E12_Projects_01),"",dms_E12_Projects_01) -> Corporate Enablement | D85: 0 | E85: 0 | F85: 0 | G85: 0 | H85: 0 | I85: 0
B86: =IF(ISBLANK(dms_E12_Projects_02),"",dms_E12_Projects_02) -> Workforce Collab | D86: 0 | E86: 0 | F86: 0 | G86: 0 | H86: 0 | I86: 0
B87: =IF(ISBLANK(dms_E12_Projects_03),"",dms_E12_Projects_03) -> Information Management | C87: 0 | D87: 0 | E87: 0 | F87: 0 | G87: 0 | H87: 0 | I87: 0
B88: =IF(ISBLANK(dms_E12_Projects_04),"",dms_E12_Projects_04) -> CIS | D88: 0 | E88: 0 | F88: 0 | G88: 0 | H88: 0 | I88: 0
B89: =IF(ISBLANK(dms_E12_Projects_05),"",dms_E12_Projects_05) -> Intelligent Networks | D89: 0 | E89: 0 | F89: 0 | G89: 0 | H89: 0 | I89: 0
B90: =IF(ISBLANK(dms_E12_Projects_06),"",dms_E12_Projects_06) -> TAM Apps | D90: 0 | E90: 0 | F90: 0 | G90: 0 | H90: 0 | I90: 0
B91: =IF(ISBLANK(dms_E12_Projects_07),"",dms_E12_Projects_07) -> TAM Infra | D91: 0 | E91: 0 | F91: 0 | G91: 0 | H91: 0 | I91: 0
B92: =IF(ISBLANK(dms_E12_Projects_08),"",dms_E12_Projects_08) -> Cyber Sec | C92: 0 | D92: 0 | E92: 0 | F92: 0 | G92: 0 | H92: 0 | I92: 0
B93: =IF(ISBLANK(dms_E12_Projects_09),"",dms_E12_Projects_09) -> Corporate Comms | D93: 0 | E93: 0 | F93: 0 | G93: 0 | H93: 0 | I93: 0
B94: =IF(ISBLANK(dms_E12_Projects_10),"",dms_E12_Projects_10) -> Digital Metering | D94: 0 | E94: 0 | F94: 0 | G94: 0 | H94: 0 | I94: 0
B95: =IF(ISBLANK(dms_E12_Projects_11),"",dms_E12_Projects_11) -> Corporate | C95: 0
B96: =IF(ISBLANK(dms_E12_Projects_12),"",dms_E12_Projects_12) -> Network Management | C96: 0
B97: =IF(ISBLANK(dms_E12_Projects_13),"",dms_E12_Projects_13) -> Works & Asset Management | C97: 0
B98: =IF(ISBLANK(dms_E12_Projects_14),"",dms_E12_Projects_14) -> Metering & Customer Services | C98: 0
B99: =IF(ISBLANK(dms_E12_Projects_15),"",dms_E12_Projects_15) -> Information Technology | C99: 0
B100: Aggregate of other projects with total expenditure of less than $500,000
B101: Total | C101: =SUM(C85:C100) -> 0 | D101: =SUM(D85:D100) -> 0 | E101: =SUM(E85:E100) -> 0 | F101: =SUM(F85:F100) -> 0 | G101: =SUM(G85:G100) -> 0 | H101: =SUM(H85:H100) -> 0 | I101: =SUM(I85:I100) -> 0
B103: E. RELATED PARTY MARGIN EXPENDITURE
B104: =IF(ISBLANK(dms_E12_Projects_01),"",dms_E12_Projects_01) -> Corporate Enablement | D104: 0 | E104: 0 | F104: 0 | G104: 0 | H104: 0 | I104: 0
B105: =IF(ISBLANK(dms_E12_Projects_02),"",dms_E12_Projects_02) -> Workforce Collab | D105: 0 | E105: 0 | F105: 0 | G105: 0 | H105: 0 | I105: 0
B106: =IF(ISBLANK(dms_E12_Projects_03),"",dms_E12_Projects_03) -> Information Management | C106: 0 | D106: 0 | E106: 0 | F106: 0 | G106: 0 | H106: 0 | I106: 0
B107: =IF(ISBLANK(dms_E12_Projects_04),"",dms_E12_Projects_04) -> CIS | D107: 0 | E107: 0 | F107: 0 | G107: 0 | H107: 0 | I107: 0
B108: =IF(ISBLANK(dms_E12_Projects_05),"",dms_E12_Projects_05) -> Intelligent Networks | D108: 0 | E108: 0 | F108: 0 | G108: 0 | H108: 0 | I108: 0
B109: =IF(ISBLANK(dms_E12_Projects_06),"",dms_E12_Projects_06) -> TAM Apps | D109: 0 | E109: 0 | F109: 0 | G109: 0 | H109: 0 | I109: 0
B110: =IF(ISBLANK(dms_E12_Projects_07),"",dms_E12_Projects_07) -> TAM Infra | D110: 0 | E110: 0 | F110: 0 | G110: 0 | H110: 0 | I110: 0
B111: =IF(ISBLANK(dms_E12_Projects_08),"",dms_E12_Projects_08) -> Cyber Sec | C111: 0 | D111: 0 | E111: 0 | F111: 0 | G111: 0 | H111: 0 | I111: 0
B112: =IF(ISBLANK(dms_E12_Projects_09),"",dms_E12_Projects_09) -> Corporate Comms | D112: 0 | E112: 0 | F112: 0 | G112: 0 | H112: 0 | I112: 0
B113: =IF(ISBLANK(dms_E12_Projects_10),"",dms_E12_Projects_10) -> Digital Metering | D113: 0 | E113: 0 | F113: 0 | G113: 0 | H113: 0 | I113: 0
B114: =IF(ISBLANK(dms_E12_Projects_11),"",dms_E12_Projects_11) -> Corporate | C114: 0
B115: =IF(ISBLANK(dms_E12_Projects_12),"",dms_E12_Projects_12) -> Network Management | C115: 0
B116: =IF(ISBLANK(dms_E12_Projects_13),"",dms_E12_Projects_13) -> Works & Asset Management | C116: 0
B117: =IF(ISBLANK(dms_E12_Projects_14),"",dms_E12_Projects_14) -> Metering & Customer Services | C117: 0
B118: =IF(ISBLANK(dms_E12_Projects_15),"",dms_E12_Projects_15) -> Information Technology | C118: 0
B119: Aggregate of other projects with total expenditure of less than $500,000
B120: Total | C120: =SUM(C104:C119) -> 0 | D120: =SUM(D104:D119) -> 0 | E120: =SUM(E104:E119) -> 0 | F120: =SUM(F104:F119) -> 0 | G120: =SUM(G104:G119) -> 0 | H120: =SUM(H104:H119) -> 0 | I120: =SUM(I104:I119) -> 0
B122: F. CAPITAL CONTRIBUTIONS included in the above
B123: =IF(ISBLANK(dms_E12_Projects_01),"",dms_E12_Projects_01) -> Corporate Enablement | D123: 0 | E123: 0 | F123: 0 | G123: 0 | H123: 0 | I123: 0
B124: =IF(ISBLANK(dms_E12_Projects_02),"",dms_E12_Projects_02) -> Workforce Collab | D124: 0 | E124: 0 | F124: 0 | G124: 0 | H124: 0 | I124: 0
B125: =IF(ISBLANK(dms_E12_Projects_03),"",dms_E12_Projects_03) -> Information Management | C125: 0 | D125: 0 | E125: 0 | F125: 0 | G125: 0 | H125: 0 | I125: 0
B126: =IF(ISBLANK(dms_E12_Projects_04),"",dms_E12_Projects_04) -> CIS | D126: 0 | E126: 0 | F126: 0 | G126: 0 | H126: 0 | I126: 0
B127: =IF(ISBLANK(dms_E12_Projects_05),"",dms_E12_Projects_05) -> Intelligent Networks | D127: 0 | E127: 0 | F127: 0 | G127: 0 | H127: 0 | I127: 0
B128: =IF(ISBLANK(dms_E12_Projects_06),"",dms_E12_Projects_06) -> TAM Apps | D128: 0 | E128: 0 | F128: 0 | G128: 0 | H128: 0 | I128: 0
B129: =IF(ISBLANK(dms_E12_Projects_07),"",dms_E12_Projects_07) -> TAM Infra | D129: 0 | E129: 0 | F129: 0 | G129: 0 | H129: 0 | I129: 0
B130: =IF(ISBLANK(dms_E12_Projects_08),"",dms_E12_Projects_08) -> Cyber Sec | C130: 0 | D130: 0 | E130: 0 | F130: 0 | G130: 0 | H130: 0 | I130: 0
B131: =IF(ISBLANK(dms_E12_Projects_09),"",dms_E12_Projects_09) -> Corporate Comms | D131: 0 | E131: 0 | F131: 0 | G131: 0 | H131: 0 | I131: 0
B132: =IF(ISBLANK(dms_E12_Projects_10),"",dms_E12_Projects_10) -> Digital Metering | D132: 0 | E132: 0 | F132: 0 | G132: 0 | H132: 0 | I132: 0
B133: =IF(ISBLANK(dms_E12_Projects_11),"",dms_E12_Projects_11) -> Corporate | C133: 0
B134: =IF(ISBLANK(dms_E12_Projects_12),"",dms_E12_Projects_12) -> Network Management | C134: 0
B135: =IF(ISBLANK(dms_E12_Projects_13),"",dms_E12_Projects_13) -> Works & Asset Management | C135: 0
B136: =IF(ISBLANK(dms_E12_Projects_14),"",dms_E12_Projects_14) -> Metering & Customer Services | C136: 0
B137: =IF(ISBLANK(dms_E12_Projects_15),"",dms_E12_Projects_15) -> Information Technology | C137: 0
B138: Aggregate of other projects with total expenditure of less than $500,000
B139: Total | C139: =SUM(C123:C138) -> 0 | D139: =SUM(D123:D138) -> 0 | E139: =SUM(E123:E138) -> 0 | F139: =SUM(F123:F138) -> 0 | G139: =SUM(G123:G138) -> 0 | H139: =SUM(H123:H138) -> 0 | I139: =SUM(I123:I138) -> 0

Sheet E13. Other capex
B1: =INDEX(dms_Worksheet_List,MATCH(dms_Model,dms_Model_List)) -> REGULATORY REPORTING STATEMENT
B2: =dms_TradingName -> AusNet (Gas)
B3: =dms_Header_Span -> 2021-22 to 2027-28
B4: E13. OTHER CAPITAL EXPENDITURE
B6: Please list all projects here:
B7: Network Regulators - planned
B8: Network Regulators - ad hoc
B9: Customer Regulators - planned
B10: Customer Regulators - ad hoc
B11: Cathodic Protection
B12: Other Non-demand
B13: Major Alterations
B14: City Gate Security Fence Upgrades
B15: Other non-IT
B16: Extensions
B23: E13.1 - CAPEX - BY PROJECT
C24: EXPENDITURE
C25: =CONCATENATE("$0's, real ",dms_DollarReal) -> $0's, real June 2023
C26: =VLOOKUP(CRCP_y4,'AER lookups'!$B$52:$C$101,2,0) -> 2022 | D26: =CONCATENATE("1 Jan-30 Jun "&(C26+1)) -> 1 Jan-30 Jun 2023 | E26: =FRCP_y1 -> 2023-24 | F26: =FRCP_y2 -> 2024-25 | G26: =FRCP_y3 -> 2025-26 | H26: =FRCP_y4 -> 2026-27 | I26: =FRCP_y5 -> 2027-28
B27: A. DIRECT INTERNAL LABOUR EXPENDITURE
B28: =IF(ISBLANK(dms_E13_Projects_01),"",dms_E13_Projects_01) -> Network Regulators - planned | C28: 10616.04285 | D28: 11453.20235 | E28: 46255.40898 | F28: 37808.43222 | G28: 32795.0074 | H28: 35571.36944 | I28: 42178.77441
B29: =IF(ISBLANK(dms_E13_Projects_02),"",dms_E13_Projects_02) -> Network Regulators - ad hoc | C29: 2123.208569 | D29: 1060.481699 | E29: 2131.585667 | F29: 2148.206376 | G29: 2171.854795 | H29: 2195.763546 | I29: 2219.935495
B30: =IF(ISBLANK(dms_E13_Projects_03),"",dms_E13_Projects_03) -> Customer Regulators - planned | C30: 0 | D30: 11750.13723 | E30: 24512.70228 | F30: 21601.28922 | G30: 15512.47287 | H30: 14416.28556 | I30: 15467.95555
B31: =IF(ISBLANK(dms_E13_Projects_04),"",dms_E13_Projects_04) -> Customer Regulators - ad hoc | C31: 0 | D31: 18571.15552 | E31: 37328.32821 | F31: 37619.39006 | G31: 38033.52117 | H31: 38452.21121 | I31: 38875.51039
B32: =IF(ISBLANK(dms_E13_Projects_05),"",dms_E13_Projects_05) -> Cathodic Protection | C32: 8545.63602 | D32: 8144.499451 | E32: 16370.57793 | F32: 17357.50752 | G32: 16983.9045 | H32: 17170.87093 | I32: 17359.89557
B33: =IF(ISBLANK(dms_E13_Projects_06),"",dms_E13_Projects_06) -> Other Non-demand | C33: 0 | D33: 0 | E33: 23195.91523 | F33: 72149.87417 | G33: 110564.7839 | H33: 31418.3901 | I33: 5.327845188
B34: =IF(ISBLANK(dms_E13_Projects_07),"",dms_E13_Projects_07) -> Major Alterations | C34: 60368.23199 | D34: 99953.02846 | E34: 189519.6816 | F34: 195057.7546 | G34: 201211.4955 | H34: 199968.7443 | I34: 198542.8009
B35: =IF(ISBLANK(dms_E13_Projects_08),"",dms_E13_Projects_08) -> City Gate Security Fence Upgrades | C35: 0 | D35: 0 | E35: 17745.45068 | F35: 17883.81808 | G35: 18080.69117 | H35: 18279.73152 | I35: 16483.02105
B36: =IF(ISBLANK(dms_E13_Projects_09),"",dms_E13_Projects_09) -> Other non-IT | C36: 15238.10371 | D36: 10699.50517 | E36: 43012.36293 | F36: 43347.74516 | G36: 43824.93657 | H36: 44307.38111 | I36: 44795.13662
B37: =IF(ISBLANK(dms_E13_Projects_10),"",dms_E13_Projects_10) -> Extensions | C37: 260369.2406 | D37: 13457.51276 | E37: 0 | F37: 0 | G37: 0 | H37: 0 | I37: 0
B38: =IF(ISBLANK(dms_E13_Projects_11),"",dms_E13_Projects_11) -> 
B39: =IF(ISBLANK(dms_E13_Projects_12),"",dms_E13_Projects_12) -> 
B40: =IF(ISBLANK(dms_E13_Projects_13),"",dms_E13_Projects_13) -> 
B41: =IF(ISBLANK(dms_E13_Projects_14),"",dms_E13_Projects_14) -> 
B42: =IF(ISBLANK(dms_E13_Projects_15),"",dms_E13_Projects_15) -> 
B43: Aggregate of other projects with total expenditure of less than $500,000
B44: Total | C44: =SUM(C28:C43) -> 357260.4637 | D44: =SUM(D28:D43) -> 175089.5226 | E44: 400072.0135 | F44: 444974.0175 | G44: 479178.6679 | H44: 401780.7477 | I44: 375928.3579
B46: B. DIRECT CONTRACTOR EXPENDITURE
B47: =IF(ISBLANK(dms_E13_Projects_01),"",dms_E13_Projects_01) -> Network Regulators - planned | C47: 201704.8141 | D47: 216486 | E47: 869953 | F47: 705584 | G47: 605359 | H47: 649458 | I47: 761710
B48: =IF(ISBLANK(dms_E13_Projects_02),"",dms_E13_Projects_02) -> Network Regulators - ad hoc | C48: 40340.96282 | D48: 20045 | E48: 40090 | F48: 40090 | G48: 40090 | H48: 40090 | I48: 40090
B49: =IF(ISBLANK(dms_E13_Projects_03),"",dms_E13_Projects_03) -> Customer Regulators - planned | C49: 0 | D49: 222098.6 | E49: 461024.9775 | F49: 403124.995 | G49: 286342.825 | H49: 263210.895 | I49: 279337.0975
B50: =IF(ISBLANK(dms_E13_Projects_04),"",dms_E13_Projects_04) -> Customer Regulators - ad hoc | C50: 0 | D50: 351028.04 | E50: 702056.08 | F50: 702056.08 | G50: 702056.08 | H50: 702056.08 | I50: 702056.08
B51: =IF(ISBLANK(dms_E13_Projects_05),"",dms_E13_Projects_05) -> Cathodic Protection | C51: 162367.0844 | D51: 153945.6 | E51: 307891.2 | F51: 323927.2 | G51: 313503.8 | H51: 313503.8 | I51: 313503.8
B52: =IF(ISBLANK(dms_E13_Projects_06),"",dms_E13_Projects_06) -> Other Non-demand | C52: 0 | D52: 0 | E52: 436259.38 | F52: 1346466.749 | G52: 2040901.72 | H52: 573633.3776 | I52: 96.216
B53: =IF(ISBLANK(dms_E13_Projects_07),"",dms_E13_Projects_07) -> Major Alterations | C53: 543314.0879 | D53: 894927.2824 | E53: 1688404.463 | F53: 1724297.443 | G53: 1759328.62 | H53: 1729424.127 | I53: 1698395.2
B54: =IF(ISBLANK(dms_E13_Projects_08),"",dms_E13_Projects_08) -> City Gate Security Fence Upgrades | C54: 0 | D54: 0 | E54: 333749.25 | F54: 333749.25 | G54: 333749.25 | H54: 333749.25 | I54: 297668.25
B55: =IF(ISBLANK(dms_E13_Projects_09),"",dms_E13_Projects_09) -> Other non-IT | C55: 15238.10371 | D55: 10644.19873 | E55: 42576.7949 | F55: 42576.7949 | G55: 42576.7949 | H55: 42576.7949 | I55: 42576.7949
B56: =IF(ISBLANK(dms_E13_Projects_10),"",dms_E13_Projects_10) -> Extensions | C56: 4947015.57 | D56: 254371.05 | E56: 0 | F56: 0 | G56: 0 | H56: 0 | I56: 0
B57: =IF(ISBLANK(dms_E13_Projects_11),"",dms_E13_Projects_11) -> 
B58: =IF(ISBLANK(dms_E13_Projects_12),"",dms_E13_Projects_12) -> 
B59: =IF(ISBLANK(dms_E13_Projects_13),"",dms_E13_Projects_13) -> 
B60: =IF(ISBLANK(dms_E13_Projects_14),"",dms_E13_Projects_14) -> 
B61: =IF(ISBLANK(dms_E13_Projects_15),"",dms_E13_Projects_15) -> 
B62: Aggregate of other projects with total expenditure of less than $500,000
B63: Total | C63: =SUM(C47:C62) -> 5909980.623 | D63: =SUM(D47:D62) -> 2123545.771 | E63: 4882005.145 | F63: 5621872.511 | G63: 6123908.09 | H63: 4647702.325 | I63: 4135433.439
B65: C. DIRECT MATERIAL EXPENDITURE
B66: =IF(ISBLANK(dms_E13_Projects_01),"",dms_E13_Projects_01) -> Network Regulators - planned | C66: 318481.2854 | D66: 341820 | E66: 1373610 | F66: 1114080 | G66: 955830 | H66: 1025460 | I66: 1202700
B67: =IF(ISBLANK(dms_E13_Projects_02),"",dms_E13_Projects_02) -> Network Regulators - ad hoc | C67: 63696.25708 | D67: 31650 | E67: 63300 | F67: 63300 | G67: 63300 | H67: 63300 | I67: 63300
B68: =IF(ISBLANK(dms_E13_Projects_03),"",dms_E13_Projects_03) -> Customer Regulators - planned | C68: 0 | D68: 350682 | E68: 727934.175 | F68: 636513.15 | G68: 452120.25 | H68: 415596.15 | I68: 441058.575
B69: =IF(ISBLANK(dms_E13_Projects_04),"",dms_E13_Projects_04) -> Customer Regulators - ad hoc | C69: 0 | D69: 554254.8 | E69: 1108509.6 | F69: 1108509.6 | G69: 1108509.6 | H69: 1108509.6 | I69: 1108509.6
B70: =IF(ISBLANK(dms_E13_Projects_05),"",dms_E13_Projects_05) -> Cathodic Protection | C70: 42728.1801 | D70: 40512 | E70: 81024 | F70: 85244 | G70: 82501 | H70: 82501 | I70: 82501
B71: =IF(ISBLANK(dms_E13_Projects_06),"",dms_E13_Projects_06) -> Other Non-demand | C71: 0 | D71: 0 | E71: 114805.1 | F71: 354333.355 | G71: 537079.4 | H71: 150956.152 | I71: 25.32
B72: =IF(ISBLANK(dms_E13_Projects_07),"",dms_E13_Projects_07) -> Major Alterations | C72: 402454.8799 | D72: 662909.0981 | E72: 1250669.972 | F72: 1277257.365 | G72: 1303206.385 | H72: 1281054.909 | I72: 1258070.519
B73: =IF(ISBLANK(dms_E13_Projects_08),"",dms_E13_Projects_08) -> City Gate Security Fence Upgrades | C73: 0 | D73: 0 | E73: 234210 | F73: 234210 | G73: 234210 | H73: 234210 | I73: 208890
B74: =IF(ISBLANK(dms_E13_Projects_09),"",dms_E13_Projects_09) -> Other non-IT | C74: 350476.3853 | D74: 244816.5707 | E74: 979266.2827 | F74: 979266.2827 | G74: 979266.2827 | H74: 979266.2827 | I74: 979266.2827
B75: =IF(ISBLANK(dms_E13_Projects_10),"",dms_E13_Projects_10) -> Extensions | C75: 3471589.874 | D75: 178506 | E75: 0 | F75: 0 | G75: 0 | H75: 0 | I75: 0
B76: =IF(ISBLANK(dms_E13_Projects_11),"",dms_E13_Projects_11) -> 
B77: =IF(ISBLANK(dms_E13_Projects_12),"",dms_E13_Projects_12) -> 
B78: =IF(ISBLANK(dms_E13_Projects_13),"",dms_E13_Projects_13) -> 
B79: =IF(ISBLANK(dms_E13_Projects_14),"",dms_E13_Projects_14) -> 
B80: =IF(ISBLANK(dms_E13_Projects_15),"",dms_E13_Projects_15) -> 
B81: Aggregate of other projects with total expenditure of less than $500,000
B82: Total | C82: =SUM(C66:C81) -> 4649426.862 | D82: =SUM(D66:D81) -> 2405150.469 | E82: 5933329.13 | F82: 5852713.753 | G82: 5716022.918 | H82: 5340854.094 | I82: 5344321.296
B84: D. OTHER DIRECT EXPENDITURE
B85: =IF(ISBLANK(dms_E13_Projects_01),"",dms_E13_Projects_01) -> Network Regulators - planned | C85: 0 | E85: 0 | F85: 0 | G85: 0 | H85: 0 | I85: 0
B86: =IF(ISBLANK(dms_E13_Projects_02),"",dms_E13_Projects_02) -> Network Regulators - ad hoc | C86: 0 | E86: 0 | F86: 0 | G86: 0 | H86: 0 | I86: 0
B87: =IF(ISBLANK(dms_E13_Projects_03),"",dms_E13_Projects_03) -> Customer Regulators - planned | C87: 0 | E87: 0 | F87: 0 | G87: 0 | H87: 0 | I87: 0
B88: =IF(ISBLANK(dms_E13_Projects_04),"",dms_E13_Projects_04) -> Customer Regulators - ad hoc | C88: 0 | E88: 0 | F88: 0 | G88: 0 | H88: 0 | I88: 0
B89: =IF(ISBLANK(dms_E13_Projects_05),"",dms_E13_Projects_05) -> Cathodic Protection | C89: 0 | E89: 0 | F89: 0 | G89: 0 | H89: 0 | I89: 0
B90: =IF(ISBLANK(dms_E13_Projects_06),"",dms_E13_Projects_06) -> Other Non-demand | C90: 0 | E90: 0 | F90: 0 | G90: 0 | H90: 0 | I90: 0
B91: =IF(ISBLANK(dms_E13_Projects_07),"",dms_E13_Projects_07) -> Major Alterations | C91: 0 | E91: 0 | F91: 0 | G91: 0 | H91: 0 | I91: 0
B92: =IF(ISBLANK(dms_E13_Projects_08),"",dms_E13_Projects_08) -> City Gate Security Fence Upgrades | C92: 0 | E92: 0 | F92: 0 | G92: 0 | H92: 0 | I92: 0
B93: =IF(ISBLANK(dms_E13_Projects_09),"",dms_E13_Projects_09) -> Other non-IT | C93: 0 | E93: 0 | F93: 0 | G93: 0 | H93: 0 | I93: 0
B94: =IF(ISBLANK(dms_E13_Projects_10),"",dms_E13_Projects_10) -> Extensions | C94: 0
B95: =IF(ISBLANK(dms_E13_Projects_11),"",dms_E13_Projects_11) -> 
B96: =IF(ISBLANK(dms_E13_Projects_12),"",dms_E13_Projects_12) -> 
B97: =IF(ISBLANK(dms_E13_Projects_13),"",dms_E13_Projects_13) -> 
B98: =IF(ISBLANK(dms_E13_Projects_14),"",dms_E13_Projects_14) -> 
B99: =IF(ISBLANK(dms_E13_Projects_15),"",dms_E13_Projects_15) -> 
B100: Aggregate of other projects with total expenditure of less than $500,000
B101: Total | C101: =SUM(C85:C100) -> 0 | D101: =SUM(D85:D100) -> 0 | E101: 0 | F101: 0 | G101: 0 | H101: 0 | I101: 0
B103: E. RELATED PARTY MARGIN EXPENDITURE
B104: =IF(ISBLANK(dms_E13_Projects_01),"",dms_E13_Projects_01) -> Network Regulators - planned | C104: 0 | E104: 0 | F104: 0 | G104: 0 | H104: 0 | I104: 0
B105: =IF(ISBLANK(dms_E13_Projects_02),"",dms_E13_Projects_02) -> Network Regulators - ad hoc | C105: 0 | E105: 0 | F105: 0 | G105: 0 | H105: 0 | I105: 0
B106: =IF(ISBLANK(dms_E13_Projects_03),"",dms_E13_Projects_03) -> Customer Regulators - planned | C106: 0 | E106: 0 | F106: 0 | G106: 0 | H106: 0 | I106: 0
B107: =IF(ISBLANK(dms_E13_Projects_04),"",dms_E13_Projects_04) -> Customer Regulators - ad hoc | C107: 0 | E107: 0 | F107: 0 | G107: 0 | H107: 0 | I107: 0
B108: =IF(ISBLANK(dms_E13_Projects_05),"",dms_E13_Projects_05) -> Cathodic Protection | C108: 0 | E108: 0 | F108: 0 | G108: 0 | H108: 0 | I108: 0
B109: =IF(ISBLANK(dms_E13_Projects_06),"",dms_E13_Projects_06) -> Other Non-demand | C109: 0 | E109: 0 | F109: 0 | G109: 0 | H109: 0 | I109: 0
B110: =IF(ISBLANK(dms_E13_Projects_07),"",dms_E13_Projects_07) -> Major Alterations | C110: 0 | E110: 0 | F110: 0 | G110: 0 | H110: 0 | I110: 0
B111: =IF(ISBLANK(dms_E13_Projects_08),"",dms_E13_Projects_08) -> City Gate Security Fence Upgrades | C111: 0 | E111: 0 | F111: 0 | G111: 0 | H111: 0 | I111: 0
B112: =IF(ISBLANK(dms_E13_Projects_09),"",dms_E13_Projects_09) -> Other non-IT | C112: 0 | E112: 0 | F112: 0 | G112: 0 | H112: 0 | I112: 0
B113: =IF(ISBLANK(dms_E13_Projects_10),"",dms_E13_Projects_10) -> Extensions | C113: 0
B114: =IF(ISBLANK(dms_E13_Projects_11),"",dms_E13_Projects_11) -> 
B115: =IF(ISBLANK(dms_E13_Projects_12),"",dms_E13_Projects_12) -> 
B116: =IF(ISBLANK(dms_E13_Projects_13),"",dms_E13_Projects_13) -> 
B117: =IF(ISBLANK(dms_E13_Projects_14),"",dms_E13_Projects_14) -> 
B118: =IF(ISBLANK(dms_E13_Projects_15),"",dms_E13_Projects_15) -> 
B119: Aggregate of other projects with total expenditure of less than $500,000
B120: Total | C120: =SUM(C104:C119) -> 0 | D120: =SUM(D104:D119) -> 0 | E120: 0 | F120: 0 | G120: 0 | H120: 0 | I120: 0
B122: F. CAPITAL CONTRIBUTIONS included in the above
B123: =IF(ISBLANK(dms_E13_Projects_01),"",dms_E13_Projects_01) -> Network Regulators - planned | C123: 0 | E123: 0 | F123: 0 | G123: 0 | H123: 0 | I123: 0
B124: =IF(ISBLANK(dms_E13_Projects_02),"",dms_E13_Projects_02) -> Network Regulators - ad hoc | C124: 0 | E124: 0 | F124: 0 | G124: 0 | H124: 0 | I124: 0
B125: =IF(ISBLANK(dms_E13_Projects_03),"",dms_E13_Projects_03) -> Customer Regulators - planned | C125: 0 | E125: 0 | F125: 0 | G125: 0 | H125: 0 | I125: 0
B126: =IF(ISBLANK(dms_E13_Projects_04),"",dms_E13_Projects_04) -> Customer Regulators - ad hoc | C126: 0 | E126: 0 | F126: 0 | G126: 0 | H126: 0 | I126: 0
B127: =IF(ISBLANK(dms_E13_Projects_05),"",dms_E13_Projects_05) -> Cathodic Protection | C127: 0 | E127: 0 | F127: 0 | G127: 0 | H127: 0 | I127: 0
B128: =IF(ISBLANK(dms_E13_Projects_06),"",dms_E13_Projects_06) -> Other Non-demand | C128: 0 | E128: 0 | F128: 0 | G128: 0 | H128: 0 | I128: 0
B129: =IF(ISBLANK(dms_E13_Projects_07),"",dms_E13_Projects_07) -> Major Alterations | C129: 0 | D129: 747953.7698 | E129: 1495907.54 | F129: 1495907.54 | G129: 1495907.54 | H129: 1495907.54 | I129: 1495907.54
B130: =IF(ISBLANK(dms_E13_Projects_08),"",dms_E13_Projects_08) -> City Gate Security Fence Upgrades | C130: 0 | E130: 0 | F130: 0 | G130: 0 | H130: 0 | I130: 0
B131: =IF(ISBLANK(dms_E13_Projects_09),"",dms_E13_Projects_09) -> Other non-IT | C131: 0 | E131: 0 | F131: 0 | G131: 0 | H131: 0 | I131: 0
B132: =IF(ISBLANK(dms_E13_Projects_10),"",dms_E13_Projects_10) -> Extensions | C132: 15719861 | D132: 1290969.74
B133: =IF(ISBLANK(dms_E13_Projects_11),"",dms_E13_Projects_11) -> 
B134: =IF(ISBLANK(dms_E13_Projects_12),"",dms_E13_Projects_12) -> 
B135: =IF(ISBLANK(dms_E13_Projects_13),"",dms_E13_Projects_13) -> 
B136: =IF(ISBLANK(dms_E13_Projects_14),"",dms_E13_Projects_14) -> 
B137: =IF(ISBLANK(dms_E13_Projects_15),"",dms_E13_Projects_15) -> 
B138: Aggregate of other projects with total expenditure of less than $500,000
B139: Total | C139: =SUM(C123:C138) -> 15719861 | D139: =SUM(D123:D138) -> 2038923.51 | E139: 1495907.54 | F139: 1495907.54 | G139: 1495907.54 | H139: 1495907.54 | I139: 1495907.54

Sheet E17. Step changes
B1: =INDEX(dms_Worksheet_List,MATCH(dms_Model,dms_Model_List)) -> REGULATORY REPORTING STATEMENT
B2: =dms_TradingName -> AusNet (Gas)
B3: =dms_Header_Span -> 2021-22 to 2027-28
B4: E17. STEP CHANGES
B6: E17.1 - STEP CHANGES FOR REFERENCE SERVICES
B7: E17.1.1 - FORECAST OPEX
D8: EXPENDITURE
D9: =CONCATENATE("$0's, real ",dms_DollarReal) -> $0's, real June 2023
B10: Step change | C10: Description | D10: =VLOOKUP(CRCP_y4,'AER lookups'!$B$52:$C$101,2,0) -> 2022 | E10: =CONCATENATE("1 Jan-30 Jun "&(D10+1)) -> 1 Jan-30 Jun 2023 | F10: =FRCP_y1 -> 2023-24 | G10: =FRCP_y2 -> 2024-25 | H10: =FRCP_y3 -> 2025-26 | I10: =FRCP_y4 -> 2026-27 | J10: =FRCP_y5 -> 2027-28
B11: SaaS and IT cloud | D11: 0 | E11: 0 | F11: 4309582.815 | G11: 5074810.041 | H11: 1848597.805 | I11: 362051.1316 | J11: -50235.64189
B12: EPA | D12: 0 | E12: 0 | F12: -1288.163927 | G12: 352941.4282 | H12: 340388.335 | I12: 429617.7634 | J12: 306817.3052
B21: Total | D21: =SUM(D11:D20) -> 0 | E21: 0 | F21: 4308294.651 | G21: 5427751.47 | H21: 2188986.14 | I21: 791668.8949 | J21: 256581.6633
B23: E17.1.2 - FORECAST CAPEX
D24: EXPENDITURE
D25: =CONCATENATE("$0's, real ", dms_DollarReal) -> $0's, real June 2023
B26: Step change | C26: Description | D26: =VLOOKUP(CRCP_y4,'AER lookups'!$B$52:$C$101,2,0) -> 2022 | E26: =CONCATENATE("1 Jan-30 Jun "&(D26+1)) -> 1 Jan-30 Jun 2023 | F26: =FRCP_y1 -> 2023-24 | G26: =FRCP_y2 -> 2024-25 | H26: =FRCP_y3 -> 2025-26 | I26: =FRCP_y4 -> 2026-27 | J26: =FRCP_y5 -> 2027-28
B27: SaaS and IT cloud | D27: 0 | E27: 0 | F27: -5706093.09 | G27: -6533296.955 | H27: -3572848.152 | I27: -2253321.331 | J27: -1956003.208
B37: Total | D37: =SUM(D27:D36) -> 0 | E37: 0 | F37: -5706093.09 | G37: -6533296.955 | H37: -3572848.152 | I37: -2253321.331 | J37: -1956003.208
B41: E17.2 - CATEGORY SPECIFIC FORECASTS
D42: EXPENDITURE
D43: =CONCATENATE("$0's, real ",dms_DollarReal) -> $0's, real June 2023
B44: Category desription | D44: =VLOOKUP(CRCP_y4,'AER lookups'!$B$52:$C$101,2,0) -> 2022 | E44: =CONCATENATE("1 Jan-30 Jun "&(D44+1)) -> 1 Jan-30 Jun 2023 | F44: =FRCP_y1 -> 2023-24 | G44: =FRCP_y2 -> 2024-25 | H44: =FRCP_y3 -> 2025-26 | I44: =FRCP_y4 -> 2026-27 | J44: =FRCP_y5 -> 2027-28
B45: Priority Services Program | D45: 0 | E45: 0 | F45: 1613728.557 | G45: 895779.507 | H45: 619645.257 | I45: 619645.257 | J45: 619645.257
B46: Debt raising cost | D46: 906108.3127 | E46: 452802.9506 | F46: 904602.1917 | G46: 906591.0197 | H46: 910625.1135 | I46: 910278.8501 | J46: 900598.4661
B70: Total | D70: =SUM(D45:D69) -> 906108.3127 | E70: 452802.9506 | F70: =SUM(F45:F69) -> 2518330.749 | G70: 1802370.527 | H70: 1530270.371 | I70: 1529924.107 | J70: 1520243.723

Sheet E20. Opex
B1: =INDEX(dms_Worksheet_List,MATCH(dms_Model,dms_Model_List)) -> REGULATORY REPORTING STATEMENT
B2: =dms_TradingName -> AusNet (Gas)
B3: =dms_Header_Span -> 2021-22 to 2027-28
B4: E20. OPERATING EXPENDITURE
B7: IMPORTANT!
B8: =CONCATENATE("Has ",dms_TradingName," used a base-step-trend model to derive its opex forecast? ") -> Has AusNet (Gas) used a base-step-trend model to derive its opex forecast? | D8: Yes
B9: Yes / No
B10: Please nominate the base year | D10: 2021
E11: 2015-16 | F11: 2016-17 | G11: 2017-18 | H11: 2018-19 | I11: 2019-20
B12: E20.1 - OPEX - BY DRIVER
B13: E20.1.1 - REFERENCE SERVICES
C14: EXPENDITURE
C15: =CONCATENATE("$0's, real ",dms_DollarReal) -> $0's, real June 2023
C16: =VLOOKUP(CRCP_y1,'AER lookups'!$B$52:$C$101,2,0) -> 2019 | D16: =VLOOKUP(CRCP_y2,'AER lookups'!$B$52:$C$101,2,0) -> 2020 | E16: =VLOOKUP(CRCP_y3,'AER lookups'!$B$52:$C$101,2,0) -> 2021 | F16: =VLOOKUP(CRCP_y4,'AER lookups'!$B$52:$C$101,2,0) -> 2022 | G16: =CONCATENATE("1 Jan-30 Jun "&(F16+1)) -> 1 Jan-30 Jun 2023 | H16: =FRCP_y1 -> 2023-24 | I16: =FRCP_y2 -> 2024-25 | J16: =FRCP_y3 -> 2025-26 | K16: =FRCP_y4 -> 2026-27 | L16: =FRCP_y5 -> 2027-28
B17: Base year total opex, excluding category specific | E17: 57922749.55 | F17: 51895265.46 | G17: 30191112.95 | H17: 52937458.87 | I17: 52937458.87 | J17: 52937458.87 | K17: 52937458.87 | L17: 52937458.87
B18: Increment from base year to final year | G18: 22746345.92
B19: Price growth | H19: 203349.4674 | I19: 578457.3161 | J19: 967208.6282 | K19: 839190.6445 | L19: 909521.562
B20: Output growth | H20: 1165806.404 | I20: 2276715.162 | J20: 3453215.414 | K20: 5106472.635 | L20: 6486869.594
B21: Productivity growth | H21: -211564.644 | I21: -411343.0216 | J21: -621699.3845 | K21: -940424.0885 | L21: -1221676.931
B22: Step changes | H22: 4308294.651 | I22: 5427751.47 | J22: 2188986.14 | K22: 791668.8949 | L22: 256581.6633
B23: Category specific | F23: =IF(ISBLANK('E17. Step changes'!D70),"",'E17. Step changes'!D70) -> 906108.3127 | G23: =IF(ISBLANK('E17. Step changes'!E70),"",'E17. Step changes'!E70) -> 452802.9506 | H23: =IF(ISBLANK('E17. Step changes'!F70),"",'E17. Step changes'!F70) -> 2518330.749 | I23: =IF(ISBLANK('E17. Step changes'!G70),"",'E17. Step changes'!G70) -> 1802370.527 | J23: =IF(ISBLANK('E17. Step changes'!H70),"",'E17. Step changes'!H70) -> 1530270.371 | K23: =IF(ISBLANK('E17. Step changes'!I70),"",'E17. Step changes'!I70) -> 1529924.107 | L23: =IF(ISBLANK('E17. Step changes'!J70),"",'E17. Step changes'!J70) -> 1520243.723
B25: E20.1.2 - NON-REFERENCE SERVICES
C26: EXPENDITURE
C27: =CONCATENATE("$0's, real ",dms_DollarReal) -> $0's, real June 2023
C28: =VLOOKUP(CRCP_y1,'AER lookups'!$B$52:$C$101,2,0) -> 2019 | D28: =VLOOKUP(CRCP_y2,'AER lookups'!$B$52:$C$101,2,0) -> 2020 | E28: =VLOOKUP(CRCP_y3,'AER lookups'!$B$52:$C$101,2,0) -> 2021 | F28: =VLOOKUP(CRCP_y4,'AER lookups'!$B$52:$C$101,2,0) -> 2022 | G28: =CONCATENATE("1 Jan-30 Jun "&(F28+1)) -> 1 Jan-30 Jun 2023 | H28: =FRCP_y1 -> 2023-24 | I28: =FRCP_y2 -> 2024-25 | J28: =FRCP_y3 -> 2025-26 | K28: =FRCP_y4 -> 2026-27 | L28: =FRCP_y5 -> 2027-28
B29: Base year total opex, excluding category specific | E29: 0 | F29: 0 | G29: 0 | H29: 0 | I29: 0 | J29: 0 | K29: 0 | L29: 0
B30: Increment from base year to final year | G30: 0
B31: Price growth | H31: 0 | I31: 0 | J31: 0 | K31: 0 | L31: 0
B32: Output growth | H32: 0 | I32: 0 | J32: 0 | K32: 0 | L32: 0
B33: Productivity growth | H33: 0 | I33: 0 | J33: 0 | K33: 0 | L33: 0
B34: Step changes | H34: 0 | I34: 0 | J34: 0 | K34: 0 | L34: 0
B35: Category specific
B39: E20.2 - OPEX - BY CATEGORY
B40: E20.2.1 - REFERENCE SERVICES
C41: EXPENDITURE
C42: =CONCATENATE("$0's, real ",dms_DollarReal) -> $0's, real June 2023
F43: =VLOOKUP(CRCP_y4,'AER lookups'!$B$52:$C$101,2,0) -> 2022 | G43: =CONCATENATE("1 Jan-30 Jun "&(F43+1)) -> 1 Jan-30 Jun 2023 | H43: =FRCP_y1 -> 2023-24 | I43: =FRCP_y2 -> 2024-25 | J43: =FRCP_y3 -> 2025-26 | K43: =FRCP_y4 -> 2026-27 | L43: =FRCP_y5 -> 2027-28
B44: repairs and maintenance
B45: marketing and retail incentives
B46: debt raising
B47: equity raising
B48: unaccounted for gas
B49: jurisdictional charges
B50: GSL payments
B51: other opex
B52: TOTAL | F52: =SUM(F44:F51) -> 0 | G52: 0 | H52: 0 | I52: 0 | J52: 0 | K52: 0 | L52: 0
B54: E20.2.2 - NON-REFERENCE SERVICES
C55: EXPENDITURE
C56: =CONCATENATE("$0's, real ",dms_DollarReal) -> $0's, real June 2023
F57: =VLOOKUP(CRCP_y4,'AER lookups'!$B$52:$C$101,2,0) -> 2022 | G57: =CONCATENATE("1 Jan-30 Jun "&(F57+1)) -> 1 Jan-30 Jun 2023 | H57: =FRCP_y1 -> 2023-24 | I57: =FRCP_y2 -> 2024-25 | J57: =FRCP_y3 -> 2025-26 | K57: =FRCP_y4 -> 2026-27 | L57: =FRCP_y5 -> 2027-28
B83: TOTAL | F83: =SUM(F58:F82) -> 0 | G83: =SUM(G58:G82) -> 0 | H83: 0 | I83: 0 | J83: 0 | K83: 0 | L83: 0
B87: E20.3 - OPEX - BY CATEGORY - RELATED PARTY MARGIN EXPENDITURE
B88: 20.3.1 - REFERENCE SERVICES
C89: EXPENDITURE
C90: =CONCATENATE("$0's, real ",dms_DollarReal) -> $0's, real June 2023
F91: =VLOOKUP(CRCP_y4,'AER lookups'!$B$52:$C$101,2,0) -> 2022 | G91: =CONCATENATE("1 Jan-30 Jun "&(F91+1)) -> 1 Jan-30 Jun 2023 | H91: =FRCP_y1 -> 2023-24 | I91: =FRCP_y2 -> 2024-25 | J91: =FRCP_y3 -> 2025-26 | K91: =FRCP_y4 -> 2026-27 | L91: =FRCP_y5 -> 2027-28
B92: repairs and maintenance
B93: marketing and retail incentives
B94: debt raising
B95: equity raising
B96: unaccounted for gas
B97: jurisdictional charges
B98: GSL payments
B99: other opex
B100: TOTAL | F100: =SUM(F92:F99) -> 0 | G100: 0 | H100: 0 | I100: 0 | J100: 0 | K100: 0 | L100: 0
B102: 20.3.2 - NON-REFERENCE SERVICES
C103: EXPENDITURE
C104: =CONCATENATE("$0's, real ",dms_DollarReal) -> $0's, real June 2023
F105: =VLOOKUP(CRCP_y4,'AER lookups'!$B$52:$C$101,2,0) -> 2022 | G105: =CONCATENATE("1 Jan-30 Jun "&(F105+1)) -> 1 Jan-30 Jun 2023 | H105: =FRCP_y1 -> 2023-24 | I105: =FRCP_y2 -> 2024-25 | J105: =FRCP_y3 -> 2025-26 | K105: =FRCP_y4 -> 2026-27 | L105: =FRCP_y5 -> 2027-28
B106: =IF(ISBLANK(B58),"",B58) -> 
B131: TOTAL | F131: =SUM(F106:F130) -> 0 | G131: =SUM(G106:G130) -> 0 | H131: 0 | I131: 0 | J131: 0 | K131: 0 | L131: 0

Sheet E21. ARS
B1: =INDEX(dms_Worksheet_List,MATCH(dms_Model,dms_Model_List)) -> REGULATORY REPORTING STATEMENT
B2: =dms_TradingName -> AusNet (Gas)
B3: =dms_Header_Span -> 2021-22 to 2027-28
B4: E21. ANCILLARY REFERENCE SERVICES
B6: E21.1 - VOLUMES
C7: VOLUME
C8: 0's
B9: Description | C9: =VLOOKUP(CRCP_y4,'AER lookups'!$B$52:$C$101,2,0) -> 2022 | D9: =CONCATENATE("1 Jan-30 Jun "&(C9+1)) -> 1 Jan-30 Jun 2023 | E9: =FRCP_y1 -> 2023-24 | F9: =FRCP_y2 -> 2024-25 | G9: =FRCP_y3 -> 2025-26 | H9: =FRCP_y4 -> 2026-27 | I9: =FRCP_y5 -> 2027-28
B10: Meter and Gas installation test | C10: 154.25 | D10: 77.125 | E10: 154.25 | F10: 154.25 | G10: 154.25 | H10: 154.25 | I10: 154.25
B11: Disconnection - locks and plugs at the meter installation | C11: 6682 | D11: 3341 | E11: 6682 | F11: 6682 | G11: 6682 | H11: 6682 | I11: 6682
B12: Reconnection - following insertion of locks and plugs at the meter installation | C12: 2267.25 | D12: 1133.625 | E12: 2267.25 | F12: 2267.25 | G12: 2267.25 | H12: 2267.25 | I12: 2267.25
B13: Special read | C13: 250585.8 | D13: 126601.4889 | E13: 258714.6783 | F13: 264403.7694 | G13: 270265.1508 | H13: 275950.8903 | I13: 281455.4636
B14: Meter Fix or Meter Reinstallation (New) | C14: 0 | D14: 0 | E14: 19793.25 | F14: 19793.25 | G14: 19793.25 | H14: 19793.25 | I14: 19793.25
B15: Meter and Service Removal (New) | C15: 0 | D15: 0 | E15: 2136.75 | F15: 2136.75 | G15: 2136.75 | H15: 2136.75 | I15: 2136.75
B16: Minor Meter Alter Position (New) | C16: 0 | D16: 0 | E16: 294 | F16: 294 | G16: 294 | H16: 294 | I16: 294
B17: Total | C17: =SUM(C10:C16) -> 259689.3 | D17: =SUM(D10:D16) -> 131153.2389 | E17: =SUM(E10:E16) -> 290042.1783 | F17: 295731.2694 | G17: 301592.6508 | H17: 307278.3903 | I17: 312782.9636
B19: E21.2 - omitted
B21: E21.3 - EXPENDITURE
C22: EXPENDITURE
C23: =CONCATENATE("$0's, real ",dms_DollarReal) -> $0's, real June 2023
C24: =VLOOKUP(CRCP_y4,'AER lookups'!$B$52:$C$101,2,0) -> 2022 | D24: =CONCATENATE("1 Jan-30 Jun "&(C24+1)) -> 1 Jan-30 Jun 2023 | E24: =FRCP_y1 -> 2023-24 | F24: =FRCP_y2 -> 2024-25 | G24: =FRCP_y3 -> 2025-26 | H24: =FRCP_y4 -> 2026-27 | I24: =FRCP_y5 -> 2027-28
B25: =IF(ISBLANK(B10),"",B10) -> Meter and Gas installation test | C25: 30603.70903 | D25: 15301.85451 | E25: 30603.70903 | F25: 30603.70903 | G25: 30603.70903 | H25: 30603.70903 | I25: 30603.70903
B26: Disconnection - locks and plugs at the meter installation | C26: 441863.2868 | D26: 220931.6434 | E26: 441863.2868 | F26: 441863.2868 | G26: 441863.2868 | H26: 441863.2868 | I26: 441863.2868
B27: Reconnection - following insertion of locks and plugs at the meter installation | C27: 149927.3476 | D27: 74963.67382 | E27: 149927.3476 | F27: 149927.3476 | G27: 149927.3476 | H27: 149927.3476 | I27: 149927.3476
B28: Special read | C28: 2569657.145 | D28: 1298247.628 | E28: 1733424.905 | F28: 1763493.018 | G28: 1794395.997 | H28: 1823820.872 | I28: 1851749.37
B29: Meter Fix or Meter Reinstallation (New) | C29: 0 | D29: 0 | E29: 2679688.049 | F29: 2693541.57 | G29: 2707466.711 | H29: 2721463.843 | I29: 2735533.338
B30: Meter and Service Removal (New) | C30: 0 | D30: 0 | E30: 1686967.996 | F30: 1695689.327 | G30: 1704455.746 | H30: 1713267.486 | I30: 1722124.781
B31: Minor Meter Alter Position (New) | C31: 0 | D31: 0 | E31: 282677.8481 | F31: 284139.2434 | G31: 285608.1938 | H31: 287084.7385 | I31: 288568.9167
B32: Total | C32: 5358329.351 | D32: 2692583.731 | E32: =SUM(E25:E31) -> 7005153.141 | F32: 7059257.502 | G32: 7114320.992 | H32: 7168031.284 | I32: 7220370.749

Sheet E25. Escalators
B1: =INDEX(dms_Worksheet_List,MATCH(dms_Model,dms_Model_List)) -> REGULATORY REPORTING STATEMENT
B2: =dms_TradingName -> AusNet (Gas)
B3: =dms_Header_Span -> 2021-22 to 2027-28
B4: E25. ESCALATORS
B6: E25.1 - FORECAST CAPEX AND OPEX PRICE CHANGES
C7: Price changes (% YoY real)
C8: =VLOOKUP(CRCP_y4,'AER lookups'!$B$52:$C$101,2,0) -> 2022 | D8: =CONCATENATE("1 Jan-30 Jun "&(C8+1)) -> 1 Jan-30 Jun 2023 | E8: =FRCP_y1 -> 2023-24 | F8: =FRCP_y2 -> 2024-25 | G8: =FRCP_y3 -> 2025-26 | H8: =FRCP_y4 -> 2026-27 | I8: =FRCP_y5 -> 2027-28
B9: E25.1.1 - OPEX
B10: Labour (real) | C10: 0.01432448873 | D10: 0.0107242438 | E10: 0.006201093069 | F10: 0.009072677762 | G10: 0.01003709481 | H10: 0.00575711879 | I10: 0.004803136491
B11: Materials (real) | C11: 0 | D11: 0 | E11: 0 | F11: 0 | G11: 0 | H11: 0 | I11: 0
B16: E25.1.2 - CAPEX
B17: Labour - Internal | C17: 0 | D17: 0.005195923572 | E17: 0.005008228197 | F17: 0.007797345006 | G17: 0.01100844818 | H17: 0.01100844818 | I17: 0.01100844818
B18: Labout - External | C18: 0 | D18: 0 | E18: 0 | F18: 0 | G18: 0 | H18: 0 | I18: 0
B19: Materials | C19: 0 | D19: 0 | E19: 0 | F19: 0 | G19: 0 | H19: 0 | I19: 0

Sheet N1. Demand
B1: =INDEX(dms_Worksheet_List,MATCH(dms_Model,dms_Model_List)) -> REGULATORY REPORTING STATEMENT
B2: =dms_TradingName -> AusNet (Gas)
B3: =dms_Header_Span -> 2021-22 to 2027-28
B4: N1. DEMAND
B6: N1.1 - DEMAND - BY CUSTOMER TYPE
C7: VOLUME
C8: GJ
C9: =VLOOKUP(CRCP_y4,'AER lookups'!$B$52:$C$101,2,0) -> 2022 | D9: =CONCATENATE("1 Jan-30 Jun "&(C9+1)) -> 1 Jan-30 Jun 2023 | E9: =FRCP_y1 -> 2023-24 | F9: =FRCP_y2 -> 2024-25 | G9: =FRCP_y3 -> 2025-26 | H9: =FRCP_y4 -> 2026-27 | I9: =FRCP_y5 -> 2027-28
B10: Residential | C10: =SUM(C21,C23,C25,C27) -> 31708822.43 | D10: =SUM(D21,D23,D25,D27) -> 12539510.83 | E10: 31255312.32 | F10: 31135197.11 | G10: 31298330.5 | H10: 31746711.93 | I10: 32283972.95
B11: Commercial | C11: =SUM(C22,C24,C26,C28) -> 6104918.293 | D11: 2942804.879 | E11: 6261663.615 | F11: 6180197.937 | G11: 6156615.817 | H11: 6188099.386 | I11: 6237212.103
B12: Industrial | C12: n/a | D12: n/a | E12: n/a | F12: n/a | G12: n/a | H12: n/a | I12: n/a
B13: Total | C13: =SUM(C10:C12) -> 37813740.72 | D13: 15482315.71 | E13: 37516975.93 | F13: 37315395.05 | G13: 37454946.32 | H13: 37934811.32 | I13: 38521185.06
B17: N1.2 - DEMAND - BY TARIFF
C18: VOLUMES
C19: GJ
B20: Tariff | C20: =VLOOKUP(CRCP_y4,'AER lookups'!$B$52:$C$101,2,0) -> 2022 | D20: =CONCATENATE("1 Jan-30 Jun "&(C20+1)) -> 1 Jan-30 Jun 2023 | E20: =FRCP_y1 -> 2023-24 | F20: =FRCP_y2 -> 2024-25 | G20: =FRCP_y3 -> 2025-26 | H20: =FRCP_y4 -> 2026-27 | I20: =FRCP_y5 -> 2027-28
B21: Tariff V Central Domestic | C21: 24263459.71 | D21: 9620704.105 | E21: 23965943.75 | F21: 23906012.71 | G21: 24062694.88 | H21: 24435483.59 | I21: 24875370.22
B22: Tariff V Central Non-Domestic | C22: 4413144.567 | D22: 2146111.818 | E22: 4531957.289 | F22: 4476913.011 | G22: 4463803.078 | H22: 4490325.569 | I22: 4529526.518
B23: Tariff V West Domestic | C23: 6777210.686 | D23: 2652853.384 | E23: 6613543.823 | F23: 6543081.169 | G23: 6533438.955 | H23: 6586822.593 | I23: 6660053.302
B24: Tariff V West Non-Domestic | C24: 1591429.145 | D24: 747691.733 | E24: 1626667.536 | F24: 1601360.926 | G24: 1591049.518 | H24: 1595268.115 | I24: 1604147.373
B25: Tariff V Adjoining Central Domestic | C25: 73681.30368 | D25: 30588.66683 | E25: 77663.24122 | F25: 80918.2073 | G25: 84809.65408 | H25: 89363.69887 | I25: 94133.48955
B26: Tariff V Adjoining Central Non-Domestic | C26: 3607.58547 | D26: 1911.638516 | E26: 3788.183039 | F26: 3822.262572 | G26: 3891.157784 | H26: 3991.288122 | I26: 4101.749099
B27: Tariff V Adjoining West Domestic | C27: 594470.7259 | D27: 235364.6785 | E27: 598161.4993 | F27: 605185.0321 | G27: 617387.0139 | H27: 635042.0515 | I27: 654415.9371
B28: Tariff V Adjoining West Non-Domestic | C28: 96736.9949 | D28: 47089.68898 | E28: 99250.60731 | F28: 98101.7374 | G28: 97872.06231 | H28: 98514.41329 | I28: 99436.46304
B29: Tariff D West & Central | C29: n/a | D29: n/a | E29: n/a | F29: n/a | G29: n/a | H29: n/a | I29: n/a
B30: Tariff D Adjoining West & Central | C30: n/a | D30: n/a | E30: n/a | F30: n/a | G30: n/a | H30: n/a | I30: n/a
B31: Tariff M West & Central | C31: n/a | D31: n/a | E31: n/a | F31: n/a | G31: n/a | H31: n/a | I31: n/a
B32: Tariff M Adjoining West & Central | C32: n/a | D32: n/a | E32: n/a | F32: n/a | G32: n/a | H32: n/a | I32: n/a
B96: Total | C96: =SUM(C21:C95) -> 37813740.72 | D96: 15482315.71 | E96: 37516975.93 | F96: 37315395.05 | G96: 37454946.32 | H96: 37934811.32 | I96: 38521185.06

Sheet N2. Network characteristics
B1: =INDEX(dms_Worksheet_List,MATCH(dms_Model,dms_Model_List)) -> REGULATORY REPORTING STATEMENT
B2: =dms_TradingName -> AusNet (Gas)
B3: =dms_Header_Span -> 2021-22 to 2027-28
B4: N2. NETWORK CHARACTERISTICS
B6: N2.1 - NETWORK LENGTH - BY PRESSURE AND ASSET TYPE
D7: LENGTH
D8: KM
D9: =VLOOKUP(CRCP_y4,'AER lookups'!$B$52:$C$101,2,0) -> 2022 | E9: =CONCATENATE("1 Jan-30 Jun "&(D9+1)) -> 1 Jan-30 Jun 2023 | F9: =FRCP_y1 -> 2023-24 | G9: =FRCP_y2 -> 2024-25 | H9: =FRCP_y3 -> 2025-26 | I9: =FRCP_y4 -> 2026-27 | J9: =FRCP_y5 -> 2027-28
B10: N2.1.1 - LOW PRESSURE
C11: Cast Iron | D11: 63.62173457 | E11: 56.5886264 | F11: 41.77738706 | G11: 25.88308012 | H11: 14.27011955 | I11: 6.399455658 | J11: 0
C12: PVC | D12: 197.5622284 | E12: 175.7225767 | F12: 129.7297809 | G12: 80.3737751 | H12: 44.3124765 | I12: 19.87199389 | J12: 0
C13: Polyamide | D13: 0 | E13: 0 | F13: 0 | G13: 0 | H13: 0 | I13: 0 | J13: 0
C14: High density polyethylene (80) | D14: 3.934502006 | E14: 3.49955979 | F14: 2.583601568 | G14: 1.600664165 | H14: 0.8824942354 | I14: 0.3957558104 | J14: 0
C15: High density polyethylene (100) | D15: 1.222207006 | E15: 1.087097297 | F15: 0.8025655935 | G15: 0.4972275917 | H15: 0.2741365072 | I15: 0.1229369113 | J15: 0
C16: High density polyethylene (250) | D16: 0 | E16: 0 | F16: 0 | G16: 0 | H16: 0 | I16: 0 | J16: 0
C17: High density polyethylene (575) | D17: 2.951713633 | E17: 2.62541443 | F17: 1.938250879 | G17: 1.200838691 | H17: 0.6620584413 | I17: 0.2969010612 | J17: 0
C18: Medium density polyethylene | D18: 0 | E18: 0 | F18: 0 | G18: 0 | H18: 0 | I18: 0 | J18: 0
C19: Other polyethylene | D19: 0.003348512346 | E19: 0.002978348758 | F19: 0.002198809845 | G19: 0.001362267375 | H19: 0.0007510589237 | I19: 0.0003368134557 | J19: 0
C20: Unprotected steel | D20: 8.92880817 | E20: 7.941766963 | F20: 5.863126453 | G20: 3.632485954 | H20: 2.00269862 | I20: 0.8981130796 | J20: 0
C21: Protected steel | D21: 5.521696858 | E21: 4.911297102 | F21: 3.625837435 | G21: 2.246378901 | H21: 1.238496165 | I21: 0.5554053884 | J21: 0
C22: Other | D22: 21.23877668 | E22: 18.89092158 | F22: 13.94650115 | G22: 8.64052139 | H22: 4.763778988 | I22: 2.136323546 | J22: 0
B23: N2.1.2 - MEDIUM PRESSURE
C24: Cast Iron | D24: 0.462 | E24: 0.462 | F24: 0.4277777778 | G24: 0.3642222222 | H24: 0.2488444444 | I24: 0.1134222222 | J24: 0
C25: PVC | D25: 0 | E25: 0 | F25: 0 | G25: 0 | H25: 0 | I25: 0 | J25: 0
C26: Polyamide | D26: 0 | E26: 0 | F26: 0 | G26: 0 | H26: 0 | I26: 0 | J26: 0
C27: High density polyethylene (80) | D27: 16.601 | E27: 16.601 | F27: 16.601 | G27: 16.601 | H27: 16.601 | I27: 16.601 | J27: 16.601
C28: High density polyethylene (100) | D28: 7.986 | E28: 7.986 | F28: 7.986 | G28: 7.986 | H28: 7.986 | I28: 7.986 | J28: 7.986
C29: High density polyethylene (250) | D29: 24.739 | E29: 24.739 | F29: 22.90648148 | G29: 19.5032328 | H29: 13.32502751 | I29: 6.073489947 | J29: 0
C30: High density polyethylene (575) | D30: 171.278 | E30: 171.278 | F30: 171.278 | G30: 171.278 | H30: 171.278 | I30: 171.278 | J30: 171.278
C31: Medium density polyethylene | D31: 0 | E31: 0 | F31: 0 | G31: 0 | H31: 0 | I31: 0 | J31: 0
C32: Other polyethylene | D32: 0 | E32: 0 | F32: 0 | G32: 0 | H32: 0 | I32: 0 | J32: 0
C33: Unprotected steel | D33: 196.2223571 | E33: 186.2223571 | F33: 182.0297645 | G33: 174.2435211 | H33: 160.1084947 | I33: 143.5178068 | J33: 129.6223571
C34: Protected steel | D34: 196.003 | E34: 196.003 | F34: 195.3585556 | G34: 194.1617302 | H34: 191.9890317 | I34: 189.438873 | J34: 187.303
C35: Other | D35: 0.315 | E35: 0.315 | F35: 0.315 | G35: 0.315 | H35: 0.315 | I35: 0.315 | J35: 0.315
B36: N2.1.3 - HIGH PRESSURE
C37: Cast Iron | D37: 0.178 | E37: 0.178 | F37: 0.178 | G37: 0.178 | H37: 0.178 | I37: 0.178 | J37: 0.178
C38: PVC | D38: 0.172 | E38: 0.172 | F38: 0.172 | G38: 0.172 | H38: 0.172 | I38: 0.172 | J38: 0.172
C39: Polyamide | D39: 0 | E39: 0 | F39: 0 | G39: 0 | H39: 0 | I39: 0 | J39: 0
C40: High density polyethylene (80) | D40: 3966.032 | E40: 3966.032 | F40: 3966.032 | G40: 3966.032 | H40: 3966.032 | I40: 3966.032 | J40: 3966.032
C41: High density polyethylene (100) | D41: 2535.314452 | E41: 2672.800651 | F41: 2924.136639 | G41: 3192.580766 | H41: 3453.259779 | I41: 3696.462317 | J41: 3924.463483
C42: High density polyethylene (250) | D42: 0.053 | E42: 0.053 | F42: 0.053 | G42: 0.053 | H42: 0.053 | I42: 0.053 | J42: 0.053
C43: High density polyethylene (575) | D43: 2752.951 | E43: 2752.951 | F43: 2745.951 | G43: 2738.951 | H43: 2731.951 | I43: 2724.951 | J43: 2717.951
C44: Medium density polyethylene | D44: 0 | E44: 0 | F44: 0 | G44: 0 | H44: 0 | I44: 0 | J44: 0
C45: Other polyethylene | D45: 51.373 | E45: 51.373 | F45: 51.373 | G45: 51.373 | H45: 51.373 | I45: 51.373 | J45: 51.373
C46: Unprotected steel | D46: 0.664 | E46: 0.664 | F46: 0.664 | G46: 0.664 | H46: 0.664 | I46: 0.664 | J46: 0.664
C47: Protected steel | D47: 2293.468 | E47: 2293.468 | F47: 2293.468 | G47: 2293.468 | H47: 2293.468 | I47: 2293.468 | J47: 2293.468
C48: Other | D48: 0 | E48: 0 | F48: 0 | G48: 0 | H48: 0 | I48: 0 | J48: 0
B49: N2.1.4 - TRANSMISSION
C50: Protected steel | D50: 206.086 | E50: 206.086 | F50: 206.086 | G50: 206.086 | H50: 206.086 | I50: 206.086 | J50: 206.086
C51: Other | D51: 0 | E51: 0 | F51: 0 | G51: 0 | H51: 0 | I51: 0 | J51: 0
C52: Total | D52: =SUM(D11:D51) -> 12724.88283 | E52: 12818.65425 | F52: 12985.28547 | G52: 13158.08681 | H52: 13333.49519 | I52: 13505.44013 | J52: 13673.54584
B56: N2.2 - CITY GATES / REGULATORS
D57: VOLUMES
D58: 0's
D59: =VLOOKUP(CRCP_y4,'AER lookups'!$B$52:$C$101,2,0) -> 2022 | E59: =CONCATENATE("1 Jan-30 Jun "&(D59+1)) -> 1 Jan-30 Jun 2023 | F59: =FRCP_y1 -> 2023-24 | G59: =FRCP_y2 -> 2024-25 | H59: =FRCP_y3 -> 2025-26 | I59: =FRCP_y4 -> 2026-27 | J59: =FRCP_y5 -> 2027-28
C60: City Gate | D60: 42 | E60: 42 | F60: 42 | G60: 43 | H60: 43 | I60: 43 | J60: 44
C61: Field Regulator | D61: 108 | E61: 108 | F61: 108 | G61: 108 | H61: 108 | I61: 108 | J61: 108
C62: District Regulator | D62: 39 | E62: 35 | F62: 28 | G62: 21 | H62: 14 | I62: 7 | J62: 0
C63: Total | D63: =SUM(D60:D62) -> 189 | E63: =SUM(E60:E62) -> 185 | F63: =SUM(F60:F62) -> 178 | G63: =SUM(G60:G62) -> 172 | H63: 165 | I63: 158 | J63: 152

Sheet S1.1 Customer numbers
B1: =INDEX(dms_Worksheet_List,MATCH(dms_Model,dms_Model_List)) -> REGULATORY REPORTING STATEMENT
B2: =dms_TradingName -> AusNet (Gas)
B3: =dms_Header_Span -> 2021-22 to 2027-28
B4: S1. CUSTOMER NUMBERS
B6: S1.1 - CUSTOMER NUMBERS - BY CUSTOMER TYPE
B7: A. RESIDENTIAL
C8: VOLUMES
C9: 0's
C10: =VLOOKUP(CRCP_y4,'AER lookups'!$B$52:$C$101,2,0) -> 2022 | D10: =CONCATENATE("1 Jan-30 Jun "&(C10+1)) -> 1 Jan-30 Jun 2023 | E10: =FRCP_y1 -> 2023-24 | F10: =FRCP_y2 -> 2024-25 | G10: =FRCP_y3 -> 2025-26 | H10: =FRCP_y4 -> 2026-27 | I10: =FRCP_y5 -> 2027-28
B11: Customer numbers - Beginning of year | C11: =SUM('S1.2 Customer numbers'!C11,'S1.2 Customer numbers'!C13,'S1.2 Customer numbers'!C15,'S1.2 Customer numbers'!C17) -> 759407 | D11: =C12 -> 775187.3493 | E11: =D12 -> 783516.8248 | F11: 783516.8248 | G11: 800434.918 | H11: 817897.5092 | I11: 835888.9436
B12: Customer numbers - End of year | C12: =+SUM('S1.2 Customer numbers'!C92,'S1.2 Customer numbers'!C94,'S1.2 Customer numbers'!C96,'S1.2 Customer numbers'!C98) -> 775187.3493 | D12: =+SUM('S1.2 Customer numbers'!D92,'S1.2 Customer numbers'!D94,'S1.2 Customer numbers'!D96,'S1.2 Customer numbers'!D98) -> 783516.8248 | E12: =+SUM('S1.2 Customer numbers'!E92,'S1.2 Customer numbers'!E94,'S1.2 Customer numbers'!E96,'S1.2 Customer numbers'!E98) -> 783516.8248 | F12: =+SUM('S1.2 Customer numbers'!F92,'S1.2 Customer numbers'!F94,'S1.2 Customer numbers'!F96,'S1.2 Customer numbers'!F98) -> 800434.918 | G12: =+SUM('S1.2 Customer numbers'!G92,'S1.2 Customer numbers'!G94,'S1.2 Customer numbers'!G96,'S1.2 Customer numbers'!G98) -> 817897.5092 | H12: =+SUM('S1.2 Customer numbers'!H92,'S1.2 Customer numbers'!H94,'S1.2 Customer numbers'!H96,'S1.2 Customer numbers'!H98) -> 835888.9436 | I12: =+SUM('S1.2 Customer numbers'!I92,'S1.2 Customer numbers'!I94,'S1.2 Customer numbers'!I96,'S1.2 Customer numbers'!I98) -> 853341.2471
B13: Total customer connections | C13: =+SUM('S1.2 Customer numbers'!C173,'S1.2 Customer numbers'!C175,'S1.2 Customer numbers'!C177,'S1.2 Customer numbers'!C179) -> 17733.30397 | D13: =+SUM('S1.2 Customer numbers'!D173,'S1.2 Customer numbers'!D175,'S1.2 Customer numbers'!D177,'S1.2 Customer numbers'!D179) -> 9317.036865 | E13: =+SUM('S1.2 Customer numbers'!E173,'S1.2 Customer numbers'!E175,'S1.2 Customer numbers'!E177,'S1.2 Customer numbers'!E179) -> 18938.32736 | F13: =+SUM('S1.2 Customer numbers'!F173,'S1.2 Customer numbers'!F175,'S1.2 Customer numbers'!F177,'S1.2 Customer numbers'!F179) -> 19529.47972 | G13: =+SUM('S1.2 Customer numbers'!G173,'S1.2 Customer numbers'!G175,'S1.2 Customer numbers'!G177,'S1.2 Customer numbers'!G179) -> 20106.43837 | H13: =+SUM('S1.2 Customer numbers'!H173,'S1.2 Customer numbers'!H175,'S1.2 Customer numbers'!H177,'S1.2 Customer numbers'!H179) -> 19613.91553 | I13: =+SUM('S1.2 Customer numbers'!I173,'S1.2 Customer numbers'!I175,'S1.2 Customer numbers'!I177,'S1.2 Customer numbers'!I179) -> 19102.87336
B14: Total customer disconnections | C14: =+SUM('S1.2 Customer numbers'!C254,'S1.2 Customer numbers'!C256,'S1.2 Customer numbers'!C258,'S1.2 Customer numbers'!C260) -> 1952.95469 | D14: =+SUM('S1.2 Customer numbers'!D254,'S1.2 Customer numbers'!D256,'S1.2 Customer numbers'!D258,'S1.2 Customer numbers'!D260) -> 987.5613731 | E14: =+SUM('S1.2 Customer numbers'!E254,'S1.2 Customer numbers'!E256,'S1.2 Customer numbers'!E258,'S1.2 Customer numbers'!E260) -> 18938.32736 | F14: =+SUM('S1.2 Customer numbers'!F254,'S1.2 Customer numbers'!F256,'S1.2 Customer numbers'!F258,'S1.2 Customer numbers'!F260) -> 2611.38652 | G14: =+SUM('S1.2 Customer numbers'!G254,'S1.2 Customer numbers'!G256,'S1.2 Customer numbers'!G258,'S1.2 Customer numbers'!G260) -> 2643.847153 | H14: =+SUM('S1.2 Customer numbers'!H254,'S1.2 Customer numbers'!H256,'S1.2 Customer numbers'!H258,'S1.2 Customer numbers'!H260) -> 1622.481118 | I14: =+SUM('S1.2 Customer numbers'!I254,'S1.2 Customer numbers'!I256,'S1.2 Customer numbers'!I258,'S1.2 Customer numbers'!I260) -> 1650.569894
B17: B. COMMERCIAL
C18: VOLUMES
C19: 0's
C20: =VLOOKUP(CRCP_y4,'AER lookups'!$B$52:$C$101,2,0) -> 2022 | D20: =CONCATENATE("1 Jan-30 Jun "&(C20+1)) -> 1 Jan-30 Jun 2023 | E20: =FRCP_y1 -> 2023-24 | F20: =FRCP_y2 -> 2024-25 | G20: =FRCP_y3 -> 2025-26 | H20: =FRCP_y4 -> 2026-27 | I20: =FRCP_y5 -> 2027-28
B21: Customer numbers - Beginning of year | C21: =SUM('S1.2 Customer numbers'!C12,'S1.2 Customer numbers'!C14,'S1.2 Customer numbers'!C16,'S1.2 Customer numbers'!C18) -> 19019 | D21: =C22 -> 19067.91908 | E21: =D22 -> 19093.74046 | F21: 19093.74046 | G21: 19146.18655 | H21: 19200.32058 | I21: 19256.09403
B22: Customer numbers - End of year | C22: =+SUM('S1.2 Customer numbers'!C93,'S1.2 Customer numbers'!C95,'S1.2 Customer numbers'!C97,'S1.2 Customer numbers'!C99) -> 19067.91908 | D22: =+SUM('S1.2 Customer numbers'!D93,'S1.2 Customer numbers'!D95,'S1.2 Customer numbers'!D97,'S1.2 Customer numbers'!D99) -> 19093.74046 | E22: =+SUM('S1.2 Customer numbers'!E93,'S1.2 Customer numbers'!E95,'S1.2 Customer numbers'!E97,'S1.2 Customer numbers'!E99) -> 19093.74046 | F22: =+SUM('S1.2 Customer numbers'!F93,'S1.2 Customer numbers'!F95,'S1.2 Customer numbers'!F97,'S1.2 Customer numbers'!F99) -> 19146.18655 | G22: =+SUM('S1.2 Customer numbers'!G93,'S1.2 Customer numbers'!G95,'S1.2 Customer numbers'!G97,'S1.2 Customer numbers'!G99) -> 19200.32058 | H22: =+SUM('S1.2 Customer numbers'!H93,'S1.2 Customer numbers'!H95,'S1.2 Customer numbers'!H97,'S1.2 Customer numbers'!H99) -> 19256.09403 | I22: =+SUM('S1.2 Customer numbers'!I93,'S1.2 Customer numbers'!I95,'S1.2 Customer numbers'!I97,'S1.2 Customer numbers'!I99) -> 19310.19617
B23: Total customer connections | C23: =SUM('S1.2 Customer numbers'!C174,'S1.2 Customer numbers'!C176,'S1.2 Customer numbers'!C178,'S1.2 Customer numbers'!C180) -> 138.7333546 | D23: =SUM('S1.2 Customer numbers'!D174,'S1.2 Customer numbers'!D176,'S1.2 Customer numbers'!D178,'S1.2 Customer numbers'!D180) -> 70.80162577 | E23: =SUM('S1.2 Customer numbers'!E174,'S1.2 Customer numbers'!E176,'S1.2 Customer numbers'!E178,'S1.2 Customer numbers'!E180) -> 142.7037125 | F23: =SUM('S1.2 Customer numbers'!F174,'S1.2 Customer numbers'!F176,'S1.2 Customer numbers'!F178,'S1.2 Customer numbers'!F180) -> 144.6985322 | G23: =SUM('S1.2 Customer numbers'!G174,'S1.2 Customer numbers'!G176,'S1.2 Customer numbers'!G178,'S1.2 Customer numbers'!G180) -> 146.6543952 | H23: =SUM('S1.2 Customer numbers'!H174,'S1.2 Customer numbers'!H176,'S1.2 Customer numbers'!H178,'S1.2 Customer numbers'!H180) -> 145.2896684 | I23: =SUM('S1.2 Customer numbers'!I174,'S1.2 Customer numbers'!I176,'S1.2 Customer numbers'!I178,'S1.2 Customer numbers'!I180) -> 143.8621728
B24: Total customer disconnections | C24: =SUM('S1.2 Customer numbers'!C255,'S1.2 Customer numbers'!C257,'S1.2 Customer numbers'!C259,'S1.2 Customer numbers'!C261) -> 89.81427179 | D24: =SUM('S1.2 Customer numbers'!D255,'S1.2 Customer numbers'!D257,'S1.2 Customer numbers'!D259,'S1.2 Customer numbers'!D261) -> 44.98025174 | E24: =SUM('S1.2 Customer numbers'!E255,'S1.2 Customer numbers'!E257,'S1.2 Customer numbers'!E259,'S1.2 Customer numbers'!E261) -> 142.7037125 | F24: =SUM('S1.2 Customer numbers'!F255,'S1.2 Customer numbers'!F257,'S1.2 Customer numbers'!F259,'S1.2 Customer numbers'!F261) -> 92.25244323 | G24: =SUM('S1.2 Customer numbers'!G255,'S1.2 Customer numbers'!G257,'S1.2 Customer numbers'!G259,'S1.2 Customer numbers'!G261) -> 92.52036247 | H24: =SUM('S1.2 Customer numbers'!H255,'S1.2 Customer numbers'!H257,'S1.2 Customer numbers'!H259,'S1.2 Customer numbers'!H261) -> 89.51622171 | I24: =SUM('S1.2 Customer numbers'!I255,'S1.2 Customer numbers'!I257,'S1.2 Customer numbers'!I259,'S1.2 Customer numbers'!I261) -> 89.76003209
B27: C. INDUSTRIAL
C28: VOLUMES
C29: 0's
C30: =VLOOKUP(CRCP_y4,'AER lookups'!$B$52:$C$101,2,0) -> 2022 | D30: =CONCATENATE("1 Jan-30 Jun "&(C30+1)) -> 1 Jan-30 Jun 2023 | E30: =FRCP_y1 -> 2023-24 | F30: =FRCP_y2 -> 2024-25 | G30: =FRCP_y3 -> 2025-26 | H30: =FRCP_y4 -> 2026-27 | I30: =FRCP_y5 -> 2027-28
B31: Customer numbers - Beginning of year | C31: n/a | D31: n/a | E31: n/a | F31: n/a | G31: n/a | H31: n/a | I31: n/a
B32: Customer numbers - End of year | C32: n/a | D32: n/a | E32: n/a | F32: n/a | G32: n/a | H32: n/a | I32: n/a
B33: Total customer connections | C33: n/a | D33: n/a | E33: n/a | F33: n/a | G33: n/a | H33: n/a | I33: n/a
B34: Total customer disconnections | C34: n/a | D34: n/a | E34: n/a | F34: n/a | G34: n/a | H34: n/a | I34: n/a

Sheet S1.2 Customer numbers
B1: =INDEX(dms_Worksheet_List,MATCH(dms_Model,dms_Model_List)) -> REGULATORY REPORTING STATEMENT
B2: =dms_TradingName -> AusNet (Gas)
B3: =dms_Header_Span -> 2021-22 to 2027-28
B4: S1. CUSTOMER NUMBERS
B6: S1.2 - CUSTOMER NUMBERS - BY TARIFF
B7: S1.2.1 - CUSTOMER NUMBERS - BEGINNING OF YEAR
C8: VOLUMES
C9: 0's
C10: =VLOOKUP(CRCP_y4,'AER lookups'!$B$52:$C$101,2,0) -> 2022 | D10: =CONCATENATE("1 Jan-30 Jun "&(C10+1)) -> 1 Jan-30 Jun 2023 | E10: =FRCP_y1 -> 2023-24 | F10: =FRCP_y2 -> 2024-25 | G10: =FRCP_y3 -> 2025-26 | H10: =FRCP_y4 -> 2026-27 | I10: =FRCP_y5 -> 2027-28
B11: =IF(ISBLANK('N1. Demand'!B21),"",'N1. Demand'!B21) -> Tariff V Central Domestic | C11: 589629 | D11: =C92 -> 602504.935 | E11: 609288.9527 | F11: 609288.9527 | G11: 623125.3987 | H11: 637468.6141 | I11: 652277.5266
B12: =IF(ISBLANK('N1. Demand'!B22),"",'N1. Demand'!B22) -> Tariff V Central Non-Domestic | C12: 11966 | D12: =C93 -> 12005.9154 | E12: 12026.94585 | F12: 12026.94585 | G12: 12069.83884 | H12: 12114.3028 | I12: 12160.21043
B13: =IF(ISBLANK('N1. Demand'!B23),"",'N1. Demand'!B23) -> Tariff V West Domestic | C13: 155189 | D13: =C94 -> 157403.5624 | E13: 158609.1705 | F13: 158609.1705 | G13: 160983.4027 | H13: 163360.0986 | I13: 165784.6803
B14: =IF(ISBLANK('N1. Demand'!B24),"",'N1. Demand'!B24) -> Tariff V West Non-Domestic | C14: 6713 | D14: =C95 -> 6719.865144 | E14: 6723.602528 | F14: 6723.602528 | G14: 6730.962648 | H14: 6738.330406 | I14: 6745.846609
B15: =IF(ISBLANK('N1. Demand'!B25),"",'N1. Demand'!B25) -> Tariff V Adjoining Central Domestic | C15: 2306 | D15: =C96 -> 2491.952976 | E15: 2587.286538 | F15: 2587.286538 | G15: 2780.214896 | H15: 2977.733405 | I15: 3179.965393
B16: =IF(ISBLANK('N1. Demand'!B26),"",'N1. Demand'!B26) -> Tariff V Adjoining Central Non-Domestic | C16: 25 | D16: =C97 -> 25.57645423 | E16: 25.87198827 | F16: 25.87198827 | G16: 26.47006618 | H16: 27.08237356 | I16: 27.70929272
B17: =IF(ISBLANK('N1. Demand'!B27),"",'N1. Demand'!B27) -> Tariff V Adjoining West Domestic | C17: 12283 | D17: =C98 -> 12786.89889 | E17: 13031.41508 | F17: 13031.41508 | G17: 13545.90166 | H17: 14091.06309 | I17: 14646.77131
B18: =IF(ISBLANK('N1. Demand'!B28),"",'N1. Demand'!B28) -> Tariff V Adjoining West Non-Domestic | C18: 315 | D18: =C99 -> 316.5620866 | E18: 317.3200867 | F18: 317.3200867 | G18: 318.9149951 | H18: 320.6049956 | I18: 322.3276911
B19: =IF(ISBLANK('N1. Demand'!B29),"",'N1. Demand'!B29) -> Tariff D West & Central | D19: =C100 -> 0 | E19: 0 | F19: 0 | G19: 0 | H19: 0 | I19: 0
B20: =IF(ISBLANK('N1. Demand'!B30),"",'N1. Demand'!B30) -> Tariff D Adjoining West & Central | D20: =C101 -> 0 | E20: 0 | F20: 0 | G20: 0 | H20: 0 | I20: 0
B21: =IF(ISBLANK('N1. Demand'!B31),"",'N1. Demand'!B31) -> Tariff M West & Central | D21: =C102 -> 0 | E21: 0 | F21: 0 | G21: 0 | H21: 0 | I21: 0
B22: =IF(ISBLANK('N1. Demand'!B32),"",'N1. Demand'!B32) -> Tariff M Adjoining West & Central | D22: =C103 -> 0 | E22: 0 | F22: 0 | G22: 0 | H22: 0 | I22: 0
B23: =IF(ISBLANK('N1. Demand'!B33),"",'N1. Demand'!B33) ->  | D23: =C104 -> 0 | E23: 0 | F23: 0 | G23: 0 | H23: 0 | I23: 0
B24: =IF(ISBLANK('N1. Demand'!B34),"",'N1. Demand'!B34) ->  | D24: =C105 -> 0 | E24: 0 | F24: 0 | G24: 0 | H24: 0 | I24: 0
B25: =IF(ISBLANK('N1. Demand'!B35),"",'N1. Demand'!B35) ->  | D25: =C106 -> 0 | E25: 0 | F25: 0 | G25: 0 | H25: 0 | I25: 0
B26: =IF(ISBLANK('N1. Demand'!B36),"",'N1. Demand'!B36) ->  | D26: =C107 -> 0 | E26: 0 | F26: 0 | G26: 0 | H26: 0 | I26: 0
B27: =IF(ISBLANK('N1. Demand'!B37),"",'N1. Demand'!B37) ->  | D27: =C108 -> 0 | E27: 0 | F27: 0 | G27: 0 | H27: 0 | I27: 0
B28: =IF(ISBLANK('N1. Demand'!B38),"",'N1. Demand'!B38) ->  | D28: =C109 -> 0 | E28: 0 | F28: 0 | G28: 0 | H28: 0 | I28: 0
B29: =IF(ISBLANK('N1. Demand'!B39),"",'N1. Demand'!B39) ->  | D29: =C110 -> 0 | E29: 0 | F29: 0 | G29: 0 | H29: 0 | I29: 0
B30: =IF(ISBLANK('N1. Demand'!B40),"",'N1. Demand'!B40) ->  | D30: =C111 -> 0 | E30: 0 | F30: 0 | G30: 0 | H30: 0 | I30: 0
B31: =IF(ISBLANK('N1. Demand'!B41),"",'N1. Demand'!B41) ->  | D31: =C112 -> 0 | E31: 0 | F31: 0 | G31: 0 | H31: 0 | I31: 0
B32: =IF(ISBLANK('N1. Demand'!B42),"",'N1. Demand'!B42) ->  | D32: =C113 -> 0 | E32: 0 | F32: 0 | G32: 0 | H32: 0 | I32: 0
B33: =IF(ISBLANK('N1. Demand'!B43),"",'N1. Demand'!B43) ->  | D33: =C114 -> 0 | E33: 0 | F33: 0 | G33: 0 | H33: 0 | I33: 0
B34: =IF(ISBLANK('N1. Demand'!B44),"",'N1. Demand'!B44) ->  | D34: =C115 -> 0 | E34: 0 | F34: 0 | G34: 0 | H34: 0 | I34: 0
B35: =IF(ISBLANK('N1. Demand'!B45),"",'N1. Demand'!B45) ->  | D35: =C116 -> 0 | E35: 0 | F35: 0 | G35: 0 | H35: 0 | I35: 0
B36: =IF(ISBLANK('N1. Demand'!B46),"",'N1. Demand'!B46) ->  | D36: =C117 -> 0 | E36: 0 | F36: 0 | G36: 0 | H36: 0 | I36: 0
B37: =IF(ISBLANK('N1. Demand'!B47),"",'N1. Demand'!B47) ->  | D37: =C118 -> 0 | E37: 0 | F37: 0 | G37: 0 | H37: 0 | I37: 0
B38: =IF(ISBLANK('N1. Demand'!B48),"",'N1. Demand'!B48) ->  | D38: =C119 -> 0 | E38: 0 | F38: 0 | G38: 0 | H38: 0 | I38: 0
B39: =IF(ISBLANK('N1. Demand'!B49),"",'N1. Demand'!B49) ->  | D39: =C120 -> 0 | E39: 0 | F39: 0 | G39: 0 | H39: 0 | I39: 0
B40: =IF(ISBLANK('N1. Demand'!B50),"",'N1. Demand'!B50) ->  | D40: =C121 -> 0 | E40: 0 | F40: 0 | G40: 0 | H40: 0 | I40: 0
B41: =IF(ISBLANK('N1. Demand'!B51),"",'N1. Demand'!B51) ->  | D41: =C122 -> 0 | E41: 0 | F41: 0 | G41: 0 | H41: 0 | I41: 0
B42: =IF(ISBLANK('N1. Demand'!B52),"",'N1. Demand'!B52) ->  | D42: =C123 -> 0 | E42: 0 | F42: 0 | G42: 0 | H42: 0 | I42: 0
B43: =IF(ISBLANK('N1. Demand'!B53),"",'N1. Demand'!B53) ->  | D43: =C124 -> 0 | E43: 0 | F43: 0 | G43: 0 | H43: 0 | I43: 0
B44: =IF(ISBLANK('N1. Demand'!B54),"",'N1. Demand'!B54) ->  | D44: =C125 -> 0 | E44: 0 | F44: 0 | G44: 0 | H44: 0 | I44: 0
B45: =IF(ISBLANK('N1. Demand'!B55),"",'N1. Demand'!B55) ->  | D45: =C126 -> 0 | E45: 0 | F45: 0 | G45: 0 | H45: 0 | I45: 0
B46: =IF(ISBLANK('N1. Demand'!B56),"",'N1. Demand'!B56) ->  | D46: =C127 -> 0 | E46: 0 | F46: 0 | G46: 0 | H46: 0 | I46: 0
B47: =IF(ISBLANK('N1. Demand'!B57),"",'N1. Demand'!B57) ->  | D47: =C128 -> 0 | E47: 0 | F47: 0 | G47: 0 | H47: 0 | I47: 0
B48: =IF(ISBLANK('N1. Demand'!B58),"",'N1. Demand'!B58) ->  | D48: =C129 -> 0 | E48: 0 | F48: 0 | G48: 0 | H48: 0 | I48: 0
B49: =IF(ISBLANK('N1. Demand'!B59),"",'N1. Demand'!B59) ->  | D49: =C130 -> 0 | E49: 0 | F49: 0 | G49: 0 | H49: 0 | I49: 0
B50: =IF(ISBLANK('N1. Demand'!B60),"",'N1. Demand'!B60) ->  | D50: =C131 -> 0 | E50: =D131 -> 0 | F50: =E131 -> 0 | G50: =F131 -> 0 | H50: =G131 -> 0 | I50: =H131 -> 0
B51: =IF(ISBLANK('N1. Demand'!B61),"",'N1. Demand'!B61) ->  | D51: 0 | E51: 0 | F51: 0 | G51: 0 | H51: 0 | I51: 0
B52: =IF(ISBLANK('N1. Demand'!B62),"",'N1. Demand'!B62) ->  | D52: 0 | E52: 0 | F52: 0 | G52: 0 | H52: 0 | I52: 0
B53: =IF(ISBLANK('N1. Demand'!B63),"",'N1. Demand'!B63) ->  | D53: =C134 -> 0 | E53: 0 | F53: 0 | G53: 0 | H53: 0 | I53: 0
B54: =IF(ISBLANK('N1. Demand'!B64),"",'N1. Demand'!B64) ->  | D54: =C135 -> 0 | E54: 0 | F54: 0 | G54: 0 | H54: 0 | I54: 0
B55: =IF(ISBLANK('N1. Demand'!B65),"",'N1. Demand'!B65) ->  | D55: =C136 -> 0 | E55: 0 | F55: 0 | G55: 0 | H55: 0 | I55: 0
B56: =IF(ISBLANK('N1. Demand'!B66),"",'N1. Demand'!B66) ->  | D56: =C137 -> 0 | E56: 0 | F56: 0 | G56: 0 | H56: 0 | I56: 0
B57: =IF(ISBLANK('N1. Demand'!B67),"",'N1. Demand'!B67) ->  | D57: =C138 -> 0 | E57: 0 | F57: 0 | G57: 0 | H57: 0 | I57: 0
B58: =IF(ISBLANK('N1. Demand'!B68),"",'N1. Demand'!B68) ->  | D58: =C139 -> 0 | E58: =D139 -> 0 | F58: =E139 -> 0 | G58: =F139 -> 0 | H58: =G139 -> 0 | I58: =H139 -> 0
B59: =IF(ISBLANK('N1. Demand'!B69),"",'N1. Demand'!B69) ->  | D59: 0 | E59: 0 | F59: 0 | G59: 0 | H59: 0 | I59: 0
B60: =IF(ISBLANK('N1. Demand'!B70),"",'N1. Demand'!B70) ->  | D60: 0 | E60: 0 | F60: 0 | G60: 0 | H60: 0 | I60: 0
B61: =IF(ISBLANK('N1. Demand'!B71),"",'N1. Demand'!B71) ->  | D61: 0 | E61: 0 | F61: 0 | G61: 0 | H61: 0 | I61: 0
B62: =IF(ISBLANK('N1. Demand'!B72),"",'N1. Demand'!B72) ->  | D62: 0 | E62: 0 | F62: 0 | G62: 0 | H62: 0 | I62: 0
B63: =IF(ISBLANK('N1. Demand'!B73),"",'N1. Demand'!B73) ->  | D63: 0 | E63: 0 | F63: 0 | G63: 0 | H63: 0 | I63: 0
B64: =IF(ISBLANK('N1. Demand'!B74),"",'N1. Demand'!B74) ->  | D64: 0 | E64: 0 | F64: 0 | G64: 0 | H64: 0 | I64: 0
B65: =IF(ISBLANK('N1. Demand'!B75),"",'N1. Demand'!B75) ->  | D65: 0 | E65: 0 | F65: 0 | G65: 0 | H65: 0 | I65: 0
B66: =IF(ISBLANK('N1. Demand'!B76),"",'N1. Demand'!B76) ->  | D66: 0 | E66: 0 | F66: 0 | G66: 0 | H66: 0 | I66: 0
B67: =IF(ISBLANK('N1. Demand'!B77),"",'N1. Demand'!B77) ->  | D67: 0 | E67: 0 | F67: 0 | G67: 0 | H67: 0 | I67: 0
B68: =IF(ISBLANK('N1. Demand'!B78),"",'N1. Demand'!B78) ->  | D68: 0 | E68: 0 | F68: 0 | G68: 0 | H68: 0 | I68: 0
B69: =IF(ISBLANK('N1. Demand'!B79),"",'N1. Demand'!B79) ->  | D69: 0 | E69: 0 | F69: 0 | G69: 0 | H69: 0 | I69: 0
B70: =IF(ISBLANK('N1. Demand'!B80),"",'N1. Demand'!B80) ->  | D70: 0 | E70: 0 | F70: 0 | G70: 0 | H70: 0 | I70: 0
B71: =IF(ISBLANK('N1. Demand'!B81),"",'N1. Demand'!B81) ->  | D71: 0 | E71: 0 | F71: 0 | G71: 0 | H71: 0 | I71: 0
B72: =IF(ISBLANK('N1. Demand'!B82),"",'N1. Demand'!B82) ->  | D72: 0 | E72: 0 | F72: 0 | G72: 0 | H72: 0 | I72: 0
B73: =IF(ISBLANK('N1. Demand'!B83),"",'N1. Demand'!B83) ->  | D73: 0 | E73: 0 | F73: 0 | G73: 0 | H73: 0 | I73: 0
B74: =IF(ISBLANK('N1. Demand'!B84),"",'N1. Demand'!B84) ->  | D74: 0 | E74: 0 | F74: 0 | G74: 0 | H74: 0 | I74: 0
B75: =IF(ISBLANK('N1. Demand'!B85),"",'N1. Demand'!B85) ->  | D75: 0 | E75: 0 | F75: 0 | G75: 0 | H75: 0 | I75: 0
B76: =IF(ISBLANK('N1. Demand'!B86),"",'N1. Demand'!B86) ->  | D76: 0 | E76: 0 | F76: 0 | G76: 0 | H76: 0 | I76: 0
B77: =IF(ISBLANK('N1. Demand'!B87),"",'N1. Demand'!B87) ->  | D77: 0 | E77: 0 | F77: 0 | G77: 0 | H77: 0 | I77: 0
B78: =IF(ISBLANK('N1. Demand'!B88),"",'N1. Demand'!B88) ->  | D78: 0 | E78: 0 | F78: 0 | G78: 0 | H78: 0 | I78: 0
B79: =IF(ISBLANK('N1. Demand'!B89),"",'N1. Demand'!B89) ->  | D79: 0 | E79: 0 | F79: 0 | G79: 0 | H79: 0 | I79: 0
B80: =IF(ISBLANK('N1. Demand'!B90),"",'N1. Demand'!B90) ->  | D80: 0 | E80: 0 | F80: 0 | G80: 0 | H80: 0 | I80: 0
B81: =IF(ISBLANK('N1. Demand'!B91),"",'N1. Demand'!B91) ->  | D81: 0 | E81: 0 | F81: 0 | G81: 0 | H81: 0 | I81: 0
B82: =IF(ISBLANK('N1. Demand'!B92),"",'N1. Demand'!B92) ->  | D82: 0 | E82: 0 | F82: 0 | G82: 0 | H82: 0 | I82: 0
B83: =IF(ISBLANK('N1. Demand'!B93),"",'N1. Demand'!B93) ->  | D83: 0 | E83: 0 | F83: 0 | G83: 0 | H83: 0 | I83: 0
B84: =IF(ISBLANK('N1. Demand'!B94),"",'N1. Demand'!B94) ->  | D84: 0 | E84: 0 | F84: 0 | G84: 0 | H84: 0 | I84: 0
B85: =IF(ISBLANK('N1. Demand'!B95),"",'N1. Demand'!B95) ->  | D85: 0 | E85: 0 | F85: 0 | G85: 0 | H85: 0 | I85: 0
B86: Total | C86: =SUM(C11:C85) -> 778426 | D86: =SUM(D11:D85) -> 794255.2684 | E86: 802610.5652 | F86: 802610.5652 | G86: 819581.1045 | H86: 837097.8298 | I86: 855145.0376
B88: S1.2.2 - CUSTOMER NUMBERS - END OF YEAR
C89: VOLUMES
C90: 0's
C91: =VLOOKUP(CRCP_y4,'AER lookups'!$B$52:$C$101,2,0) -> 2022 | D91: =CONCATENATE("1 Jan-30 Jun "&(C91+1)) -> 1 Jan-30 Jun 2023 | E91: =FRCP_y1 -> 2023-24 | F91: =FRCP_y2 -> 2024-25 | G91: =FRCP_y3 -> 2025-26 | H91: =FRCP_y4 -> 2026-27 | I91: =FRCP_y5 -> 2027-28
B92: =IF(ISBLANK(B11),"",B11) -> Tariff V Central Domestic | C92: 602504.935 | D92: 609288.9527 | E92: 609288.9527 | F92: 623125.3987 | G92: 637468.6141 | H92: 652277.5266 | I92: 666598.9021
B93: Tariff V Central Non-Domestic | C93: 12005.9154 | D93: 12026.94585 | E93: 12026.94585 | F93: 12069.83884 | G93: 12114.3028 | H93: 12160.21043 | I93: 12204.6067
B94: Tariff V West Domestic | C94: 157403.5624 | D94: 158609.1705 | E94: 158609.1705 | F94: 160983.4027 | G94: 163360.0986 | H94: 165784.6803 | I94: 168170.5488
B95: Tariff V West Non-Domestic | C95: 6719.865144 | D95: 6723.602528 | E95: 6723.602528 | F95: 6730.962648 | G95: 6738.330406 | H95: 6745.846609 | I95: 6753.242801
B96: Tariff V Adjoining Central Domestic | C96: 2491.952976 | D96: 2587.286538 | E96: 2587.286538 | F96: 2780.214896 | G96: 2977.733405 | H96: 3179.965393 | I96: 3378.737384
B97: Tariff V Adjoining Central Non-Domestic | C97: 25.57645423 | D97: 25.87198827 | E97: 25.87198827 | F97: 26.47006618 | G97: 27.08237356 | H97: 27.70929272 | I97: 28.32548589
B98: Tariff V Adjoining West Domestic | C98: 12786.89889 | D98: 13031.41508 | E98: 13031.41508 | F98: 13545.90166 | G98: 14091.06309 | H98: 14646.77131 | I98: 15193.05877
B99: Tariff V Adjoining West Non-Domestic | C99: 316.5620866 | D99: 317.3200867 | E99: 317.3200867 | F99: 318.9149951 | G99: 320.6049956 | H99: 322.3276911 | I99: 324.0211822
B100: Tariff D West & Central
B101: Tariff D Adjoining West & Central
B102: Tariff M West & Central
B103: Tariff M Adjoining West & Central
B124: =IF(ISBLANK(B43),"",B43) -> 
B141: =IF(ISBLANK(B60),"",B60) -> 
B167: Total | C167: =SUM(C92:C166) -> 794255.2684 | D167: =SUM(D92:D166) -> 802610.5652 | E167: =SUM(E92:E166) -> 802610.5652 | F167: =SUM(F92:F166) -> 819581.1045 | G167: =SUM(G92:G166) -> 837097.8298 | H167: =SUM(H92:H166) -> 855145.0376 | I167: =SUM(I92:I166) -> 872651.4432
B169: S1.2.3 - TOTAL CUSTOMER CONNECTIONS
C170: VOLUMES
C171: 0's
C172: =VLOOKUP(CRCP_y4,'AER lookups'!$B$52:$C$101,2,0) -> 2022 | D172: =CONCATENATE("1 Jan-30 Jun "&(C172+1)) -> 1 Jan-30 Jun 2023 | E172: =FRCP_y1 -> 2023-24 | F172: =FRCP_y2 -> 2024-25 | G172: =FRCP_y3 -> 2025-26 | H172: =FRCP_y4 -> 2026-27 | I172: =FRCP_y5 -> 2027-28
B173: =IF(ISBLANK(B11),"",B11) -> Tariff V Central Domestic | C173: 14597.88417 | D173: 7654.957796 | E173: 15618.97677 | F173: 16167.88549 | G173: 16677.09026 | H173: 16231.62848 | I173: 15764.00139
B174: Tariff V Central Non-Domestic | C174: 103.7365414 | D174: 53.00610574 | E174: 107.1097516 | F174: 108.9559265 | G174: 110.6837128 | H174: 109.4471191 | I174: 108.1366909
B175: Tariff V West Domestic | C175: 2422.825523 | D175: 1310.558074 | E175: 2587.356064 | F175: 2593.046869 | G175: 2644.224749 | H175: 2608.751141 | I175: 2577.831605
B176: Tariff V West Non-Domestic | C176: 32.85827234 | D176: 16.7419858 | E176: 33.40097459 | F176: 33.44029781 | G176: 33.62106781 | H176: 33.53286503 | I176: 33.45846867
B177: Tariff V Adjoining Central Domestic | C177: 194.0739091 | D177: 99.55278792 | E177: 202.0093774 | F177: 207.2573859 | G177: 212.6444195 | H177: 209.8464532 | I177: 206.7738589
B178: Tariff V Adjoining Central Non-Domestic | C178: 0.5764542256 | D178: 0.2955340425 | E178: 0.5980779081 | F178: 0.6123073798 | G178: 0.6269191633 | H178: 0.6161931709 | I178: 0.6046542634
B179: Tariff V Adjoining West Domestic | C179: 518.5203696 | D179: 251.9682077 | E179: 529.9851521 | F179: 561.2899841 | G179: 572.4789415 | H179: 563.6894574 | I179: 554.2665027
B180: Tariff V Adjoining West Non-Domestic | C180: 1.56208656 | D180: 0.758000184 | E180: 1.5949084 | F180: 1.69000044 | G180: 1.722695486 | H180: 1.693491113 | I180: 1.662358956
B181: Tariff D West & Central
B182: Tariff D Adjoining West & Central
B183: Tariff M West & Central
B184: Tariff M Adjoining West & Central
B205: =IF(ISBLANK(B43),"",B43) -> 
B222: =IF(ISBLANK(B60),"",B60) -> 
B248: Total | C248: =SUM(C173:C247) -> 17872.03733 | D248: =SUM(D173:D247) -> 9387.838491 | E248: =SUM(E173:E247) -> 19081.03108 | F248: =SUM(F173:F247) -> 19674.17826 | G248: =SUM(G173:G247) -> 20253.09276 | H248: =SUM(H173:H247) -> 19759.2052 | I248: =SUM(I173:I247) -> 19246.73553
B250: S1.2.4 - TOTAL CUSTOMER DISCONNECTIONS
C251: VOLUMES
C252: 0's
C253: =VLOOKUP(CRCP_y4,'AER lookups'!$B$52:$C$101,2,0) -> 2022 | D253: =CONCATENATE("1 Jan-30 Jun "&(C253+1)) -> 1 Jan-30 Jun 2023 | E253: =FRCP_y1 -> 2023-24 | F253: =FRCP_y2 -> 2024-25 | G253: =FRCP_y3 -> 2025-26 | H253: =FRCP_y4 -> 2026-27 | I253: =FRCP_y5 -> 2027-28
B254: =IF(ISBLANK(B11),"",B11) -> Tariff V Central Domestic | C254: =+C173-(C92-C11) -> 1721.949195 | D254: =+D173-(D92-D11) -> 870.9400923 | E254: =+E173-(E92-E11) -> 15618.97677 | F254: 2331.439452 | G254: 2333.874916 | H254: 1422.715961 | I254: 1442.625891
B255: Tariff V Central Non-Domestic | C255: =+C174-(C93-C12) -> 63.82114301 | D255: 31.97565086 | E255: 107.1097516 | F255: 66.06294383 | G255: 66.21974522 | H255: 63.53949028 | I255: 63.74042689
B256: Tariff V West Domestic | C256: 208.2630827 | D256: 104.9500358 | E256: 2587.356064 | F256: 218.8146363 | G256: 267.5288178 | H256: 184.1694554 | I256: 191.9630876
B257: Tariff V West Non-Domestic | C257: 25.99312878 | D257: 13.00460088 | E257: 33.40097459 | F257: 26.08017789 | G257: 26.25331042 | H257: 26.0166618 | I257: 26.06227626
B258: Tariff V Adjoining Central Domestic | C258: 8.120933107 | D258: 4.219225819 | E258: 202.0093774 | F258: 14.32902846 | G258: 15.12590994 | H258: 7.614465001 | I258: 8.001868232
B259: Tariff V Adjoining Central Non-Domestic | C259: 0 | D259: 0 | E259: 0.5980779081 | F259: 0.01422947167 | G259: 0.01461178356 | H259: -0.01072599241 | I259: -0.01153890749
B260: Tariff V Adjoining West Domestic | C260: 14.62147935 | D260: 7.452019303 | E260: 529.9851521 | F260: 46.8034036 | G260: 27.3175094 | H260: 7.981236037 | I260: 7.979047042
B261: Tariff V Adjoining West Non-Domestic | C261: 0 | D261: 0 | E261: 1.5949084 | F261: 0.09509203994 | G261: 0.03269504674 | H261: -0.0292043737 | I261: -0.03113215675
B262: Tariff D West & Central
B263: Tariff D Adjoining West & Central
B264: Tariff M West & Central
B265: Tariff M Adjoining West & Central
B286: =IF(ISBLANK(B43),"",B43) -> 
B303: =IF(ISBLANK(B60),"",B60) -> 
B329: Total | C329: =SUM(C254:C328) -> 2042.768962 | D329: =SUM(D254:D328) -> 1032.541625 | E329: =SUM(E254:E328) -> 19081.03108 | F329: =SUM(F254:F328) -> 2703.638963 | G329: =SUM(G254:G328) -> 2736.367516 | H329: =SUM(H254:H328) -> 1711.99734 | I329: =SUM(I254:I328) -> 1740.329926

Sheet S10. Supply Quality
B1: =INDEX(dms_Worksheet_List,MATCH(dms_Model,dms_Model_List)) -> REGULATORY REPORTING STATEMENT
B2: =dms_TradingName -> AusNet (Gas)
B3: =dms_Header_Span -> 2021-22 to 2027-28
B4: S10. SUPPLY QUALITY
B6: S10.1 - PRESSURE FAULTS
C7: VOLUMES
C8: 0's
C9: =VLOOKUP(CRCP_y4,'AER lookups'!$B$52:$C$101,2,0) -> 2022 | D9: =CONCATENATE("1 Jan-30 Jun "&(C9+1)) -> 1 Jan-30 Jun 2023 | E9: =FRCP_y1 -> 2023-24 | F9: =FRCP_y2 -> 2024-25 | G9: =FRCP_y3 -> 2025-26 | H9: =FRCP_y4 -> 2026-27 | I9: =FRCP_y5 -> 2027-28
B10: Poor Pressure events - mains | C10: 14.42857143 | D10: 7.214285714 | E10: 14.42857143 | F10: 14.42857143 | G10: 14.42857143 | H10: 14.42857143 | I10: 14.42857143
B11: Poor Pressure events - services | C11: 14.42857143 | D11: 7.214285714 | E11: 14.42857143 | F11: 14.42857143 | G11: 14.42857143 | H11: 14.42857143 | I11: 14.42857143
B12: Poor Pressure event - meters | C12: 0 | D12: 0 | E12: 0 | F12: 0 | G12: 0 | H12: 0 | I12: 0
B13: Pressure events impacting 5+ customers | C13: 20.85714286 | D13: 10.42857143 | E13: 20.85714286 | F13: 20.85714286 | G13: 20.85714286 | H13: 20.85714286 | I13: 20.85714286
B14: Pressure events with >12 hr resolution | C14: 24.14285714 | D14: 12.07142857 | E14: 24.14285714 | F14: 24.14285714 | G14: 24.14285714 | H14: 24.14285714 | I14: 24.14285714

Sheet S11. Network reliability
B1: =INDEX(dms_Worksheet_List,MATCH(dms_Model,dms_Model_List)) -> REGULATORY REPORTING STATEMENT
B2: =dms_TradingName -> AusNet (Gas)
B3: =dms_Header_Span -> 2021-22 to 2027-28
B4: S11. NETWORK RELIABILITY
B6: S11.1 - NETWORK OUTAGES
B7: S11.1.1 - PLANNED
C8: VOLUMES
C9: 0's
C10: =VLOOKUP(CRCP_y4,'AER lookups'!$B$52:$C$101,2,0) -> 2022 | D10: =CONCATENATE("1 Jan-30 Jun "&(C10+1)) -> 1 Jan-30 Jun 2023 | E10: =FRCP_y1 -> 2023-24 | F10: =FRCP_y2 -> 2024-25 | G10: =FRCP_y3 -> 2025-26 | H10: =FRCP_y4 -> 2026-27 | I10: =FRCP_y5 -> 2027-28
B11: Count of outage events | C11: 291 | D11: 145.5 | E11: 291 | F11: 291 | G11: 291 | H11: 291 | I11: 291
B12: Outages affecting 5+ customers | C12: 274 | D12: 137 | E12: 274 | F12: 274 | G12: 274 | H12: 274 | I12: 274
B13: Outages with >12 hr supply interruption | C13: 5.222222222 | D13: 2.611111111 | E13: 5.222222222 | F13: 5.222222222 | G13: 5.222222222 | H13: 5.222222222 | I13: 5.222222222
B15: S11.1.2 - UNPLANNED
C16: VOLUMES
C17: 0's
C18: =VLOOKUP(CRCP_y4,'AER lookups'!$B$52:$C$101,2,0) -> 2022 | D18: =CONCATENATE("1 Jan-30 Jun "&(C18+1)) -> 1 Jan-30 Jun 2023 | E18: =FRCP_y1 -> 2023-24 | F18: =FRCP_y2 -> 2024-25 | G18: =FRCP_y3 -> 2025-26 | H18: =FRCP_y4 -> 2026-27 | I18: =FRCP_y5 -> 2027-28
B19: Count of outage events | C19: 18464 | D19: 9232 | E19: 18464 | F19: 18464 | G19: 18464 | H19: 18464 | I19: 18464
B20: Outages affecting 5+ customers | C20: 20.85714286 | D20: 10.42857143 | E20: 20.85714286 | F20: 20.85714286 | G20: 20.85714286 | H20: 20.85714286 | I20: 20.85714286
B21: Outages with >12 hr supply interruption | C21: 24.14285714 | D21: 12.07142857 | E21: 24.14285714 | F21: 24.14285714 | G21: 24.14285714 | H21: 24.14285714 | I21: 24.14285714
B25: S11.3 - UNACCOUNTED FOR GAS - TRANSMISSION AND DISTRIBUTION
C26: VOLUMES
C27: GJ
B28: Place of loss | C28: =VLOOKUP(CRCP_y4,'AER lookups'!$B$52:$C$101,2,0) -> 2022 | D28: =CONCATENATE("1 Jan-30 Jun "&(C28+1)) -> 1 Jan-30 Jun 2023 | E28: =FRCP_y1 -> 2023-24 | F28: =FRCP_y2 -> 2024-25 | G28: =FRCP_y3 -> 2025-26 | H28: =FRCP_y4 -> 2026-27 | I28: =FRCP_y5 -> 2027-28
B29: DTS Netowrk | C29: 2265412.942 | D29: 1132706.471 | E29: 2265412.942 | F29: 2265412.942 | G29: 2265412.942 | H29: 2265412.942 | I29: 2265412.942
B30: Non-DTS Network | C30: 93267.00473 | D30: 46633.50237 | E30: 93267.00473 | F30: 93267.00473 | G30: 93267.00473 | H30: 93267.00473 | I30: 93267.00473
B39: Total | C39: =SUM(C29:C38) -> 2358679.946 | D39: 1179339.973 | E39: 2358679.946 | F39: 2358679.946 | G39: 2358679.946 | H39: 2358679.946 | I39: 2358679.946

Sheet F3. Revenue
B1: =INDEX(dms_Worksheet_List,MATCH(dms_Model,dms_Model_List)) -> REGULATORY REPORTING STATEMENT
B2: =dms_TradingName -> AusNet (Gas)
B3: =dms_Header_Span -> 2021-22 to 2027-28
B4: F3. REVENUE
B6: F3.1 - REFERENCE SERVICES
B7: F3.1.1 - REVENUE - BY TARIFF
C8: REVENUE
C9: =CONCATENATE("$0's, real ",dms_DollarReal) -> $0's, real June 2023
B10: Tariff | C10: =VLOOKUP(CRCP_y4,'AER lookups'!$B$52:$C$101,2,0) -> 2022 | D10: =CONCATENATE("1 Jan-30 Jun "&(C10+1)) -> 1 Jan-30 Jun 2023 | E10: =FRCP_y1 -> 2023-24 | F10: =FRCP_y2 -> 2024-25 | G10: =FRCP_y3 -> 2025-26 | H10: =FRCP_y4 -> 2026-27 | I10: =FRCP_y5 -> 2027-28
B11: =IF(ISBLANK('N1. Demand'!B21),"",'N1. Demand'!B21) -> Tariff V Central Domestic | C11: 173646079.7 | D11: 75142150.52 | E11: 154554511.9 | F11: 160335234.9 | G11: 166961782.5 | H11: 174374503.7 | I11: 182171336.3
B12: =IF(ISBLANK('N1. Demand'!B22),"",'N1. Demand'!B22) -> Tariff V Central Non-Domestic | C12: 5028277.675 | D12: 2383447.527 | E12: 4551621.231 | F12: 4627184.703 | G12: 4732092.174 | H12: 4867155.76 | I12: 5015009.688
B13: =IF(ISBLANK('N1. Demand'!B23),"",'N1. Demand'!B23) -> Tariff V West Domestic | C13: 37792678.72 | D13: 16801114.74 | E13: 33442834.86 | F13: 34501813.49 | G13: 35691840.47 | H13: 37019475.15 | I13: 38420410.68
B14: =IF(ISBLANK('N1. Demand'!B24),"",'N1. Demand'!B24) -> Tariff V West Non-Domestic | C14: 1814135.884 | D14: 847762.1401 | E14: 1648862.802 | F14: 1675912.839 | G14: 1709962.215 | H14: 1751728.432 | I14: 1796900.344
B15: =IF(ISBLANK('N1. Demand'!B25),"",'N1. Demand'!B25) -> Tariff V Adjoining Central Domestic | C15: 669757.8643 | D15: 374418.3771 | E15: 814042.9452 | F15: 882110.5476 | G15: 957098.0478 | H15: 1038471.201 | I15: 1123905.92
B16: =IF(ISBLANK('N1. Demand'!B26),"",'N1. Demand'!B26) -> Tariff V Adjoining Central Non-Domestic | C16: 25307.13146 | D16: 9019.056545 | E16: 16199.03937 | F16: 16793.33171 | G16: 17530.16973 | H16: 18402.7061 | I16: 19342.65002
B17: =IF(ISBLANK('N1. Demand'!B27),"",'N1. Demand'!B27) -> Tariff V Adjoining West Domestic | C17: 4706695.644 | D17: 2121589.62 | E17: 4502541.099 | F17: 4726458.427 | G17: 4982383.674 | H17: 5271201.364 | I17: 5577527.677
B18: =IF(ISBLANK('N1. Demand'!B28),"",'N1. Demand'!B28) -> Tariff V Adjoining West Non-Domestic | C18: 457701.255 | D18: 191887.5746 | E18: 369919.7746 | F18: 374926.8093 | G18: 383074.4205 | H18: 394478.1628 | I18: 407225.6682
B19: =IF(ISBLANK('N1. Demand'!B29),"",'N1. Demand'!B29) -> Tariff D West & Central | C19: 1960719.906 | D19: 1660026.893 | E19: 1470058.341 | F19: 1479772.056 | G19: 1489093.633 | H19: 1509945.526 | I19: 1538619.509
B20: =IF(ISBLANK('N1. Demand'!B30),"",'N1. Demand'!B30) -> Tariff D Adjoining West & Central | C20: 15196.35933 | D20: 11500.10632 | E20: 10184.06828 | F20: 10251.36162 | G20: 10315.93836 | H20: 10460.39324 | I20: 10659.03692
B21: =IF(ISBLANK('N1. Demand'!B31),"",'N1. Demand'!B31) -> Tariff M West & Central | C21: 232689.3494 | D21: 136127.7473 | E21: 120549.6919 | F21: 121346.2489 | G21: 122110.6494 | H21: 123820.5742 | I21: 126171.9365
B22: =IF(ISBLANK('N1. Demand'!B32),"",'N1. Demand'!B32) -> Tariff M Adjoining West & Central | C22: 0 | D22: 0 | E22: 0 | F22: 0 | G22: 0 | H22: 0 | I22: 0
B23: =IF(ISBLANK('N1. Demand'!B33),"",'N1. Demand'!B33) -> 
B24: =IF(ISBLANK('N1. Demand'!B34),"",'N1. Demand'!B34) -> 
B25: =IF(ISBLANK('N1. Demand'!B35),"",'N1. Demand'!B35) -> 
B26: =IF(ISBLANK('N1. Demand'!B36),"",'N1. Demand'!B36) -> 
B27: =IF(ISBLANK('N1. Demand'!B37),"",'N1. Demand'!B37) -> 
B28: =IF(ISBLANK('N1. Demand'!B38),"",'N1. Demand'!B38) -> 
B29: =IF(ISBLANK('N1. Demand'!B39),"",'N1. Demand'!B39) -> 
B30: =IF(ISBLANK('N1. Demand'!B40),"",'N1. Demand'!B40) -> 
B31: =IF(ISBLANK('N1. Demand'!B41),"",'N1. Demand'!B41) -> 
B32: =IF(ISBLANK('N1. Demand'!B42),"",'N1. Demand'!B42) -> 
B33: =IF(ISBLANK('N1. Demand'!B43),"",'N1. Demand'!B43) -> 
B34: =IF(ISBLANK('N1. Demand'!B44),"",'N1. Demand'!B44) -> 
B35: =IF(ISBLANK('N1. Demand'!B45),"",'N1. Demand'!B45) -> 
B36: =IF(ISBLANK('N1. Demand'!B46),"",'N1. Demand'!B46) -> 
B37: =IF(ISBLANK('N1. Demand'!B47),"",'N1. Demand'!B47) -> 
B38: =IF(ISBLANK('N1. Demand'!B48),"",'N1. Demand'!B48) -> 
B39: =IF(ISBLANK('N1. Demand'!B49),"",'N1. Demand'!B49) -> 
B40: =IF(ISBLANK('N1. Demand'!B50),"",'N1. Demand'!B50) -> 
B41: =IF(ISBLANK('N1. Demand'!B51),"",'N1. Demand'!B51) -> 
B42: =IF(ISBLANK('N1. Demand'!B52),"",'N1. Demand'!B52) -> 
B43: =IF(ISBLANK('N1. Demand'!B53),"",'N1. Demand'!B53) -> 
B44: =IF(ISBLANK('N1. Demand'!B54),"",'N1. Demand'!B54) -> 
B45: =IF(ISBLANK('N1. Demand'!B55),"",'N1. Demand'!B55) -> 
B46: =IF(ISBLANK('N1. Demand'!B56),"",'N1. Demand'!B56) -> 
B47: =IF(ISBLANK('N1. Demand'!B57),"",'N1. Demand'!B57) -> 
B48: =IF(ISBLANK('N1. Demand'!B58),"",'N1. Demand'!B58) -> 
B49: =IF(ISBLANK('N1. Demand'!B59),"",'N1. Demand'!B59) -> 
B50: =IF(ISBLANK('N1. Demand'!B60),"",'N1. Demand'!B60) -> 
B51: =IF(ISBLANK('N1. Demand'!B61),"",'N1. Demand'!B61) -> 
B52: =IF(ISBLANK('N1. Demand'!B62),"",'N1. Demand'!B62) -> 
B53: =IF(ISBLANK('N1. Demand'!B63),"",'N1. Demand'!B63) -> 
B54: =IF(ISBLANK('N1. Demand'!B64),"",'N1. Demand'!B64) -> 
B55: =IF(ISBLANK('N1. Demand'!B65),"",'N1. Demand'!B65) -> 
B56: =IF(ISBLANK('N1. Demand'!B66),"",'N1. Demand'!B66) -> 
B57: =IF(ISBLANK('N1. Demand'!B67),"",'N1. Demand'!B67) -> 
B58: =IF(ISBLANK('N1. Demand'!B68),"",'N1. Demand'!B68) -> 
B59: =IF(ISBLANK('N1. Demand'!B69),"",'N1. Demand'!B69) -> 
B60: =IF(ISBLANK('N1. Demand'!B70),"",'N1. Demand'!B70) -> 
B61: =IF(ISBLANK('N1. Demand'!B71),"",'N1. Demand'!B71) -> 
B62: =IF(ISBLANK('N1. Demand'!B72),"",'N1. Demand'!B72) -> 
B63: =IF(ISBLANK('N1. Demand'!B73),"",'N1. Demand'!B73) -> 
B64: =IF(ISBLANK('N1. Demand'!B74),"",'N1. Demand'!B74) -> 
B65: =IF(ISBLANK('N1. Demand'!B75),"",'N1. Demand'!B75) -> 
B66: =IF(ISBLANK('N1. Demand'!B76),"",'N1. Demand'!B76) -> 
B67: =IF(ISBLANK('N1. Demand'!B77),"",'N1. Demand'!B77) -> 
B68: =IF(ISBLANK('N1. Demand'!B78),"",'N1. Demand'!B78) -> 
B69: =IF(ISBLANK('N1. Demand'!B79),"",'N1. Demand'!B79) -> 
B70: =IF(ISBLANK('N1. Demand'!B80),"",'N1. Demand'!B80) -> 
B71: =IF(ISBLANK('N1. Demand'!B81),"",'N1. Demand'!B81) -> 
B72: =IF(ISBLANK('N1. Demand'!B82),"",'N1. Demand'!B82) -> 
B73: =IF(ISBLANK('N1. Demand'!B83),"",'N1. Demand'!B83) -> 
B74: =IF(ISBLANK('N1. Demand'!B84),"",'N1. Demand'!B84) -> 
B75: =IF(ISBLANK('N1. Demand'!B85),"",'N1. Demand'!B85) -> 
B76: =IF(ISBLANK('N1. Demand'!B86),"",'N1. Demand'!B86) -> 
B77: =IF(ISBLANK('N1. Demand'!B87),"",'N1. Demand'!B87) -> 
B78: =IF(ISBLANK('N1. Demand'!B88),"",'N1. Demand'!B88) -> 
B79: =IF(ISBLANK('N1. Demand'!B89),"",'N1. Demand'!B89) -> 
B80: =IF(ISBLANK('N1. Demand'!B90),"",'N1. Demand'!B90) -> 
B81: =IF(ISBLANK('N1. Demand'!B91),"",'N1. Demand'!B91) -> 
B82: =IF(ISBLANK('N1. Demand'!B92),"",'N1. Demand'!B92) -> 
B83: =IF(ISBLANK('N1. Demand'!B93),"",'N1. Demand'!B93) -> 
B84: =IF(ISBLANK('N1. Demand'!B94),"",'N1. Demand'!B94) -> 
B85: =IF(ISBLANK('N1. Demand'!B95),"",'N1. Demand'!B95) -> 
B86: Total | C86: =SUM(C11:C85) -> 226349239.5 | D86: 99679044.31 | E86: 201501325.7 | F86: 208751804.7 | G86: 217057283.9 | H86: 226379643 | I86: 236207109.4
B88: F3.1.2 - STAND ALONE COST PER UNIT - BY TARIFF CLASS
C89: STAND ALONE COST PER UNIT
C90: =CONCATENATE("$0's, real ",dms_DollarReal) -> $0's, real June 2023
B91: Tariff Class | C91: =VLOOKUP(CRCP_y4,'AER lookups'!$B$52:$C$101,2,0) -> 2022 | D91: =CONCATENATE("1 Jan-30 Jun "&(C91+1)) -> 1 Jan-30 Jun 2023 | E91: =FRCP_y1 -> 2023-24 | F91: =FRCP_y2 -> 2024-25 | G91: =FRCP_y3 -> 2025-26 | H91: =FRCP_y4 -> 2026-27 | I91: =FRCP_y5 -> 2027-28
B92: Tariff V Central Domestic | C92: 1848 | D92: 1848 | E92: 2201 | F92: 2201 | G92: 2201 | H92: 2201 | I92: 2201
B93: Tariff V Central Non-Domestic | C93: 12739 | D93: 12739 | E93: 22024 | F93: 22024 | G93: 22024 | H93: 22024 | I93: 22024
B94: Tariff V Adjoining Central Domestic | C94: 1648 | D94: 1648 | E94: 1653 | F94: 1653 | G94: 1653 | H94: 1653 | I94: 1653
B95: Tariff V Adjoining Central Non-Domestic | C95: 6425 | D95: 6425 | E95: 8486 | F95: 8486 | G95: 8486 | H95: 8486 | I95: 8486
B96: Tariff V West Domestic | C96: 1969 | D96: 1969 | E96: 2331 | F96: 2331 | G96: 2331 | H96: 2331 | I96: 2331
B97: Tariff V West Non-Domestic | C97: 7936 | D97: 7936 | E97: 13640 | F97: 13640 | G97: 13640 | H97: 13640 | I97: 13640
B98: Tariff V Adjoining West Domestic | C98: 2186 | D98: 2186 | E98: 2440 | F98: 2440 | G98: 2440 | H98: 2440 | I98: 2440
B99: Tariff V Adjoining West Non-Domestic | C99: 10256 | D99: 10256 | E99: 16723 | F99: 16723 | G99: 16723 | H99: 16723 | I99: 16723
B100: Tariff D West & Central | C100: 484 per MHQ | D100: 484 per MHQ | E100: 483 per MHQ | F100: 483 per MHQ | G100: 483 per MHQ | H100: 483 per MHQ | I100: 483 per MHQ
B101: Tariff D Adjoining West & Central | C101: 484 per MHQ | D101: 484 per MHQ | E101: 483 per MHQ | F101: 483 per MHQ | G101: 483 per MHQ | H101: 483 per MHQ | I101: 483 per MHQ
B102: Tariff M West & Central | C102: 484 per MHQ | D102: 484 per MHQ | E102: 483 per MHQ | F102: 483 per MHQ | G102: 483 per MHQ | H102: 483 per MHQ | I102: 483 per MHQ
B103: Tariff M Adjoining West & Central | C103: 484 per MHQ | D103: 484 per MHQ | E103: 483 per MHQ | F103: 483 per MHQ | G103: 483 per MHQ | H103: 483 per MHQ | I103: 483 per MHQ
B113: F3.1.3 - AVOIDABLE COST PER UNIT - BY TARIFF CLASS
C114: AVOIDABLE COST PER UNIT
C115: =CONCATENATE("$0's, real ",dms_DollarReal) -> $0's, real June 2023
B116: Tariff Class | C116: =VLOOKUP(CRCP_y4,'AER lookups'!$B$52:$C$101,2,0) -> 2022 | D116: =CONCATENATE("1 Jan-30 Jun "&(C116+1)) -> 1 Jan-30 Jun 2023 | E116: =FRCP_y1 -> 2023-24 | F116: =FRCP_y2 -> 2024-25 | G116: =FRCP_y3 -> 2025-26 | H116: =FRCP_y4 -> 2026-27 | I116: =FRCP_y5 -> 2027-28
B117: =IF(ISBLANK(B92),"",B92) -> Tariff V Central Domestic | C117: 632 | D117: 632 | E117: 604 | F117: 604 | G117: 604 | H117: 604 | I117: 604
B118: =IF(ISBLANK(B93),"",B93) -> Tariff V Central Non-Domestic | C118: 1049 | D118: 1049 | E118: 1037 | F118: 1037 | G118: 1037 | H118: 1037 | I118: 1037
B119: Tariff V Adjoining Central Domestic | C119: 869 | D119: 869 | E119: 706 | F119: 706 | G119: 706 | H119: 706 | I119: 706
B120: Tariff V Adjoining Central Non-Domestic | C120: 2169 | D120: 2169 | E120: 1669 | F120: 1669 | G120: 1669 | H120: 1669 | I120: 1669
B121: Tariff V West Domestic | C121: 516 | D121: 516 | E121: 508 | F121: 508 | G121: 508 | H121: 508 | I121: 508
B122: Tariff V West Non-Domestic | C122: 592 | D122: 592 | E122: 645 | F122: 645 | G122: 645 | H122: 645 | I122: 645
B123: Tariff V Adjoining West Domestic | C123: 944 | D123: 944 | E123: 791 | F123: 791 | G123: 791 | H123: 791 | I123: 791
B124: Tariff V Adjoining West Non-Domestic | C124: 3170 | D124: 3170 | E124: 2899 | F124: 2899 | G124: 2899 | H124: 2899 | I124: 2899
B125: Tariff D West & Central | C125: 241 per MHQ | D125: 241 per MHQ | E125: 162 per MHQ | F125: 162 per MHQ | G125: 162 per MHQ | H125: 162 per MHQ | I125: 162 per MHQ
B126: Tariff D Adjoining West & Central | C126: 241 per MHQ | D126: 241 per MHQ | E126: 162 per MHQ | F126: 162 per MHQ | G126: 162 per MHQ | H126: 162 per MHQ | I126: 162 per MHQ
B127: Tariff M West & Central | C127: 241 per MHQ | D127: 241 per MHQ | E127: 162 per MHQ | F127: 162 per MHQ | G127: 162 per MHQ | H127: 162 per MHQ | I127: 162 per MHQ
B128: Tariff M Adjoining West & Central | C128: 241 per MHQ | D128: 241 per MHQ | E128: 162 per MHQ | F128: 162 per MHQ | G128: 162 per MHQ | H128: 162 per MHQ | I128: 162 per MHQ
B139: F3.2 - ANCILLARY REFERENCE SERVICES
C140: REVENUE
C141: =CONCATENATE("$0's, real ",dms_DollarReal) -> $0's, real June 2023
B142: Service Name | C142: =VLOOKUP(CRCP_y4,'AER lookups'!$B$52:$C$101,2,0) -> 2022 | D142: =CONCATENATE("1 Jan-30 Jun "&(C142+1)) -> 1 Jan-30 Jun 2023 | E142: =FRCP_y1 -> 2023-24 | F142: =FRCP_y2 -> 2024-25 | G142: =FRCP_y3 -> 2025-26 | H142: =FRCP_y4 -> 2026-27 | I142: =FRCP_y5 -> 2027-28
B143: Reconnections | C143: 30603.70903 | D143: 15301.85451 | E143: 30603.70903 | F143: 30603.70903 | G143: 30603.70903 | H143: 30603.70903 | I143: 30603.70903
B144: Disconnections | C144: 441863.2868 | D144: 220931.6434 | E144: 441863.2868 | F144: 441863.2868 | G144: 441863.2868 | H144: 441863.2868 | I144: 441863.2868
B145: Meter and Gas Installation test | C145: 149927.3476 | D145: 74963.67382 | E145: 149927.3476 | F145: 149927.3476 | G145: 149927.3476 | H145: 149927.3476 | I145: 149927.3476
B146: Special Meter Reads | C146: 2569657.145 | D146: 1298247.628 | E146: 1813162.45 | F146: 1844613.697 | G146: 1876938.213 | H146: 1907716.633 | I146: 1936929.841
B147: ARS - Other Non-Reference Services | C147: 0 | D147: 0 | E147: 0 | F147: 0 | G147: 0 | H147: 0 | I147: 0
B148: Meter Fix or Meter Reinstallation (New) | C148: 0 | D148: 0 | E148: 2802953.699 | F148: 2817444.482 | G148: 2832010.18 | H148: 2846651.18 | I148: 2861367.871
B149: Meter and Service Removal (New) | C149: 0 | D149: 0 | E149: 1764568.524 | F149: 1773691.036 | G149: 1782860.711 | H149: 1792077.79 | I149: 1801342.521
B150: Minor Meter Alter Position (New) | C150: 0 | D150: 0 | E150: 295681.0291 | F150: 297209.6486 | G150: 298746.1707 | H150: 300290.6365 | I150: 301843.0868
B152: Total | C152: =SUM(C143:C151) -> 3192051.488 | D152: 1609444.8 | E152: =SUM(E143:E151) -> 7298760.046 | F152: =SUM(F143:F151) -> 7355353.208 | G152: 7412949.618 | H152: 7469130.583 | I152: 7523877.664
B155: F3.3 - REBATEABLE SERVICES
C156: REVENUE
C157: =CONCATENATE("$0's, real ",dms_DollarReal) -> $0's, real June 2023
B158: Service Name | C158: =VLOOKUP(CRCP_y4,'AER lookups'!$B$52:$C$101,2,0) -> 2022 | D158: =CONCATENATE("1 Jan-30 Jun "&(C158+1)) -> 1 Jan-30 Jun 2023 | E158: =FRCP_y1 -> 2023-24 | F158: =FRCP_y2 -> 2024-25 | G158: =FRCP_y3 -> 2025-26 | H158: =FRCP_y4 -> 2026-27 | I158: =FRCP_y5 -> 2027-28
B165: Total | C165: =SUM(C159:C164) -> 0 | D165: =SUM(D159:D164) -> 0 | E165: 0 | F165: 0 | G165: 0 | H165: 0 | I165: 0
B168: F3.4 - NON-REFERENCE SERVICES
C169: REVENUE
C170: =CONCATENATE("$0's, real ",dms_DollarReal) -> $0's, real June 2023
B171: Service Name | C171: =VLOOKUP(CRCP_y4,'AER lookups'!$B$52:$C$101,2,0) -> 2022 | D171: =CONCATENATE("1 Jan-30 Jun "&(C171+1)) -> 1 Jan-30 Jun 2023 | E171: =FRCP_y1 -> 2023-24 | F171: =FRCP_y2 -> 2024-25 | G171: =FRCP_y3 -> 2025-26 | H171: =FRCP_y4 -> 2026-27 | I171: =FRCP_y5 -> 2027-28
B178: Total | C178: =SUM(C172:C177) -> 0 | D178: =SUM(D172:D177) -> 0 | E178: 0 | F178: 0 | G178: 0 | H178: 0 | I178: 0
B181: F3.5 - TOTAL REVENUE
C182: REVENUE
C183: =CONCATENATE("$0's, real ",dms_DollarReal) -> $0's, real June 2023
C184: =VLOOKUP(CRCP_y4,'AER lookups'!$B$52:$C$101,2,0) -> 2022 | D184: =CONCATENATE("1 Jan-30 Jun "&(C184+1)) -> 1 Jan-30 Jun 2023 | E184: =FRCP_y1 -> 2023-24 | F184: =FRCP_y2 -> 2024-25 | G184: =FRCP_y3 -> 2025-26 | H184: =FRCP_y4 -> 2026-27 | I184: =FRCP_y5 -> 2027-28
B185: Total | C185: =SUM(C178,C165,C152,C86) -> 229541291 | D185: 101288489.1 | E185: 208800085.8 | F185: 216107157.9 | G185: 224470233.5 | H185: 233848773.5 | I185: 243730987.1

Sheet Additional disclosures
